Workbook

Sheet Sheet1
B2: Steiner | H2: =$H1001 -> 355 | I2: =I1001 -> Steiner | J2: =J1001 -> 117 | K2: Lightning | Q2: =$Q1001 -> 238 | Z2: =CATIF($S$4:$S$1002,1,$T$4:$T$1002,";") -> gravy;Kora;Chris;Leon;Jeff;MZero;Ark;prof;mnk;guff;Poka;swordz;Gmun;Eddv;Reg;Krack;Sheik;Genny;pjbass;Yankee;Tangy;barrel;MWC;Ultros;Nee;Leo3;Drak;Comm;Natwaf;Sanity;Inviso;MI;Ermine;Paul;Fris;Nick;paulg;Arti;JC;Janus;canada;scarlet;Luis;Karo;Wick;Jesse;Nio;red;Poke;Brohan;darkx;Laus;Wedge;kbm;FBike;Kate;Denzo;Nanis;voltch;ecks;Swarles;illum;Steiner;Naomi;Piston;Axl;Jon;yellow;Roba;Kleenex;Jilly;junk;Harm;User;azu;eaad;Lens;Maniac;Stiffy;Donnas;Tex;Orange;Delse;Dream;yazzy;graem;TRE;JONA;FFD;Corrik;War;Black;vchar;neon;END | AA2: =CATIF($AH$4:$AH$1002,"Lightning",$X$4:$X$1002,";") -> 1;1;1;1;1;1;1;2;3;1;1;2;3;1;1;1;1;1;1;2;3;4;5;1;2;1;1;2;1;1;2;1;1;2;1;1;1;2;1;1;2;1;1;2;3;1;1;2;1;1;1;2;3;1;1;1;1;2;1;2;1;1;2;1;2;1;1;1;2;1;2;1;2;1;1;1;2;1;1;2;3;4;1;1;2;1;2;1;2;3;1;2;1;2;1;2;3;1;1;2;1;2;3;4;5;1;1;1;2;1;1;2;1;2;3;1;1;1;1;1;2;1;2;1;2;3;4;5;1;1;1;1;2;1;1;2;3;1;2;1;1;1;2;3;4;1;1;1;2;3;4;1;1;1;1;2;3;4;1;2;1;1;2;1;2;3;1;1;2;1;2;3;1;1;1;1;1;1;2;3;4;1;2;3;1;1;1;1;1;1;2;1;1;2;1;2;1;1;2;1;1;1;1;1;1;1;2;1;2;3;1;1;1;1;2;1;2;1;1;2;1;2;3;1;1;2;3;1;1;2;3;1;1;2;1;1;1;1
B3: Save | C3: H | D3: M | E3: S | F3: Count | G3: Saver | H3: Total | I3: Leader | J3: Lead | K3: Save | L3: H | M3: M | N3: S | O3: Count | P3: Saver | Q3: Total | R3: Vote | S3: # | T3: Voter | U3: Time | V3: Δtime | W3: Δtime Full | X3: Streak | Z3: STATS | AA3: Steiner | AB3: Lightning | AC3: Diff | AD3: Total | AG3: =ROUND(SUMIF(F4:F1001,">"&1,V4:V1001)/COUNTIF(F4:F1001,">"&0),0) -> 8004
C4: =IFERROR(MID($B4,FIND("-",$B4,1)+1,2),"?") -> ? | D4: =IFERROR(MID($B4,FIND("-",$B4,1)+3,2),"?") -> ? | E4: =IFERROR(MID($B4,FIND("-",$B4,1)+5,2),"?") -> ? | F4: =IF(G4="?","?",COUNTIF($G$4:$G4,$G4)) -> ? | G4: =IFERROR(MID($B4,1,FIND("-",$B4,1)-1),"?") -> ? | H4: =IF(R4="??? - N/A ","?",COUNTA($B$4:$B4)) -> 0 | I4: =IF(R4="??? - N/A ","?",IF(H4=Q4,"TIE",IF(H4>Q4,$B$2,$K$2))) -> TIE | J4: =IF(R4="??? - N/A ","?",ABS(H4-Q4)) -> 0 | L4: =IFERROR(MID($K4,FIND("-",$K4,1)+1,2),"?") -> ? | M4: =IFERROR(MID($K4,FIND("-",$K4,1)+3,2),"?") -> ? | N4: =IFERROR(MID($K4,FIND("-",$K4,1)+5,2),"?") -> ? | O4: =IF(P4="?","?",COUNTIF($P$4:$P4,$P4)) -> ? | P4: =IFERROR(MID($K4,1,FIND("-",$K4,1)-1),"?") -> ? | Q4: =IF(R4="??? - N/A ","?",COUNTA($K$4:$K4)) -> 0 | R4: START | S4: =IF($T4="N/A",0,COUNTIF($T$4:$T4,$T4)) -> 0 | T4: =IF(LEN(B4)>0,G4,IF(LEN(K4)>0,P4,"N/A")) -> N/A | U4: 1129 | V4: =IF($S4>1,U4-OCCUR($T$4:$T4,$T4,COUNTIF($T$4:$T4,$T4)-1,0,1),"N/A") -> N/A | W4: =IF($T4="N/A","???",IFERROR(CONCATENATE(FLOOR(IF(COUNTIF($T$4:$T4,$T4)<2,0,$U4-OCCUR($T$4:$T4,$T4,$S4-1,0,1))/3600,1),"h ", FLOOR((IF(COUNTIF($T$4:$T4,$T4)<2,0,$U4-OCCUR($T$4:$T4,$T4,$S4-1,0,1))-FLOOR(IF(COUNTIF($T$4:$T4,$T4)<2,0,$U4-OCCUR($T$4:$T4,$T4,$S4-1,0,1))/3600,1)*3600)/60,1), "m ", IF(COUNTIF($T$4:$T4,$T4)<2,0,$U4-OCCUR($T$4:$T4,$T4,$S4-1,0,1))-FLOOR((IF(COUNTIF($T$4:$T4,$T4)<2,0,$U4-OCCUR($T$4:$T4,$T4,$S4-1,0,1))-FLOOR(IF(COUNTIF($T$4:$T4,$T4)<2,0,$U4-OCCUR($T$4:$T4,$T4,$S4-1,0,1))/3600,1)*3600)/60,1)*60-FLOOR(IF(COUNTIF($T$4:$T4,$T4)<2,0,$U4-OCCUR($T$4:$T4,$T4,$S4-1,0,1))/3600,1)*3600, "s"),"???")) -> ??? | X4: N/A | Z4: Savers | AA4: =COUNTIF($R$4:$R$1001,"*Steiner 1") -> 54 | AB4: =COUNTIF($R$4:$R$1001,"*Lightning 1") -> 41 | AC4: =ABS(AA4-AB4) -> 13 | AD4: =SUM(AA4:AB4) -> 95 | AH4: =IF(ISNUMBER(FIND("Steiner",R4)),"Steiner",IF(ISNUMBER(FIND("Lightning",R4)),"Lightning","???")) -> ???
A5: 1 | B5: gravy-011856 | C5: 01 | D5: 18 | E5: 56 | F5: =IF(G5="?","?",COUNTIF($G$4:$G5,$G5)) -> 1 | G5: gravy | H5: =IF(R5="??? - N/A ","?",COUNTA($B$4:$B5)) -> 1 | I5: Steiner | J5: 1 | L5: ? | M5: ? | N5: ? | O5: =IF(P5="?","?",COUNTIF($P$4:$P5,$P5)) -> ? | P5: ? | Q5: =IF(R5="??? - N/A ","?",COUNTA($K$4:$K5)) -> 0 | R5: =CONCATENATE(IF(LEN(B5)>0,CONCATENATE(C5,":",D5,":",E5),IF(LEN(K5)>0,CONCATENATE(L5,":",M5,":",N5),"???"))," - ",IF(LEN(B5)>0,"Steiner",IF(LEN(K5)>0,"Lightning","N/A"))," ", IF(LEN(B5)>0,F5,IF(LEN(K5)>0,O5,"")) ) -> 01:18:56 - Steiner 1 | S5: =IF($T5="N/A",0,COUNTIF($T$4:$T5,$T5)) -> 1 | T5: gravy | U5: =IF(LEN(B5)>0,($E5+60*$D5+3600*($C5-1)),IF(LEN(K5)>0,$N5+60*$M5+3600*($L5-1),"???")) -> 1136 | V5: =IF($S5>1,U5-OCCUR($T$4:$T5,$T5,COUNTIF($T$4:$T5,$T5)-1,0,1),"N/A") -> N/A | W5: =IF($T5="N/A","???",IFERROR(CONCATENATE(FLOOR(IF(COUNTIF($T$4:$T5,$T5)<2,0,$U5-OCCUR($T$4:$T5,$T5,$S5-1,0,1))/3600,1),"h ", FLOOR((IF(COUNTIF($T$4:$T5,$T5)<2,0,$U5-OCCUR($T$4:$T5,$T5,$S5-1,0,1))-FLOOR(IF(COUNTIF($T$4:$T5,$T5)<2,0,$U5-OCCUR($T$4:$T5,$T5,$S5-1,0,1))/3600,1)*3600)/60,1), "m ", IF(COUNTIF($T$4:$T5,$T5)<2,0,$U5-OCCUR($T$4:$T5,$T5,$S5-1,0,1))-FLOOR((IF(COUNTIF($T$4:$T5,$T5)<2,0,$U5-OCCUR($T$4:$T5,$T5,$S5-1,0,1))-FLOOR(IF(COUNTIF($T$4:$T5,$T5)<2,0,$U5-OCCUR($T$4:$T5,$T5,$S5-1,0,1))/3600,1)*3600)/60,1)*60-FLOOR(IF(COUNTIF($T$4:$T5,$T5)<2,0,$U5-OCCUR($T$4:$T5,$T5,$S5-1,0,1))/3600,1)*3600, "s"),"???")) -> 0h 0m 0s | X5: 1 | Z5: Saves | AA5: =$H$2 -> 355 | AB5: =$Q$2 -> 238 | AC5: =ABS(AA5-AB5) -> 117 | AD5: =SUM(AA5:AB5) -> 593 | AG5: =ROUND(SUMIF(O4:O1001,">"&1,V4:V1001)/COUNTIF(O4:O1001,">"&0),0) -> 7337 | AH5: =IF(ISNUMBER(FIND("Steiner",R5)),"Steiner",IF(ISNUMBER(FIND("Lightning",R5)),"Lightning","???")) -> Steiner
B6: Kora-011924 | C6: 01 | D6: 19 | E6: 24 | F6: =IF(G6="?","?",COUNTIF($G$4:$G6,$G6)) -> 1 | G6: Kora | H6: =IF(R6="??? - N/A ","?",COUNTA($B$4:$B6)) -> 2 | I6: Steiner | J6: 2 | L6: ? | M6: ? | N6: ? | O6: =IF(P6="?","?",COUNTIF($P$4:$P6,$P6)) -> ? | P6: ? | Q6: =IF(R6="??? - N/A ","?",COUNTA($K$4:$K6)) -> 0 | R6: 01:19:24 - Steiner 1 | S6: =IF($T6="N/A",0,COUNTIF($T$4:$T6,$T6)) -> 1 | T6: Kora | U6: 1164 | V6: =IF($S6>1,U6-OCCUR($T$4:$T6,$T6,COUNTIF($T$4:$T6,$T6)-1,0,1),"N/A") -> N/A | W6: =IF($T6="N/A","???",IFERROR(CONCATENATE(FLOOR(IF(COUNTIF($T$4:$T6,$T6)<2,0,$U6-OCCUR($T$4:$T6,$T6,$S6-1,0,1))/3600,1),"h ", FLOOR((IF(COUNTIF($T$4:$T6,$T6)<2,0,$U6-OCCUR($T$4:$T6,$T6,$S6-1,0,1))-FLOOR(IF(COUNTIF($T$4:$T6,$T6)<2,0,$U6-OCCUR($T$4:$T6,$T6,$S6-1,0,1))/3600,1)*3600)/60,1), "m ", IF(COUNTIF($T$4:$T6,$T6)<2,0,$U6-OCCUR($T$4:$T6,$T6,$S6-1,0,1))-FLOOR((IF(COUNTIF($T$4:$T6,$T6)<2,0,$U6-OCCUR($T$4:$T6,$T6,$S6-1,0,1))-FLOOR(IF(COUNTIF($T$4:$T6,$T6)<2,0,$U6-OCCUR($T$4:$T6,$T6,$S6-1,0,1))/3600,1)*3600)/60,1)*60-FLOOR(IF(COUNTIF($T$4:$T6,$T6)<2,0,$U6-OCCUR($T$4:$T6,$T6,$S6-1,0,1))/3600,1)*3600, "s"),"???")) -> 0h 0m 0s | X6: =IF(T6="N/A","N/A",IF(MID(R6,12,5)=MID(R5,12,5),X5+1,1)) -> 2 | Z6: Saves/Saver | AA6: =ROUND(AA$5/AA$4,1) -> 6.6 | AB6: =ROUND(AB$5/AB$4,1) -> 5.8 | AC6: 0.8 | AG6: =ABS(AG3-AG5) -> 667 | AH6: Steiner
B7: Chris-011947 | C7: 01 | D7: 19 | E7: 47 | F7: =IF(G7="?","?",COUNTIF($G$4:$G7,$G7)) -> 1 | G7: Chris | H7: =IF(R7="??? - N/A ","?",COUNTA($B$4:$B7)) -> 3 | I7: Steiner | J7: 3 | L7: ? | M7: ? | N7: ? | O7: =IF(P7="?","?",COUNTIF($P$4:$P7,$P7)) -> ? | P7: ? | Q7: =IF(R7="??? - N/A ","?",COUNTA($K$4:$K7)) -> 0 | R7: 01:19:47 - Steiner 1 | S7: =IF($T7="N/A",0,COUNTIF($T$4:$T7,$T7)) -> 1 | T7: Chris | U7: 1187 | V7: =IF($S7>1,U7-OCCUR($T$4:$T7,$T7,COUNTIF($T$4:$T7,$T7)-1,0,1),"N/A") -> N/A | W7: =IF($T7="N/A","???",IFERROR(CONCATENATE(FLOOR(IF(COUNTIF($T$4:$T7,$T7)<2,0,$U7-OCCUR($T$4:$T7,$T7,$S7-1,0,1))/3600,1),"h ", FLOOR((IF(COUNTIF($T$4:$T7,$T7)<2,0,$U7-OCCUR($T$4:$T7,$T7,$S7-1,0,1))-FLOOR(IF(COUNTIF($T$4:$T7,$T7)<2,0,$U7-OCCUR($T$4:$T7,$T7,$S7-1,0,1))/3600,1)*3600)/60,1), "m ", IF(COUNTIF($T$4:$T7,$T7)<2,0,$U7-OCCUR($T$4:$T7,$T7,$S7-1,0,1))-FLOOR((IF(COUNTIF($T$4:$T7,$T7)<2,0,$U7-OCCUR($T$4:$T7,$T7,$S7-1,0,1))-FLOOR(IF(COUNTIF($T$4:$T7,$T7)<2,0,$U7-OCCUR($T$4:$T7,$T7,$S7-1,0,1))/3600,1)*3600)/60,1)*60-FLOOR(IF(COUNTIF($T$4:$T7,$T7)<2,0,$U7-OCCUR($T$4:$T7,$T7,$S7-1,0,1))/3600,1)*3600, "s"),"???")) -> 0h 0m 0s | X7: =IF(T7="N/A","N/A",IF(MID(R7,12,5)=MID(R6,12,5),X6+1,1)) -> 3 | Z7: Potential | AA7: =AA$4*10 -> 540 | AB7: =AB$4*10 -> 410 | AC7: 130 | AD7: 950 | AH7: Steiner
C8: ? | D8: ? | E8: ? | F8: =IF(G8="?","?",COUNTIF($G$4:$G8,$G8)) -> ? | G8: ? | H8: =IF(R8="??? - N/A ","?",COUNTA($B$4:$B8)) -> 3 | I8: Steiner | J8: 2 | K8: Leon-011949 | L8: 01 | M8: 19 | N8: 49 | O8: =IF(P8="?","?",COUNTIF($P$4:$P8,$P8)) -> 1 | P8: Leon | Q8: =IF(R8="??? - N/A ","?",COUNTA($K$4:$K8)) -> 1 | R8: 01:19:49 - Lightning 1 | S8: =IF($T8="N/A",0,COUNTIF($T$4:$T8,$T8)) -> 1 | T8: Leon | U8: 1189 | V8: =IF($S8>1,U8-OCCUR($T$4:$T8,$T8,COUNTIF($T$4:$T8,$T8)-1,0,1),"N/A") -> N/A | W8: =IF($T8="N/A","???",IFERROR(CONCATENATE(FLOOR(IF(COUNTIF($T$4:$T8,$T8)<2,0,$U8-OCCUR($T$4:$T8,$T8,$S8-1,0,1))/3600,1),"h ", FLOOR((IF(COUNTIF($T$4:$T8,$T8)<2,0,$U8-OCCUR($T$4:$T8,$T8,$S8-1,0,1))-FLOOR(IF(COUNTIF($T$4:$T8,$T8)<2,0,$U8-OCCUR($T$4:$T8,$T8,$S8-1,0,1))/3600,1)*3600)/60,1), "m ", IF(COUNTIF($T$4:$T8,$T8)<2,0,$U8-OCCUR($T$4:$T8,$T8,$S8-1,0,1))-FLOOR((IF(COUNTIF($T$4:$T8,$T8)<2,0,$U8-OCCUR($T$4:$T8,$T8,$S8-1,0,1))-FLOOR(IF(COUNTIF($T$4:$T8,$T8)<2,0,$U8-OCCUR($T$4:$T8,$T8,$S8-1,0,1))/3600,1)*3600)/60,1)*60-FLOOR(IF(COUNTIF($T$4:$T8,$T8)<2,0,$U8-OCCUR($T$4:$T8,$T8,$S8-1,0,1))/3600,1)*3600, "s"),"???")) -> 0h 0m 0s | X8: 1 | Z8: % of Total | AA8: =ROUND(100*AA$5/($AA$5+$AB$5),0) -> 60 | AB8: =ROUND(100*AB$5/($AA$5+$AB$5),0) -> 40 | AC8: 20 | AH8: Lightning
B9: Jeff-012001 | C9: 01 | D9: 20 | E9: 01 | F9: =IF(G9="?","?",COUNTIF($G$4:$G9,$G9)) -> 1 | G9: Jeff | H9: =IF(R9="??? - N/A ","?",COUNTA($B$4:$B9)) -> 4 | I9: Steiner | J9: 3 | L9: ? | M9: ? | N9: ? | O9: =IF(P9="?","?",COUNTIF($P$4:$P9,$P9)) -> ? | P9: ? | Q9: =IF(R9="??? - N/A ","?",COUNTA($K$4:$K9)) -> 1 | R9: 01:20:01 - Steiner 1 | S9: =IF($T9="N/A",0,COUNTIF($T$4:$T9,$T9)) -> 1 | T9: Jeff | U9: 1201 | V9: =IF($S9>1,U9-OCCUR($T$4:$T9,$T9,COUNTIF($T$4:$T9,$T9)-1,0,1),"N/A") -> N/A | W9: =IF($T9="N/A","???",IFERROR(CONCATENATE(FLOOR(IF(COUNTIF($T$4:$T9,$T9)<2,0,$U9-OCCUR($T$4:$T9,$T9,$S9-1,0,1))/3600,1),"h ", FLOOR((IF(COUNTIF($T$4:$T9,$T9)<2,0,$U9-OCCUR($T$4:$T9,$T9,$S9-1,0,1))-FLOOR(IF(COUNTIF($T$4:$T9,$T9)<2,0,$U9-OCCUR($T$4:$T9,$T9,$S9-1,0,1))/3600,1)*3600)/60,1), "m ", IF(COUNTIF($T$4:$T9,$T9)<2,0,$U9-OCCUR($T$4:$T9,$T9,$S9-1,0,1))-FLOOR((IF(COUNTIF($T$4:$T9,$T9)<2,0,$U9-OCCUR($T$4:$T9,$T9,$S9-1,0,1))-FLOOR(IF(COUNTIF($T$4:$T9,$T9)<2,0,$U9-OCCUR($T$4:$T9,$T9,$S9-1,0,1))/3600,1)*3600)/60,1)*60-FLOOR(IF(COUNTIF($T$4:$T9,$T9)<2,0,$U9-OCCUR($T$4:$T9,$T9,$S9-1,0,1))/3600,1)*3600, "s"),"???")) -> 0h 0m 0s | X9: 1 | Z9: % of Potential | AA9: =ROUND(100*$H$2/AA$7,0) -> 66 | AB9: =ROUND(100*$Q$2/AB$7,0) -> 58 | AC9: 8 | AH9: Steiner
C10: ? | D10: ? | E10: ? | F10: =IF(G10="?","?",COUNTIF($G$4:$G10,$G10)) -> ? | G10: ? | H10: =IF(R10="??? - N/A ","?",COUNTA($B$4:$B10)) -> 4 | I10: Steiner | J10: 2 | K10: MZero-012127 | L10: 01 | M10: 21 | N10: 27 | O10: =IF(P10="?","?",COUNTIF($P$4:$P10,$P10)) -> 1 | P10: MZero | Q10: =IF(R10="??? - N/A ","?",COUNTA($K$4:$K10)) -> 2 | R10: 01:21:27 - Lightning 1 | S10: =IF($T10="N/A",0,COUNTIF($T$4:$T10,$T10)) -> 1 | T10: MZero | U10: 1287 | V10: =IF($S10>1,U10-OCCUR($T$4:$T10,$T10,COUNTIF($T$4:$T10,$T10)-1,0,1),"N/A") -> N/A | W10: =IF($T10="N/A","???",IFERROR(CONCATENATE(FLOOR(IF(COUNTIF($T$4:$T10,$T10)<2,0,$U10-OCCUR($T$4:$T10,$T10,$S10-1,0,1))/3600,1),"h ", FLOOR((IF(COUNTIF($T$4:$T10,$T10)<2,0,$U10-OCCUR($T$4:$T10,$T10,$S10-1,0,1))-FLOOR(IF(COUNTIF($T$4:$T10,$T10)<2,0,$U10-OCCUR($T$4:$T10,$T10,$S10-1,0,1))/3600,1)*3600)/60,1), "m ", IF(COUNTIF($T$4:$T10,$T10)<2,0,$U10-OCCUR($T$4:$T10,$T10,$S10-1,0,1))-FLOOR((IF(COUNTIF($T$4:$T10,$T10)<2,0,$U10-OCCUR($T$4:$T10,$T10,$S10-1,0,1))-FLOOR(IF(COUNTIF($T$4:$T10,$T10)<2,0,$U10-OCCUR($T$4:$T10,$T10,$S10-1,0,1))/3600,1)*3600)/60,1)*60-FLOOR(IF(COUNTIF($T$4:$T10,$T10)<2,0,$U10-OCCUR($T$4:$T10,$T10,$S10-1,0,1))/3600,1)*3600, "s"),"???")) -> 0h 0m 0s | X10: 1 | Z10: Top Lead | AA10: =MAX(IF($I$4:$I$1001=AA3,$J$4:$J$1001)) -> 118 | AB10: =MAX(IF($I$4:$I$1001=AB3,$J$4:$J$1001)) -> 0 | AC10: 118 | AH10: Lightning
B11: Ark-012226 | C11: 01 | D11: 22 | E11: 26 | F11: =IF(G11="?","?",COUNTIF($G$4:$G11,$G11)) -> 1 | G11: Ark | H11: =IF(R11="??? - N/A ","?",COUNTA($B$4:$B11)) -> 5 | I11: Steiner | J11: 3 | L11: ? | M11: ? | N11: ? | O11: =IF(P11="?","?",COUNTIF($P$4:$P11,$P11)) -> ? | P11: ? | Q11: =IF(R11="??? - N/A ","?",COUNTA($K$4:$K11)) -> 2 | R11: 01:22:26 - Steiner 1 | S11: =IF($T11="N/A",0,COUNTIF($T$4:$T11,$T11)) -> 1 | T11: Ark | U11: 1346 | V11: =IF($S11>1,U11-OCCUR($T$4:$T11,$T11,COUNTIF($T$4:$T11,$T11)-1,0,1),"N/A") -> N/A | W11: =IF($T11="N/A","???",IFERROR(CONCATENATE(FLOOR(IF(COUNTIF($T$4:$T11,$T11)<2,0,$U11-OCCUR($T$4:$T11,$T11,$S11-1,0,1))/3600,1),"h ", FLOOR((IF(COUNTIF($T$4:$T11,$T11)<2,0,$U11-OCCUR($T$4:$T11,$T11,$S11-1,0,1))-FLOOR(IF(COUNTIF($T$4:$T11,$T11)<2,0,$U11-OCCUR($T$4:$T11,$T11,$S11-1,0,1))/3600,1)*3600)/60,1), "m ", IF(COUNTIF($T$4:$T11,$T11)<2,0,$U11-OCCUR($T$4:$T11,$T11,$S11-1,0,1))-FLOOR((IF(COUNTIF($T$4:$T11,$T11)<2,0,$U11-OCCUR($T$4:$T11,$T11,$S11-1,0,1))-FLOOR(IF(COUNTIF($T$4:$T11,$T11)<2,0,$U11-OCCUR($T$4:$T11,$T11,$S11-1,0,1))/3600,1)*3600)/60,1)*60-FLOOR(IF(COUNTIF($T$4:$T11,$T11)<2,0,$U11-OCCUR($T$4:$T11,$T11,$S11-1,0,1))/3600,1)*3600, "s"),"???")) -> 0h 0m 0s | X11: 1 | Z11: Avg Speed | AA11: =CONCATENATE(FLOOR(AG3/3600,1),"h ",FLOOR((AG3-FLOOR(AG3/3600,1)*3600)/60,1),"m ",AG3-3600*FLOOR(AG3/3600,1)-60*FLOOR((AG3-FLOOR(AG3/3600,1)*3600)/60,1),"s") -> 2h 13m 24s | AB11: =CONCATENATE(FLOOR(AG5/3600,1),"h ",FLOOR((AG5-FLOOR(AG5/3600,1)*3600)/60,1),"m ",AG5-3600*FLOOR(AG5/3600,1)-60*FLOOR((AG5-FLOOR(AG5/3600,1)*3600)/60,1),"s") -> 2h 2m 17s | AC11: =CONCATENATE(FLOOR(AG6/3600,1),"h ",FLOOR((AG6-FLOOR(AG6/3600,1)*3600)/60,1),"m ",AG6-3600*FLOOR(AG6/3600,1)-60*FLOOR((AG6-FLOOR(AG6/3600,1)*3600)/60,1),"s") -> 0h 11m 7s | AH11: Steiner
B12: prof-012300 | C12: 01 | D12: 23 | E12: 00 | F12: =IF(G12="?","?",COUNTIF($G$4:$G12,$G12)) -> 1 | G12: prof | H12: =IF(R12="??? - N/A ","?",COUNTA($B$4:$B12)) -> 6 | I12: Steiner | J12: 4 | L12: ? | M12: ? | N12: ? | O12: =IF(P12="?","?",COUNTIF($P$4:$P12,$P12)) -> ? | P12: ? | Q12: =IF(R12="??? - N/A ","?",COUNTA($K$4:$K12)) -> 2 | R12: 01:23:00 - Steiner 1 | S12: =IF($T12="N/A",0,COUNTIF($T$4:$T12,$T12)) -> 1 | T12: prof | U12: 1380 | V12: =IF($S12>1,U12-OCCUR($T$4:$T12,$T12,COUNTIF($T$4:$T12,$T12)-1,0,1),"N/A") -> N/A | W12: =IF($T12="N/A","???",IFERROR(CONCATENATE(FLOOR(IF(COUNTIF($T$4:$T12,$T12)<2,0,$U12-OCCUR($T$4:$T12,$T12,$S12-1,0,1))/3600,1),"h ", FLOOR((IF(COUNTIF($T$4:$T12,$T12)<2,0,$U12-OCCUR($T$4:$T12,$T12,$S12-1,0,1))-FLOOR(IF(COUNTIF($T$4:$T12,$T12)<2,0,$U12-OCCUR($T$4:$T12,$T12,$S12-1,0,1))/3600,1)*3600)/60,1), "m ", IF(COUNTIF($T$4:$T12,$T12)<2,0,$U12-OCCUR($T$4:$T12,$T12,$S12-1,0,1))-FLOOR((IF(COUNTIF($T$4:$T12,$T12)<2,0,$U12-OCCUR($T$4:$T12,$T12,$S12-1,0,1))-FLOOR(IF(COUNTIF($T$4:$T12,$T12)<2,0,$U12-OCCUR($T$4:$T12,$T12,$S12-1,0,1))/3600,1)*3600)/60,1)*60-FLOOR(IF(COUNTIF($T$4:$T12,$T12)<2,0,$U12-OCCUR($T$4:$T12,$T12,$S12-1,0,1))/3600,1)*3600, "s"),"???")) -> 0h 0m 0s | X12: 2 | AH12: Steiner
C13: ? | D13: ? | E13: ? | F13: =IF(G13="?","?",COUNTIF($G$4:$G13,$G13)) -> ? | G13: ? | H13: =IF(R13="??? - N/A ","?",COUNTA($B$4:$B13)) -> 6 | I13: Steiner | J13: 3 | K13: mnk-012311 | L13: 01 | M13: 23 | N13: 11 | O13: =IF(P13="?","?",COUNTIF($P$4:$P13,$P13)) -> 1 | P13: mnk | Q13: =IF(R13="??? - N/A ","?",COUNTA($K$4:$K13)) -> 3 | R13: 01:23:11 - Lightning 1 | S13: =IF($T13="N/A",0,COUNTIF($T$4:$T13,$T13)) -> 1 | T13: mnk | U13: 1391 | V13: =IF($S13>1,U13-OCCUR($T$4:$T13,$T13,COUNTIF($T$4:$T13,$T13)-1,0,1),"N/A") -> N/A | W13: =IF($T13="N/A","???",IFERROR(CONCATENATE(FLOOR(IF(COUNTIF($T$4:$T13,$T13)<2,0,$U13-OCCUR($T$4:$T13,$T13,$S13-1,0,1))/3600,1),"h ", FLOOR((IF(COUNTIF($T$4:$T13,$T13)<2,0,$U13-OCCUR($T$4:$T13,$T13,$S13-1,0,1))-FLOOR(IF(COUNTIF($T$4:$T13,$T13)<2,0,$U13-OCCUR($T$4:$T13,$T13,$S13-1,0,1))/3600,1)*3600)/60,1), "m ", IF(COUNTIF($T$4:$T13,$T13)<2,0,$U13-OCCUR($T$4:$T13,$T13,$S13-1,0,1))-FLOOR((IF(COUNTIF($T$4:$T13,$T13)<2,0,$U13-OCCUR($T$4:$T13,$T13,$S13-1,0,1))-FLOOR(IF(COUNTIF($T$4:$T13,$T13)<2,0,$U13-OCCUR($T$4:$T13,$T13,$S13-1,0,1))/3600,1)*3600)/60,1)*60-FLOOR(IF(COUNTIF($T$4:$T13,$T13)<2,0,$U13-OCCUR($T$4:$T13,$T13,$S13-1,0,1))/3600,1)*3600, "s"),"???")) -> 0h 0m 0s | X13: 1 | AA13: =COUNTIF(AA$15:AA$1001,10) -> 19 | AB13: =COUNTIF(AB$15:AB$1001,10) -> 14 | AC13: =COUNTIF(AC$15:AC$1001,">"&10) -> 0 | AH13: Lightning
B14: guff-012319 | C14: 01 | D14: 23 | E14: 19 | F14: =IF(G14="?","?",COUNTIF($G$4:$G14,$G14)) -> 1 | G14: guff | H14: =IF(R14="??? - N/A ","?",COUNTA($B$4:$B14)) -> 7 | I14: Steiner | J14: 4 | L14: ? | M14: ? | N14: ? | O14: =IF(P14="?","?",COUNTIF($P$4:$P14,$P14)) -> ? | P14: ? | Q14: =IF(R14="??? - N/A ","?",COUNTA($K$4:$K14)) -> 3 | R14: 01:23:19 - Steiner 1 | S14: =IF($T14="N/A",0,COUNTIF($T$4:$T14,$T14)) -> 1 | T14: guff | U14: 1399 | V14: =IF($S14>1,U14-OCCUR($T$4:$T14,$T14,COUNTIF($T$4:$T14,$T14)-1,0,1),"N/A") -> N/A | W14: =IF($T14="N/A","???",IFERROR(CONCATENATE(FLOOR(IF(COUNTIF($T$4:$T14,$T14)<2,0,$U14-OCCUR($T$4:$T14,$T14,$S14-1,0,1))/3600,1),"h ", FLOOR((IF(COUNTIF($T$4:$T14,$T14)<2,0,$U14-OCCUR($T$4:$T14,$T14,$S14-1,0,1))-FLOOR(IF(COUNTIF($T$4:$T14,$T14)<2,0,$U14-OCCUR($T$4:$T14,$T14,$S14-1,0,1))/3600,1)*3600)/60,1), "m ", IF(COUNTIF($T$4:$T14,$T14)<2,0,$U14-OCCUR($T$4:$T14,$T14,$S14-1,0,1))-FLOOR((IF(COUNTIF($T$4:$T14,$T14)<2,0,$U14-OCCUR($T$4:$T14,$T14,$S14-1,0,1))-FLOOR(IF(COUNTIF($T$4:$T14,$T14)<2,0,$U14-OCCUR($T$4:$T14,$T14,$S14-1,0,1))/3600,1)*3600)/60,1)*60-FLOOR(IF(COUNTIF($T$4:$T14,$T14)<2,0,$U14-OCCUR($T$4:$T14,$T14,$S14-1,0,1))/3600,1)*3600, "s"),"???")) -> 0h 0m 0s | X14: 1 | Y14: =IFERROR(ROUND(SUMIFS($V$4:$V$1001,$T$4:$T$1001,Z15,$V$4:$V$1001,">"&1)/(AC15-1),0),0) -> 11955 | Z14: Saver | AA14: Steiner | AB14: Lightning | AC14: Total | AD14: Speed | AE14: Support | AF14: Last | AG14: =IF(Z15="???","???",OCCUR($T$3:$T$1000,Z15,AC15,0,1)+3600) -> 88421 | AH14: Steiner
B15: Poka-012319 | C15: 01 | D15: 23 | E15: 19 | F15: =IF(G15="?","?",COUNTIF($G$4:$G15,$G15)) -> 1 | G15: Poka | H15: =IF(R15="??? - N/A ","?",COUNTA($B$4:$B15)) -> 8 | I15: Steiner | J15: 5 | L15: ? | M15: ? | N15: ? | O15: =IF(P15="?","?",COUNTIF($P$4:$P15,$P15)) -> ? | P15: ? | Q15: =IF(R15="??? - N/A ","?",COUNTA($K$4:$K15)) -> 3 | R15: 01:23:19 - Steiner 1 | S15: =IF($T15="N/A",0,COUNTIF($T$4:$T15,$T15)) -> 1 | T15: Poka | U15: 1399 | V15: =IF($S15>1,U15-OCCUR($T$4:$T15,$T15,COUNTIF($T$4:$T15,$T15)-1,0,1),"N/A") -> N/A | W15: =IF($T15="N/A","???",IFERROR(CONCATENATE(FLOOR(IF(COUNTIF($T$4:$T15,$T15)<2,0,$U15-OCCUR($T$4:$T15,$T15,$S15-1,0,1))/3600,1),"h ", FLOOR((IF(COUNTIF($T$4:$T15,$T15)<2,0,$U15-OCCUR($T$4:$T15,$T15,$S15-1,0,1))-FLOOR(IF(COUNTIF($T$4:$T15,$T15)<2,0,$U15-OCCUR($T$4:$T15,$T15,$S15-1,0,1))/3600,1)*3600)/60,1), "m ", IF(COUNTIF($T$4:$T15,$T15)<2,0,$U15-OCCUR($T$4:$T15,$T15,$S15-1,0,1))-FLOOR((IF(COUNTIF($T$4:$T15,$T15)<2,0,$U15-OCCUR($T$4:$T15,$T15,$S15-1,0,1))-FLOOR(IF(COUNTIF($T$4:$T15,$T15)<2,0,$U15-OCCUR($T$4:$T15,$T15,$S15-1,0,1))/3600,1)*3600)/60,1)*60-FLOOR(IF(COUNTIF($T$4:$T15,$T15)<2,0,$U15-OCCUR($T$4:$T15,$T15,$S15-1,0,1))/3600,1)*3600, "s"),"???")) -> 0h 0m 0s | X15: 2 | Y15: 44340 | Z15: =IFERROR(MID($Z$2,FindN(";",$Z$2,ROWS($Z$15:$Z15)-1)+1,FindN(";",$Z$2,ROWS($Z$15:$Z15))-(FindN(";",$Z$2,ROWS($Z$15:$Z15)-1)+1)),"???") -> gravy | AA15: =IF(Z15="???",0,COUNTIF($G$4:$G$1001,Z15)) -> 8 | AB15: =IF(Z15="???",0,COUNTIF($P$4:$P$1001,Z15)) -> 0 | AC15: =SUM(AA15:AB15) -> 8 | AD15: =IF(Z15="???","???",CONCATENATE(FLOOR(Y14/3600,1),"h ",FLOOR((Y14-FLOOR(Y14/3600,1)*3600)/60,1),"m ",Y14-3600*FLOOR(Y14/3600,1)-60*FLOOR((Y14-FLOOR(Y14/3600,1)*3600)/60,1),"s")) -> 3h 19m 15s | AE15: =IF(AA15>AB15,"Steiner",IF(AB15>AA15,"Lightning","EVEN")) -> Steiner | AF15: =IF(Z15="???","???",CONCATENATE(FLOOR(AG14/3600,1),"h ",FLOOR((AG14-FLOOR(AG14/3600,1)*3600)/60,1),"m ",AG14-3600*FLOOR(AG14/3600,1)-60*FLOOR((AG14-FLOOR(AG14/3600,1)*3600)/60,1),"s")) -> 24h 33m 41s | AG15: =IF(Z16="???","???",OCCUR($T$3:$T$1000,Z16,AC16,0,1)+3600) -> 93444 | AH15: Steiner
C16: ? | D16: ? | E16: ? | F16: =IF(G16="?","?",COUNTIF($G$4:$G16,$G16)) -> ? | G16: ? | H16: =IF(R16="??? - N/A ","?",COUNTA($B$4:$B16)) -> 8 | I16: Steiner | J16: 4 | K16: swordz-012426 | L16: 01 | M16: 24 | N16: 26 | O16: =IF(P16="?","?",COUNTIF($P$4:$P16,$P16)) -> 1 | P16: swordz | Q16: =IF(R16="??? - N/A ","?",COUNTA($K$4:$K16)) -> 4 | R16: 01:24:26 - Lightning 1 | S16: =IF($T16="N/A",0,COUNTIF($T$4:$T16,$T16)) -> 1 | T16: swordz | U16: 1466 | V16: =IF($S16>1,U16-OCCUR($T$4:$T16,$T16,COUNTIF($T$4:$T16,$T16)-1,0,1),"N/A") -> N/A | W16: =IF($T16="N/A","???",IFERROR(CONCATENATE(FLOOR(IF(COUNTIF($T$4:$T16,$T16)<2,0,$U16-OCCUR($T$4:$T16,$T16,$S16-1,0,1))/3600,1),"h ", FLOOR((IF(COUNTIF($T$4:$T16,$T16)<2,0,$U16-OCCUR($T$4:$T16,$T16,$S16-1,0,1))-FLOOR(IF(COUNTIF($T$4:$T16,$T16)<2,0,$U16-OCCUR($T$4:$T16,$T16,$S16-1,0,1))/3600,1)*3600)/60,1), "m ", IF(COUNTIF($T$4:$T16,$T16)<2,0,$U16-OCCUR($T$4:$T16,$T16,$S16-1,0,1))-FLOOR((IF(COUNTIF($T$4:$T16,$T16)<2,0,$U16-OCCUR($T$4:$T16,$T16,$S16-1,0,1))-FLOOR(IF(COUNTIF($T$4:$T16,$T16)<2,0,$U16-OCCUR($T$4:$T16,$T16,$S16-1,0,1))/3600,1)*3600)/60,1)*60-FLOOR(IF(COUNTIF($T$4:$T16,$T16)<2,0,$U16-OCCUR($T$4:$T16,$T16,$S16-1,0,1))/3600,1)*3600, "s"),"???")) -> 0h 0m 0s | X16: 1 | Y16: 8445 | Z16: =IFERROR(MID($Z$2,FindN(";",$Z$2,ROWS($Z$15:$Z16)-1)+1,FindN(";",$Z$2,ROWS($Z$15:$Z16))-(FindN(";",$Z$2,ROWS($Z$15:$Z16)-1)+1)),"???") -> Kora | AA16: 3 | AB16: 0 | AC16: 3 | AD16: 12h 19m 0s | AE16: =IF(AA16>AB16,"Steiner",IF(AB16>AA16,"Lightning","EVEN")) -> Steiner | AF16: 25h 57m 24s | AG16: =IF(Z17="???","???",OCCUR($T$3:$T$1000,Z17,AC17,0,1)+3600) -> 80793 | AH16: Lightning
B17: Gmun-012456 | C17: 01 | D17: 24 | E17: 56 | F17: =IF(G17="?","?",COUNTIF($G$4:$G17,$G17)) -> 1 | G17: Gmun | H17: =IF(R17="??? - N/A ","?",COUNTA($B$4:$B17)) -> 9 | I17: Steiner | J17: 5 | L17: ? | M17: ? | N17: ? | O17: =IF(P17="?","?",COUNTIF($P$4:$P17,$P17)) -> ? | P17: ? | Q17: =IF(R17="??? - N/A ","?",COUNTA($K$4:$K17)) -> 4 | R17: 01:24:56 - Steiner 1 | S17: =IF($T17="N/A",0,COUNTIF($T$4:$T17,$T17)) -> 1 | T17: Gmun | U17: 1496 | V17: =IF($S17>1,U17-OCCUR($T$4:$T17,$T17,COUNTIF($T$4:$T17,$T17)-1,0,1),"N/A") -> N/A | W17: =IF($T17="N/A","???",IFERROR(CONCATENATE(FLOOR(IF(COUNTIF($T$4:$T17,$T17)<2,0,$U17-OCCUR($T$4:$T17,$T17,$S17-1,0,1))/3600,1),"h ", FLOOR((IF(COUNTIF($T$4:$T17,$T17)<2,0,$U17-OCCUR($T$4:$T17,$T17,$S17-1,0,1))-FLOOR(IF(COUNTIF($T$4:$T17,$T17)<2,0,$U17-OCCUR($T$4:$T17,$T17,$S17-1,0,1))/3600,1)*3600)/60,1), "m ", IF(COUNTIF($T$4:$T17,$T17)<2,0,$U17-OCCUR($T$4:$T17,$T17,$S17-1,0,1))-FLOOR((IF(COUNTIF($T$4:$T17,$T17)<2,0,$U17-OCCUR($T$4:$T17,$T17,$S17-1,0,1))-FLOOR(IF(COUNTIF($T$4:$T17,$T17)<2,0,$U17-OCCUR($T$4:$T17,$T17,$S17-1,0,1))/3600,1)*3600)/60,1)*60-FLOOR(IF(COUNTIF($T$4:$T17,$T17)<2,0,$U17-OCCUR($T$4:$T17,$T17,$S17-1,0,1))/3600,1)*3600, "s"),"???")) -> 0h 0m 0s | X17: 1 | Y17: 8848 | Z17: =IFERROR(MID($Z$2,FindN(";",$Z$2,ROWS($Z$15:$Z17)-1)+1,FindN(";",$Z$2,ROWS($Z$15:$Z17))-(FindN(";",$Z$2,ROWS($Z$15:$Z17)-1)+1)),"???") -> Chris | AA17: 10 | AB17: 0 | AC17: 10 | AD17: 2h 20m 45s | AE17: Steiner | AF17: 22h 26m 33s | AG17: =IF(Z18="???","???",OCCUR($T$3:$T$1000,Z18,AC18,0,1)+3600) -> 84418 | AH17: Steiner
C18: ? | D18: ? | E18: ? | F18: =IF(G18="?","?",COUNTIF($G$4:$G18,$G18)) -> ? | G18: ? | H18: =IF(R18="??? - N/A ","?",COUNTA($B$4:$B18)) -> 9 | I18: Steiner | J18: 4 | K18: Eddv-012529 | L18: 01 | M18: 25 | N18: 29 | O18: =IF(P18="?","?",COUNTIF($P$4:$P18,$P18)) -> 1 | P18: Eddv | Q18: =IF(R18="??? - N/A ","?",COUNTA($K$4:$K18)) -> 5 | R18: 01:25:29 - Lightning 1 | S18: =IF($T18="N/A",0,COUNTIF($T$4:$T18,$T18)) -> 1 | T18: Eddv | U18: 1529 | V18: =IF($S18>1,U18-OCCUR($T$4:$T18,$T18,COUNTIF($T$4:$T18,$T18)-1,0,1),"N/A") -> N/A | W18: =IF($T18="N/A","???",IFERROR(CONCATENATE(FLOOR(IF(COUNTIF($T$4:$T18,$T18)<2,0,$U18-OCCUR($T$4:$T18,$T18,$S18-1,0,1))/3600,1),"h ", FLOOR((IF(COUNTIF($T$4:$T18,$T18)<2,0,$U18-OCCUR($T$4:$T18,$T18,$S18-1,0,1))-FLOOR(IF(COUNTIF($T$4:$T18,$T18)<2,0,$U18-OCCUR($T$4:$T18,$T18,$S18-1,0,1))/3600,1)*3600)/60,1), "m ", IF(COUNTIF($T$4:$T18,$T18)<2,0,$U18-OCCUR($T$4:$T18,$T18,$S18-1,0,1))-FLOOR((IF(COUNTIF($T$4:$T18,$T18)<2,0,$U18-OCCUR($T$4:$T18,$T18,$S18-1,0,1))-FLOOR(IF(COUNTIF($T$4:$T18,$T18)<2,0,$U18-OCCUR($T$4:$T18,$T18,$S18-1,0,1))/3600,1)*3600)/60,1)*60-FLOOR(IF(COUNTIF($T$4:$T18,$T18)<2,0,$U18-OCCUR($T$4:$T18,$T18,$S18-1,0,1))/3600,1)*3600, "s"),"???")) -> 0h 0m 0s | X18: 1 | Y18: 17629 | Z18: =IFERROR(MID($Z$2,FindN(";",$Z$2,ROWS($Z$15:$Z18)-1)+1,FindN(";",$Z$2,ROWS($Z$15:$Z18))-(FindN(";",$Z$2,ROWS($Z$15:$Z18)-1)+1)),"???") -> Leon | AA18: 0 | AB18: 10 | AC18: 10 | AD18: 2h 27m 28s | AE18: Lightning | AF18: 23h 26m 58s | AG18: =IF(Z19="???","???",OCCUR($T$3:$T$1000,Z19,AC19,0,1)+3600) -> 92947 | AH18: Lightning
B19: Reg-012542 | C19: 01 | D19: 25 | E19: 42 | F19: =IF(G19="?","?",COUNTIF($G$4:$G19,$G19)) -> 1 | G19: Reg | H19: =IF(R19="??? - N/A ","?",COUNTA($B$4:$B19)) -> 10 | I19: Steiner | J19: 5 | L19: ? | M19: ? | N19: ? | O19: =IF(P19="?","?",COUNTIF($P$4:$P19,$P19)) -> ? | P19: ? | Q19: =IF(R19="??? - N/A ","?",COUNTA($K$4:$K19)) -> 5 | R19: 01:25:42 - Steiner 1 | S19: =IF($T19="N/A",0,COUNTIF($T$4:$T19,$T19)) -> 1 | T19: Reg | U19: 1542 | V19: =IF($S19>1,U19-OCCUR($T$4:$T19,$T19,COUNTIF($T$4:$T19,$T19)-1,0,1),"N/A") -> N/A | W19: =IF($T19="N/A","???",IFERROR(CONCATENATE(FLOOR(IF(COUNTIF($T$4:$T19,$T19)<2,0,$U19-OCCUR($T$4:$T19,$T19,$S19-1,0,1))/3600,1),"h ", FLOOR((IF(COUNTIF($T$4:$T19,$T19)<2,0,$U19-OCCUR($T$4:$T19,$T19,$S19-1,0,1))-FLOOR(IF(COUNTIF($T$4:$T19,$T19)<2,0,$U19-OCCUR($T$4:$T19,$T19,$S19-1,0,1))/3600,1)*3600)/60,1), "m ", IF(COUNTIF($T$4:$T19,$T19)<2,0,$U19-OCCUR($T$4:$T19,$T19,$S19-1,0,1))-FLOOR((IF(COUNTIF($T$4:$T19,$T19)<2,0,$U19-OCCUR($T$4:$T19,$T19,$S19-1,0,1))-FLOOR(IF(COUNTIF($T$4:$T19,$T19)<2,0,$U19-OCCUR($T$4:$T19,$T19,$S19-1,0,1))/3600,1)*3600)/60,1)*60-FLOOR(IF(COUNTIF($T$4:$T19,$T19)<2,0,$U19-OCCUR($T$4:$T19,$T19,$S19-1,0,1))/3600,1)*3600, "s"),"???")) -> 0h 0m 0s | X19: 1 | Y19: 9271 | Z19: =IFERROR(MID($Z$2,FindN(";",$Z$2,ROWS($Z$15:$Z19)-1)+1,FindN(";",$Z$2,ROWS($Z$15:$Z19))-(FindN(";",$Z$2,ROWS($Z$15:$Z19)-1)+1)),"???") -> Jeff | AA19: 6 | AB19: 0 | AC19: 6 | AD19: 4h 53m 49s | AE19: Steiner | AF19: 25h 49m 7s | AG19: =IF(Z20="???","???",OCCUR($T$3:$T$1000,Z20,AC20,0,1)+3600) -> 88330 | AH19: Steiner
B20: Krack-012547 | C20: 01 | D20: 25 | E20: 47 | F20: =IF(G20="?","?",COUNTIF($G$4:$G20,$G20)) -> 1 | G20: Krack | H20: =IF(R20="??? - N/A ","?",COUNTA($B$4:$B20)) -> 11 | I20: Steiner | J20: 6 | L20: ? | M20: ? | N20: ? | O20: =IF(P20="?","?",COUNTIF($P$4:$P20,$P20)) -> ? | P20: ? | Q20: =IF(R20="??? - N/A ","?",COUNTA($K$4:$K20)) -> 5 | R20: 01:25:47 - Steiner 1 | S20: =IF($T20="N/A",0,COUNTIF($T$4:$T20,$T20)) -> 1 | T20: Krack | U20: 1547 | V20: =IF($S20>1,U20-OCCUR($T$4:$T20,$T20,COUNTIF($T$4:$T20,$T20)-1,0,1),"N/A") -> N/A | W20: =IF($T20="N/A","???",IFERROR(CONCATENATE(FLOOR(IF(COUNTIF($T$4:$T20,$T20)<2,0,$U20-OCCUR($T$4:$T20,$T20,$S20-1,0,1))/3600,1),"h ", FLOOR((IF(COUNTIF($T$4:$T20,$T20)<2,0,$U20-OCCUR($T$4:$T20,$T20,$S20-1,0,1))-FLOOR(IF(COUNTIF($T$4:$T20,$T20)<2,0,$U20-OCCUR($T$4:$T20,$T20,$S20-1,0,1))/3600,1)*3600)/60,1), "m ", IF(COUNTIF($T$4:$T20,$T20)<2,0,$U20-OCCUR($T$4:$T20,$T20,$S20-1,0,1))-FLOOR((IF(COUNTIF($T$4:$T20,$T20)<2,0,$U20-OCCUR($T$4:$T20,$T20,$S20-1,0,1))-FLOOR(IF(COUNTIF($T$4:$T20,$T20)<2,0,$U20-OCCUR($T$4:$T20,$T20,$S20-1,0,1))/3600,1)*3600)/60,1)*60-FLOOR(IF(COUNTIF($T$4:$T20,$T20)<2,0,$U20-OCCUR($T$4:$T20,$T20,$S20-1,0,1))/3600,1)*3600, "s"),"???")) -> 0h 0m 0s | X20: 2 | Y20: 9570 | Z20: =IFERROR(MID($Z$2,FindN(";",$Z$2,ROWS($Z$15:$Z20)-1)+1,FindN(";",$Z$2,ROWS($Z$15:$Z20))-(FindN(";",$Z$2,ROWS($Z$15:$Z20)-1)+1)),"???") -> MZero | AA20: 0 | AB20: 10 | AC20: 10 | AD20: 2h 34m 31s | AE20: Lightning | AF20: 24h 32m 10s | AG20: =IF(Z21="???","???",OCCUR($T$3:$T$1000,Z21,AC21,0,1)+3600) -> 91073 | AH20: Steiner
C21: ? | D21: ? | E21: ? | F21: =IF(G21="?","?",COUNTIF($G$4:$G21,$G21)) -> ? | G21: ? | H21: =IF(R21="??? - N/A ","?",COUNTA($B$4:$B21)) -> 11 | I21: Steiner | J21: 5 | K21: Sheik-012613 | L21: 01 | M21: 26 | N21: 13 | O21: =IF(P21="?","?",COUNTIF($P$4:$P21,$P21)) -> 1 | P21: Sheik | Q21: =IF(R21="??? - N/A ","?",COUNTA($K$4:$K21)) -> 6 | R21: 01:26:13 - Lightning 1 | S21: =IF($T21="N/A",0,COUNTIF($T$4:$T21,$T21)) -> 1 | T21: Sheik | U21: 1573 | V21: =IF($S21>1,U21-OCCUR($T$4:$T21,$T21,COUNTIF($T$4:$T21,$T21)-1,0,1),"N/A") -> N/A | W21: =IF($T21="N/A","???",IFERROR(CONCATENATE(FLOOR(IF(COUNTIF($T$4:$T21,$T21)<2,0,$U21-OCCUR($T$4:$T21,$T21,$S21-1,0,1))/3600,1),"h ", FLOOR((IF(COUNTIF($T$4:$T21,$T21)<2,0,$U21-OCCUR($T$4:$T21,$T21,$S21-1,0,1))-FLOOR(IF(COUNTIF($T$4:$T21,$T21)<2,0,$U21-OCCUR($T$4:$T21,$T21,$S21-1,0,1))/3600,1)*3600)/60,1), "m ", IF(COUNTIF($T$4:$T21,$T21)<2,0,$U21-OCCUR($T$4:$T21,$T21,$S21-1,0,1))-FLOOR((IF(COUNTIF($T$4:$T21,$T21)<2,0,$U21-OCCUR($T$4:$T21,$T21,$S21-1,0,1))-FLOOR(IF(COUNTIF($T$4:$T21,$T21)<2,0,$U21-OCCUR($T$4:$T21,$T21,$S21-1,0,1))/3600,1)*3600)/60,1)*60-FLOOR(IF(COUNTIF($T$4:$T21,$T21)<2,0,$U21-OCCUR($T$4:$T21,$T21,$S21-1,0,1))/3600,1)*3600, "s"),"???")) -> 0h 0m 0s | X21: 1 | Y21: 5843 | Z21: =IFERROR(MID($Z$2,FindN(";",$Z$2,ROWS($Z$15:$Z21)-1)+1,FindN(";",$Z$2,ROWS($Z$15:$Z21))-(FindN(";",$Z$2,ROWS($Z$15:$Z21)-1)+1)),"???") -> Ark | AA21: 10 | AB21: 0 | AC21: 10 | AD21: 2h 39m 30s | AE21: Steiner | AF21: 25h 17m 53s | AG21: =IF(Z22="???","???",OCCUR($T$3:$T$1000,Z22,AC22,0,1)+3600) -> 57565 | AH21: Lightning
B22: Genny-012738 | C22: 01 | D22: 27 | E22: 38 | F22: =IF(G22="?","?",COUNTIF($G$4:$G22,$G22)) -> 1 | G22: Genny | H22: =IF(R22="??? - N/A ","?",COUNTA($B$4:$B22)) -> 12 | I22: Steiner | J22: 6 | L22: ? | M22: ? | N22: ? | O22: =IF(P22="?","?",COUNTIF($P$4:$P22,$P22)) -> ? | P22: ? | Q22: =IF(R22="??? - N/A ","?",COUNTA($K$4:$K22)) -> 6 | R22: 01:27:38 - Steiner 1 | S22: =IF($T22="N/A",0,COUNTIF($T$4:$T22,$T22)) -> 1 | T22: Genny | U22: 1658 | V22: =IF($S22>1,U22-OCCUR($T$4:$T22,$T22,COUNTIF($T$4:$T22,$T22)-1,0,1),"N/A") -> N/A | W22: =IF($T22="N/A","???",IFERROR(CONCATENATE(FLOOR(IF(COUNTIF($T$4:$T22,$T22)<2,0,$U22-OCCUR($T$4:$T22,$T22,$S22-1,0,1))/3600,1),"h ", FLOOR((IF(COUNTIF($T$4:$T22,$T22)<2,0,$U22-OCCUR($T$4:$T22,$T22,$S22-1,0,1))-FLOOR(IF(COUNTIF($T$4:$T22,$T22)<2,0,$U22-OCCUR($T$4:$T22,$T22,$S22-1,0,1))/3600,1)*3600)/60,1), "m ", IF(COUNTIF($T$4:$T22,$T22)<2,0,$U22-OCCUR($T$4:$T22,$T22,$S22-1,0,1))-FLOOR((IF(COUNTIF($T$4:$T22,$T22)<2,0,$U22-OCCUR($T$4:$T22,$T22,$S22-1,0,1))-FLOOR(IF(COUNTIF($T$4:$T22,$T22)<2,0,$U22-OCCUR($T$4:$T22,$T22,$S22-1,0,1))/3600,1)*3600)/60,1)*60-FLOOR(IF(COUNTIF($T$4:$T22,$T22)<2,0,$U22-OCCUR($T$4:$T22,$T22,$S22-1,0,1))/3600,1)*3600, "s"),"???")) -> 0h 0m 0s | X22: 1 | Y22: 8322 | Z22: =IFERROR(MID($Z$2,FindN(";",$Z$2,ROWS($Z$15:$Z22)-1)+1,FindN(";",$Z$2,ROWS($Z$15:$Z22))-(FindN(";",$Z$2,ROWS($Z$15:$Z22)-1)+1)),"???") -> prof | AA22: 10 | AB22: 0 | AC22: 10 | AD22: 1h 37m 23s | AE22: Steiner | AF22: 15h 59m 25s | AG22: =IF(Z23="???","???",OCCUR($T$3:$T$1000,Z23,AC23,0,1)+3600) -> 79886 | AH22: Steiner
C23: ? | D23: ? | E23: ? | F23: =IF(G23="?","?",COUNTIF($G$4:$G23,$G23)) -> ? | G23: ? | H23: =IF(R23="??? - N/A ","?",COUNTA($B$4:$B23)) -> 12 | I23: Steiner | J23: 5 | K23: pjbass-012800 | L23: 01 | M23: 28 | N23: 00 | O23: =IF(P23="?","?",COUNTIF($P$4:$P23,$P23)) -> 1 | P23: pjbass | Q23: =IF(R23="??? - N/A ","?",COUNTA($K$4:$K23)) -> 7 | R23: 01:28:00 - Lightning 1 | S23: =IF($T23="N/A",0,COUNTIF($T$4:$T23,$T23)) -> 1 | T23: pjbass | U23: 1680 | V23: =IF($S23>1,U23-OCCUR($T$4:$T23,$T23,COUNTIF($T$4:$T23,$T23)-1,0,1),"N/A") -> N/A | W23: =IF($T23="N/A","???",IFERROR(CONCATENATE(FLOOR(IF(COUNTIF($T$4:$T23,$T23)<2,0,$U23-OCCUR($T$4:$T23,$T23,$S23-1,0,1))/3600,1),"h ", FLOOR((IF(COUNTIF($T$4:$T23,$T23)<2,0,$U23-OCCUR($T$4:$T23,$T23,$S23-1,0,1))-FLOOR(IF(COUNTIF($T$4:$T23,$T23)<2,0,$U23-OCCUR($T$4:$T23,$T23,$S23-1,0,1))/3600,1)*3600)/60,1), "m ", IF(COUNTIF($T$4:$T23,$T23)<2,0,$U23-OCCUR($T$4:$T23,$T23,$S23-1,0,1))-FLOOR((IF(COUNTIF($T$4:$T23,$T23)<2,0,$U23-OCCUR($T$4:$T23,$T23,$S23-1,0,1))-FLOOR(IF(COUNTIF($T$4:$T23,$T23)<2,0,$U23-OCCUR($T$4:$T23,$T23,$S23-1,0,1))/3600,1)*3600)/60,1)*60-FLOOR(IF(COUNTIF($T$4:$T23,$T23)<2,0,$U23-OCCUR($T$4:$T23,$T23,$S23-1,0,1))/3600,1)*3600, "s"),"???")) -> 0h 0m 0s | X23: 1 | Y23: 11060 | Z23: =IFERROR(MID($Z$2,FindN(";",$Z$2,ROWS($Z$15:$Z23)-1)+1,FindN(";",$Z$2,ROWS($Z$15:$Z23))-(FindN(";",$Z$2,ROWS($Z$15:$Z23)-1)+1)),"???") -> mnk | AA23: 0 | AB23: 10 | AC23: 10 | AD23: 2h 18m 42s | AE23: Lightning | AF23: 22h 11m 26s | AG23: =IF(Z24="???","???",OCCUR($T$3:$T$1000,Z24,AC24,0,1)+3600) -> 93475 | AH23: Lightning
C24: ? | D24: ? | E24: ? | F24: =IF(G24="?","?",COUNTIF($G$4:$G24,$G24)) -> ? | G24: ? | H24: =IF(R24="??? - N/A ","?",COUNTA($B$4:$B24)) -> 12 | I24: Steiner | J24: 4 | K24: Yankee-012804 | L24: 01 | M24: 28 | N24: 04 | O24: =IF(P24="?","?",COUNTIF($P$4:$P24,$P24)) -> 1 | P24: Yankee | Q24: =IF(R24="??? - N/A ","?",COUNTA($K$4:$K24)) -> 8 | R24: 01:28:04 - Lightning 1 | S24: =IF($T24="N/A",0,COUNTIF($T$4:$T24,$T24)) -> 1 | T24: Yankee | U24: 1684 | V24: =IF($S24>1,U24-OCCUR($T$4:$T24,$T24,COUNTIF($T$4:$T24,$T24)-1,0,1),"N/A") -> N/A | W24: =IF($T24="N/A","???",IFERROR(CONCATENATE(FLOOR(IF(COUNTIF($T$4:$T24,$T24)<2,0,$U24-OCCUR($T$4:$T24,$T24,$S24-1,0,1))/3600,1),"h ", FLOOR((IF(COUNTIF($T$4:$T24,$T24)<2,0,$U24-OCCUR($T$4:$T24,$T24,$S24-1,0,1))-FLOOR(IF(COUNTIF($T$4:$T24,$T24)<2,0,$U24-OCCUR($T$4:$T24,$T24,$S24-1,0,1))/3600,1)*3600)/60,1), "m ", IF(COUNTIF($T$4:$T24,$T24)<2,0,$U24-OCCUR($T$4:$T24,$T24,$S24-1,0,1))-FLOOR((IF(COUNTIF($T$4:$T24,$T24)<2,0,$U24-OCCUR($T$4:$T24,$T24,$S24-1,0,1))-FLOOR(IF(COUNTIF($T$4:$T24,$T24)<2,0,$U24-OCCUR($T$4:$T24,$T24,$S24-1,0,1))/3600,1)*3600)/60,1)*60-FLOOR(IF(COUNTIF($T$4:$T24,$T24)<2,0,$U24-OCCUR($T$4:$T24,$T24,$S24-1,0,1))/3600,1)*3600, "s"),"???")) -> 0h 0m 0s | X24: 2 | Y24: 9850 | Z24: =IFERROR(MID($Z$2,FindN(";",$Z$2,ROWS($Z$15:$Z24)-1)+1,FindN(";",$Z$2,ROWS($Z$15:$Z24))-(FindN(";",$Z$2,ROWS($Z$15:$Z24)-1)+1)),"???") -> guff | AA24: 9 | AB24: 0 | AC24: 9 | AD24: 3h 4m 20s | AE24: Steiner | AF24: 25h 57m 55s | AG24: =IF(Z25="???","???",OCCUR($T$3:$T$1000,Z25,AC25,0,1)+3600) -> 83802 | AH24: Lightning
C25: ? | D25: ? | E25: ? | F25: =IF(G25="?","?",COUNTIF($G$4:$G25,$G25)) -> ? | G25: ? | H25: =IF(R25="??? - N/A ","?",COUNTA($B$4:$B25)) -> 12 | I25: Steiner | J25: 3 | K25: Tangy-013003 | L25: 01 | M25: 30 | N25: 03 | O25: =IF(P25="?","?",COUNTIF($P$4:$P25,$P25)) -> 1 | P25: Tangy | Q25: =IF(R25="??? - N/A ","?",COUNTA($K$4:$K25)) -> 9 | R25: 01:30:03 - Lightning 1 | S25: =IF($T25="N/A",0,COUNTIF($T$4:$T25,$T25)) -> 1 | T25: Tangy | U25: 1803 | V25: =IF($S25>1,U25-OCCUR($T$4:$T25,$T25,COUNTIF($T$4:$T25,$T25)-1,0,1),"N/A") -> N/A | W25: =IF($T25="N/A","???",IFERROR(CONCATENATE(FLOOR(IF(COUNTIF($T$4:$T25,$T25)<2,0,$U25-OCCUR($T$4:$T25,$T25,$S25-1,0,1))/3600,1),"h ", FLOOR((IF(COUNTIF($T$4:$T25,$T25)<2,0,$U25-OCCUR($T$4:$T25,$T25,$S25-1,0,1))-FLOOR(IF(COUNTIF($T$4:$T25,$T25)<2,0,$U25-OCCUR($T$4:$T25,$T25,$S25-1,0,1))/3600,1)*3600)/60,1), "m ", IF(COUNTIF($T$4:$T25,$T25)<2,0,$U25-OCCUR($T$4:$T25,$T25,$S25-1,0,1))-FLOOR((IF(COUNTIF($T$4:$T25,$T25)<2,0,$U25-OCCUR($T$4:$T25,$T25,$S25-1,0,1))-FLOOR(IF(COUNTIF($T$4:$T25,$T25)<2,0,$U25-OCCUR($T$4:$T25,$T25,$S25-1,0,1))/3600,1)*3600)/60,1)*60-FLOOR(IF(COUNTIF($T$4:$T25,$T25)<2,0,$U25-OCCUR($T$4:$T25,$T25,$S25-1,0,1))/3600,1)*3600, "s"),"???")) -> 0h 0m 0s | X25: 3 | Y25: 9528 | Z25: =IFERROR(MID($Z$2,FindN(";",$Z$2,ROWS($Z$15:$Z25)-1)+1,FindN(";",$Z$2,ROWS($Z$15:$Z25))-(FindN(";",$Z$2,ROWS($Z$15:$Z25)-1)+1)),"???") -> Poka | AA25: 9 | AB25: 0 | AC25: 9 | AD25: 2h 44m 10s | AE25: Steiner | AF25: 23h 16m 42s | AG25: =IF(Z26="???","???",OCCUR($T$3:$T$1000,Z26,AC26,0,1)+3600) -> 90816 | AH25: Lightning
B26: barrel-013015 | C26: 01 | D26: 30 | E26: 15 | F26: =IF(G26="?","?",COUNTIF($G$4:$G26,$G26)) -> 1 | G26: barrel | H26: =IF(R26="??? - N/A ","?",COUNTA($B$4:$B26)) -> 13 | I26: Steiner | J26: 4 | L26: ? | M26: ? | N26: ? | O26: =IF(P26="?","?",COUNTIF($P$4:$P26,$P26)) -> ? | P26: ? | Q26: =IF(R26="??? - N/A ","?",COUNTA($K$4:$K26)) -> 9 | R26: 01:30:15 - Steiner 1 | S26: =IF($T26="N/A",0,COUNTIF($T$4:$T26,$T26)) -> 1 | T26: barrel | U26: 1815 | V26: =IF($S26>1,U26-OCCUR($T$4:$T26,$T26,COUNTIF($T$4:$T26,$T26)-1,0,1),"N/A") -> N/A | W26: =IF($T26="N/A","???",IFERROR(CONCATENATE(FLOOR(IF(COUNTIF($T$4:$T26,$T26)<2,0,$U26-OCCUR($T$4:$T26,$T26,$S26-1,0,1))/3600,1),"h ", FLOOR((IF(COUNTIF($T$4:$T26,$T26)<2,0,$U26-OCCUR($T$4:$T26,$T26,$S26-1,0,1))-FLOOR(IF(COUNTIF($T$4:$T26,$T26)<2,0,$U26-OCCUR($T$4:$T26,$T26,$S26-1,0,1))/3600,1)*3600)/60,1), "m ", IF(COUNTIF($T$4:$T26,$T26)<2,0,$U26-OCCUR($T$4:$T26,$T26,$S26-1,0,1))-FLOOR((IF(COUNTIF($T$4:$T26,$T26)<2,0,$U26-OCCUR($T$4:$T26,$T26,$S26-1,0,1))-FLOOR(IF(COUNTIF($T$4:$T26,$T26)<2,0,$U26-OCCUR($T$4:$T26,$T26,$S26-1,0,1))/3600,1)*3600)/60,1)*60-FLOOR(IF(COUNTIF($T$4:$T26,$T26)<2,0,$U26-OCCUR($T$4:$T26,$T26,$S26-1,0,1))/3600,1)*3600, "s"),"???")) -> 0h 0m 0s | X26: 1 | Y26: 3788 | Z26: =IFERROR(MID($Z$2,FindN(";",$Z$2,ROWS($Z$15:$Z26)-1)+1,FindN(";",$Z$2,ROWS($Z$15:$Z26))-(FindN(";",$Z$2,ROWS($Z$15:$Z26)-1)+1)),"???") -> swordz | AA26: 0 | AB26: 10 | AC26: 10 | AD26: 2h 38m 48s | AE26: Lightning | AF26: 25h 13m 36s | AG26: =IF(Z27="???","???",OCCUR($T$3:$T$1000,Z27,AC27,0,1)+3600) -> 39189 | AH26: Steiner
B27: MWC-013407 | C27: 01 | D27: 34 | E27: 07 | F27: =IF(G27="?","?",COUNTIF($G$4:$G27,$G27)) -> 1 | G27: MWC | H27: =IF(R27="??? - N/A ","?",COUNTA($B$4:$B27)) -> 14 | I27: Steiner | J27: 5 | L27: ? | M27: ? | N27: ? | O27: =IF(P27="?","?",COUNTIF($P$4:$P27,$P27)) -> ? | P27: ? | Q27: =IF(R27="??? - N/A ","?",COUNTA($K$4:$K27)) -> 9 | R27: 01:34:07 - Steiner 1 | S27: =IF($T27="N/A",0,COUNTIF($T$4:$T27,$T27)) -> 1 | T27: MWC | U27: 2047 | V27: =IF($S27>1,U27-OCCUR($T$4:$T27,$T27,COUNTIF($T$4:$T27,$T27)-1,0,1),"N/A") -> N/A | W27: =IF($T27="N/A","???",IFERROR(CONCATENATE(FLOOR(IF(COUNTIF($T$4:$T27,$T27)<2,0,$U27-OCCUR($T$4:$T27,$T27,$S27-1,0,1))/3600,1),"h ", FLOOR((IF(COUNTIF($T$4:$T27,$T27)<2,0,$U27-OCCUR($T$4:$T27,$T27,$S27-1,0,1))-FLOOR(IF(COUNTIF($T$4:$T27,$T27)<2,0,$U27-OCCUR($T$4:$T27,$T27,$S27-1,0,1))/3600,1)*3600)/60,1), "m ", IF(COUNTIF($T$4:$T27,$T27)<2,0,$U27-OCCUR($T$4:$T27,$T27,$S27-1,0,1))-FLOOR((IF(COUNTIF($T$4:$T27,$T27)<2,0,$U27-OCCUR($T$4:$T27,$T27,$S27-1,0,1))-FLOOR(IF(COUNTIF($T$4:$T27,$T27)<2,0,$U27-OCCUR($T$4:$T27,$T27,$S27-1,0,1))/3600,1)*3600)/60,1)*60-FLOOR(IF(COUNTIF($T$4:$T27,$T27)<2,0,$U27-OCCUR($T$4:$T27,$T27,$S27-1,0,1))/3600,1)*3600, "s"),"???")) -> 0h 0m 0s | X27: 2 | Y27: 5628 | Z27: =IFERROR(MID($Z$2,FindN(";",$Z$2,ROWS($Z$15:$Z27)-1)+1,FindN(";",$Z$2,ROWS($Z$15:$Z27))-(FindN(";",$Z$2,ROWS($Z$15:$Z27)-1)+1)),"???") -> Gmun | AA27: 10 | AB27: 0 | AC27: 10 | AD27: 1h 3m 8s | AE27: Steiner | AF27: 10h 53m 9s | AG27: =IF(Z28="???","???",OCCUR($T$3:$T$1000,Z28,AC28,0,1)+3600) -> 55784 | AH27: Steiner
B28: Ultros-013431 | C28: 01 | D28: 34 | E28: 31 | F28: =IF(G28="?","?",COUNTIF($G$4:$G28,$G28)) -> 1 | G28: Ultros | H28: =IF(R28="??? - N/A ","?",COUNTA($B$4:$B28)) -> 15 | I28: Steiner | J28: 6 | L28: ? | M28: ? | N28: ? | O28: =IF(P28="?","?",COUNTIF($P$4:$P28,$P28)) -> ? | P28: ? | Q28: =IF(R28="??? - N/A ","?",COUNTA($K$4:$K28)) -> 9 | R28: 01:34:31 - Steiner 1 | S28: =IF($T28="N/A",0,COUNTIF($T$4:$T28,$T28)) -> 1 | T28: Ultros | U28: 2071 | V28: =IF($S28>1,U28-OCCUR($T$4:$T28,$T28,COUNTIF($T$4:$T28,$T28)-1,0,1),"N/A") -> N/A | W28: =IF($T28="N/A","???",IFERROR(CONCATENATE(FLOOR(IF(COUNTIF($T$4:$T28,$T28)<2,0,$U28-OCCUR($T$4:$T28,$T28,$S28-1,0,1))/3600,1),"h ", FLOOR((IF(COUNTIF($T$4:$T28,$T28)<2,0,$U28-OCCUR($T$4:$T28,$T28,$S28-1,0,1))-FLOOR(IF(COUNTIF($T$4:$T28,$T28)<2,0,$U28-OCCUR($T$4:$T28,$T28,$S28-1,0,1))/3600,1)*3600)/60,1), "m ", IF(COUNTIF($T$4:$T28,$T28)<2,0,$U28-OCCUR($T$4:$T28,$T28,$S28-1,0,1))-FLOOR((IF(COUNTIF($T$4:$T28,$T28)<2,0,$U28-OCCUR($T$4:$T28,$T28,$S28-1,0,1))-FLOOR(IF(COUNTIF($T$4:$T28,$T28)<2,0,$U28-OCCUR($T$4:$T28,$T28,$S28-1,0,1))/3600,1)*3600)/60,1)*60-FLOOR(IF(COUNTIF($T$4:$T28,$T28)<2,0,$U28-OCCUR($T$4:$T28,$T28,$S28-1,0,1))/3600,1)*3600, "s"),"???")) -> 0h 0m 0s | X28: 3 | Y28: 7479 | Z28: =IFERROR(MID($Z$2,FindN(";",$Z$2,ROWS($Z$15:$Z28)-1)+1,FindN(";",$Z$2,ROWS($Z$15:$Z28))-(FindN(";",$Z$2,ROWS($Z$15:$Z28)-1)+1)),"???") -> Eddv | AA28: 0 | AB28: 10 | AC28: 10 | AD28: 1h 33m 48s | AE28: Lightning | AF28: 15h 29m 44s | AG28: =IF(Z29="???","???",OCCUR($T$3:$T$1000,Z29,AC29,0,1)+3600) -> 72456 | AH28: Steiner
C29: ? | D29: ? | E29: ? | F29: =IF(G29="?","?",COUNTIF($G$4:$G29,$G29)) -> ? | G29: ? | H29: =IF(R29="??? - N/A ","?",COUNTA($B$4:$B29)) -> 15 | I29: Steiner | J29: 5 | K29: Nee-014032 | L29: 01 | M29: 40 | N29: 32 | O29: =IF(P29="?","?",COUNTIF($P$4:$P29,$P29)) -> 1 | P29: Nee | Q29: =IF(R29="??? - N/A ","?",COUNTA($K$4:$K29)) -> 10 | R29: 01:40:32 - Lightning 1 | S29: =IF($T29="N/A",0,COUNTIF($T$4:$T29,$T29)) -> 1 | T29: Nee | U29: 2432 | V29: =IF($S29>1,U29-OCCUR($T$4:$T29,$T29,COUNTIF($T$4:$T29,$T29)-1,0,1),"N/A") -> N/A | W29: =IF($T29="N/A","???",IFERROR(CONCATENATE(FLOOR(IF(COUNTIF($T$4:$T29,$T29)<2,0,$U29-OCCUR($T$4:$T29,$T29,$S29-1,0,1))/3600,1),"h ", FLOOR((IF(COUNTIF($T$4:$T29,$T29)<2,0,$U29-OCCUR($T$4:$T29,$T29,$S29-1,0,1))-FLOOR(IF(COUNTIF($T$4:$T29,$T29)<2,0,$U29-OCCUR($T$4:$T29,$T29,$S29-1,0,1))/3600,1)*3600)/60,1), "m ", IF(COUNTIF($T$4:$T29,$T29)<2,0,$U29-OCCUR($T$4:$T29,$T29,$S29-1,0,1))-FLOOR((IF(COUNTIF($T$4:$T29,$T29)<2,0,$U29-OCCUR($T$4:$T29,$T29,$S29-1,0,1))-FLOOR(IF(COUNTIF($T$4:$T29,$T29)<2,0,$U29-OCCUR($T$4:$T29,$T29,$S29-1,0,1))/3600,1)*3600)/60,1)*60-FLOOR(IF(COUNTIF($T$4:$T29,$T29)<2,0,$U29-OCCUR($T$4:$T29,$T29,$S29-1,0,1))/3600,1)*3600, "s"),"???")) -> 0h 0m 0s | X29: 1 | Y29: 9042 | Z29: =IFERROR(MID($Z$2,FindN(";",$Z$2,ROWS($Z$15:$Z29)-1)+1,FindN(";",$Z$2,ROWS($Z$15:$Z29))-(FindN(";",$Z$2,ROWS($Z$15:$Z29)-1)+1)),"???") -> Reg | AA29: 10 | AB29: 0 | AC29: 10 | AD29: 2h 4m 39s | AE29: Steiner | AF29: 20h 7m 36s | AG29: =IF(Z30="???","???",OCCUR($T$3:$T$1000,Z30,AC30,0,1)+3600) -> 86525 | AH29: Lightning
B30: Leo3-014044 | C30: 01 | D30: 40 | E30: 44 | F30: =IF(G30="?","?",COUNTIF($G$4:$G30,$G30)) -> 1 | G30: Leo3 | H30: =IF(R30="??? - N/A ","?",COUNTA($B$4:$B30)) -> 16 | I30: Steiner | J30: 6 | L30: ? | M30: ? | N30: ? | O30: =IF(P30="?","?",COUNTIF($P$4:$P30,$P30)) -> ? | P30: ? | Q30: =IF(R30="??? - N/A ","?",COUNTA($K$4:$K30)) -> 10 | R30: 01:40:44 - Steiner 1 | S30: =IF($T30="N/A",0,COUNTIF($T$4:$T30,$T30)) -> 1 | T30: Leo3 | U30: 2444 | V30: =IF($S30>1,U30-OCCUR($T$4:$T30,$T30,COUNTIF($T$4:$T30,$T30)-1,0,1),"N/A") -> N/A | W30: =IF($T30="N/A","???",IFERROR(CONCATENATE(FLOOR(IF(COUNTIF($T$4:$T30,$T30)<2,0,$U30-OCCUR($T$4:$T30,$T30,$S30-1,0,1))/3600,1),"h ", FLOOR((IF(COUNTIF($T$4:$T30,$T30)<2,0,$U30-OCCUR($T$4:$T30,$T30,$S30-1,0,1))-FLOOR(IF(COUNTIF($T$4:$T30,$T30)<2,0,$U30-OCCUR($T$4:$T30,$T30,$S30-1,0,1))/3600,1)*3600)/60,1), "m ", IF(COUNTIF($T$4:$T30,$T30)<2,0,$U30-OCCUR($T$4:$T30,$T30,$S30-1,0,1))-FLOOR((IF(COUNTIF($T$4:$T30,$T30)<2,0,$U30-OCCUR($T$4:$T30,$T30,$S30-1,0,1))-FLOOR(IF(COUNTIF($T$4:$T30,$T30)<2,0,$U30-OCCUR($T$4:$T30,$T30,$S30-1,0,1))/3600,1)*3600)/60,1)*60-FLOOR(IF(COUNTIF($T$4:$T30,$T30)<2,0,$U30-OCCUR($T$4:$T30,$T30,$S30-1,0,1))/3600,1)*3600, "s"),"???")) -> 0h 0m 0s | X30: 1 | Y30: 5722 | Z30: =IFERROR(MID($Z$2,FindN(";",$Z$2,ROWS($Z$15:$Z30)-1)+1,FindN(";",$Z$2,ROWS($Z$15:$Z30))-(FindN(";",$Z$2,ROWS($Z$15:$Z30)-1)+1)),"???") -> Krack | AA30: 10 | AB30: 0 | AC30: 10 | AD30: 2h 30m 42s | AE30: Steiner | AF30: 24h 2m 5s | AG30: =IF(Z31="???","???",OCCUR($T$3:$T$1000,Z31,AC31,0,1)+3600) -> 56669 | AH30: Steiner
C31: ? | D31: ? | E31: ? | F31: =IF(G31="?","?",COUNTIF($G$4:$G31,$G31)) -> ? | G31: ? | H31: =IF(R31="??? - N/A ","?",COUNTA($B$4:$B31)) -> 16 | I31: Steiner | J31: 5 | K31: Drak-014154 | L31: 01 | M31: 41 | N31: 54 | O31: =IF(P31="?","?",COUNTIF($P$4:$P31,$P31)) -> 1 | P31: Drak | Q31: =IF(R31="??? - N/A ","?",COUNTA($K$4:$K31)) -> 11 | R31: 01:41:54 - Lightning 1 | S31: =IF($T31="N/A",0,COUNTIF($T$4:$T31,$T31)) -> 1 | T31: Drak | U31: 2514 | V31: =IF($S31>1,U31-OCCUR($T$4:$T31,$T31,COUNTIF($T$4:$T31,$T31)-1,0,1),"N/A") -> N/A | W31: =IF($T31="N/A","???",IFERROR(CONCATENATE(FLOOR(IF(COUNTIF($T$4:$T31,$T31)<2,0,$U31-OCCUR($T$4:$T31,$T31,$S31-1,0,1))/3600,1),"h ", FLOOR((IF(COUNTIF($T$4:$T31,$T31)<2,0,$U31-OCCUR($T$4:$T31,$T31,$S31-1,0,1))-FLOOR(IF(COUNTIF($T$4:$T31,$T31)<2,0,$U31-OCCUR($T$4:$T31,$T31,$S31-1,0,1))/3600,1)*3600)/60,1), "m ", IF(COUNTIF($T$4:$T31,$T31)<2,0,$U31-OCCUR($T$4:$T31,$T31,$S31-1,0,1))-FLOOR((IF(COUNTIF($T$4:$T31,$T31)<2,0,$U31-OCCUR($T$4:$T31,$T31,$S31-1,0,1))-FLOOR(IF(COUNTIF($T$4:$T31,$T31)<2,0,$U31-OCCUR($T$4:$T31,$T31,$S31-1,0,1))/3600,1)*3600)/60,1)*60-FLOOR(IF(COUNTIF($T$4:$T31,$T31)<2,0,$U31-OCCUR($T$4:$T31,$T31,$S31-1,0,1))/3600,1)*3600, "s"),"???")) -> 0h 0m 0s | X31: 1 | Y31: 7090 | Z31: =IFERROR(MID($Z$2,FindN(";",$Z$2,ROWS($Z$15:$Z31)-1)+1,FindN(";",$Z$2,ROWS($Z$15:$Z31))-(FindN(";",$Z$2,ROWS($Z$15:$Z31)-1)+1)),"???") -> Sheik | AA31: 0 | AB31: 10 | AC31: 10 | AD31: 1h 35m 22s | AE31: Lightning | AF31: 15h 44m 29s | AG31: =IF(Z32="???","???",OCCUR($T$3:$T$1000,Z32,AC32,0,1)+3600) -> 59593 | AH31: Lightning
C32: ? | D32: ? | E32: ? | F32: =IF(G32="?","?",COUNTIF($G$4:$G32,$G32)) -> ? | G32: ? | H32: =IF(R32="??? - N/A ","?",COUNTA($B$4:$B32)) -> 16 | I32: Steiner | J32: 4 | K32: Comm-014203 | L32: 01 | M32: 42 | N32: 03 | O32: =IF(P32="?","?",COUNTIF($P$4:$P32,$P32)) -> 1 | P32: Comm | Q32: =IF(R32="??? - N/A ","?",COUNTA($K$4:$K32)) -> 12 | R32: 01:42:03 - Lightning 1 | S32: =IF($T32="N/A",0,COUNTIF($T$4:$T32,$T32)) -> 1 | T32: Comm | U32: 2523 | V32: =IF($S32>1,U32-OCCUR($T$4:$T32,$T32,COUNTIF($T$4:$T32,$T32)-1,0,1),"N/A") -> N/A | W32: =IF($T32="N/A","???",IFERROR(CONCATENATE(FLOOR(IF(COUNTIF($T$4:$T32,$T32)<2,0,$U32-OCCUR($T$4:$T32,$T32,$S32-1,0,1))/3600,1),"h ", FLOOR((IF(COUNTIF($T$4:$T32,$T32)<2,0,$U32-OCCUR($T$4:$T32,$T32,$S32-1,0,1))-FLOOR(IF(COUNTIF($T$4:$T32,$T32)<2,0,$U32-OCCUR($T$4:$T32,$T32,$S32-1,0,1))/3600,1)*3600)/60,1), "m ", IF(COUNTIF($T$4:$T32,$T32)<2,0,$U32-OCCUR($T$4:$T32,$T32,$S32-1,0,1))-FLOOR((IF(COUNTIF($T$4:$T32,$T32)<2,0,$U32-OCCUR($T$4:$T32,$T32,$S32-1,0,1))-FLOOR(IF(COUNTIF($T$4:$T32,$T32)<2,0,$U32-OCCUR($T$4:$T32,$T32,$S32-1,0,1))/3600,1)*3600)/60,1)*60-FLOOR(IF(COUNTIF($T$4:$T32,$T32)<2,0,$U32-OCCUR($T$4:$T32,$T32,$S32-1,0,1))/3600,1)*3600, "s"),"???")) -> 0h 0m 0s | X32: 2 | Y32: 8814 | Z32: =IFERROR(MID($Z$2,FindN(";",$Z$2,ROWS($Z$15:$Z32)-1)+1,FindN(";",$Z$2,ROWS($Z$15:$Z32))-(FindN(";",$Z$2,ROWS($Z$15:$Z32)-1)+1)),"???") -> Genny | AA32: 10 | AB32: 0 | AC32: 10 | AD32: 1h 58m 10s | AE32: Steiner | AF32: 16h 33m 13s | AG32: =IF(Z33="???","???",OCCUR($T$3:$T$1000,Z33,AC33,0,1)+3600) -> 84608 | AH32: Lightning
C33: ? | D33: ? | E33: ? | F33: =IF(G33="?","?",COUNTIF($G$4:$G33,$G33)) -> ? | G33: ? | H33: =IF(R33="??? - N/A ","?",COUNTA($B$4:$B33)) -> 16 | I33: Steiner | J33: 3 | K33: Natwaf-014305 | L33: 01 | M33: 43 | N33: 05 | O33: =IF(P33="?","?",COUNTIF($P$4:$P33,$P33)) -> 1 | P33: Natwaf | Q33: =IF(R33="??? - N/A ","?",COUNTA($K$4:$K33)) -> 13 | R33: 01:43:05 - Lightning 1 | S33: =IF($T33="N/A",0,COUNTIF($T$4:$T33,$T33)) -> 1 | T33: Natwaf | U33: 2585 | V33: =IF($S33>1,U33-OCCUR($T$4:$T33,$T33,COUNTIF($T$4:$T33,$T33)-1,0,1),"N/A") -> N/A | W33: =IF($T33="N/A","???",IFERROR(CONCATENATE(FLOOR(IF(COUNTIF($T$4:$T33,$T33)<2,0,$U33-OCCUR($T$4:$T33,$T33,$S33-1,0,1))/3600,1),"h ", FLOOR((IF(COUNTIF($T$4:$T33,$T33)<2,0,$U33-OCCUR($T$4:$T33,$T33,$S33-1,0,1))-FLOOR(IF(COUNTIF($T$4:$T33,$T33)<2,0,$U33-OCCUR($T$4:$T33,$T33,$S33-1,0,1))/3600,1)*3600)/60,1), "m ", IF(COUNTIF($T$4:$T33,$T33)<2,0,$U33-OCCUR($T$4:$T33,$T33,$S33-1,0,1))-FLOOR((IF(COUNTIF($T$4:$T33,$T33)<2,0,$U33-OCCUR($T$4:$T33,$T33,$S33-1,0,1))-FLOOR(IF(COUNTIF($T$4:$T33,$T33)<2,0,$U33-OCCUR($T$4:$T33,$T33,$S33-1,0,1))/3600,1)*3600)/60,1)*60-FLOOR(IF(COUNTIF($T$4:$T33,$T33)<2,0,$U33-OCCUR($T$4:$T33,$T33,$S33-1,0,1))/3600,1)*3600, "s"),"???")) -> 0h 0m 0s | X33: 3 | Y33: 7626 | Z33: =IFERROR(MID($Z$2,FindN(";",$Z$2,ROWS($Z$15:$Z33)-1)+1,FindN(";",$Z$2,ROWS($Z$15:$Z33))-(FindN(";",$Z$2,ROWS($Z$15:$Z33)-1)+1)),"???") -> pjbass | AA33: 0 | AB33: 10 | AC33: 10 | AD33: 2h 26m 54s | AE33: Lightning | AF33: 23h 30m 8s | AG33: =IF(Z34="???","???",OCCUR($T$3:$T$1000,Z34,AC34,0,1)+3600) -> 73920 | AH33: Lightning
B34: Sanity-014835 | C34: 01 | D34: 48 | E34: 35 | F34: =IF(G34="?","?",COUNTIF($G$4:$G34,$G34)) -> 1 | G34: Sanity | H34: =IF(R34="??? - N/A ","?",COUNTA($B$4:$B34)) -> 17 | I34: Steiner | J34: 4 | L34: ? | M34: ? | N34: ? | O34: =IF(P34="?","?",COUNTIF($P$4:$P34,$P34)) -> ? | P34: ? | Q34: =IF(R34="??? - N/A ","?",COUNTA($K$4:$K34)) -> 13 | R34: 01:48:35 - Steiner 1 | S34: =IF($T34="N/A",0,COUNTIF($T$4:$T34,$T34)) -> 1 | T34: Sanity | U34: 2915 | V34: =IF($S34>1,U34-OCCUR($T$4:$T34,$T34,COUNTIF($T$4:$T34,$T34)-1,0,1),"N/A") -> N/A | W34: =IF($T34="N/A","???",IFERROR(CONCATENATE(FLOOR(IF(COUNTIF($T$4:$T34,$T34)<2,0,$U34-OCCUR($T$4:$T34,$T34,$S34-1,0,1))/3600,1),"h ", FLOOR((IF(COUNTIF($T$4:$T34,$T34)<2,0,$U34-OCCUR($T$4:$T34,$T34,$S34-1,0,1))-FLOOR(IF(COUNTIF($T$4:$T34,$T34)<2,0,$U34-OCCUR($T$4:$T34,$T34,$S34-1,0,1))/3600,1)*3600)/60,1), "m ", IF(COUNTIF($T$4:$T34,$T34)<2,0,$U34-OCCUR($T$4:$T34,$T34,$S34-1,0,1))-FLOOR((IF(COUNTIF($T$4:$T34,$T34)<2,0,$U34-OCCUR($T$4:$T34,$T34,$S34-1,0,1))-FLOOR(IF(COUNTIF($T$4:$T34,$T34)<2,0,$U34-OCCUR($T$4:$T34,$T34,$S34-1,0,1))/3600,1)*3600)/60,1)*60-FLOOR(IF(COUNTIF($T$4:$T34,$T34)<2,0,$U34-OCCUR($T$4:$T34,$T34,$S34-1,0,1))/3600,1)*3600, "s"),"???")) -> 0h 0m 0s | X34: 1 | Y34: 7226 | Z34: =IFERROR(MID($Z$2,FindN(";",$Z$2,ROWS($Z$15:$Z34)-1)+1,FindN(";",$Z$2,ROWS($Z$15:$Z34))-(FindN(";",$Z$2,ROWS($Z$15:$Z34)-1)+1)),"???") -> Yankee | AA34: 0 | AB34: 10 | AC34: 10 | AD34: 2h 7m 6s | AE34: Lightning | AF34: 20h 32m 0s | AG34: =IF(Z35="???","???",OCCUR($T$3:$T$1000,Z35,AC35,0,1)+3600) -> 70441 | AH34: Steiner
B35: Inviso-015007 | C35: 01 | D35: 50 | E35: 07 | F35: =IF(G35="?","?",COUNTIF($G$4:$G35,$G35)) -> 1 | G35: Inviso | H35: =IF(R35="??? - N/A ","?",COUNTA($B$4:$B35)) -> 18 | I35: Steiner | J35: 5 | L35: ? | M35: ? | N35: ? | O35: =IF(P35="?","?",COUNTIF($P$4:$P35,$P35)) -> ? | P35: ? | Q35: =IF(R35="??? - N/A ","?",COUNTA($K$4:$K35)) -> 13 | R35: 01:50:07 - Steiner 1 | S35: =IF($T35="N/A",0,COUNTIF($T$4:$T35,$T35)) -> 1 | T35: Inviso | U35: 3007 | V35: =IF($S35>1,U35-OCCUR($T$4:$T35,$T35,COUNTIF($T$4:$T35,$T35)-1,0,1),"N/A") -> N/A | W35: =IF($T35="N/A","???",IFERROR(CONCATENATE(FLOOR(IF(COUNTIF($T$4:$T35,$T35)<2,0,$U35-OCCUR($T$4:$T35,$T35,$S35-1,0,1))/3600,1),"h ", FLOOR((IF(COUNTIF($T$4:$T35,$T35)<2,0,$U35-OCCUR($T$4:$T35,$T35,$S35-1,0,1))-FLOOR(IF(COUNTIF($T$4:$T35,$T35)<2,0,$U35-OCCUR($T$4:$T35,$T35,$S35-1,0,1))/3600,1)*3600)/60,1), "m ", IF(COUNTIF($T$4:$T35,$T35)<2,0,$U35-OCCUR($T$4:$T35,$T35,$S35-1,0,1))-FLOOR((IF(COUNTIF($T$4:$T35,$T35)<2,0,$U35-OCCUR($T$4:$T35,$T35,$S35-1,0,1))-FLOOR(IF(COUNTIF($T$4:$T35,$T35)<2,0,$U35-OCCUR($T$4:$T35,$T35,$S35-1,0,1))/3600,1)*3600)/60,1)*60-FLOOR(IF(COUNTIF($T$4:$T35,$T35)<2,0,$U35-OCCUR($T$4:$T35,$T35,$S35-1,0,1))/3600,1)*3600, "s"),"???")) -> 0h 0m 0s | X35: 2 | Y35: 8001 | Z35: =IFERROR(MID($Z$2,FindN(";",$Z$2,ROWS($Z$15:$Z35)-1)+1,FindN(";",$Z$2,ROWS($Z$15:$Z35))-(FindN(";",$Z$2,ROWS($Z$15:$Z35)-1)+1)),"???") -> Tangy | AA35: 0 | AB35: 10 | AC35: 10 | AD35: 2h 0m 26s | AE35: Lightning | AF35: 19h 34m 1s | AG35: =IF(Z36="???","???",OCCUR($T$3:$T$1000,Z36,AC36,0,1)+3600) -> 77427 | AH35: Steiner
B36: MI-015916 | C36: 01 | D36: 59 | E36: 16 | F36: =IF(G36="?","?",COUNTIF($G$4:$G36,$G36)) -> 1 | G36: MI | H36: =IF(R36="??? - N/A ","?",COUNTA($B$4:$B36)) -> 19 | I36: Steiner | J36: 6 | L36: ? | M36: ? | N36: ? | O36: =IF(P36="?","?",COUNTIF($P$4:$P36,$P36)) -> ? | P36: ? | Q36: =IF(R36="??? - N/A ","?",COUNTA($K$4:$K36)) -> 13 | R36: 01:59:16 - Steiner 1 | S36: =IF($T36="N/A",0,COUNTIF($T$4:$T36,$T36)) -> 1 | T36: MI | U36: 3556 | V36: =IF($S36>1,U36-OCCUR($T$4:$T36,$T36,COUNTIF($T$4:$T36,$T36)-1,0,1),"N/A") -> N/A | W36: =IF($T36="N/A","???",IFERROR(CONCATENATE(FLOOR(IF(COUNTIF($T$4:$T36,$T36)<2,0,$U36-OCCUR($T$4:$T36,$T36,$S36-1,0,1))/3600,1),"h ", FLOOR((IF(COUNTIF($T$4:$T36,$T36)<2,0,$U36-OCCUR($T$4:$T36,$T36,$S36-1,0,1))-FLOOR(IF(COUNTIF($T$4:$T36,$T36)<2,0,$U36-OCCUR($T$4:$T36,$T36,$S36-1,0,1))/3600,1)*3600)/60,1), "m ", IF(COUNTIF($T$4:$T36,$T36)<2,0,$U36-OCCUR($T$4:$T36,$T36,$S36-1,0,1))-FLOOR((IF(COUNTIF($T$4:$T36,$T36)<2,0,$U36-OCCUR($T$4:$T36,$T36,$S36-1,0,1))-FLOOR(IF(COUNTIF($T$4:$T36,$T36)<2,0,$U36-OCCUR($T$4:$T36,$T36,$S36-1,0,1))/3600,1)*3600)/60,1)*60-FLOOR(IF(COUNTIF($T$4:$T36,$T36)<2,0,$U36-OCCUR($T$4:$T36,$T36,$S36-1,0,1))/3600,1)*3600, "s"),"???")) -> 0h 0m 0s | X36: 3 | Y36: 6522 | Z36: =IFERROR(MID($Z$2,FindN(";",$Z$2,ROWS($Z$15:$Z36)-1)+1,FindN(";",$Z$2,ROWS($Z$15:$Z36))-(FindN(";",$Z$2,ROWS($Z$15:$Z36)-1)+1)),"???") -> barrel | AA36: 10 | AB36: 0 | AC36: 10 | AD36: 2h 13m 21s | AE36: Steiner | AF36: 21h 30m 27s | AG36: =IF(Z37="???","???",OCCUR($T$3:$T$1000,Z37,AC37,0,1)+3600) -> 64344 | AH36: Steiner
B37: Ermine-020400 | C37: 02 | D37: 04 | E37: 00 | F37: =IF(G37="?","?",COUNTIF($G$4:$G37,$G37)) -> 1 | G37: Ermine | H37: =IF(R37="??? - N/A ","?",COUNTA($B$4:$B37)) -> 20 | I37: Steiner | J37: 7 | L37: ? | M37: ? | N37: ? | O37: =IF(P37="?","?",COUNTIF($P$4:$P37,$P37)) -> ? | P37: ? | Q37: =IF(R37="??? - N/A ","?",COUNTA($K$4:$K37)) -> 13 | R37: 02:04:00 - Steiner 1 | S37: =IF($T37="N/A",0,COUNTIF($T$4:$T37,$T37)) -> 1 | T37: Ermine | U37: 3840 | V37: =IF($S37>1,U37-OCCUR($T$4:$T37,$T37,COUNTIF($T$4:$T37,$T37)-1,0,1),"N/A") -> N/A | W37: =IF($T37="N/A","???",IFERROR(CONCATENATE(FLOOR(IF(COUNTIF($T$4:$T37,$T37)<2,0,$U37-OCCUR($T$4:$T37,$T37,$S37-1,0,1))/3600,1),"h ", FLOOR((IF(COUNTIF($T$4:$T37,$T37)<2,0,$U37-OCCUR($T$4:$T37,$T37,$S37-1,0,1))-FLOOR(IF(COUNTIF($T$4:$T37,$T37)<2,0,$U37-OCCUR($T$4:$T37,$T37,$S37-1,0,1))/3600,1)*3600)/60,1), "m ", IF(COUNTIF($T$4:$T37,$T37)<2,0,$U37-OCCUR($T$4:$T37,$T37,$S37-1,0,1))-FLOOR((IF(COUNTIF($T$4:$T37,$T37)<2,0,$U37-OCCUR($T$4:$T37,$T37,$S37-1,0,1))-FLOOR(IF(COUNTIF($T$4:$T37,$T37)<2,0,$U37-OCCUR($T$4:$T37,$T37,$S37-1,0,1))/3600,1)*3600)/60,1)*60-FLOOR(IF(COUNTIF($T$4:$T37,$T37)<2,0,$U37-OCCUR($T$4:$T37,$T37,$S37-1,0,1))/3600,1)*3600, "s"),"???")) -> 0h 0m 0s | X37: 4 | Y37: 7220 | Z37: =IFERROR(MID($Z$2,FindN(";",$Z$2,ROWS($Z$15:$Z37)-1)+1,FindN(";",$Z$2,ROWS($Z$15:$Z37))-(FindN(";",$Z$2,ROWS($Z$15:$Z37)-1)+1)),"???") -> MWC | AA37: 10 | AB37: 0 | AC37: 10 | AD37: 1h 48m 42s | AE37: Steiner | AF37: 17h 52m 24s | AG37: =IF(Z38="???","???",OCCUR($T$3:$T$1000,Z38,AC38,0,1)+3600) -> 70651 | AH37: Steiner
C38: ? | D38: ? | E38: ? | F38: =IF(G38="?","?",COUNTIF($G$4:$G38,$G38)) -> ? | G38: ? | H38: =IF(R38="??? - N/A ","?",COUNTA($B$4:$B38)) -> 20 | I38: Steiner | J38: 6 | K38: Paul-020445 | L38: 02 | M38: 04 | N38: 45 | O38: =IF(P38="?","?",COUNTIF($P$4:$P38,$P38)) -> 1 | P38: Paul | Q38: =IF(R38="??? - N/A ","?",COUNTA($K$4:$K38)) -> 14 | R38: 02:04:45 - Lightning 1 | S38: =IF($T38="N/A",0,COUNTIF($T$4:$T38,$T38)) -> 1 | T38: Paul | U38: 3885 | V38: =IF($S38>1,U38-OCCUR($T$4:$T38,$T38,COUNTIF($T$4:$T38,$T38)-1,0,1),"N/A") -> N/A | W38: =IF($T38="N/A","???",IFERROR(CONCATENATE(FLOOR(IF(COUNTIF($T$4:$T38,$T38)<2,0,$U38-OCCUR($T$4:$T38,$T38,$S38-1,0,1))/3600,1),"h ", FLOOR((IF(COUNTIF($T$4:$T38,$T38)<2,0,$U38-OCCUR($T$4:$T38,$T38,$S38-1,0,1))-FLOOR(IF(COUNTIF($T$4:$T38,$T38)<2,0,$U38-OCCUR($T$4:$T38,$T38,$S38-1,0,1))/3600,1)*3600)/60,1), "m ", IF(COUNTIF($T$4:$T38,$T38)<2,0,$U38-OCCUR($T$4:$T38,$T38,$S38-1,0,1))-FLOOR((IF(COUNTIF($T$4:$T38,$T38)<2,0,$U38-OCCUR($T$4:$T38,$T38,$S38-1,0,1))-FLOOR(IF(COUNTIF($T$4:$T38,$T38)<2,0,$U38-OCCUR($T$4:$T38,$T38,$S38-1,0,1))/3600,1)*3600)/60,1)*60-FLOOR(IF(COUNTIF($T$4:$T38,$T38)<2,0,$U38-OCCUR($T$4:$T38,$T38,$S38-1,0,1))/3600,1)*3600, "s"),"???")) -> 0h 0m 0s | X38: 1 | Y38: 0 | Z38: =IFERROR(MID($Z$2,FindN(";",$Z$2,ROWS($Z$15:$Z38)-1)+1,FindN(";",$Z$2,ROWS($Z$15:$Z38))-(FindN(";",$Z$2,ROWS($Z$15:$Z38)-1)+1)),"???") -> Ultros | AA38: 10 | AB38: 0 | AC38: 10 | AD38: 2h 0m 20s | AE38: Steiner | AF38: 19h 37m 31s | AG38: =IF(Z39="???","???",OCCUR($T$3:$T$1000,Z39,AC39,0,1)+3600) -> 6032 | AH38: Lightning
B39: Fris-020605 | C39: 02 | D39: 06 | E39: 05 | F39: =IF(G39="?","?",COUNTIF($G$4:$G39,$G39)) -> 1 | G39: Fris | H39: =IF(R39="??? - N/A ","?",COUNTA($B$4:$B39)) -> 21 | I39: Steiner | J39: 7 | L39: ? | M39: ? | N39: ? | O39: =IF(P39="?","?",COUNTIF($P$4:$P39,$P39)) -> ? | P39: ? | Q39: =IF(R39="??? - N/A ","?",COUNTA($K$4:$K39)) -> 14 | R39: 02:06:05 - Steiner 1 | S39: =IF($T39="N/A",0,COUNTIF($T$4:$T39,$T39)) -> 1 | T39: Fris | U39: 3965 | V39: =IF($S39>1,U39-OCCUR($T$4:$T39,$T39,COUNTIF($T$4:$T39,$T39)-1,0,1),"N/A") -> N/A | W39: =IF($T39="N/A","???",IFERROR(CONCATENATE(FLOOR(IF(COUNTIF($T$4:$T39,$T39)<2,0,$U39-OCCUR($T$4:$T39,$T39,$S39-1,0,1))/3600,1),"h ", FLOOR((IF(COUNTIF($T$4:$T39,$T39)<2,0,$U39-OCCUR($T$4:$T39,$T39,$S39-1,0,1))-FLOOR(IF(COUNTIF($T$4:$T39,$T39)<2,0,$U39-OCCUR($T$4:$T39,$T39,$S39-1,0,1))/3600,1)*3600)/60,1), "m ", IF(COUNTIF($T$4:$T39,$T39)<2,0,$U39-OCCUR($T$4:$T39,$T39,$S39-1,0,1))-FLOOR((IF(COUNTIF($T$4:$T39,$T39)<2,0,$U39-OCCUR($T$4:$T39,$T39,$S39-1,0,1))-FLOOR(IF(COUNTIF($T$4:$T39,$T39)<2,0,$U39-OCCUR($T$4:$T39,$T39,$S39-1,0,1))/3600,1)*3600)/60,1)*60-FLOOR(IF(COUNTIF($T$4:$T39,$T39)<2,0,$U39-OCCUR($T$4:$T39,$T39,$S39-1,0,1))/3600,1)*3600, "s"),"???")) -> 0h 0m 0s | X39: 1 | Y39: 8343 | Z39: =IFERROR(MID($Z$2,FindN(";",$Z$2,ROWS($Z$15:$Z39)-1)+1,FindN(";",$Z$2,ROWS($Z$15:$Z39))-(FindN(";",$Z$2,ROWS($Z$15:$Z39)-1)+1)),"???") -> Nee | AA39: 0 | AB39: 1 | AC39: 1 | AD39: 0h 0m 0s | AE39: Lightning | AF39: 1h 40m 32s | AG39: =IF(Z40="???","???",OCCUR($T$3:$T$1000,Z40,AC40,0,1)+3600) -> 81128 | AH39: Steiner
B40: Nick-020951 | C40: 02 | D40: 09 | E40: 51 | F40: =IF(G40="?","?",COUNTIF($G$4:$G40,$G40)) -> 1 | G40: Nick | H40: =IF(R40="??? - N/A ","?",COUNTA($B$4:$B40)) -> 22 | I40: Steiner | J40: 8 | L40: ? | M40: ? | N40: ? | O40: =IF(P40="?","?",COUNTIF($P$4:$P40,$P40)) -> ? | P40: ? | Q40: =IF(R40="??? - N/A ","?",COUNTA($K$4:$K40)) -> 14 | R40: 02:09:51 - Steiner 1 | S40: =IF($T40="N/A",0,COUNTIF($T$4:$T40,$T40)) -> 1 | T40: Nick | U40: 4191 | V40: =IF($S40>1,U40-OCCUR($T$4:$T40,$T40,COUNTIF($T$4:$T40,$T40)-1,0,1),"N/A") -> N/A | W40: =IF($T40="N/A","???",IFERROR(CONCATENATE(FLOOR(IF(COUNTIF($T$4:$T40,$T40)<2,0,$U40-OCCUR($T$4:$T40,$T40,$S40-1,0,1))/3600,1),"h ", FLOOR((IF(COUNTIF($T$4:$T40,$T40)<2,0,$U40-OCCUR($T$4:$T40,$T40,$S40-1,0,1))-FLOOR(IF(COUNTIF($T$4:$T40,$T40)<2,0,$U40-OCCUR($T$4:$T40,$T40,$S40-1,0,1))/3600,1)*3600)/60,1), "m ", IF(COUNTIF($T$4:$T40,$T40)<2,0,$U40-OCCUR($T$4:$T40,$T40,$S40-1,0,1))-FLOOR((IF(COUNTIF($T$4:$T40,$T40)<2,0,$U40-OCCUR($T$4:$T40,$T40,$S40-1,0,1))-FLOOR(IF(COUNTIF($T$4:$T40,$T40)<2,0,$U40-OCCUR($T$4:$T40,$T40,$S40-1,0,1))/3600,1)*3600)/60,1)*60-FLOOR(IF(COUNTIF($T$4:$T40,$T40)<2,0,$U40-OCCUR($T$4:$T40,$T40,$S40-1,0,1))/3600,1)*3600, "s"),"???")) -> 0h 0m 0s | X40: 2 | Y40: 13652 | Z40: =IFERROR(MID($Z$2,FindN(";",$Z$2,ROWS($Z$15:$Z40)-1)+1,FindN(";",$Z$2,ROWS($Z$15:$Z40))-(FindN(";",$Z$2,ROWS($Z$15:$Z40)-1)+1)),"???") -> Leo3 | AA40: 10 | AB40: 0 | AC40: 10 | AD40: 2h 19m 3s | AE40: Steiner | AF40: 22h 32m 8s | AG40: =IF(Z41="???","???",OCCUR($T$3:$T$1000,Z41,AC41,0,1)+3600) -> 88027 | AH40: Steiner
B41: paulg-021257 | C41: 02 | D41: 12 | E41: 57 | F41: =IF(G41="?","?",COUNTIF($G$4:$G41,$G41)) -> 1 | G41: paulg | H41: =IF(R41="??? - N/A ","?",COUNTA($B$4:$B41)) -> 23 | I41: Steiner | J41: 9 | L41: ? | M41: ? | N41: ? | O41: =IF(P41="?","?",COUNTIF($P$4:$P41,$P41)) -> ? | P41: ? | Q41: =IF(R41="??? - N/A ","?",COUNTA($K$4:$K41)) -> 14 | R41: 02:12:57 - Steiner 1 | S41: =IF($T41="N/A",0,COUNTIF($T$4:$T41,$T41)) -> 1 | T41: paulg | U41: 4377 | V41: =IF($S41>1,U41-OCCUR($T$4:$T41,$T41,COUNTIF($T$4:$T41,$T41)-1,0,1),"N/A") -> N/A | W41: =IF($T41="N/A","???",IFERROR(CONCATENATE(FLOOR(IF(COUNTIF($T$4:$T41,$T41)<2,0,$U41-OCCUR($T$4:$T41,$T41,$S41-1,0,1))/3600,1),"h ", FLOOR((IF(COUNTIF($T$4:$T41,$T41)<2,0,$U41-OCCUR($T$4:$T41,$T41,$S41-1,0,1))-FLOOR(IF(COUNTIF($T$4:$T41,$T41)<2,0,$U41-OCCUR($T$4:$T41,$T41,$S41-1,0,1))/3600,1)*3600)/60,1), "m ", IF(COUNTIF($T$4:$T41,$T41)<2,0,$U41-OCCUR($T$4:$T41,$T41,$S41-1,0,1))-FLOOR((IF(COUNTIF($T$4:$T41,$T41)<2,0,$U41-OCCUR($T$4:$T41,$T41,$S41-1,0,1))-FLOOR(IF(COUNTIF($T$4:$T41,$T41)<2,0,$U41-OCCUR($T$4:$T41,$T41,$S41-1,0,1))/3600,1)*3600)/60,1)*60-FLOOR(IF(COUNTIF($T$4:$T41,$T41)<2,0,$U41-OCCUR($T$4:$T41,$T41,$S41-1,0,1))/3600,1)*3600, "s"),"???")) -> 0h 0m 0s | X41: 3 | Y41: 14349 | Z41: =IFERROR(MID($Z$2,FindN(";",$Z$2,ROWS($Z$15:$Z41)-1)+1,FindN(";",$Z$2,ROWS($Z$15:$Z41))-(FindN(";",$Z$2,ROWS($Z$15:$Z41)-1)+1)),"???") -> Drak | AA41: 0 | AB41: 7 | AC41: 7 | AD41: 3h 47m 32s | AE41: Lightning | AF41: 24h 27m 7s | AG41: =IF(Z42="???","???",OCCUR($T$3:$T$1000,Z42,AC42,0,1)+3600) -> 92215 | AH41: Steiner
B42: Chris-022017 | C42: 02 | D42: 20 | E42: 17 | F42: =IF(G42="?","?",COUNTIF($G$4:$G42,$G42)) -> 2 | G42: Chris | H42: =IF(R42="??? - N/A ","?",COUNTA($B$4:$B42)) -> 24 | I42: Steiner | J42: 10 | L42: ? | M42: ? | N42: ? | O42: =IF(P42="?","?",COUNTIF($P$4:$P42,$P42)) -> ? | P42: ? | Q42: =IF(R42="??? - N/A ","?",COUNTA($K$4:$K42)) -> 14 | R42: 02:20:17 - Steiner 2 | S42: =IF($T42="N/A",0,COUNTIF($T$4:$T42,$T42)) -> 2 | T42: Chris | U42: 4817 | V42: =IF($S42>1,U42-OCCUR($T$4:$T42,$T42,COUNTIF($T$4:$T42,$T42)-1,0,1),"N/A") -> 3630 | W42: =IF($T42="N/A","???",IFERROR(CONCATENATE(FLOOR(IF(COUNTIF($T$4:$T42,$T42)<2,0,$U42-OCCUR($T$4:$T42,$T42,$S42-1,0,1))/3600,1),"h ", FLOOR((IF(COUNTIF($T$4:$T42,$T42)<2,0,$U42-OCCUR($T$4:$T42,$T42,$S42-1,0,1))-FLOOR(IF(COUNTIF($T$4:$T42,$T42)<2,0,$U42-OCCUR($T$4:$T42,$T42,$S42-1,0,1))/3600,1)*3600)/60,1), "m ", IF(COUNTIF($T$4:$T42,$T42)<2,0,$U42-OCCUR($T$4:$T42,$T42,$S42-1,0,1))-FLOOR((IF(COUNTIF($T$4:$T42,$T42)<2,0,$U42-OCCUR($T$4:$T42,$T42,$S42-1,0,1))-FLOOR(IF(COUNTIF($T$4:$T42,$T42)<2,0,$U42-OCCUR($T$4:$T42,$T42,$S42-1,0,1))/3600,1)*3600)/60,1)*60-FLOOR(IF(COUNTIF($T$4:$T42,$T42)<2,0,$U42-OCCUR($T$4:$T42,$T42,$S42-1,0,1))/3600,1)*3600, "s"),"???")) -> 1h 0m 30s | X42: 4 | Y42: 4536 | Z42: =IFERROR(MID($Z$2,FindN(";",$Z$2,ROWS($Z$15:$Z42)-1)+1,FindN(";",$Z$2,ROWS($Z$15:$Z42))-(FindN(";",$Z$2,ROWS($Z$15:$Z42)-1)+1)),"???") -> Comm | AA42: 0 | AB42: 7 | AC42: 7 | AD42: 3h 59m 9s | AE42: Lightning | AF42: 25h 36m 55s | AG42: =IF(Z43="???","???",OCCUR($T$3:$T$1000,Z43,AC43,0,1)+3600) -> 47011 | AH42: Steiner
C43: ? | D43: ? | E43: ? | F43: =IF(G43="?","?",COUNTIF($G$4:$G43,$G43)) -> ? | G43: ? | H43: =IF(R43="??? - N/A ","?",COUNTA($B$4:$B43)) -> 24 | I43: Steiner | J43: 9 | K43: Arti-022049 | L43: 02 | M43: 20 | N43: 49 | O43: =IF(P43="?","?",COUNTIF($P$4:$P43,$P43)) -> 1 | P43: Arti | Q43: =IF(R43="??? - N/A ","?",COUNTA($K$4:$K43)) -> 15 | R43: 02:20:49 - Lightning 1 | S43: =IF($T43="N/A",0,COUNTIF($T$4:$T43,$T43)) -> 1 | T43: Arti | U43: 4849 | V43: =IF($S43>1,U43-OCCUR($T$4:$T43,$T43,COUNTIF($T$4:$T43,$T43)-1,0,1),"N/A") -> N/A | W43: =IF($T43="N/A","???",IFERROR(CONCATENATE(FLOOR(IF(COUNTIF($T$4:$T43,$T43)<2,0,$U43-OCCUR($T$4:$T43,$T43,$S43-1,0,1))/3600,1),"h ", FLOOR((IF(COUNTIF($T$4:$T43,$T43)<2,0,$U43-OCCUR($T$4:$T43,$T43,$S43-1,0,1))-FLOOR(IF(COUNTIF($T$4:$T43,$T43)<2,0,$U43-OCCUR($T$4:$T43,$T43,$S43-1,0,1))/3600,1)*3600)/60,1), "m ", IF(COUNTIF($T$4:$T43,$T43)<2,0,$U43-OCCUR($T$4:$T43,$T43,$S43-1,0,1))-FLOOR((IF(COUNTIF($T$4:$T43,$T43)<2,0,$U43-OCCUR($T$4:$T43,$T43,$S43-1,0,1))-FLOOR(IF(COUNTIF($T$4:$T43,$T43)<2,0,$U43-OCCUR($T$4:$T43,$T43,$S43-1,0,1))/3600,1)*3600)/60,1)*60-FLOOR(IF(COUNTIF($T$4:$T43,$T43)<2,0,$U43-OCCUR($T$4:$T43,$T43,$S43-1,0,1))/3600,1)*3600, "s"),"???")) -> 0h 0m 0s | X43: 1 | Y43: 6786 | Z43: =IFERROR(MID($Z$2,FindN(";",$Z$2,ROWS($Z$15:$Z43)-1)+1,FindN(";",$Z$2,ROWS($Z$15:$Z43))-(FindN(";",$Z$2,ROWS($Z$15:$Z43)-1)+1)),"???") -> Natwaf | AA43: 0 | AB43: 10 | AC43: 10 | AD43: 1h 15m 36s | AE43: Lightning | AF43: 13h 3m 31s | AG43: =IF(Z44="???","???",OCCUR($T$3:$T$1000,Z44,AC44,0,1)+3600) -> 67592 | AH43: Lightning
B44: JC-022150 | C44: 02 | D44: 21 | E44: 50 | F44: =IF(G44="?","?",COUNTIF($G$4:$G44,$G44)) -> 1 | G44: JC | H44: =IF(R44="??? - N/A ","?",COUNTA($B$4:$B44)) -> 25 | I44: Steiner | J44: 10 | L44: ? | M44: ? | N44: ? | O44: =IF(P44="?","?",COUNTIF($P$4:$P44,$P44)) -> ? | P44: ? | Q44: =IF(R44="??? - N/A ","?",COUNTA($K$4:$K44)) -> 15 | R44: 02:21:50 - Steiner 1 | S44: =IF($T44="N/A",0,COUNTIF($T$4:$T44,$T44)) -> 1 | T44: JC | U44: 4910 | V44: =IF($S44>1,U44-OCCUR($T$4:$T44,$T44,COUNTIF($T$4:$T44,$T44)-1,0,1),"N/A") -> N/A | W44: =IF($T44="N/A","???",IFERROR(CONCATENATE(FLOOR(IF(COUNTIF($T$4:$T44,$T44)<2,0,$U44-OCCUR($T$4:$T44,$T44,$S44-1,0,1))/3600,1),"h ", FLOOR((IF(COUNTIF($T$4:$T44,$T44)<2,0,$U44-OCCUR($T$4:$T44,$T44,$S44-1,0,1))-FLOOR(IF(COUNTIF($T$4:$T44,$T44)<2,0,$U44-OCCUR($T$4:$T44,$T44,$S44-1,0,1))/3600,1)*3600)/60,1), "m ", IF(COUNTIF($T$4:$T44,$T44)<2,0,$U44-OCCUR($T$4:$T44,$T44,$S44-1,0,1))-FLOOR((IF(COUNTIF($T$4:$T44,$T44)<2,0,$U44-OCCUR($T$4:$T44,$T44,$S44-1,0,1))-FLOOR(IF(COUNTIF($T$4:$T44,$T44)<2,0,$U44-OCCUR($T$4:$T44,$T44,$S44-1,0,1))/3600,1)*3600)/60,1)*60-FLOOR(IF(COUNTIF($T$4:$T44,$T44)<2,0,$U44-OCCUR($T$4:$T44,$T44,$S44-1,0,1))/3600,1)*3600, "s"),"???")) -> 0h 0m 0s | X44: 1 | Y44: 9400 | Z44: =IFERROR(MID($Z$2,FindN(";",$Z$2,ROWS($Z$15:$Z44)-1)+1,FindN(";",$Z$2,ROWS($Z$15:$Z44))-(FindN(";",$Z$2,ROWS($Z$15:$Z44)-1)+1)),"???") -> Sanity | AA44: 10 | AB44: 0 | AC44: 10 | AD44: 1h 53m 6s | AE44: Steiner | AF44: 18h 46m 32s | AG44: =IF(Z45="???","???",OCCUR($T$3:$T$1000,Z45,AC45,0,1)+3600) -> 81807 | AH44: Steiner
B45: Ark-022240 | C45: 02 | D45: 22 | E45: 40 | F45: =IF(G45="?","?",COUNTIF($G$4:$G45,$G45)) -> 2 | G45: Ark | H45: =IF(R45="??? - N/A ","?",COUNTA($B$4:$B45)) -> 26 | I45: Steiner | J45: 11 | L45: ? | M45: ? | N45: ? | O45: =IF(P45="?","?",COUNTIF($P$4:$P45,$P45)) -> ? | P45: ? | Q45: =IF(R45="??? - N/A ","?",COUNTA($K$4:$K45)) -> 15 | R45: 02:22:40 - Steiner 2 | S45: =IF($T45="N/A",0,COUNTIF($T$4:$T45,$T45)) -> 2 | T45: Ark | U45: 4960 | V45: =IF($S45>1,U45-OCCUR($T$4:$T45,$T45,COUNTIF($T$4:$T45,$T45)-1,0,1),"N/A") -> 3614 | W45: =IF($T45="N/A","???",IFERROR(CONCATENATE(FLOOR(IF(COUNTIF($T$4:$T45,$T45)<2,0,$U45-OCCUR($T$4:$T45,$T45,$S45-1,0,1))/3600,1),"h ", FLOOR((IF(COUNTIF($T$4:$T45,$T45)<2,0,$U45-OCCUR($T$4:$T45,$T45,$S45-1,0,1))-FLOOR(IF(COUNTIF($T$4:$T45,$T45)<2,0,$U45-OCCUR($T$4:$T45,$T45,$S45-1,0,1))/3600,1)*3600)/60,1), "m ", IF(COUNTIF($T$4:$T45,$T45)<2,0,$U45-OCCUR($T$4:$T45,$T45,$S45-1,0,1))-FLOOR((IF(COUNTIF($T$4:$T45,$T45)<2,0,$U45-OCCUR($T$4:$T45,$T45,$S45-1,0,1))-FLOOR(IF(COUNTIF($T$4:$T45,$T45)<2,0,$U45-OCCUR($T$4:$T45,$T45,$S45-1,0,1))/3600,1)*3600)/60,1)*60-FLOOR(IF(COUNTIF($T$4:$T45,$T45)<2,0,$U45-OCCUR($T$4:$T45,$T45,$S45-1,0,1))/3600,1)*3600, "s"),"???")) -> 1h 0m 14s | X45: 2 | Y45: 17242 | Z45: =IFERROR(MID($Z$2,FindN(";",$Z$2,ROWS($Z$15:$Z45)-1)+1,FindN(";",$Z$2,ROWS($Z$15:$Z45))-(FindN(";",$Z$2,ROWS($Z$15:$Z45)-1)+1)),"???") -> Inviso | AA45: 9 | AB45: 0 | AC45: 9 | AD45: 2h 36m 40s | AE45: Steiner | AF45: 22h 43m 27s | AG45: =IF(Z46="???","???",OCCUR($T$3:$T$1000,Z46,AC46,0,1)+3600) -> 93366 | AH45: Steiner
C46: ? | D46: ? | E46: ? | F46: =IF(G46="?","?",COUNTIF($G$4:$G46,$G46)) -> ? | G46: ? | H46: =IF(R46="??? - N/A ","?",COUNTA($B$4:$B46)) -> 26 | I46: Steiner | J46: 10 | K46: Leon-022256 | L46: 02 | M46: 22 | N46: 56 | O46: =IF(P46="?","?",COUNTIF($P$4:$P46,$P46)) -> 2 | P46: Leon | Q46: =IF(R46="??? - N/A ","?",COUNTA($K$4:$K46)) -> 16 | R46: 02:22:56 - Lightning 2 | S46: =IF($T46="N/A",0,COUNTIF($T$4:$T46,$T46)) -> 2 | T46: Leon | U46: 4976 | V46: =IF($S46>1,U46-OCCUR($T$4:$T46,$T46,COUNTIF($T$4:$T46,$T46)-1,0,1),"N/A") -> 3787 | W46: =IF($T46="N/A","???",IFERROR(CONCATENATE(FLOOR(IF(COUNTIF($T$4:$T46,$T46)<2,0,$U46-OCCUR($T$4:$T46,$T46,$S46-1,0,1))/3600,1),"h ", FLOOR((IF(COUNTIF($T$4:$T46,$T46)<2,0,$U46-OCCUR($T$4:$T46,$T46,$S46-1,0,1))-FLOOR(IF(COUNTIF($T$4:$T46,$T46)<2,0,$U46-OCCUR($T$4:$T46,$T46,$S46-1,0,1))/3600,1)*3600)/60,1), "m ", IF(COUNTIF($T$4:$T46,$T46)<2,0,$U46-OCCUR($T$4:$T46,$T46,$S46-1,0,1))-FLOOR((IF(COUNTIF($T$4:$T46,$T46)<2,0,$U46-OCCUR($T$4:$T46,$T46,$S46-1,0,1))-FLOOR(IF(COUNTIF($T$4:$T46,$T46)<2,0,$U46-OCCUR($T$4:$T46,$T46,$S46-1,0,1))/3600,1)*3600)/60,1)*60-FLOOR(IF(COUNTIF($T$4:$T46,$T46)<2,0,$U46-OCCUR($T$4:$T46,$T46,$S46-1,0,1))/3600,1)*3600, "s"),"???")) -> 1h 3m 7s | X46: 1 | Y46: =IFERROR(ROUND(SUMIFS($V$4:$V$1001,$T$4:$T$1001,Z47,$V$4:$V$1001,">"&1)/(AC47-1),0),0) -> 9058 | Z46: =IFERROR(MID($Z$2,FindN(";",$Z$2,ROWS($Z$15:$Z46)-1)+1,FindN(";",$Z$2,ROWS($Z$15:$Z46))-(FindN(";",$Z$2,ROWS($Z$15:$Z46)-1)+1)),"???") -> MI | AA46: 6 | AB46: 0 | AC46: 6 | AD46: 4h 47m 22s | AE46: Steiner | AF46: 25h 56m 6s | AG46: =IF(Z47="???","???",OCCUR($T$3:$T$1000,Z47,AC47,0,1)+3600) -> 88963 | AH46: Lightning
B47: prof-022305 | C47: 02 | D47: 23 | E47: 05 | F47: =IF(G47="?","?",COUNTIF($G$4:$G47,$G47)) -> 2 | G47: prof | H47: =IF(R47="??? - N/A ","?",COUNTA($B$4:$B47)) -> 27 | I47: Steiner | J47: 11 | L47: ? | M47: ? | N47: ? | O47: =IF(P47="?","?",COUNTIF($P$4:$P47,$P47)) -> ? | P47: ? | Q47: =IF(R47="??? - N/A ","?",COUNTA($K$4:$K47)) -> 16 | R47: 02:23:05 - Steiner 2 | S47: =IF($T47="N/A",0,COUNTIF($T$4:$T47,$T47)) -> 2 | T47: prof | U47: 4985 | V47: =IF($S47>1,U47-OCCUR($T$4:$T47,$T47,COUNTIF($T$4:$T47,$T47)-1,0,1),"N/A") -> 3605 | W47: =IF($T47="N/A","???",IFERROR(CONCATENATE(FLOOR(IF(COUNTIF($T$4:$T47,$T47)<2,0,$U47-OCCUR($T$4:$T47,$T47,$S47-1,0,1))/3600,1),"h ", FLOOR((IF(COUNTIF($T$4:$T47,$T47)<2,0,$U47-OCCUR($T$4:$T47,$T47,$S47-1,0,1))-FLOOR(IF(COUNTIF($T$4:$T47,$T47)<2,0,$U47-OCCUR($T$4:$T47,$T47,$S47-1,0,1))/3600,1)*3600)/60,1), "m ", IF(COUNTIF($T$4:$T47,$T47)<2,0,$U47-OCCUR($T$4:$T47,$T47,$S47-1,0,1))-FLOOR((IF(COUNTIF($T$4:$T47,$T47)<2,0,$U47-OCCUR($T$4:$T47,$T47,$S47-1,0,1))-FLOOR(IF(COUNTIF($T$4:$T47,$T47)<2,0,$U47-OCCUR($T$4:$T47,$T47,$S47-1,0,1))/3600,1)*3600)/60,1)*60-FLOOR(IF(COUNTIF($T$4:$T47,$T47)<2,0,$U47-OCCUR($T$4:$T47,$T47,$S47-1,0,1))/3600,1)*3600, "s"),"???")) -> 1h 0m 5s | X47: 1 | Y47: 14311 | Z47: =IFERROR(MID($Z$2,FindN(";",$Z$2,ROWS($Z$15:$Z47)-1)+1,FindN(";",$Z$2,ROWS($Z$15:$Z47))-(FindN(";",$Z$2,ROWS($Z$15:$Z47)-1)+1)),"???") -> Ermine | AA47: =IF(Z47="???",0,COUNTIF($G$4:$G$1001,Z47)) -> 10 | AB47: =IF(Z47="???",0,COUNTIF($P$4:$P$1001,Z47)) -> 0 | AC47: =SUM(AA47:AB47) -> 10 | AD47: =IF(Z47="???","???",CONCATENATE(FLOOR(Y46/3600,1),"h ",FLOOR((Y46-FLOOR(Y46/3600,1)*3600)/60,1),"m ",Y46-3600*FLOOR(Y46/3600,1)-60*FLOOR((Y46-FLOOR(Y46/3600,1)*3600)/60,1),"s")) -> 2h 30m 58s | AE47: Steiner | AF47: =IF(Z47="???","???",CONCATENATE(FLOOR(AG46/3600,1),"h ",FLOOR((AG46-FLOOR(AG46/3600,1)*3600)/60,1),"m ",AG46-3600*FLOOR(AG46/3600,1)-60*FLOOR((AG46-FLOOR(AG46/3600,1)*3600)/60,1),"s")) -> 24h 42m 43s | AG47: =IF(Z48="???","???",OCCUR($T$3:$T$1000,Z48,AC48,0,1)+3600) -> 64730 | AH47: Steiner
B48: Jeff-022330 | C48: 02 | D48: 23 | E48: 30 | F48: =IF(G48="?","?",COUNTIF($G$4:$G48,$G48)) -> 2 | G48: Jeff | H48: =IF(R48="??? - N/A ","?",COUNTA($B$4:$B48)) -> 28 | I48: Steiner | J48: 12 | L48: ? | M48: ? | N48: ? | O48: =IF(P48="?","?",COUNTIF($P$4:$P48,$P48)) -> ? | P48: ? | Q48: =IF(R48="??? - N/A ","?",COUNTA($K$4:$K48)) -> 16 | R48: 02:23:30 - Steiner 2 | S48: =IF($T48="N/A",0,COUNTIF($T$4:$T48,$T48)) -> 2 | T48: Jeff | U48: 5010 | V48: =IF($S48>1,U48-OCCUR($T$4:$T48,$T48,COUNTIF($T$4:$T48,$T48)-1,0,1),"N/A") -> 3809 | W48: =IF($T48="N/A","???",IFERROR(CONCATENATE(FLOOR(IF(COUNTIF($T$4:$T48,$T48)<2,0,$U48-OCCUR($T$4:$T48,$T48,$S48-1,0,1))/3600,1),"h ", FLOOR((IF(COUNTIF($T$4:$T48,$T48)<2,0,$U48-OCCUR($T$4:$T48,$T48,$S48-1,0,1))-FLOOR(IF(COUNTIF($T$4:$T48,$T48)<2,0,$U48-OCCUR($T$4:$T48,$T48,$S48-1,0,1))/3600,1)*3600)/60,1), "m ", IF(COUNTIF($T$4:$T48,$T48)<2,0,$U48-OCCUR($T$4:$T48,$T48,$S48-1,0,1))-FLOOR((IF(COUNTIF($T$4:$T48,$T48)<2,0,$U48-OCCUR($T$4:$T48,$T48,$S48-1,0,1))-FLOOR(IF(COUNTIF($T$4:$T48,$T48)<2,0,$U48-OCCUR($T$4:$T48,$T48,$S48-1,0,1))/3600,1)*3600)/60,1)*60-FLOOR(IF(COUNTIF($T$4:$T48,$T48)<2,0,$U48-OCCUR($T$4:$T48,$T48,$S48-1,0,1))/3600,1)*3600, "s"),"???")) -> 1h 3m 29s | X48: 2 | Y48: 6824 | Z48: =IFERROR(MID($Z$2,FindN(";",$Z$2,ROWS($Z$15:$Z48)-1)+1,FindN(";",$Z$2,ROWS($Z$15:$Z48))-(FindN(";",$Z$2,ROWS($Z$15:$Z48)-1)+1)),"???") -> Paul | AA48: 0 | AB48: 5 | AC48: 5 | AD48: 3h 58m 31s | AE48: Lightning | AF48: 17h 58m 50s | AG48: =IF(Z49="???","???",OCCUR($T$3:$T$1000,Z49,AC49,0,1)+3600) -> 68983 | AH48: Steiner
B49: gravy-022348 | C49: 02 | D49: 23 | E49: 48 | F49: =IF(G49="?","?",COUNTIF($G$4:$G49,$G49)) -> 2 | G49: gravy | H49: =IF(R49="??? - N/A ","?",COUNTA($B$4:$B49)) -> 29 | I49: Steiner | J49: 13 | L49: ? | M49: ? | N49: ? | O49: =IF(P49="?","?",COUNTIF($P$4:$P49,$P49)) -> ? | P49: ? | Q49: =IF(R49="??? - N/A ","?",COUNTA($K$4:$K49)) -> 16 | R49: 02:23:48 - Steiner 2 | S49: =IF($T49="N/A",0,COUNTIF($T$4:$T49,$T49)) -> 2 | T49: gravy | U49: 5028 | V49: =IF($S49>1,U49-OCCUR($T$4:$T49,$T49,COUNTIF($T$4:$T49,$T49)-1,0,1),"N/A") -> 3892 | W49: =IF($T49="N/A","???",IFERROR(CONCATENATE(FLOOR(IF(COUNTIF($T$4:$T49,$T49)<2,0,$U49-OCCUR($T$4:$T49,$T49,$S49-1,0,1))/3600,1),"h ", FLOOR((IF(COUNTIF($T$4:$T49,$T49)<2,0,$U49-OCCUR($T$4:$T49,$T49,$S49-1,0,1))-FLOOR(IF(COUNTIF($T$4:$T49,$T49)<2,0,$U49-OCCUR($T$4:$T49,$T49,$S49-1,0,1))/3600,1)*3600)/60,1), "m ", IF(COUNTIF($T$4:$T49,$T49)<2,0,$U49-OCCUR($T$4:$T49,$T49,$S49-1,0,1))-FLOOR((IF(COUNTIF($T$4:$T49,$T49)<2,0,$U49-OCCUR($T$4:$T49,$T49,$S49-1,0,1))-FLOOR(IF(COUNTIF($T$4:$T49,$T49)<2,0,$U49-OCCUR($T$4:$T49,$T49,$S49-1,0,1))/3600,1)*3600)/60,1)*60-FLOOR(IF(COUNTIF($T$4:$T49,$T49)<2,0,$U49-OCCUR($T$4:$T49,$T49,$S49-1,0,1))/3600,1)*3600, "s"),"???")) -> 1h 4m 52s | X49: 3 | Y49: 28462 | Z49: =IFERROR(MID($Z$2,FindN(";",$Z$2,ROWS($Z$15:$Z49)-1)+1,FindN(";",$Z$2,ROWS($Z$15:$Z49))-(FindN(";",$Z$2,ROWS($Z$15:$Z49)-1)+1)),"???") -> Fris | AA49: 10 | AB49: 0 | AC49: 10 | AD49: 1h 53m 44s | AE49: Steiner | AF49: 19h 9m 43s | AG49: =IF(Z50="???","???",OCCUR($T$3:$T$1000,Z50,AC50,0,1)+3600) -> 93178 | AH49: Steiner
B50: Gmun-022523 | C50: 02 | D50: 25 | E50: 23 | F50: =IF(G50="?","?",COUNTIF($G$4:$G50,$G50)) -> 2 | G50: Gmun | H50: =IF(R50="??? - N/A ","?",COUNTA($B$4:$B50)) -> 30 | I50: Steiner | J50: 14 | L50: ? | M50: ? | N50: ? | O50: =IF(P50="?","?",COUNTIF($P$4:$P50,$P50)) -> ? | P50: ? | Q50: =IF(R50="??? - N/A ","?",COUNTA($K$4:$K50)) -> 16 | R50: 02:25:23 - Steiner 2 | S50: =IF($T50="N/A",0,COUNTIF($T$4:$T50,$T50)) -> 2 | T50: Gmun | U50: 5123 | V50: =IF($S50>1,U50-OCCUR($T$4:$T50,$T50,COUNTIF($T$4:$T50,$T50)-1,0,1),"N/A") -> 3627 | W50: =IF($T50="N/A","???",IFERROR(CONCATENATE(FLOOR(IF(COUNTIF($T$4:$T50,$T50)<2,0,$U50-OCCUR($T$4:$T50,$T50,$S50-1,0,1))/3600,1),"h ", FLOOR((IF(COUNTIF($T$4:$T50,$T50)<2,0,$U50-OCCUR($T$4:$T50,$T50,$S50-1,0,1))-FLOOR(IF(COUNTIF($T$4:$T50,$T50)<2,0,$U50-OCCUR($T$4:$T50,$T50,$S50-1,0,1))/3600,1)*3600)/60,1), "m ", IF(COUNTIF($T$4:$T50,$T50)<2,0,$U50-OCCUR($T$4:$T50,$T50,$S50-1,0,1))-FLOOR((IF(COUNTIF($T$4:$T50,$T50)<2,0,$U50-OCCUR($T$4:$T50,$T50,$S50-1,0,1))-FLOOR(IF(COUNTIF($T$4:$T50,$T50)<2,0,$U50-OCCUR($T$4:$T50,$T50,$S50-1,0,1))/3600,1)*3600)/60,1)*60-FLOOR(IF(COUNTIF($T$4:$T50,$T50)<2,0,$U50-OCCUR($T$4:$T50,$T50,$S50-1,0,1))/3600,1)*3600, "s"),"???")) -> 1h 0m 27s | X50: 4 | Y50: 52272 | Z50: =IFERROR(MID($Z$2,FindN(";",$Z$2,ROWS($Z$15:$Z50)-1)+1,FindN(";",$Z$2,ROWS($Z$15:$Z50))-(FindN(";",$Z$2,ROWS($Z$15:$Z50)-1)+1)),"???") -> Nick | AA50: 4 | AB50: 0 | AC50: 4 | AD50: 7h 54m 22s | AE50: Steiner | AF50: 25h 52m 58s | AG50: =IF(Z51="???","???",OCCUR($T$3:$T$1000,Z51,AC51,0,1)+3600) -> 60249 | AH50: Steiner
B51: Janus-022535 | C51: 02 | D51: 25 | E51: 35 | F51: =IF(G51="?","?",COUNTIF($G$4:$G51,$G51)) -> 1 | G51: Janus | H51: =IF(R51="??? - N/A ","?",COUNTA($B$4:$B51)) -> 31 | I51: Steiner | J51: 15 | L51: ? | M51: ? | N51: ? | O51: =IF(P51="?","?",COUNTIF($P$4:$P51,$P51)) -> ? | P51: ? | Q51: =IF(R51="??? - N/A ","?",COUNTA($K$4:$K51)) -> 16 | R51: 02:25:35 - Steiner 1 | S51: =IF($T51="N/A",0,COUNTIF($T$4:$T51,$T51)) -> 1 | T51: Janus | U51: 5135 | V51: =IF($S51>1,U51-OCCUR($T$4:$T51,$T51,COUNTIF($T$4:$T51,$T51)-1,0,1),"N/A") -> N/A | W51: =IF($T51="N/A","???",IFERROR(CONCATENATE(FLOOR(IF(COUNTIF($T$4:$T51,$T51)<2,0,$U51-OCCUR($T$4:$T51,$T51,$S51-1,0,1))/3600,1),"h ", FLOOR((IF(COUNTIF($T$4:$T51,$T51)<2,0,$U51-OCCUR($T$4:$T51,$T51,$S51-1,0,1))-FLOOR(IF(COUNTIF($T$4:$T51,$T51)<2,0,$U51-OCCUR($T$4:$T51,$T51,$S51-1,0,1))/3600,1)*3600)/60,1), "m ", IF(COUNTIF($T$4:$T51,$T51)<2,0,$U51-OCCUR($T$4:$T51,$T51,$S51-1,0,1))-FLOOR((IF(COUNTIF($T$4:$T51,$T51)<2,0,$U51-OCCUR($T$4:$T51,$T51,$S51-1,0,1))-FLOOR(IF(COUNTIF($T$4:$T51,$T51)<2,0,$U51-OCCUR($T$4:$T51,$T51,$S51-1,0,1))/3600,1)*3600)/60,1)*60-FLOOR(IF(COUNTIF($T$4:$T51,$T51)<2,0,$U51-OCCUR($T$4:$T51,$T51,$S51-1,0,1))/3600,1)*3600, "s"),"???")) -> 0h 0m 0s | X51: 5 | Y51: 15084 | Z51: =IFERROR(MID($Z$2,FindN(";",$Z$2,ROWS($Z$15:$Z51)-1)+1,FindN(";",$Z$2,ROWS($Z$15:$Z51))-(FindN(";",$Z$2,ROWS($Z$15:$Z51)-1)+1)),"???") -> paulg | AA51: 2 | AB51: 0 | AC51: 2 | AD51: 14h 31m 12s | AE51: Steiner | AF51: 16h 44m 9s | AG51: =IF(Z52="???","???",OCCUR($T$3:$T$1000,Z52,AC52,0,1)+3600) -> 83870 | AH51: Steiner
C52: ? | D52: ? | E52: ? | F52: =IF(G52="?","?",COUNTIF($G$4:$G52,$G52)) -> ? | G52: ? | H52: =IF(R52="??? - N/A ","?",COUNTA($B$4:$B52)) -> 31 | I52: Steiner | J52: 14 | K52: mnk-022540 | L52: 02 | M52: 25 | N52: 40 | O52: =IF(P52="?","?",COUNTIF($P$4:$P52,$P52)) -> 2 | P52: mnk | Q52: =IF(R52="??? - N/A ","?",COUNTA($K$4:$K52)) -> 17 | R52: 02:25:40 - Lightning 2 | S52: =IF($T52="N/A",0,COUNTIF($T$4:$T52,$T52)) -> 2 | T52: mnk | U52: 5140 | V52: =IF($S52>1,U52-OCCUR($T$4:$T52,$T52,COUNTIF($T$4:$T52,$T52)-1,0,1),"N/A") -> 3749 | W52: =IF($T52="N/A","???",IFERROR(CONCATENATE(FLOOR(IF(COUNTIF($T$4:$T52,$T52)<2,0,$U52-OCCUR($T$4:$T52,$T52,$S52-1,0,1))/3600,1),"h ", FLOOR((IF(COUNTIF($T$4:$T52,$T52)<2,0,$U52-OCCUR($T$4:$T52,$T52,$S52-1,0,1))-FLOOR(IF(COUNTIF($T$4:$T52,$T52)<2,0,$U52-OCCUR($T$4:$T52,$T52,$S52-1,0,1))/3600,1)*3600)/60,1), "m ", IF(COUNTIF($T$4:$T52,$T52)<2,0,$U52-OCCUR($T$4:$T52,$T52,$S52-1,0,1))-FLOOR((IF(COUNTIF($T$4:$T52,$T52)<2,0,$U52-OCCUR($T$4:$T52,$T52,$S52-1,0,1))-FLOOR(IF(COUNTIF($T$4:$T52,$T52)<2,0,$U52-OCCUR($T$4:$T52,$T52,$S52-1,0,1))/3600,1)*3600)/60,1)*60-FLOOR(IF(COUNTIF($T$4:$T52,$T52)<2,0,$U52-OCCUR($T$4:$T52,$T52,$S52-1,0,1))/3600,1)*3600, "s"),"???")) -> 1h 2m 29s | X52: 1 | Y52: 22619 | Z52: =IFERROR(MID($Z$2,FindN(";",$Z$2,ROWS($Z$15:$Z52)-1)+1,FindN(";",$Z$2,ROWS($Z$15:$Z52))-(FindN(";",$Z$2,ROWS($Z$15:$Z52)-1)+1)),"???") -> Arti | AA52: 0 | AB52: 6 | AC52: 6 | AD52: 4h 11m 24s | AE52: Lightning | AF52: 23h 17m 50s | AG52: =IF(Z53="???","???",OCCUR($T$3:$T$1000,Z53,AC53,0,1)+3600) -> 53748 | AH52: Lightning
B53: canada-022626 | C53: 02 | D53: 26 | E53: 26 | F53: =IF(G53="?","?",COUNTIF($G$4:$G53,$G53)) -> 1 | G53: canada | H53: =IF(R53="??? - N/A ","?",COUNTA($B$4:$B53)) -> 32 | I53: Steiner | J53: 15 | L53: ? | M53: ? | N53: ? | O53: =IF(P53="?","?",COUNTIF($P$4:$P53,$P53)) -> ? | P53: ? | Q53: =IF(R53="??? - N/A ","?",COUNTA($K$4:$K53)) -> 17 | R53: 02:26:26 - Steiner 1 | S53: =IF($T53="N/A",0,COUNTIF($T$4:$T53,$T53)) -> 1 | T53: canada | U53: 5186 | V53: =IF($S53>1,U53-OCCUR($T$4:$T53,$T53,COUNTIF($T$4:$T53,$T53)-1,0,1),"N/A") -> N/A | W53: =IF($T53="N/A","???",IFERROR(CONCATENATE(FLOOR(IF(COUNTIF($T$4:$T53,$T53)<2,0,$U53-OCCUR($T$4:$T53,$T53,$S53-1,0,1))/3600,1),"h ", FLOOR((IF(COUNTIF($T$4:$T53,$T53)<2,0,$U53-OCCUR($T$4:$T53,$T53,$S53-1,0,1))-FLOOR(IF(COUNTIF($T$4:$T53,$T53)<2,0,$U53-OCCUR($T$4:$T53,$T53,$S53-1,0,1))/3600,1)*3600)/60,1), "m ", IF(COUNTIF($T$4:$T53,$T53)<2,0,$U53-OCCUR($T$4:$T53,$T53,$S53-1,0,1))-FLOOR((IF(COUNTIF($T$4:$T53,$T53)<2,0,$U53-OCCUR($T$4:$T53,$T53,$S53-1,0,1))-FLOOR(IF(COUNTIF($T$4:$T53,$T53)<2,0,$U53-OCCUR($T$4:$T53,$T53,$S53-1,0,1))/3600,1)*3600)/60,1)*60-FLOOR(IF(COUNTIF($T$4:$T53,$T53)<2,0,$U53-OCCUR($T$4:$T53,$T53,$S53-1,0,1))/3600,1)*3600, "s"),"???")) -> 0h 0m 0s | X53: 1 | Y53: 10238 | Z53: =IFERROR(MID($Z$2,FindN(";",$Z$2,ROWS($Z$15:$Z53)-1)+1,FindN(";",$Z$2,ROWS($Z$15:$Z53))-(FindN(";",$Z$2,ROWS($Z$15:$Z53)-1)+1)),"???") -> JC | AA53: 3 | AB53: 0 | AC53: 3 | AD53: 6h 16m 59s | AE53: Steiner | AF53: 14h 55m 48s | AG53: =IF(Z54="???","???",OCCUR($T$3:$T$1000,Z54,AC54,0,1)+3600) -> 90640 | AH53: Steiner
C54: ? | D54: ? | E54: ? | F54: =IF(G54="?","?",COUNTIF($G$4:$G54,$G54)) -> ? | G54: ? | H54: =IF(R54="??? - N/A ","?",COUNTA($B$4:$B54)) -> 32 | I54: Steiner | J54: 14 | K54: Eddv-022630 | L54: 02 | M54: 26 | N54: 30 | O54: =IF(P54="?","?",COUNTIF($P$4:$P54,$P54)) -> 2 | P54: Eddv | Q54: =IF(R54="??? - N/A ","?",COUNTA($K$4:$K54)) -> 18 | R54: 02:26:30 - Lightning 2 | S54: =IF($T54="N/A",0,COUNTIF($T$4:$T54,$T54)) -> 2 | T54: Eddv | U54: 5190 | V54: =IF($S54>1,U54-OCCUR($T$4:$T54,$T54,COUNTIF($T$4:$T54,$T54)-1,0,1),"N/A") -> 3661 | W54: =IF($T54="N/A","???",IFERROR(CONCATENATE(FLOOR(IF(COUNTIF($T$4:$T54,$T54)<2,0,$U54-OCCUR($T$4:$T54,$T54,$S54-1,0,1))/3600,1),"h ", FLOOR((IF(COUNTIF($T$4:$T54,$T54)<2,0,$U54-OCCUR($T$4:$T54,$T54,$S54-1,0,1))-FLOOR(IF(COUNTIF($T$4:$T54,$T54)<2,0,$U54-OCCUR($T$4:$T54,$T54,$S54-1,0,1))/3600,1)*3600)/60,1), "m ", IF(COUNTIF($T$4:$T54,$T54)<2,0,$U54-OCCUR($T$4:$T54,$T54,$S54-1,0,1))-FLOOR((IF(COUNTIF($T$4:$T54,$T54)<2,0,$U54-OCCUR($T$4:$T54,$T54,$S54-1,0,1))-FLOOR(IF(COUNTIF($T$4:$T54,$T54)<2,0,$U54-OCCUR($T$4:$T54,$T54,$S54-1,0,1))/3600,1)*3600)/60,1)*60-FLOOR(IF(COUNTIF($T$4:$T54,$T54)<2,0,$U54-OCCUR($T$4:$T54,$T54,$S54-1,0,1))/3600,1)*3600, "s"),"???")) -> 1h 1m 1s | X54: 1 | Y54: 13921 | Z54: =IFERROR(MID($Z$2,FindN(";",$Z$2,ROWS($Z$15:$Z54)-1)+1,FindN(";",$Z$2,ROWS($Z$15:$Z54))-(FindN(";",$Z$2,ROWS($Z$15:$Z54)-1)+1)),"???") -> Janus | AA54: 9 | AB54: 0 | AC54: 9 | AD54: 2h 50m 38s | AE54: Steiner | AF54: 25h 10m 40s | AG54: =IF(Z55="???","???",OCCUR($T$3:$T$1000,Z55,AC55,0,1)+3600) -> 92309 | AH54: Lightning
B55: scarlet-022643 | C55: 02 | D55: 26 | E55: 43 | F55: =IF(G55="?","?",COUNTIF($G$4:$G55,$G55)) -> 1 | G55: scarlet | H55: =IF(R55="??? - N/A ","?",COUNTA($B$4:$B55)) -> 33 | I55: Steiner | J55: 15 | L55: ? | M55: ? | N55: ? | O55: =IF(P55="?","?",COUNTIF($P$4:$P55,$P55)) -> ? | P55: ? | Q55: =IF(R55="??? - N/A ","?",COUNTA($K$4:$K55)) -> 18 | R55: 02:26:43 - Steiner 1 | S55: =IF($T55="N/A",0,COUNTIF($T$4:$T55,$T55)) -> 1 | T55: scarlet | U55: 5203 | V55: =IF($S55>1,U55-OCCUR($T$4:$T55,$T55,COUNTIF($T$4:$T55,$T55)-1,0,1),"N/A") -> N/A | W55: =IF($T55="N/A","???",IFERROR(CONCATENATE(FLOOR(IF(COUNTIF($T$4:$T55,$T55)<2,0,$U55-OCCUR($T$4:$T55,$T55,$S55-1,0,1))/3600,1),"h ", FLOOR((IF(COUNTIF($T$4:$T55,$T55)<2,0,$U55-OCCUR($T$4:$T55,$T55,$S55-1,0,1))-FLOOR(IF(COUNTIF($T$4:$T55,$T55)<2,0,$U55-OCCUR($T$4:$T55,$T55,$S55-1,0,1))/3600,1)*3600)/60,1), "m ", IF(COUNTIF($T$4:$T55,$T55)<2,0,$U55-OCCUR($T$4:$T55,$T55,$S55-1,0,1))-FLOOR((IF(COUNTIF($T$4:$T55,$T55)<2,0,$U55-OCCUR($T$4:$T55,$T55,$S55-1,0,1))-FLOOR(IF(COUNTIF($T$4:$T55,$T55)<2,0,$U55-OCCUR($T$4:$T55,$T55,$S55-1,0,1))/3600,1)*3600)/60,1)*60-FLOOR(IF(COUNTIF($T$4:$T55,$T55)<2,0,$U55-OCCUR($T$4:$T55,$T55,$S55-1,0,1))/3600,1)*3600, "s"),"???")) -> 0h 0m 0s | X55: 1 | Y55: 25734 | Z55: =IFERROR(MID($Z$2,FindN(";",$Z$2,ROWS($Z$15:$Z55)-1)+1,FindN(";",$Z$2,ROWS($Z$15:$Z55))-(FindN(";",$Z$2,ROWS($Z$15:$Z55)-1)+1)),"???") -> canada | AA55: 7 | AB55: 0 | AC55: 7 | AD55: 3h 52m 1s | AE55: Steiner | AF55: 25h 38m 29s | AG55: =IF(Z56="???","???",OCCUR($T$3:$T$1000,Z56,AC56,0,1)+3600) -> 60270 | AH55: Steiner
B56: guff-022703 | C56: 02 | D56: 27 | E56: 03 | F56: =IF(G56="?","?",COUNTIF($G$4:$G56,$G56)) -> 2 | G56: guff | H56: =IF(R56="??? - N/A ","?",COUNTA($B$4:$B56)) -> 34 | I56: Steiner | J56: 16 | L56: ? | M56: ? | N56: ? | O56: =IF(P56="?","?",COUNTIF($P$4:$P56,$P56)) -> ? | P56: ? | Q56: =IF(R56="??? - N/A ","?",COUNTA($K$4:$K56)) -> 18 | R56: 02:27:03 - Steiner 2 | S56: =IF($T56="N/A",0,COUNTIF($T$4:$T56,$T56)) -> 2 | T56: guff | U56: 5223 | V56: =IF($S56>1,U56-OCCUR($T$4:$T56,$T56,COUNTIF($T$4:$T56,$T56)-1,0,1),"N/A") -> 3824 | W56: =IF($T56="N/A","???",IFERROR(CONCATENATE(FLOOR(IF(COUNTIF($T$4:$T56,$T56)<2,0,$U56-OCCUR($T$4:$T56,$T56,$S56-1,0,1))/3600,1),"h ", FLOOR((IF(COUNTIF($T$4:$T56,$T56)<2,0,$U56-OCCUR($T$4:$T56,$T56,$S56-1,0,1))-FLOOR(IF(COUNTIF($T$4:$T56,$T56)<2,0,$U56-OCCUR($T$4:$T56,$T56,$S56-1,0,1))/3600,1)*3600)/60,1), "m ", IF(COUNTIF($T$4:$T56,$T56)<2,0,$U56-OCCUR($T$4:$T56,$T56,$S56-1,0,1))-FLOOR((IF(COUNTIF($T$4:$T56,$T56)<2,0,$U56-OCCUR($T$4:$T56,$T56,$S56-1,0,1))-FLOOR(IF(COUNTIF($T$4:$T56,$T56)<2,0,$U56-OCCUR($T$4:$T56,$T56,$S56-1,0,1))/3600,1)*3600)/60,1)*60-FLOOR(IF(COUNTIF($T$4:$T56,$T56)<2,0,$U56-OCCUR($T$4:$T56,$T56,$S56-1,0,1))/3600,1)*3600, "s"),"???")) -> 1h 3m 44s | X56: 2 | Y56: 8695 | Z56: =IFERROR(MID($Z$2,FindN(";",$Z$2,ROWS($Z$15:$Z56)-1)+1,FindN(";",$Z$2,ROWS($Z$15:$Z56))-(FindN(";",$Z$2,ROWS($Z$15:$Z56)-1)+1)),"???") -> scarlet | AA56: 3 | AB56: 0 | AC56: 3 | AD56: 7h 8m 54s | AE56: Steiner | AF56: 16h 44m 30s | AG56: =IF(Z57="???","???",OCCUR($T$3:$T$1000,Z57,AC57,0,1)+3600) -> 87321 | AH56: Steiner
B57: Krack-022707 | C57: 02 | D57: 27 | E57: 07 | F57: =IF(G57="?","?",COUNTIF($G$4:$G57,$G57)) -> 2 | G57: Krack | H57: =IF(R57="??? - N/A ","?",COUNTA($B$4:$B57)) -> 35 | I57: Steiner | J57: 17 | L57: ? | M57: ? | N57: ? | O57: =IF(P57="?","?",COUNTIF($P$4:$P57,$P57)) -> ? | P57: ? | Q57: =IF(R57="??? - N/A ","?",COUNTA($K$4:$K57)) -> 18 | R57: 02:27:07 - Steiner 2 | S57: =IF($T57="N/A",0,COUNTIF($T$4:$T57,$T57)) -> 2 | T57: Krack | U57: 5227 | V57: =IF($S57>1,U57-OCCUR($T$4:$T57,$T57,COUNTIF($T$4:$T57,$T57)-1,0,1),"N/A") -> 3680 | W57: =IF($T57="N/A","???",IFERROR(CONCATENATE(FLOOR(IF(COUNTIF($T$4:$T57,$T57)<2,0,$U57-OCCUR($T$4:$T57,$T57,$S57-1,0,1))/3600,1),"h ", FLOOR((IF(COUNTIF($T$4:$T57,$T57)<2,0,$U57-OCCUR($T$4:$T57,$T57,$S57-1,0,1))-FLOOR(IF(COUNTIF($T$4:$T57,$T57)<2,0,$U57-OCCUR($T$4:$T57,$T57,$S57-1,0,1))/3600,1)*3600)/60,1), "m ", IF(COUNTIF($T$4:$T57,$T57)<2,0,$U57-OCCUR($T$4:$T57,$T57,$S57-1,0,1))-FLOOR((IF(COUNTIF($T$4:$T57,$T57)<2,0,$U57-OCCUR($T$4:$T57,$T57,$S57-1,0,1))-FLOOR(IF(COUNTIF($T$4:$T57,$T57)<2,0,$U57-OCCUR($T$4:$T57,$T57,$S57-1,0,1))/3600,1)*3600)/60,1)*60-FLOOR(IF(COUNTIF($T$4:$T57,$T57)<2,0,$U57-OCCUR($T$4:$T57,$T57,$S57-1,0,1))/3600,1)*3600, "s"),"???")) -> 1h 1m 20s | X57: 3 | Y57: 6949 | Z57: =IFERROR(MID($Z$2,FindN(";",$Z$2,ROWS($Z$15:$Z57)-1)+1,FindN(";",$Z$2,ROWS($Z$15:$Z57))-(FindN(";",$Z$2,ROWS($Z$15:$Z57)-1)+1)),"???") -> Luis | AA57: 0 | AB57: 10 | AC57: 10 | AD57: 2h 24m 55s | AE57: Lightning | AF57: 24h 15m 21s | AG57: =IF(Z58="???","???",OCCUR($T$3:$T$1000,Z58,AC58,0,1)+3600) -> 71645 | AH57: Steiner
B58: Genny-022753 | C58: 02 | D58: 27 | E58: 53 | F58: =IF(G58="?","?",COUNTIF($G$4:$G58,$G58)) -> 2 | G58: Genny | H58: =IF(R58="??? - N/A ","?",COUNTA($B$4:$B58)) -> 36 | I58: Steiner | J58: 18 | L58: ? | M58: ? | N58: ? | O58: =IF(P58="?","?",COUNTIF($P$4:$P58,$P58)) -> ? | P58: ? | Q58: =IF(R58="??? - N/A ","?",COUNTA($K$4:$K58)) -> 18 | R58: 02:27:53 - Steiner 2 | S58: =IF($T58="N/A",0,COUNTIF($T$4:$T58,$T58)) -> 2 | T58: Genny | U58: 5273 | V58: =IF($S58>1,U58-OCCUR($T$4:$T58,$T58,COUNTIF($T$4:$T58,$T58)-1,0,1),"N/A") -> 3615 | W58: =IF($T58="N/A","???",IFERROR(CONCATENATE(FLOOR(IF(COUNTIF($T$4:$T58,$T58)<2,0,$U58-OCCUR($T$4:$T58,$T58,$S58-1,0,1))/3600,1),"h ", FLOOR((IF(COUNTIF($T$4:$T58,$T58)<2,0,$U58-OCCUR($T$4:$T58,$T58,$S58-1,0,1))-FLOOR(IF(COUNTIF($T$4:$T58,$T58)<2,0,$U58-OCCUR($T$4:$T58,$T58,$S58-1,0,1))/3600,1)*3600)/60,1), "m ", IF(COUNTIF($T$4:$T58,$T58)<2,0,$U58-OCCUR($T$4:$T58,$T58,$S58-1,0,1))-FLOOR((IF(COUNTIF($T$4:$T58,$T58)<2,0,$U58-OCCUR($T$4:$T58,$T58,$S58-1,0,1))-FLOOR(IF(COUNTIF($T$4:$T58,$T58)<2,0,$U58-OCCUR($T$4:$T58,$T58,$S58-1,0,1))/3600,1)*3600)/60,1)*60-FLOOR(IF(COUNTIF($T$4:$T58,$T58)<2,0,$U58-OCCUR($T$4:$T58,$T58,$S58-1,0,1))/3600,1)*3600, "s"),"???")) -> 1h 0m 15s | X58: 4 | Y58: 0 | Z58: =IFERROR(MID($Z$2,FindN(";",$Z$2,ROWS($Z$15:$Z58)-1)+1,FindN(";",$Z$2,ROWS($Z$15:$Z58))-(FindN(";",$Z$2,ROWS($Z$15:$Z58)-1)+1)),"???") -> Karo | AA58: 0 | AB58: 10 | AC58: 10 | AD58: 1h 55m 49s | AE58: Lightning | AF58: 19h 54m 5s | AG58: =IF(Z59="???","???",OCCUR($T$3:$T$1000,Z59,AC59,0,1)+3600) -> 9366 | AH58: Steiner
B59: Poka-022832 | C59: 02 | D59: 28 | E59: 32 | F59: =IF(G59="?","?",COUNTIF($G$4:$G59,$G59)) -> 2 | G59: Poka | H59: =IF(R59="??? - N/A ","?",COUNTA($B$4:$B59)) -> 37 | I59: Steiner | J59: 19 | L59: ? | M59: ? | N59: ? | O59: =IF(P59="?","?",COUNTIF($P$4:$P59,$P59)) -> ? | P59: ? | Q59: =IF(R59="??? - N/A ","?",COUNTA($K$4:$K59)) -> 18 | R59: 02:28:32 - Steiner 2 | S59: =IF($T59="N/A",0,COUNTIF($T$4:$T59,$T59)) -> 2 | T59: Poka | U59: 5312 | V59: =IF($S59>1,U59-OCCUR($T$4:$T59,$T59,COUNTIF($T$4:$T59,$T59)-1,0,1),"N/A") -> 3913 | W59: =IF($T59="N/A","???",IFERROR(CONCATENATE(FLOOR(IF(COUNTIF($T$4:$T59,$T59)<2,0,$U59-OCCUR($T$4:$T59,$T59,$S59-1,0,1))/3600,1),"h ", FLOOR((IF(COUNTIF($T$4:$T59,$T59)<2,0,$U59-OCCUR($T$4:$T59,$T59,$S59-1,0,1))-FLOOR(IF(COUNTIF($T$4:$T59,$T59)<2,0,$U59-OCCUR($T$4:$T59,$T59,$S59-1,0,1))/3600,1)*3600)/60,1), "m ", IF(COUNTIF($T$4:$T59,$T59)<2,0,$U59-OCCUR($T$4:$T59,$T59,$S59-1,0,1))-FLOOR((IF(COUNTIF($T$4:$T59,$T59)<2,0,$U59-OCCUR($T$4:$T59,$T59,$S59-1,0,1))-FLOOR(IF(COUNTIF($T$4:$T59,$T59)<2,0,$U59-OCCUR($T$4:$T59,$T59,$S59-1,0,1))/3600,1)*3600)/60,1)*60-FLOOR(IF(COUNTIF($T$4:$T59,$T59)<2,0,$U59-OCCUR($T$4:$T59,$T59,$S59-1,0,1))/3600,1)*3600, "s"),"???")) -> 1h 5m 13s | X59: 5 | Y59: 8099 | Z59: =IFERROR(MID($Z$2,FindN(";",$Z$2,ROWS($Z$15:$Z59)-1)+1,FindN(";",$Z$2,ROWS($Z$15:$Z59))-(FindN(";",$Z$2,ROWS($Z$15:$Z59)-1)+1)),"???") -> Wick | AA59: 0 | AB59: 1 | AC59: 1 | AD59: 0h 0m 0s | AE59: Lightning | AF59: 2h 36m 6s | AG59: =IF(Z60="???","???",OCCUR($T$3:$T$1000,Z60,AC60,0,1)+3600) -> 82585 | AH59: Steiner
C60: ? | D60: ? | E60: ? | F60: =IF(G60="?","?",COUNTIF($G$4:$G60,$G60)) -> ? | G60: ? | H60: =IF(R60="??? - N/A ","?",COUNTA($B$4:$B60)) -> 37 | I60: Steiner | J60: 18 | K60: Luis-023105 | L60: 02 | M60: 31 | N60: 05 | O60: =IF(P60="?","?",COUNTIF($P$4:$P60,$P60)) -> 1 | P60: Luis | Q60: =IF(R60="??? - N/A ","?",COUNTA($K$4:$K60)) -> 19 | R60: 02:31:05 - Lightning 1 | S60: =IF($T60="N/A",0,COUNTIF($T$4:$T60,$T60)) -> 1 | T60: Luis | U60: 5465 | V60: =IF($S60>1,U60-OCCUR($T$4:$T60,$T60,COUNTIF($T$4:$T60,$T60)-1,0,1),"N/A") -> N/A | W60: =IF($T60="N/A","???",IFERROR(CONCATENATE(FLOOR(IF(COUNTIF($T$4:$T60,$T60)<2,0,$U60-OCCUR($T$4:$T60,$T60,$S60-1,0,1))/3600,1),"h ", FLOOR((IF(COUNTIF($T$4:$T60,$T60)<2,0,$U60-OCCUR($T$4:$T60,$T60,$S60-1,0,1))-FLOOR(IF(COUNTIF($T$4:$T60,$T60)<2,0,$U60-OCCUR($T$4:$T60,$T60,$S60-1,0,1))/3600,1)*3600)/60,1), "m ", IF(COUNTIF($T$4:$T60,$T60)<2,0,$U60-OCCUR($T$4:$T60,$T60,$S60-1,0,1))-FLOOR((IF(COUNTIF($T$4:$T60,$T60)<2,0,$U60-OCCUR($T$4:$T60,$T60,$S60-1,0,1))-FLOOR(IF(COUNTIF($T$4:$T60,$T60)<2,0,$U60-OCCUR($T$4:$T60,$T60,$S60-1,0,1))/3600,1)*3600)/60,1)*60-FLOOR(IF(COUNTIF($T$4:$T60,$T60)<2,0,$U60-OCCUR($T$4:$T60,$T60,$S60-1,0,1))/3600,1)*3600, "s"),"???")) -> 0h 0m 0s | X60: 1 | Y60: 22266 | Z60: =IFERROR(MID($Z$2,FindN(";",$Z$2,ROWS($Z$15:$Z60)-1)+1,FindN(";",$Z$2,ROWS($Z$15:$Z60))-(FindN(";",$Z$2,ROWS($Z$15:$Z60)-1)+1)),"???") -> Jesse | AA60: 10 | AB60: 0 | AC60: 10 | AD60: 2h 14m 59s | AE60: Steiner | AF60: 22h 56m 25s | AG60: =IF(Z61="???","???",OCCUR($T$3:$T$1000,Z61,AC61,0,1)+3600) -> 54296 | AH60: Lightning
C61: ? | D61: ? | E61: ? | F61: =IF(G61="?","?",COUNTIF($G$4:$G61,$G61)) -> ? | G61: ? | H61: =IF(R61="??? - N/A ","?",COUNTA($B$4:$B61)) -> 37 | I61: Steiner | J61: 17 | K61: Karo-023145 | L61: 02 | M61: 31 | N61: 45 | O61: =IF(P61="?","?",COUNTIF($P$4:$P61,$P61)) -> 1 | P61: Karo | Q61: =IF(R61="??? - N/A ","?",COUNTA($K$4:$K61)) -> 20 | R61: 02:31:45 - Lightning 1 | S61: =IF($T61="N/A",0,COUNTIF($T$4:$T61,$T61)) -> 1 | T61: Karo | U61: 5505 | V61: =IF($S61>1,U61-OCCUR($T$4:$T61,$T61,COUNTIF($T$4:$T61,$T61)-1,0,1),"N/A") -> N/A | W61: =IF($T61="N/A","???",IFERROR(CONCATENATE(FLOOR(IF(COUNTIF($T$4:$T61,$T61)<2,0,$U61-OCCUR($T$4:$T61,$T61,$S61-1,0,1))/3600,1),"h ", FLOOR((IF(COUNTIF($T$4:$T61,$T61)<2,0,$U61-OCCUR($T$4:$T61,$T61,$S61-1,0,1))-FLOOR(IF(COUNTIF($T$4:$T61,$T61)<2,0,$U61-OCCUR($T$4:$T61,$T61,$S61-1,0,1))/3600,1)*3600)/60,1), "m ", IF(COUNTIF($T$4:$T61,$T61)<2,0,$U61-OCCUR($T$4:$T61,$T61,$S61-1,0,1))-FLOOR((IF(COUNTIF($T$4:$T61,$T61)<2,0,$U61-OCCUR($T$4:$T61,$T61,$S61-1,0,1))-FLOOR(IF(COUNTIF($T$4:$T61,$T61)<2,0,$U61-OCCUR($T$4:$T61,$T61,$S61-1,0,1))/3600,1)*3600)/60,1)*60-FLOOR(IF(COUNTIF($T$4:$T61,$T61)<2,0,$U61-OCCUR($T$4:$T61,$T61,$S61-1,0,1))/3600,1)*3600, "s"),"???")) -> 0h 0m 0s | X61: 2 | Y61: 6991 | Z61: =IFERROR(MID($Z$2,FindN(";",$Z$2,ROWS($Z$15:$Z61)-1)+1,FindN(";",$Z$2,ROWS($Z$15:$Z61))-(FindN(";",$Z$2,ROWS($Z$15:$Z61)-1)+1)),"???") -> Nio | AA61: 0 | AB61: 3 | AC61: 3 | AD61: 6h 11m 6s | AE61: Lightning | AF61: 15h 4m 56s | AG61: =IF(Z62="???","???",OCCUR($T$3:$T$1000,Z62,AC62,0,1)+3600) -> 72788 | AH61: Lightning
C62: ? | D62: ? | E62: ? | F62: =IF(G62="?","?",COUNTIF($G$4:$G62,$G62)) -> ? | G62: ? | H62: =IF(R62="??? - N/A ","?",COUNTA($B$4:$B62)) -> 37 | I62: Steiner | J62: 16 | K62: Wick-023606 | L62: 02 | M62: 36 | N62: 06 | O62: =IF(P62="?","?",COUNTIF($P$4:$P62,$P62)) -> 1 | P62: Wick | Q62: =IF(R62="??? - N/A ","?",COUNTA($K$4:$K62)) -> 21 | R62: 02:36:06 - Lightning 1 | S62: =IF($T62="N/A",0,COUNTIF($T$4:$T62,$T62)) -> 1 | T62: Wick | U62: 5766 | V62: =IF($S62>1,U62-OCCUR($T$4:$T62,$T62,COUNTIF($T$4:$T62,$T62)-1,0,1),"N/A") -> N/A | W62: =IF($T62="N/A","???",IFERROR(CONCATENATE(FLOOR(IF(COUNTIF($T$4:$T62,$T62)<2,0,$U62-OCCUR($T$4:$T62,$T62,$S62-1,0,1))/3600,1),"h ", FLOOR((IF(COUNTIF($T$4:$T62,$T62)<2,0,$U62-OCCUR($T$4:$T62,$T62,$S62-1,0,1))-FLOOR(IF(COUNTIF($T$4:$T62,$T62)<2,0,$U62-OCCUR($T$4:$T62,$T62,$S62-1,0,1))/3600,1)*3600)/60,1), "m ", IF(COUNTIF($T$4:$T62,$T62)<2,0,$U62-OCCUR($T$4:$T62,$T62,$S62-1,0,1))-FLOOR((IF(COUNTIF($T$4:$T62,$T62)<2,0,$U62-OCCUR($T$4:$T62,$T62,$S62-1,0,1))-FLOOR(IF(COUNTIF($T$4:$T62,$T62)<2,0,$U62-OCCUR($T$4:$T62,$T62,$S62-1,0,1))/3600,1)*3600)/60,1)*60-FLOOR(IF(COUNTIF($T$4:$T62,$T62)<2,0,$U62-OCCUR($T$4:$T62,$T62,$S62-1,0,1))/3600,1)*3600, "s"),"???")) -> 0h 0m 0s | X62: 3 | Y62: 10371 | Z62: =IFERROR(MID($Z$2,FindN(";",$Z$2,ROWS($Z$15:$Z62)-1)+1,FindN(";",$Z$2,ROWS($Z$15:$Z62))-(FindN(";",$Z$2,ROWS($Z$15:$Z62)-1)+1)),"???") -> red | AA62: 10 | AB62: 0 | AC62: 10 | AD62: 1h 56m 31s | AE62: Steiner | AF62: 20h 13m 8s | AG62: =IF(Z63="???","???",OCCUR($T$3:$T$1000,Z63,AC63,0,1)+3600) -> 93329 | AH62: Lightning
C63: ? | D63: ? | E63: ? | F63: =IF(G63="?","?",COUNTIF($G$4:$G63,$G63)) -> ? | G63: ? | H63: =IF(R63="??? - N/A ","?",COUNTA($B$4:$B63)) -> 37 | I63: Steiner | J63: 15 | K63: Tangy-023651 | L63: 02 | M63: 36 | N63: 51 | O63: =IF(P63="?","?",COUNTIF($P$4:$P63,$P63)) -> 2 | P63: Tangy | Q63: =IF(R63="??? - N/A ","?",COUNTA($K$4:$K63)) -> 22 | R63: 02:36:51 - Lightning 2 | S63: =IF($T63="N/A",0,COUNTIF($T$4:$T63,$T63)) -> 2 | T63: Tangy | U63: 5811 | V63: =IF($S63>1,U63-OCCUR($T$4:$T63,$T63,COUNTIF($T$4:$T63,$T63)-1,0,1),"N/A") -> 4008 | W63: =IF($T63="N/A","???",IFERROR(CONCATENATE(FLOOR(IF(COUNTIF($T$4:$T63,$T63)<2,0,$U63-OCCUR($T$4:$T63,$T63,$S63-1,0,1))/3600,1),"h ", FLOOR((IF(COUNTIF($T$4:$T63,$T63)<2,0,$U63-OCCUR($T$4:$T63,$T63,$S63-1,0,1))-FLOOR(IF(COUNTIF($T$4:$T63,$T63)<2,0,$U63-OCCUR($T$4:$T63,$T63,$S63-1,0,1))/3600,1)*3600)/60,1), "m ", IF(COUNTIF($T$4:$T63,$T63)<2,0,$U63-OCCUR($T$4:$T63,$T63,$S63-1,0,1))-FLOOR((IF(COUNTIF($T$4:$T63,$T63)<2,0,$U63-OCCUR($T$4:$T63,$T63,$S63-1,0,1))-FLOOR(IF(COUNTIF($T$4:$T63,$T63)<2,0,$U63-OCCUR($T$4:$T63,$T63,$S63-1,0,1))/3600,1)*3600)/60,1)*60-FLOOR(IF(COUNTIF($T$4:$T63,$T63)<2,0,$U63-OCCUR($T$4:$T63,$T63,$S63-1,0,1))/3600,1)*3600, "s"),"???")) -> 1h 6m 48s | X63: 4 | Y63: 0 | Z63: =IFERROR(MID($Z$2,FindN(";",$Z$2,ROWS($Z$15:$Z63)-1)+1,FindN(";",$Z$2,ROWS($Z$15:$Z63))-(FindN(";",$Z$2,ROWS($Z$15:$Z63)-1)+1)),"???") -> Poke | AA63: 8 | AB63: 1 | AC63: 9 | AD63: 2h 52m 51s | AE63: Steiner | AF63: 25h 55m 29s | AG63: =IF(Z64="???","???",OCCUR($T$3:$T$1000,Z64,AC64,0,1)+3600) -> 10386 | AH63: Lightning
C64: ? | D64: ? | E64: ? | F64: =IF(G64="?","?",COUNTIF($G$4:$G64,$G64)) -> ? | G64: ? | H64: =IF(R64="??? - N/A ","?",COUNTA($B$4:$B64)) -> 37 | I64: Steiner | J64: 14 | K64: swordz-023923 | L64: 02 | M64: 39 | N64: 23 | O64: =IF(P64="?","?",COUNTIF($P$4:$P64,$P64)) -> 2 | P64: swordz | Q64: =IF(R64="??? - N/A ","?",COUNTA($K$4:$K64)) -> 23 | R64: 02:39:23 - Lightning 2 | S64: =IF($T64="N/A",0,COUNTIF($T$4:$T64,$T64)) -> 2 | T64: swordz | U64: 5963 | V64: =IF($S64>1,U64-OCCUR($T$4:$T64,$T64,COUNTIF($T$4:$T64,$T64)-1,0,1),"N/A") -> 4497 | W64: =IF($T64="N/A","???",IFERROR(CONCATENATE(FLOOR(IF(COUNTIF($T$4:$T64,$T64)<2,0,$U64-OCCUR($T$4:$T64,$T64,$S64-1,0,1))/3600,1),"h ", FLOOR((IF(COUNTIF($T$4:$T64,$T64)<2,0,$U64-OCCUR($T$4:$T64,$T64,$S64-1,0,1))-FLOOR(IF(COUNTIF($T$4:$T64,$T64)<2,0,$U64-OCCUR($T$4:$T64,$T64,$S64-1,0,1))/3600,1)*3600)/60,1), "m ", IF(COUNTIF($T$4:$T64,$T64)<2,0,$U64-OCCUR($T$4:$T64,$T64,$S64-1,0,1))-FLOOR((IF(COUNTIF($T$4:$T64,$T64)<2,0,$U64-OCCUR($T$4:$T64,$T64,$S64-1,0,1))-FLOOR(IF(COUNTIF($T$4:$T64,$T64)<2,0,$U64-OCCUR($T$4:$T64,$T64,$S64-1,0,1))/3600,1)*3600)/60,1)*60-FLOOR(IF(COUNTIF($T$4:$T64,$T64)<2,0,$U64-OCCUR($T$4:$T64,$T64,$S64-1,0,1))/3600,1)*3600, "s"),"???")) -> 1h 14m 57s | X64: 5 | Y64: 0 | Z64: =IFERROR(MID($Z$2,FindN(";",$Z$2,ROWS($Z$15:$Z64)-1)+1,FindN(";",$Z$2,ROWS($Z$15:$Z64))-(FindN(";",$Z$2,ROWS($Z$15:$Z64)-1)+1)),"???") -> Brohan | AA64: 1 | AB64: 0 | AC64: 1 | AD64: 0h 0m 0s | AE64: Steiner | AF64: 2h 53m 6s | AG64: =IF(Z65="???","???",OCCUR($T$3:$T$1000,Z65,AC65,0,1)+3600) -> 11060 | AH64: Lightning
B65: MWC-024007 | C65: 02 | D65: 40 | E65: 07 | F65: =IF(G65="?","?",COUNTIF($G$4:$G65,$G65)) -> 2 | G65: MWC | H65: =IF(R65="??? - N/A ","?",COUNTA($B$4:$B65)) -> 38 | I65: Steiner | J65: 15 | L65: ? | M65: ? | N65: ? | O65: =IF(P65="?","?",COUNTIF($P$4:$P65,$P65)) -> ? | P65: ? | Q65: =IF(R65="??? - N/A ","?",COUNTA($K$4:$K65)) -> 23 | R65: 02:40:07 - Steiner 2 | S65: =IF($T65="N/A",0,COUNTIF($T$4:$T65,$T65)) -> 2 | T65: MWC | U65: 6007 | V65: =IF($S65>1,U65-OCCUR($T$4:$T65,$T65,COUNTIF($T$4:$T65,$T65)-1,0,1),"N/A") -> 3960 | W65: =IF($T65="N/A","???",IFERROR(CONCATENATE(FLOOR(IF(COUNTIF($T$4:$T65,$T65)<2,0,$U65-OCCUR($T$4:$T65,$T65,$S65-1,0,1))/3600,1),"h ", FLOOR((IF(COUNTIF($T$4:$T65,$T65)<2,0,$U65-OCCUR($T$4:$T65,$T65,$S65-1,0,1))-FLOOR(IF(COUNTIF($T$4:$T65,$T65)<2,0,$U65-OCCUR($T$4:$T65,$T65,$S65-1,0,1))/3600,1)*3600)/60,1), "m ", IF(COUNTIF($T$4:$T65,$T65)<2,0,$U65-OCCUR($T$4:$T65,$T65,$S65-1,0,1))-FLOOR((IF(COUNTIF($T$4:$T65,$T65)<2,0,$U65-OCCUR($T$4:$T65,$T65,$S65-1,0,1))-FLOOR(IF(COUNTIF($T$4:$T65,$T65)<2,0,$U65-OCCUR($T$4:$T65,$T65,$S65-1,0,1))/3600,1)*3600)/60,1)*60-FLOOR(IF(COUNTIF($T$4:$T65,$T65)<2,0,$U65-OCCUR($T$4:$T65,$T65,$S65-1,0,1))/3600,1)*3600, "s"),"???")) -> 1h 6m 0s | X65: 1 | Y65: 5794 | Z65: =IFERROR(MID($Z$2,FindN(";",$Z$2,ROWS($Z$15:$Z65)-1)+1,FindN(";",$Z$2,ROWS($Z$15:$Z65))-(FindN(";",$Z$2,ROWS($Z$15:$Z65)-1)+1)),"???") -> darkx | AA65: 0 | AB65: 1 | AC65: 1 | AD65: 0h 0m 0s | AE65: Lightning | AF65: 3h 4m 20s | AG65: =IF(Z66="???","???",OCCUR($T$3:$T$1000,Z66,AC66,0,1)+3600) -> 57941 | AH65: Steiner
B66: leo3-024116 | C66: 02 | D66: 41 | E66: 16 | F66: =IF(G66="?","?",COUNTIF($G$4:$G66,$G66)) -> 2 | G66: leo3 | H66: =IF(R66="??? - N/A ","?",COUNTA($B$4:$B66)) -> 39 | I66: Steiner | J66: 16 | L66: ? | M66: ? | N66: ? | O66: =IF(P66="?","?",COUNTIF($P$4:$P66,$P66)) -> ? | P66: ? | Q66: =IF(R66="??? - N/A ","?",COUNTA($K$4:$K66)) -> 23 | R66: 02:41:16 - Steiner 2 | S66: =IF($T66="N/A",0,COUNTIF($T$4:$T66,$T66)) -> 2 | T66: leo3 | U66: 6076 | V66: =IF($S66>1,U66-OCCUR($T$4:$T66,$T66,COUNTIF($T$4:$T66,$T66)-1,0,1),"N/A") -> 3632 | W66: =IF($T66="N/A","???",IFERROR(CONCATENATE(FLOOR(IF(COUNTIF($T$4:$T66,$T66)<2,0,$U66-OCCUR($T$4:$T66,$T66,$S66-1,0,1))/3600,1),"h ", FLOOR((IF(COUNTIF($T$4:$T66,$T66)<2,0,$U66-OCCUR($T$4:$T66,$T66,$S66-1,0,1))-FLOOR(IF(COUNTIF($T$4:$T66,$T66)<2,0,$U66-OCCUR($T$4:$T66,$T66,$S66-1,0,1))/3600,1)*3600)/60,1), "m ", IF(COUNTIF($T$4:$T66,$T66)<2,0,$U66-OCCUR($T$4:$T66,$T66,$S66-1,0,1))-FLOOR((IF(COUNTIF($T$4:$T66,$T66)<2,0,$U66-OCCUR($T$4:$T66,$T66,$S66-1,0,1))-FLOOR(IF(COUNTIF($T$4:$T66,$T66)<2,0,$U66-OCCUR($T$4:$T66,$T66,$S66-1,0,1))/3600,1)*3600)/60,1)*60-FLOOR(IF(COUNTIF($T$4:$T66,$T66)<2,0,$U66-OCCUR($T$4:$T66,$T66,$S66-1,0,1))/3600,1)*3600, "s"),"???")) -> 1h 0m 32s | X66: 2 | Y66: 18615 | Z66: =IFERROR(MID($Z$2,FindN(";",$Z$2,ROWS($Z$15:$Z66)-1)+1,FindN(";",$Z$2,ROWS($Z$15:$Z66))-(FindN(";",$Z$2,ROWS($Z$15:$Z66)-1)+1)),"???") -> Laus | AA66: 9 | AB66: 0 | AC66: 9 | AD66: 1h 36m 34s | AE66: Steiner | AF66: 16h 5m 41s | AG66: =IF(Z67="???","???",OCCUR($T$3:$T$1000,Z67,AC67,0,1)+3600) -> 86958 | AH66: Steiner
B67: Jesse-024134 | C67: 02 | D67: 41 | E67: 34 | F67: =IF(G67="?","?",COUNTIF($G$4:$G67,$G67)) -> 1 | G67: Jesse | H67: =IF(R67="??? - N/A ","?",COUNTA($B$4:$B67)) -> 40 | I67: Steiner | J67: 17 | L67: ? | M67: ? | N67: ? | O67: =IF(P67="?","?",COUNTIF($P$4:$P67,$P67)) -> ? | P67: ? | Q67: =IF(R67="??? - N/A ","?",COUNTA($K$4:$K67)) -> 23 | R67: 02:41:34 - Steiner 1 | S67: =IF($T67="N/A",0,COUNTIF($T$4:$T67,$T67)) -> 1 | T67: Jesse | U67: 6094 | V67: =IF($S67>1,U67-OCCUR($T$4:$T67,$T67,COUNTIF($T$4:$T67,$T67)-1,0,1),"N/A") -> N/A | W67: =IF($T67="N/A","???",IFERROR(CONCATENATE(FLOOR(IF(COUNTIF($T$4:$T67,$T67)<2,0,$U67-OCCUR($T$4:$T67,$T67,$S67-1,0,1))/3600,1),"h ", FLOOR((IF(COUNTIF($T$4:$T67,$T67)<2,0,$U67-OCCUR($T$4:$T67,$T67,$S67-1,0,1))-FLOOR(IF(COUNTIF($T$4:$T67,$T67)<2,0,$U67-OCCUR($T$4:$T67,$T67,$S67-1,0,1))/3600,1)*3600)/60,1), "m ", IF(COUNTIF($T$4:$T67,$T67)<2,0,$U67-OCCUR($T$4:$T67,$T67,$S67-1,0,1))-FLOOR((IF(COUNTIF($T$4:$T67,$T67)<2,0,$U67-OCCUR($T$4:$T67,$T67,$S67-1,0,1))-FLOOR(IF(COUNTIF($T$4:$T67,$T67)<2,0,$U67-OCCUR($T$4:$T67,$T67,$S67-1,0,1))/3600,1)*3600)/60,1)*60-FLOOR(IF(COUNTIF($T$4:$T67,$T67)<2,0,$U67-OCCUR($T$4:$T67,$T67,$S67-1,0,1))/3600,1)*3600, "s"),"???")) -> 0h 0m 0s | X67: 3 | Y67: 25358 | Z67: =IFERROR(MID($Z$2,FindN(";",$Z$2,ROWS($Z$15:$Z67)-1)+1,FindN(";",$Z$2,ROWS($Z$15:$Z67))-(FindN(";",$Z$2,ROWS($Z$15:$Z67)-1)+1)),"???") -> Wedge | AA67: 5 | AB67: 0 | AC67: 5 | AD67: 5h 10m 15s | AE67: Steiner | AF67: 24h 9m 18s | AG67: =IF(Z68="???","???",OCCUR($T$3:$T$1000,Z68,AC68,0,1)+3600) -> 65710 | AH67: Steiner
B68: Reg-024234 | C68: =IFERROR(MID($B68,FIND("-",$B68,1)+1,2),"?") -> 02 | D68: =IFERROR(MID($B68,FIND("-",$B68,1)+3,2),"?") -> 42 | E68: =IFERROR(MID($B68,FIND("-",$B68,1)+5,2),"?") -> 34 | F68: =IF(G68="?","?",COUNTIF($G$4:$G68,$G68)) -> 2 | G68: =IFERROR(MID($B68,1,FIND("-",$B68,1)-1),"?") -> Reg | H68: =IF(R68="??? - N/A ","?",COUNTA($B$4:$B68)) -> 41 | I68: =IF(R68="??? - N/A ","?",IF(H68=Q68,"TIE",IF(H68>Q68,$B$2,$K$2))) -> Steiner | J68: =IF(R68="??? - N/A ","?",ABS(H68-Q68)) -> 18 | L68: =IFERROR(MID($K68,FIND("-",$K68,1)+1,2),"?") -> ? | M68: =IFERROR(MID($K68,FIND("-",$K68,1)+3,2),"?") -> ? | N68: =IFERROR(MID($K68,FIND("-",$K68,1)+5,2),"?") -> ? | O68: =IF(P68="?","?",COUNTIF($P$4:$P68,$P68)) -> ? | P68: =IFERROR(MID($K68,1,FIND("-",$K68,1)-1),"?") -> ? | Q68: =IF(R68="??? - N/A ","?",COUNTA($K$4:$K68)) -> 23 | R68: 02:42:34 - Steiner 2 | S68: =IF($T68="N/A",0,COUNTIF($T$4:$T68,$T68)) -> 2 | T68: =IF(LEN(B68)>0,G68,IF(LEN(K68)>0,P68,"N/A")) -> Reg | U68: 6154 | V68: =IF($S68>1,U68-OCCUR($T$4:$T68,$T68,COUNTIF($T$4:$T68,$T68)-1,0,1),"N/A") -> 4612 | W68: =IF($T68="N/A","???",IFERROR(CONCATENATE(FLOOR(IF(COUNTIF($T$4:$T68,$T68)<2,0,$U68-OCCUR($T$4:$T68,$T68,$S68-1,0,1))/3600,1),"h ", FLOOR((IF(COUNTIF($T$4:$T68,$T68)<2,0,$U68-OCCUR($T$4:$T68,$T68,$S68-1,0,1))-FLOOR(IF(COUNTIF($T$4:$T68,$T68)<2,0,$U68-OCCUR($T$4:$T68,$T68,$S68-1,0,1))/3600,1)*3600)/60,1), "m ", IF(COUNTIF($T$4:$T68,$T68)<2,0,$U68-OCCUR($T$4:$T68,$T68,$S68-1,0,1))-FLOOR((IF(COUNTIF($T$4:$T68,$T68)<2,0,$U68-OCCUR($T$4:$T68,$T68,$S68-1,0,1))-FLOOR(IF(COUNTIF($T$4:$T68,$T68)<2,0,$U68-OCCUR($T$4:$T68,$T68,$S68-1,0,1))/3600,1)*3600)/60,1)*60-FLOOR(IF(COUNTIF($T$4:$T68,$T68)<2,0,$U68-OCCUR($T$4:$T68,$T68,$S68-1,0,1))/3600,1)*3600, "s"),"???")) -> 1h 16m 52s | X68: 4 | Y68: 13177 | Z68: =IFERROR(MID($Z$2,FindN(";",$Z$2,ROWS($Z$15:$Z68)-1)+1,FindN(";",$Z$2,ROWS($Z$15:$Z68))-(FindN(";",$Z$2,ROWS($Z$15:$Z68)-1)+1)),"???") -> kbm | AA68: 3 | AB68: 0 | AC68: 3 | AD68: 7h 2m 38s | AE68: Steiner | AF68: 18h 15m 10s | AG68: =IF(Z69="???","???",OCCUR($T$3:$T$1000,Z69,AC69,0,1)+3600) -> 94968 | AH68: Steiner
C69: ? | D69: ? | E69: ? | F69: =IF(G69="?","?",COUNTIF($G$4:$G69,$G69)) -> ? | G69: ? | H69: =IF(R69="??? - N/A ","?",COUNTA($B$4:$B69)) -> 41 | I69: Steiner | J69: 17 | K69: Nio-024245 | L69: 02 | M69: 42 | N69: 45 | O69: =IF(P69="?","?",COUNTIF($P$4:$P69,$P69)) -> 1 | P69: Nio | Q69: =IF(R69="??? - N/A ","?",COUNTA($K$4:$K69)) -> 24 | R69: =CONCATENATE(IF(LEN(B69)>0,CONCATENATE(C69,":",D69,":",E69),IF(LEN(K69)>0,CONCATENATE(L69,":",M69,":",N69),"???"))," - ",IF(LEN(B69)>0,"Steiner",IF(LEN(K69)>0,"Lightning","N/A"))," ", IF(LEN(B69)>0,F69,IF(LEN(K69)>0,O69,"")) ) -> 02:42:45 - Lightning 1 | S69: =IF($T69="N/A",0,COUNTIF($T$4:$T69,$T69)) -> 1 | T69: Nio | U69: =IF(LEN(B69)>0,($E69+60*$D69+3600*($C69-1)),IF(LEN(K69)>0,$N69+60*$M69+3600*($L69-1),"???")) -> 6165 | V69: =IF($S69>1,U69-OCCUR($T$4:$T69,$T69,COUNTIF($T$4:$T69,$T69)-1,0,1),"N/A") -> N/A | W69: =IF($T69="N/A","???",IFERROR(CONCATENATE(FLOOR(IF(COUNTIF($T$4:$T69,$T69)<2,0,$U69-OCCUR($T$4:$T69,$T69,$S69-1,0,1))/3600,1),"h ", FLOOR((IF(COUNTIF($T$4:$T69,$T69)<2,0,$U69-OCCUR($T$4:$T69,$T69,$S69-1,0,1))-FLOOR(IF(COUNTIF($T$4:$T69,$T69)<2,0,$U69-OCCUR($T$4:$T69,$T69,$S69-1,0,1))/3600,1)*3600)/60,1), "m ", IF(COUNTIF($T$4:$T69,$T69)<2,0,$U69-OCCUR($T$4:$T69,$T69,$S69-1,0,1))-FLOOR((IF(COUNTIF($T$4:$T69,$T69)<2,0,$U69-OCCUR($T$4:$T69,$T69,$S69-1,0,1))-FLOOR(IF(COUNTIF($T$4:$T69,$T69)<2,0,$U69-OCCUR($T$4:$T69,$T69,$S69-1,0,1))/3600,1)*3600)/60,1)*60-FLOOR(IF(COUNTIF($T$4:$T69,$T69)<2,0,$U69-OCCUR($T$4:$T69,$T69,$S69-1,0,1))/3600,1)*3600, "s"),"???")) -> 0h 0m 0s | X69: 1 | Y69: 20372 | Z69: =IFERROR(MID($Z$2,FindN(";",$Z$2,ROWS($Z$15:$Z69)-1)+1,FindN(";",$Z$2,ROWS($Z$15:$Z69))-(FindN(";",$Z$2,ROWS($Z$15:$Z69)-1)+1)),"???") -> FBike | AA69: 7 | AB69: 0 | AC69: 7 | AD69: 3h 39m 37s | AE69: Steiner | AF69: 26h 22m 48s | AG69: =IF(Z70="???","???",OCCUR($T$3:$T$1000,Z70,AC70,0,1)+3600) -> 79775 | AH69: =IF(ISNUMBER(FIND("Steiner",R69)),"Steiner",IF(ISNUMBER(FIND("Lightning",R69)),"Lightning","???")) -> Lightning
C70: ? | D70: ? | E70: ? | F70: =IF(G70="?","?",COUNTIF($G$4:$G70,$G70)) -> ? | G70: ? | H70: =IF(R70="??? - N/A ","?",COUNTA($B$4:$B70)) -> 41 | I70: Steiner | J70: 16 | K70: Yankee-024425 | L70: 02 | M70: 44 | N70: 25 | O70: =IF(P70="?","?",COUNTIF($P$4:$P70,$P70)) -> 2 | P70: Yankee | Q70: =IF(R70="??? - N/A ","?",COUNTA($K$4:$K70)) -> 25 | R70: 02:44:25 - Lightning 2 | S70: =IF($T70="N/A",0,COUNTIF($T$4:$T70,$T70)) -> 2 | T70: Yankee | U70: 6265 | V70: =IF($S70>1,U70-OCCUR($T$4:$T70,$T70,COUNTIF($T$4:$T70,$T70)-1,0,1),"N/A") -> 4581 | W70: =IF($T70="N/A","???",IFERROR(CONCATENATE(FLOOR(IF(COUNTIF($T$4:$T70,$T70)<2,0,$U70-OCCUR($T$4:$T70,$T70,$S70-1,0,1))/3600,1),"h ", FLOOR((IF(COUNTIF($T$4:$T70,$T70)<2,0,$U70-OCCUR($T$4:$T70,$T70,$S70-1,0,1))-FLOOR(IF(COUNTIF($T$4:$T70,$T70)<2,0,$U70-OCCUR($T$4:$T70,$T70,$S70-1,0,1))/3600,1)*3600)/60,1), "m ", IF(COUNTIF($T$4:$T70,$T70)<2,0,$U70-OCCUR($T$4:$T70,$T70,$S70-1,0,1))-FLOOR((IF(COUNTIF($T$4:$T70,$T70)<2,0,$U70-OCCUR($T$4:$T70,$T70,$S70-1,0,1))-FLOOR(IF(COUNTIF($T$4:$T70,$T70)<2,0,$U70-OCCUR($T$4:$T70,$T70,$S70-1,0,1))/3600,1)*3600)/60,1)*60-FLOOR(IF(COUNTIF($T$4:$T70,$T70)<2,0,$U70-OCCUR($T$4:$T70,$T70,$S70-1,0,1))/3600,1)*3600, "s"),"???")) -> 1h 16m 21s | X70: 2 | Y70: 17143 | Z70: =IFERROR(MID($Z$2,FindN(";",$Z$2,ROWS($Z$15:$Z70)-1)+1,FindN(";",$Z$2,ROWS($Z$15:$Z70))-(FindN(";",$Z$2,ROWS($Z$15:$Z70)-1)+1)),"???") -> Kate | AA70: 0 | AB70: 4 | AC70: 4 | AD70: 5h 39m 32s | AE70: Lightning | AF70: 22h 9m 35s | AG70: =IF(Z71="???","???",OCCUR($T$3:$T$1000,Z71,AC71,0,1)+3600) -> 71079 | AH70: Lightning
B71: red-024432 | C71: 02 | D71: 44 | E71: 32 | F71: =IF(G71="?","?",COUNTIF($G$4:$G71,$G71)) -> 1 | G71: red | H71: =IF(R71="??? - N/A ","?",COUNTA($B$4:$B71)) -> 42 | I71: Steiner | J71: 17 | L71: ? | M71: ? | N71: ? | O71: =IF(P71="?","?",COUNTIF($P$4:$P71,$P71)) -> ? | P71: ? | Q71: =IF(R71="??? - N/A ","?",COUNTA($K$4:$K71)) -> 25 | R71: 02:44:32 - Steiner 1 | S71: =IF($T71="N/A",0,COUNTIF($T$4:$T71,$T71)) -> 1 | T71: red | U71: 6272 | V71: =IF($S71>1,U71-OCCUR($T$4:$T71,$T71,COUNTIF($T$4:$T71,$T71)-1,0,1),"N/A") -> N/A | W71: =IF($T71="N/A","???",IFERROR(CONCATENATE(FLOOR(IF(COUNTIF($T$4:$T71,$T71)<2,0,$U71-OCCUR($T$4:$T71,$T71,$S71-1,0,1))/3600,1),"h ", FLOOR((IF(COUNTIF($T$4:$T71,$T71)<2,0,$U71-OCCUR($T$4:$T71,$T71,$S71-1,0,1))-FLOOR(IF(COUNTIF($T$4:$T71,$T71)<2,0,$U71-OCCUR($T$4:$T71,$T71,$S71-1,0,1))/3600,1)*3600)/60,1), "m ", IF(COUNTIF($T$4:$T71,$T71)<2,0,$U71-OCCUR($T$4:$T71,$T71,$S71-1,0,1))-FLOOR((IF(COUNTIF($T$4:$T71,$T71)<2,0,$U71-OCCUR($T$4:$T71,$T71,$S71-1,0,1))-FLOOR(IF(COUNTIF($T$4:$T71,$T71)<2,0,$U71-OCCUR($T$4:$T71,$T71,$S71-1,0,1))/3600,1)*3600)/60,1)*60-FLOOR(IF(COUNTIF($T$4:$T71,$T71)<2,0,$U71-OCCUR($T$4:$T71,$T71,$S71-1,0,1))/3600,1)*3600, "s"),"???")) -> 0h 0m 0s | X71: =IF(T71="N/A","N/A",IF(MID(R71,12,5)=MID(R70,12,5),X70+1,1)) -> 1 | Y71: 8370 | Z71: =IFERROR(MID($Z$2,FindN(";",$Z$2,ROWS($Z$15:$Z71)-1)+1,FindN(";",$Z$2,ROWS($Z$15:$Z71))-(FindN(";",$Z$2,ROWS($Z$15:$Z71)-1)+1)),"???") -> Denzo | AA71: 0 | AB71: 4 | AC71: 4 | AD71: 4h 45m 43s | AE71: Lightning | AF71: 19h 44m 39s | AG71: =IF(Z72="???","???",OCCUR($T$3:$T$1000,Z72,AC72,0,1)+3600) -> 95370 | AH71: Steiner
B72: Ultros-024915 | C72: 02 | D72: 49 | E72: 15 | F72: =IF(G72="?","?",COUNTIF($G$4:$G72,$G72)) -> 2 | G72: Ultros | H72: =IF(R72="??? - N/A ","?",COUNTA($B$4:$B72)) -> 43 | I72: Steiner | J72: 18 | L72: ? | M72: ? | N72: ? | O72: =IF(P72="?","?",COUNTIF($P$4:$P72,$P72)) -> ? | P72: ? | Q72: =IF(R72="??? - N/A ","?",COUNTA($K$4:$K72)) -> 25 | R72: 02:49:15 - Steiner 2 | S72: =IF($T72="N/A",0,COUNTIF($T$4:$T72,$T72)) -> 2 | T72: Ultros | U72: 6555 | V72: =IF($S72>1,U72-OCCUR($T$4:$T72,$T72,COUNTIF($T$4:$T72,$T72)-1,0,1),"N/A") -> 4484 | W72: =IF($T72="N/A","???",IFERROR(CONCATENATE(FLOOR(IF(COUNTIF($T$4:$T72,$T72)<2,0,$U72-OCCUR($T$4:$T72,$T72,$S72-1,0,1))/3600,1),"h ", FLOOR((IF(COUNTIF($T$4:$T72,$T72)<2,0,$U72-OCCUR($T$4:$T72,$T72,$S72-1,0,1))-FLOOR(IF(COUNTIF($T$4:$T72,$T72)<2,0,$U72-OCCUR($T$4:$T72,$T72,$S72-1,0,1))/3600,1)*3600)/60,1), "m ", IF(COUNTIF($T$4:$T72,$T72)<2,0,$U72-OCCUR($T$4:$T72,$T72,$S72-1,0,1))-FLOOR((IF(COUNTIF($T$4:$T72,$T72)<2,0,$U72-OCCUR($T$4:$T72,$T72,$S72-1,0,1))-FLOOR(IF(COUNTIF($T$4:$T72,$T72)<2,0,$U72-OCCUR($T$4:$T72,$T72,$S72-1,0,1))/3600,1)*3600)/60,1)*60-FLOOR(IF(COUNTIF($T$4:$T72,$T72)<2,0,$U72-OCCUR($T$4:$T72,$T72,$S72-1,0,1))/3600,1)*3600, "s"),"???")) -> 1h 14m 44s | X72: 2 | Y72: 5902 | Z72: =IFERROR(MID($Z$2,FindN(";",$Z$2,ROWS($Z$15:$Z72)-1)+1,FindN(";",$Z$2,ROWS($Z$15:$Z72))-(FindN(";",$Z$2,ROWS($Z$15:$Z72)-1)+1)),"???") -> Nanis | AA72: 10 | AB72: 0 | AC72: 10 | AD72: 2h 19m 30s | AE72: Steiner | AF72: 26h 29m 30s | AG72: =IF(Z73="???","???",OCCUR($T$3:$T$1000,Z73,AC73,0,1)+3600) -> 73449 | AH72: Steiner
B73: Sanity-024930 | C73: 02 | D73: 49 | E73: 30 | F73: =IF(G73="?","?",COUNTIF($G$4:$G73,$G73)) -> 2 | G73: Sanity | H73: =IF(R73="??? - N/A ","?",COUNTA($B$4:$B73)) -> 44 | I73: Steiner | J73: 19 | L73: ? | M73: ? | N73: ? | O73: =IF(P73="?","?",COUNTIF($P$4:$P73,$P73)) -> ? | P73: ? | Q73: =IF(R73="??? - N/A ","?",COUNTA($K$4:$K73)) -> 25 | R73: 02:49:30 - Steiner 2 | S73: =IF($T73="N/A",0,COUNTIF($T$4:$T73,$T73)) -> 2 | T73: Sanity | U73: 6570 | V73: =IF($S73>1,U73-OCCUR($T$4:$T73,$T73,COUNTIF($T$4:$T73,$T73)-1,0,1),"N/A") -> 3655 | W73: =IF($T73="N/A","???",IFERROR(CONCATENATE(FLOOR(IF(COUNTIF($T$4:$T73,$T73)<2,0,$U73-OCCUR($T$4:$T73,$T73,$S73-1,0,1))/3600,1),"h ", FLOOR((IF(COUNTIF($T$4:$T73,$T73)<2,0,$U73-OCCUR($T$4:$T73,$T73,$S73-1,0,1))-FLOOR(IF(COUNTIF($T$4:$T73,$T73)<2,0,$U73-OCCUR($T$4:$T73,$T73,$S73-1,0,1))/3600,1)*3600)/60,1), "m ", IF(COUNTIF($T$4:$T73,$T73)<2,0,$U73-OCCUR($T$4:$T73,$T73,$S73-1,0,1))-FLOOR((IF(COUNTIF($T$4:$T73,$T73)<2,0,$U73-OCCUR($T$4:$T73,$T73,$S73-1,0,1))-FLOOR(IF(COUNTIF($T$4:$T73,$T73)<2,0,$U73-OCCUR($T$4:$T73,$T73,$S73-1,0,1))/3600,1)*3600)/60,1)*60-FLOOR(IF(COUNTIF($T$4:$T73,$T73)<2,0,$U73-OCCUR($T$4:$T73,$T73,$S73-1,0,1))/3600,1)*3600, "s"),"???")) -> 1h 0m 55s | X73: 3 | Y73: 11761 | Z73: =IFERROR(MID($Z$2,FindN(";",$Z$2,ROWS($Z$15:$Z73)-1)+1,FindN(";",$Z$2,ROWS($Z$15:$Z73))-(FindN(";",$Z$2,ROWS($Z$15:$Z73)-1)+1)),"???") -> voltch | AA73: 0 | AB73: 10 | AC73: 10 | AD73: 1h 38m 22s | AE73: Lightning | AF73: 20h 24m 9s | AG73: =IF(Z74="???","???",OCCUR($T$3:$T$1000,Z74,AC74,0,1)+3600) -> 69582 | AH73: Steiner
B74: barrel-025005 | C74: 02 | D74: 50 | E74: 05 | F74: =IF(G74="?","?",COUNTIF($G$4:$G74,$G74)) -> 2 | G74: barrel | H74: =IF(R74="??? - N/A ","?",COUNTA($B$4:$B74)) -> 45 | I74: Steiner | J74: 20 | L74: ? | M74: ? | N74: ? | O74: =IF(P74="?","?",COUNTIF($P$4:$P74,$P74)) -> ? | P74: ? | Q74: =IF(R74="??? - N/A ","?",COUNTA($K$4:$K74)) -> 25 | R74: 02:50:05 - Steiner 2 | S74: =IF($T74="N/A",0,COUNTIF($T$4:$T74,$T74)) -> 2 | T74: barrel | U74: 6605 | V74: =IF($S74>1,U74-OCCUR($T$4:$T74,$T74,COUNTIF($T$4:$T74,$T74)-1,0,1),"N/A") -> 4790 | W74: =IF($T74="N/A","???",IFERROR(CONCATENATE(FLOOR(IF(COUNTIF($T$4:$T74,$T74)<2,0,$U74-OCCUR($T$4:$T74,$T74,$S74-1,0,1))/3600,1),"h ", FLOOR((IF(COUNTIF($T$4:$T74,$T74)<2,0,$U74-OCCUR($T$4:$T74,$T74,$S74-1,0,1))-FLOOR(IF(COUNTIF($T$4:$T74,$T74)<2,0,$U74-OCCUR($T$4:$T74,$T74,$S74-1,0,1))/3600,1)*3600)/60,1), "m ", IF(COUNTIF($T$4:$T74,$T74)<2,0,$U74-OCCUR($T$4:$T74,$T74,$S74-1,0,1))-FLOOR((IF(COUNTIF($T$4:$T74,$T74)<2,0,$U74-OCCUR($T$4:$T74,$T74,$S74-1,0,1))-FLOOR(IF(COUNTIF($T$4:$T74,$T74)<2,0,$U74-OCCUR($T$4:$T74,$T74,$S74-1,0,1))/3600,1)*3600)/60,1)*60-FLOOR(IF(COUNTIF($T$4:$T74,$T74)<2,0,$U74-OCCUR($T$4:$T74,$T74,$S74-1,0,1))/3600,1)*3600, "s"),"???")) -> 1h 19m 50s | X74: 4 | Y74: 12443 | Z74: =IFERROR(MID($Z$2,FindN(";",$Z$2,ROWS($Z$15:$Z74)-1)+1,FindN(";",$Z$2,ROWS($Z$15:$Z74))-(FindN(";",$Z$2,ROWS($Z$15:$Z74)-1)+1)),"???") -> ecks | AA74: 0 | AB74: 5 | AC74: 5 | AD74: 3h 16m 1s | AE74: Lightning | AF74: 19h 19m 42s | AG74: =IF(Z75="???","???",OCCUR($T$3:$T$1000,Z75,AC75,0,1)+3600) -> 48727 | AH74: Steiner
C75: ? | D75: ? | E75: ? | F75: =IF(G75="?","?",COUNTIF($G$4:$G75,$G75)) -> ? | G75: ? | H75: =IF(R75="??? - N/A ","?",COUNTA($B$4:$B75)) -> 45 | I75: Steiner | J75: 19 | K75: Poke-025242 | L75: 02 | M75: 52 | N75: 42 | O75: =IF(P75="?","?",COUNTIF($P$4:$P75,$P75)) -> 1 | P75: Poke | Q75: =IF(R75="??? - N/A ","?",COUNTA($K$4:$K75)) -> 26 | R75: 02:52:42 - Lightning 1 | S75: =IF($T75="N/A",0,COUNTIF($T$4:$T75,$T75)) -> 1 | T75: Poke | U75: 6762 | V75: =IF($S75>1,U75-OCCUR($T$4:$T75,$T75,COUNTIF($T$4:$T75,$T75)-1,0,1),"N/A") -> N/A | W75: =IF($T75="N/A","???",IFERROR(CONCATENATE(FLOOR(IF(COUNTIF($T$4:$T75,$T75)<2,0,$U75-OCCUR($T$4:$T75,$T75,$S75-1,0,1))/3600,1),"h ", FLOOR((IF(COUNTIF($T$4:$T75,$T75)<2,0,$U75-OCCUR($T$4:$T75,$T75,$S75-1,0,1))-FLOOR(IF(COUNTIF($T$4:$T75,$T75)<2,0,$U75-OCCUR($T$4:$T75,$T75,$S75-1,0,1))/3600,1)*3600)/60,1), "m ", IF(COUNTIF($T$4:$T75,$T75)<2,0,$U75-OCCUR($T$4:$T75,$T75,$S75-1,0,1))-FLOOR((IF(COUNTIF($T$4:$T75,$T75)<2,0,$U75-OCCUR($T$4:$T75,$T75,$S75-1,0,1))-FLOOR(IF(COUNTIF($T$4:$T75,$T75)<2,0,$U75-OCCUR($T$4:$T75,$T75,$S75-1,0,1))/3600,1)*3600)/60,1)*60-FLOOR(IF(COUNTIF($T$4:$T75,$T75)<2,0,$U75-OCCUR($T$4:$T75,$T75,$S75-1,0,1))/3600,1)*3600, "s"),"???")) -> 0h 0m 0s | X75: 1 | Y75: 7646 | Z75: =IFERROR(MID($Z$2,FindN(";",$Z$2,ROWS($Z$15:$Z75)-1)+1,FindN(";",$Z$2,ROWS($Z$15:$Z75))-(FindN(";",$Z$2,ROWS($Z$15:$Z75)-1)+1)),"???") -> Swarles | AA75: 3 | AB75: 0 | AC75: 3 | AD75: 3h 27m 23s | AE75: Steiner | AF75: 13h 32m 7s | AG75: =IF(Z76="???","???",OCCUR($T$3:$T$1000,Z76,AC76,0,1)+3600) -> 87312 | AH75: Lightning
B76: Brohan-025306 | C76: 02 | D76: 53 | E76: 06 | F76: =IF(G76="?","?",COUNTIF($G$4:$G76,$G76)) -> 1 | G76: Brohan | H76: =IF(R76="??? - N/A ","?",COUNTA($B$4:$B76)) -> 46 | I76: Steiner | J76: 20 | L76: ? | M76: ? | N76: ? | O76: =IF(P76="?","?",COUNTIF($P$4:$P76,$P76)) -> ? | P76: ? | Q76: =IF(R76="??? - N/A ","?",COUNTA($K$4:$K76)) -> 26 | R76: 02:53:06 - Steiner 1 | S76: =IF($T76="N/A",0,COUNTIF($T$4:$T76,$T76)) -> 1 | T76: Brohan | U76: 6786 | V76: =IF($S76>1,U76-OCCUR($T$4:$T76,$T76,COUNTIF($T$4:$T76,$T76)-1,0,1),"N/A") -> N/A | W76: =IF($T76="N/A","???",IFERROR(CONCATENATE(FLOOR(IF(COUNTIF($T$4:$T76,$T76)<2,0,$U76-OCCUR($T$4:$T76,$T76,$S76-1,0,1))/3600,1),"h ", FLOOR((IF(COUNTIF($T$4:$T76,$T76)<2,0,$U76-OCCUR($T$4:$T76,$T76,$S76-1,0,1))-FLOOR(IF(COUNTIF($T$4:$T76,$T76)<2,0,$U76-OCCUR($T$4:$T76,$T76,$S76-1,0,1))/3600,1)*3600)/60,1), "m ", IF(COUNTIF($T$4:$T76,$T76)<2,0,$U76-OCCUR($T$4:$T76,$T76,$S76-1,0,1))-FLOOR((IF(COUNTIF($T$4:$T76,$T76)<2,0,$U76-OCCUR($T$4:$T76,$T76,$S76-1,0,1))-FLOOR(IF(COUNTIF($T$4:$T76,$T76)<2,0,$U76-OCCUR($T$4:$T76,$T76,$S76-1,0,1))/3600,1)*3600)/60,1)*60-FLOOR(IF(COUNTIF($T$4:$T76,$T76)<2,0,$U76-OCCUR($T$4:$T76,$T76,$S76-1,0,1))/3600,1)*3600, "s"),"???")) -> 0h 0m 0s | X76: 1 | Y76: 5156 | Z76: =IFERROR(MID($Z$2,FindN(";",$Z$2,ROWS($Z$15:$Z76)-1)+1,FindN(";",$Z$2,ROWS($Z$15:$Z76))-(FindN(";",$Z$2,ROWS($Z$15:$Z76)-1)+1)),"???") -> illum | AA76: 0 | AB76: 9 | AC76: 9 | AD76: 2h 7m 26s | AE76: Lightning | AF76: 24h 15m 12s | AG76: =IF(Z77="???","???",OCCUR($T$3:$T$1000,Z77,AC77,0,1)+3600) -> 73819 | AH76: Steiner
C77: ? | D77: ? | E77: ? | F77: =IF(G77="?","?",COUNTIF($G$4:$G77,$G77)) -> ? | G77: ? | H77: =IF(R77="??? - N/A ","?",COUNTA($B$4:$B77)) -> 46 | I77: Steiner | J77: 19 | K77: darkx-030420 | L77: 03 | M77: 04 | N77: 20 | O77: =IF(P77="?","?",COUNTIF($P$4:$P77,$P77)) -> 1 | P77: darkx | Q77: =IF(R77="??? - N/A ","?",COUNTA($K$4:$K77)) -> 27 | R77: 03:04:20 - Lightning 1 | S77: =IF($T77="N/A",0,COUNTIF($T$4:$T77,$T77)) -> 1 | T77: darkx | U77: 7460 | V77: =IF($S77>1,U77-OCCUR($T$4:$T77,$T77,COUNTIF($T$4:$T77,$T77)-1,0,1),"N/A") -> N/A | W77: =IF($T77="N/A","???",IFERROR(CONCATENATE(FLOOR(IF(COUNTIF($T$4:$T77,$T77)<2,0,$U77-OCCUR($T$4:$T77,$T77,$S77-1,0,1))/3600,1),"h ", FLOOR((IF(COUNTIF($T$4:$T77,$T77)<2,0,$U77-OCCUR($T$4:$T77,$T77,$S77-1,0,1))-FLOOR(IF(COUNTIF($T$4:$T77,$T77)<2,0,$U77-OCCUR($T$4:$T77,$T77,$S77-1,0,1))/3600,1)*3600)/60,1), "m ", IF(COUNTIF($T$4:$T77,$T77)<2,0,$U77-OCCUR($T$4:$T77,$T77,$S77-1,0,1))-FLOOR((IF(COUNTIF($T$4:$T77,$T77)<2,0,$U77-OCCUR($T$4:$T77,$T77,$S77-1,0,1))-FLOOR(IF(COUNTIF($T$4:$T77,$T77)<2,0,$U77-OCCUR($T$4:$T77,$T77,$S77-1,0,1))/3600,1)*3600)/60,1)*60-FLOOR(IF(COUNTIF($T$4:$T77,$T77)<2,0,$U77-OCCUR($T$4:$T77,$T77,$S77-1,0,1))/3600,1)*3600, "s"),"???")) -> 0h 0m 0s | X77: 1 | Y77: 23316 | Z77: =IFERROR(MID($Z$2,FindN(";",$Z$2,ROWS($Z$15:$Z77)-1)+1,FindN(";",$Z$2,ROWS($Z$15:$Z77))-(FindN(";",$Z$2,ROWS($Z$15:$Z77)-1)+1)),"???") -> Steiner | AA77: 10 | AB77: 0 | AC77: 10 | AD77: 1h 25m 56s | AE77: Steiner | AF77: 20h 30m 19s | AG77: =IF(Z78="???","???",OCCUR($T$3:$T$1000,Z78,AC78,0,1)+3600) -> 51780 | AH77: Lightning
C78: ? | D78: ? | E78: ? | F78: =IF(G78="?","?",COUNTIF($G$4:$G78,$G78)) -> ? | G78: ? | H78: =IF(R78="??? - N/A ","?",COUNTA($B$4:$B78)) -> 46 | I78: Steiner | J78: 18 | K78: pjbass-030550 | L78: 03 | M78: 05 | N78: 50 | O78: =IF(P78="?","?",COUNTIF($P$4:$P78,$P78)) -> 2 | P78: pjbass | Q78: =IF(R78="??? - N/A ","?",COUNTA($K$4:$K78)) -> 28 | R78: 03:05:50 - Lightning 2 | S78: =IF($T78="N/A",0,COUNTIF($T$4:$T78,$T78)) -> 2 | T78: pjbass | U78: 7550 | V78: =IF($S78>1,U78-OCCUR($T$4:$T78,$T78,COUNTIF($T$4:$T78,$T78)-1,0,1),"N/A") -> 5870 | W78: =IF($T78="N/A","???",IFERROR(CONCATENATE(FLOOR(IF(COUNTIF($T$4:$T78,$T78)<2,0,$U78-OCCUR($T$4:$T78,$T78,$S78-1,0,1))/3600,1),"h ", FLOOR((IF(COUNTIF($T$4:$T78,$T78)<2,0,$U78-OCCUR($T$4:$T78,$T78,$S78-1,0,1))-FLOOR(IF(COUNTIF($T$4:$T78,$T78)<2,0,$U78-OCCUR($T$4:$T78,$T78,$S78-1,0,1))/3600,1)*3600)/60,1), "m ", IF(COUNTIF($T$4:$T78,$T78)<2,0,$U78-OCCUR($T$4:$T78,$T78,$S78-1,0,1))-FLOOR((IF(COUNTIF($T$4:$T78,$T78)<2,0,$U78-OCCUR($T$4:$T78,$T78,$S78-1,0,1))-FLOOR(IF(COUNTIF($T$4:$T78,$T78)<2,0,$U78-OCCUR($T$4:$T78,$T78,$S78-1,0,1))/3600,1)*3600)/60,1)*60-FLOOR(IF(COUNTIF($T$4:$T78,$T78)<2,0,$U78-OCCUR($T$4:$T78,$T78,$S78-1,0,1))/3600,1)*3600, "s"),"???")) -> 1h 37m 50s | X78: 2 | Y78: =IFERROR(ROUND(SUMIFS($V$4:$V$1001,$T$4:$T$1001,Z79,$V$4:$V$1001,">"&1)/(AC79-1),0),0) -> 0 | Z78: =IFERROR(MID($Z$2,FindN(";",$Z$2,ROWS($Z$15:$Z78)-1)+1,FindN(";",$Z$2,ROWS($Z$15:$Z78))-(FindN(";",$Z$2,ROWS($Z$15:$Z78)-1)+1)),"???") -> Naomi | AA78: 0 | AB78: 2 | AC78: 2 | AD78: 6h 28m 36s | AE78: Lightning | AF78: 14h 23m 0s | AG78: =IF(Z79="???","???",OCCUR($T$3:$T$1000,Z79,AC79,0,1)+3600) -> 28540 | AH78: Lightning
B79: Nick-031011 | C79: 03 | D79: 10 | E79: 11 | F79: =IF(G79="?","?",COUNTIF($G$4:$G79,$G79)) -> 2 | G79: Nick | H79: =IF(R79="??? - N/A ","?",COUNTA($B$4:$B79)) -> 47 | I79: Steiner | J79: 19 | L79: ? | M79: ? | N79: ? | O79: =IF(P79="?","?",COUNTIF($P$4:$P79,$P79)) -> ? | P79: ? | Q79: =IF(R79="??? - N/A ","?",COUNTA($K$4:$K79)) -> 28 | R79: 03:10:11 - Steiner 2 | S79: =IF($T79="N/A",0,COUNTIF($T$4:$T79,$T79)) -> 2 | T79: Nick | U79: 7811 | V79: =IF($S79>1,U79-OCCUR($T$4:$T79,$T79,COUNTIF($T$4:$T79,$T79)-1,0,1),"N/A") -> 3620 | W79: =IF($T79="N/A","???",IFERROR(CONCATENATE(FLOOR(IF(COUNTIF($T$4:$T79,$T79)<2,0,$U79-OCCUR($T$4:$T79,$T79,$S79-1,0,1))/3600,1),"h ", FLOOR((IF(COUNTIF($T$4:$T79,$T79)<2,0,$U79-OCCUR($T$4:$T79,$T79,$S79-1,0,1))-FLOOR(IF(COUNTIF($T$4:$T79,$T79)<2,0,$U79-OCCUR($T$4:$T79,$T79,$S79-1,0,1))/3600,1)*3600)/60,1), "m ", IF(COUNTIF($T$4:$T79,$T79)<2,0,$U79-OCCUR($T$4:$T79,$T79,$S79-1,0,1))-FLOOR((IF(COUNTIF($T$4:$T79,$T79)<2,0,$U79-OCCUR($T$4:$T79,$T79,$S79-1,0,1))-FLOOR(IF(COUNTIF($T$4:$T79,$T79)<2,0,$U79-OCCUR($T$4:$T79,$T79,$S79-1,0,1))/3600,1)*3600)/60,1)*60-FLOOR(IF(COUNTIF($T$4:$T79,$T79)<2,0,$U79-OCCUR($T$4:$T79,$T79,$S79-1,0,1))/3600,1)*3600, "s"),"???")) -> 1h 0m 20s | X79: 1 | Y79: 0 | Z79: =IFERROR(MID($Z$2,FindN(";",$Z$2,ROWS($Z$15:$Z79)-1)+1,FindN(";",$Z$2,ROWS($Z$15:$Z79))-(FindN(";",$Z$2,ROWS($Z$15:$Z79)-1)+1)),"???") -> Piston | AA79: =IF(Z79="???",0,COUNTIF($G$4:$G$1001,Z79)) -> 0 | AB79: =IF(Z79="???",0,COUNTIF($P$4:$P$1001,Z79)) -> 1 | AC79: =SUM(AA79:AB79) -> 1 | AD79: =IF(Z79="???","???",CONCATENATE(FLOOR(Y78/3600,1),"h ",FLOOR((Y78-FLOOR(Y78/3600,1)*3600)/60,1),"m ",Y78-3600*FLOOR(Y78/3600,1)-60*FLOOR((Y78-FLOOR(Y78/3600,1)*3600)/60,1),"s")) -> 0h 0m 0s | AE79: Lightning | AF79: =IF(Z79="???","???",CONCATENATE(FLOOR(AG78/3600,1),"h ",FLOOR((AG78-FLOOR(AG78/3600,1)*3600)/60,1),"m ",AG78-3600*FLOOR(AG78/3600,1)-60*FLOOR((AG78-FLOOR(AG78/3600,1)*3600)/60,1),"s")) -> 7h 55m 40s | AG79: =IF(Z80="???","???",OCCUR($T$3:$T$1000,Z80,AC80,0,1)+3600) -> 29915 | AH79: Steiner
C80: ? | D80: ? | E80: ? | F80: =IF(G80="?","?",COUNTIF($G$4:$G80,$G80)) -> ? | G80: ? | H80: =IF(R80="??? - N/A ","?",COUNTA($B$4:$B80)) -> 47 | I80: Steiner | J80: 18 | K80: Natwaf-031259 | L80: 03 | M80: 12 | N80: 59 | O80: =IF(P80="?","?",COUNTIF($P$4:$P80,$P80)) -> 2 | P80: Natwaf | Q80: =IF(R80="??? - N/A ","?",COUNTA($K$4:$K80)) -> 29 | R80: 03:12:59 - Lightning 2 | S80: =IF($T80="N/A",0,COUNTIF($T$4:$T80,$T80)) -> 2 | T80: Natwaf | U80: 7979 | V80: =IF($S80>1,U80-OCCUR($T$4:$T80,$T80,COUNTIF($T$4:$T80,$T80)-1,0,1),"N/A") -> 5394 | W80: =IF($T80="N/A","???",IFERROR(CONCATENATE(FLOOR(IF(COUNTIF($T$4:$T80,$T80)<2,0,$U80-OCCUR($T$4:$T80,$T80,$S80-1,0,1))/3600,1),"h ", FLOOR((IF(COUNTIF($T$4:$T80,$T80)<2,0,$U80-OCCUR($T$4:$T80,$T80,$S80-1,0,1))-FLOOR(IF(COUNTIF($T$4:$T80,$T80)<2,0,$U80-OCCUR($T$4:$T80,$T80,$S80-1,0,1))/3600,1)*3600)/60,1), "m ", IF(COUNTIF($T$4:$T80,$T80)<2,0,$U80-OCCUR($T$4:$T80,$T80,$S80-1,0,1))-FLOOR((IF(COUNTIF($T$4:$T80,$T80)<2,0,$U80-OCCUR($T$4:$T80,$T80,$S80-1,0,1))-FLOOR(IF(COUNTIF($T$4:$T80,$T80)<2,0,$U80-OCCUR($T$4:$T80,$T80,$S80-1,0,1))/3600,1)*3600)/60,1)*60-FLOOR(IF(COUNTIF($T$4:$T80,$T80)<2,0,$U80-OCCUR($T$4:$T80,$T80,$S80-1,0,1))/3600,1)*3600, "s"),"???")) -> 1h 29m 54s | X80: 1 | Y80: 18303 | Z80: =IFERROR(MID($Z$2,FindN(";",$Z$2,ROWS($Z$15:$Z80)-1)+1,FindN(";",$Z$2,ROWS($Z$15:$Z80))-(FindN(";",$Z$2,ROWS($Z$15:$Z80)-1)+1)),"???") -> Axl | AA80: 1 | AB80: 0 | AC80: 1 | AD80: 0h 0m 0s | AE80: =IF(AA80>AB80,"Steiner",IF(AB80>AA80,"Lightning","EVEN")) -> Steiner | AF80: 8h 18m 35s | AG80: =IF(Z81="???","???",OCCUR($T$3:$T$1000,Z81,AC81,0,1)+3600) -> 86275 | AH80: Lightning
B81: Laus-031311 | C81: 03 | D81: 13 | E81: 11 | F81: =IF(G81="?","?",COUNTIF($G$4:$G81,$G81)) -> 1 | G81: Laus | H81: =IF(R81="??? - N/A ","?",COUNTA($B$4:$B81)) -> 48 | I81: Steiner | J81: 19 | L81: ? | M81: ? | N81: ? | O81: =IF(P81="?","?",COUNTIF($P$4:$P81,$P81)) -> ? | P81: ? | Q81: =IF(R81="??? - N/A ","?",COUNTA($K$4:$K81)) -> 29 | R81: 03:13:11 - Steiner 1 | S81: =IF($T81="N/A",0,COUNTIF($T$4:$T81,$T81)) -> 1 | T81: Laus | U81: 7991 | V81: =IF($S81>1,U81-OCCUR($T$4:$T81,$T81,COUNTIF($T$4:$T81,$T81)-1,0,1),"N/A") -> N/A | W81: =IF($T81="N/A","???",IFERROR(CONCATENATE(FLOOR(IF(COUNTIF($T$4:$T81,$T81)<2,0,$U81-OCCUR($T$4:$T81,$T81,$S81-1,0,1))/3600,1),"h ", FLOOR((IF(COUNTIF($T$4:$T81,$T81)<2,0,$U81-OCCUR($T$4:$T81,$T81,$S81-1,0,1))-FLOOR(IF(COUNTIF($T$4:$T81,$T81)<2,0,$U81-OCCUR($T$4:$T81,$T81,$S81-1,0,1))/3600,1)*3600)/60,1), "m ", IF(COUNTIF($T$4:$T81,$T81)<2,0,$U81-OCCUR($T$4:$T81,$T81,$S81-1,0,1))-FLOOR((IF(COUNTIF($T$4:$T81,$T81)<2,0,$U81-OCCUR($T$4:$T81,$T81,$S81-1,0,1))-FLOOR(IF(COUNTIF($T$4:$T81,$T81)<2,0,$U81-OCCUR($T$4:$T81,$T81,$S81-1,0,1))/3600,1)*3600)/60,1)*60-FLOOR(IF(COUNTIF($T$4:$T81,$T81)<2,0,$U81-OCCUR($T$4:$T81,$T81,$S81-1,0,1))/3600,1)*3600, "s"),"???")) -> 0h 0m 0s | X81: 1 | Y81: 6470 | Z81: =IFERROR(MID($Z$2,FindN(";",$Z$2,ROWS($Z$15:$Z81)-1)+1,FindN(";",$Z$2,ROWS($Z$15:$Z81))-(FindN(";",$Z$2,ROWS($Z$15:$Z81)-1)+1)),"???") -> Jon | AA81: 0 | AB81: 4 | AC81: 4 | AD81: 5h 5m 3s | AE81: Lightning | AF81: 23h 57m 55s | AG81: =IF(Z82="???","???",OCCUR($T$3:$T$1000,Z82,AC82,0,1)+3600) -> 74357 | AH81: Steiner
B82: Chris-032203 | C82: 03 | D82: 22 | E82: 03 | F82: =IF(G82="?","?",COUNTIF($G$4:$G82,$G82)) -> 3 | G82: Chris | H82: =IF(R82="??? - N/A ","?",COUNTA($B$4:$B82)) -> 49 | I82: Steiner | J82: 20 | L82: ? | M82: ? | N82: ? | O82: =IF(P82="?","?",COUNTIF($P$4:$P82,$P82)) -> ? | P82: ? | Q82: =IF(R82="??? - N/A ","?",COUNTA($K$4:$K82)) -> 29 | R82: 03:22:03 - Steiner 3 | S82: =IF($T82="N/A",0,COUNTIF($T$4:$T82,$T82)) -> 3 | T82: Chris | U82: 8523 | V82: =IF($S82>1,U82-OCCUR($T$4:$T82,$T82,COUNTIF($T$4:$T82,$T82)-1,0,1),"N/A") -> 3706 | W82: =IF($T82="N/A","???",IFERROR(CONCATENATE(FLOOR(IF(COUNTIF($T$4:$T82,$T82)<2,0,$U82-OCCUR($T$4:$T82,$T82,$S82-1,0,1))/3600,1),"h ", FLOOR((IF(COUNTIF($T$4:$T82,$T82)<2,0,$U82-OCCUR($T$4:$T82,$T82,$S82-1,0,1))-FLOOR(IF(COUNTIF($T$4:$T82,$T82)<2,0,$U82-OCCUR($T$4:$T82,$T82,$S82-1,0,1))/3600,1)*3600)/60,1), "m ", IF(COUNTIF($T$4:$T82,$T82)<2,0,$U82-OCCUR($T$4:$T82,$T82,$S82-1,0,1))-FLOOR((IF(COUNTIF($T$4:$T82,$T82)<2,0,$U82-OCCUR($T$4:$T82,$T82,$S82-1,0,1))-FLOOR(IF(COUNTIF($T$4:$T82,$T82)<2,0,$U82-OCCUR($T$4:$T82,$T82,$S82-1,0,1))/3600,1)*3600)/60,1)*60-FLOOR(IF(COUNTIF($T$4:$T82,$T82)<2,0,$U82-OCCUR($T$4:$T82,$T82,$S82-1,0,1))/3600,1)*3600, "s"),"???")) -> 1h 1m 46s | X82: 2 | Y82: 11851 | Z82: =IFERROR(MID($Z$2,FindN(";",$Z$2,ROWS($Z$15:$Z82)-1)+1,FindN(";",$Z$2,ROWS($Z$15:$Z82))-(FindN(";",$Z$2,ROWS($Z$15:$Z82)-1)+1)),"???") -> yellow | AA82: 0 | AB82: 7 | AC82: 7 | AD82: 1h 47m 50s | AE82: Lightning | AF82: 20h 39m 17s | AG82: =IF(Z83="???","???",OCCUR($T$3:$T$1000,Z83,AC83,0,1)+3600) -> 95038 | AH82: Steiner
B83: Gmun-032715 | C83: 03 | D83: 27 | E83: 15 | F83: =IF(G83="?","?",COUNTIF($G$4:$G83,$G83)) -> 3 | G83: Gmun | H83: =IF(R83="??? - N/A ","?",COUNTA($B$4:$B83)) -> 50 | I83: Steiner | J83: 21 | L83: ? | M83: ? | N83: ? | O83: =IF(P83="?","?",COUNTIF($P$4:$P83,$P83)) -> ? | P83: ? | Q83: =IF(R83="??? - N/A ","?",COUNTA($K$4:$K83)) -> 29 | R83: 03:27:15 - Steiner 3 | S83: =IF($T83="N/A",0,COUNTIF($T$4:$T83,$T83)) -> 3 | T83: Gmun | U83: 8835 | V83: =IF($S83>1,U83-OCCUR($T$4:$T83,$T83,COUNTIF($T$4:$T83,$T83)-1,0,1),"N/A") -> 3712 | W83: =IF($T83="N/A","???",IFERROR(CONCATENATE(FLOOR(IF(COUNTIF($T$4:$T83,$T83)<2,0,$U83-OCCUR($T$4:$T83,$T83,$S83-1,0,1))/3600,1),"h ", FLOOR((IF(COUNTIF($T$4:$T83,$T83)<2,0,$U83-OCCUR($T$4:$T83,$T83,$S83-1,0,1))-FLOOR(IF(COUNTIF($T$4:$T83,$T83)<2,0,$U83-OCCUR($T$4:$T83,$T83,$S83-1,0,1))/3600,1)*3600)/60,1), "m ", IF(COUNTIF($T$4:$T83,$T83)<2,0,$U83-OCCUR($T$4:$T83,$T83,$S83-1,0,1))-FLOOR((IF(COUNTIF($T$4:$T83,$T83)<2,0,$U83-OCCUR($T$4:$T83,$T83,$S83-1,0,1))-FLOOR(IF(COUNTIF($T$4:$T83,$T83)<2,0,$U83-OCCUR($T$4:$T83,$T83,$S83-1,0,1))/3600,1)*3600)/60,1)*60-FLOOR(IF(COUNTIF($T$4:$T83,$T83)<2,0,$U83-OCCUR($T$4:$T83,$T83,$S83-1,0,1))/3600,1)*3600, "s"),"???")) -> 1h 1m 52s | X83: 3 | Y83: 5890 | Z83: =IFERROR(MID($Z$2,FindN(";",$Z$2,ROWS($Z$15:$Z83)-1)+1,FindN(";",$Z$2,ROWS($Z$15:$Z83))-(FindN(";",$Z$2,ROWS($Z$15:$Z83)-1)+1)),"???") -> Roba | AA83: 0 | AB83: 6 | AC83: 6 | AD83: 3h 17m 31s | AE83: Lightning | AF83: 26h 23m 58s | AG83: =IF(Z84="???","???",OCCUR($T$3:$T$1000,Z84,AC84,0,1)+3600) -> 91210 | AH83: Steiner
B84: prof-032810 | C84: 03 | D84: 28 | E84: 10 | F84: =IF(G84="?","?",COUNTIF($G$4:$G84,$G84)) -> 3 | G84: prof | H84: =IF(R84="??? - N/A ","?",COUNTA($B$4:$B84)) -> 51 | I84: Steiner | J84: 22 | L84: ? | M84: ? | N84: ? | O84: =IF(P84="?","?",COUNTIF($P$4:$P84,$P84)) -> ? | P84: ? | Q84: =IF(R84="??? - N/A ","?",COUNTA($K$4:$K84)) -> 29 | R84: 03:28:10 - Steiner 3 | S84: =IF($T84="N/A",0,COUNTIF($T$4:$T84,$T84)) -> 3 | T84: prof | U84: 8890 | V84: =IF($S84>1,U84-OCCUR($T$4:$T84,$T84,COUNTIF($T$4:$T84,$T84)-1,0,1),"N/A") -> 3905 | W84: =IF($T84="N/A","???",IFERROR(CONCATENATE(FLOOR(IF(COUNTIF($T$4:$T84,$T84)<2,0,$U84-OCCUR($T$4:$T84,$T84,$S84-1,0,1))/3600,1),"h ", FLOOR((IF(COUNTIF($T$4:$T84,$T84)<2,0,$U84-OCCUR($T$4:$T84,$T84,$S84-1,0,1))-FLOOR(IF(COUNTIF($T$4:$T84,$T84)<2,0,$U84-OCCUR($T$4:$T84,$T84,$S84-1,0,1))/3600,1)*3600)/60,1), "m ", IF(COUNTIF($T$4:$T84,$T84)<2,0,$U84-OCCUR($T$4:$T84,$T84,$S84-1,0,1))-FLOOR((IF(COUNTIF($T$4:$T84,$T84)<2,0,$U84-OCCUR($T$4:$T84,$T84,$S84-1,0,1))-FLOOR(IF(COUNTIF($T$4:$T84,$T84)<2,0,$U84-OCCUR($T$4:$T84,$T84,$S84-1,0,1))/3600,1)*3600)/60,1)*60-FLOOR(IF(COUNTIF($T$4:$T84,$T84)<2,0,$U84-OCCUR($T$4:$T84,$T84,$S84-1,0,1))/3600,1)*3600, "s"),"???")) -> 1h 5m 5s | X84: 4 | Y84: 0 | Z84: =IFERROR(MID($Z$2,FindN(";",$Z$2,ROWS($Z$15:$Z84)-1)+1,FindN(";",$Z$2,ROWS($Z$15:$Z84))-(FindN(";",$Z$2,ROWS($Z$15:$Z84)-1)+1)),"???") -> Kleenex | AA84: 0 | AB84: 10 | AC84: 10 | AD84: 1h 38m 10s | AE84: Lightning | AF84: 25h 20m 10s | AG84: =IF(Z85="???","???",OCCUR($T$3:$T$1000,Z85,AC85,0,1)+3600) -> 38993 | AH84: Steiner
B85: Wedge-032817 | C85: 03 | D85: 28 | E85: 17 | F85: =IF(G85="?","?",COUNTIF($G$4:$G85,$G85)) -> 1 | G85: Wedge | H85: =IF(R85="??? - N/A ","?",COUNTA($B$4:$B85)) -> 52 | I85: Steiner | J85: 23 | L85: ? | M85: ? | N85: ? | O85: =IF(P85="?","?",COUNTIF($P$4:$P85,$P85)) -> ? | P85: ? | Q85: =IF(R85="??? - N/A ","?",COUNTA($K$4:$K85)) -> 29 | R85: 03:28:17 - Steiner 1 | S85: =IF($T85="N/A",0,COUNTIF($T$4:$T85,$T85)) -> 1 | T85: Wedge | U85: 8897 | V85: =IF($S85>1,U85-OCCUR($T$4:$T85,$T85,COUNTIF($T$4:$T85,$T85)-1,0,1),"N/A") -> N/A | W85: =IF($T85="N/A","???",IFERROR(CONCATENATE(FLOOR(IF(COUNTIF($T$4:$T85,$T85)<2,0,$U85-OCCUR($T$4:$T85,$T85,$S85-1,0,1))/3600,1),"h ", FLOOR((IF(COUNTIF($T$4:$T85,$T85)<2,0,$U85-OCCUR($T$4:$T85,$T85,$S85-1,0,1))-FLOOR(IF(COUNTIF($T$4:$T85,$T85)<2,0,$U85-OCCUR($T$4:$T85,$T85,$S85-1,0,1))/3600,1)*3600)/60,1), "m ", IF(COUNTIF($T$4:$T85,$T85)<2,0,$U85-OCCUR($T$4:$T85,$T85,$S85-1,0,1))-FLOOR((IF(COUNTIF($T$4:$T85,$T85)<2,0,$U85-OCCUR($T$4:$T85,$T85,$S85-1,0,1))-FLOOR(IF(COUNTIF($T$4:$T85,$T85)<2,0,$U85-OCCUR($T$4:$T85,$T85,$S85-1,0,1))/3600,1)*3600)/60,1)*60-FLOOR(IF(COUNTIF($T$4:$T85,$T85)<2,0,$U85-OCCUR($T$4:$T85,$T85,$S85-1,0,1))/3600,1)*3600, "s"),"???")) -> 0h 0m 0s | X85: 5 | Y85: 5353 | Z85: =IFERROR(MID($Z$2,FindN(";",$Z$2,ROWS($Z$15:$Z85)-1)+1,FindN(";",$Z$2,ROWS($Z$15:$Z85))-(FindN(";",$Z$2,ROWS($Z$15:$Z85)-1)+1)),"???") -> Jilly | AA85: 0 | AB85: 1 | AC85: 1 | AD85: 0h 0m 0s | AE85: Lightning | AF85: 10h 49m 53s | AG85: =IF(Z86="???","???",OCCUR($T$3:$T$1000,Z86,AC86,0,1)+3600) -> 85926 | AH85: Steiner
C86: ? | D86: ? | E86: ? | F86: =IF(G86="?","?",COUNTIF($G$4:$G86,$G86)) -> ? | G86: ? | H86: =IF(R86="??? - N/A ","?",COUNTA($B$4:$B86)) -> 52 | I86: Steiner | J86: 22 | K86: Leon-032825 | L86: 03 | M86: 28 | N86: 25 | O86: =IF(P86="?","?",COUNTIF($P$4:$P86,$P86)) -> 3 | P86: Leon | Q86: =IF(R86="??? - N/A ","?",COUNTA($K$4:$K86)) -> 30 | R86: 03:28:25 - Lightning 3 | S86: =IF($T86="N/A",0,COUNTIF($T$4:$T86,$T86)) -> 3 | T86: Leon | U86: 8905 | V86: =IF($S86>1,U86-OCCUR($T$4:$T86,$T86,COUNTIF($T$4:$T86,$T86)-1,0,1),"N/A") -> 3929 | W86: =IF($T86="N/A","???",IFERROR(CONCATENATE(FLOOR(IF(COUNTIF($T$4:$T86,$T86)<2,0,$U86-OCCUR($T$4:$T86,$T86,$S86-1,0,1))/3600,1),"h ", FLOOR((IF(COUNTIF($T$4:$T86,$T86)<2,0,$U86-OCCUR($T$4:$T86,$T86,$S86-1,0,1))-FLOOR(IF(COUNTIF($T$4:$T86,$T86)<2,0,$U86-OCCUR($T$4:$T86,$T86,$S86-1,0,1))/3600,1)*3600)/60,1), "m ", IF(COUNTIF($T$4:$T86,$T86)<2,0,$U86-OCCUR($T$4:$T86,$T86,$S86-1,0,1))-FLOOR((IF(COUNTIF($T$4:$T86,$T86)<2,0,$U86-OCCUR($T$4:$T86,$T86,$S86-1,0,1))-FLOOR(IF(COUNTIF($T$4:$T86,$T86)<2,0,$U86-OCCUR($T$4:$T86,$T86,$S86-1,0,1))/3600,1)*3600)/60,1)*60-FLOOR(IF(COUNTIF($T$4:$T86,$T86)<2,0,$U86-OCCUR($T$4:$T86,$T86,$S86-1,0,1))/3600,1)*3600, "s"),"???")) -> 1h 5m 29s | X86: 1 | Y86: 10334 | Z86: =IFERROR(MID($Z$2,FindN(";",$Z$2,ROWS($Z$15:$Z86)-1)+1,FindN(";",$Z$2,ROWS($Z$15:$Z86))-(FindN(";",$Z$2,ROWS($Z$15:$Z86)-1)+1)),"???") -> junk | AA86: 9 | AB86: 0 | AC86: 9 | AD86: 1h 29m 13s | AE86: Steiner | AF86: 23h 52m 6s | AG86: =IF(Z87="???","???",OCCUR($T$3:$T$1000,Z87,AC87,0,1)+3600) -> 75001 | AH86: Lightning
C87: ? | D87: ? | E87: ? | F87: =IF(G87="?","?",COUNTIF($G$4:$G87,$G87)) -> ? | G87: ? | H87: =IF(R87="??? - N/A ","?",COUNTA($B$4:$B87)) -> 52 | I87: Steiner | J87: 21 | K87: mnk-032840 | L87: 03 | M87: 28 | N87: 40 | O87: =IF(P87="?","?",COUNTIF($P$4:$P87,$P87)) -> 3 | P87: mnk | Q87: =IF(R87="??? - N/A ","?",COUNTA($K$4:$K87)) -> 31 | R87: 03:28:40 - Lightning 3 | S87: =IF($T87="N/A",0,COUNTIF($T$4:$T87,$T87)) -> 3 | T87: mnk | U87: 8920 | V87: =IF($S87>1,U87-OCCUR($T$4:$T87,$T87,COUNTIF($T$4:$T87,$T87)-1,0,1),"N/A") -> 3780 | W87: =IF($T87="N/A","???",IFERROR(CONCATENATE(FLOOR(IF(COUNTIF($T$4:$T87,$T87)<2,0,$U87-OCCUR($T$4:$T87,$T87,$S87-1,0,1))/3600,1),"h ", FLOOR((IF(COUNTIF($T$4:$T87,$T87)<2,0,$U87-OCCUR($T$4:$T87,$T87,$S87-1,0,1))-FLOOR(IF(COUNTIF($T$4:$T87,$T87)<2,0,$U87-OCCUR($T$4:$T87,$T87,$S87-1,0,1))/3600,1)*3600)/60,1), "m ", IF(COUNTIF($T$4:$T87,$T87)<2,0,$U87-OCCUR($T$4:$T87,$T87,$S87-1,0,1))-FLOOR((IF(COUNTIF($T$4:$T87,$T87)<2,0,$U87-OCCUR($T$4:$T87,$T87,$S87-1,0,1))-FLOOR(IF(COUNTIF($T$4:$T87,$T87)<2,0,$U87-OCCUR($T$4:$T87,$T87,$S87-1,0,1))/3600,1)*3600)/60,1)*60-FLOOR(IF(COUNTIF($T$4:$T87,$T87)<2,0,$U87-OCCUR($T$4:$T87,$T87,$S87-1,0,1))/3600,1)*3600, "s"),"???")) -> 1h 3m 0s | X87: 2 | Y87: 18673 | Z87: =IFERROR(MID($Z$2,FindN(";",$Z$2,ROWS($Z$15:$Z87)-1)+1,FindN(";",$Z$2,ROWS($Z$15:$Z87))-(FindN(";",$Z$2,ROWS($Z$15:$Z87)-1)+1)),"???") -> Harm | AA87: 4 | AB87: 0 | AC87: 4 | AD87: 2h 52m 14s | AE87: Steiner | AF87: 20h 50m 1s | AG87: =IF(Z88="???","???",OCCUR($T$3:$T$1000,Z88,AC88,0,1)+3600) -> 83787 | AH87: Lightning
B88: Genny-032929 | C88: 03 | D88: 29 | E88: 29 | F88: =IF(G88="?","?",COUNTIF($G$4:$G88,$G88)) -> 3 | G88: Genny | H88: =IF(R88="??? - N/A ","?",COUNTA($B$4:$B88)) -> 53 | I88: Steiner | J88: 22 | L88: ? | M88: ? | N88: ? | O88: =IF(P88="?","?",COUNTIF($P$4:$P88,$P88)) -> ? | P88: ? | Q88: =IF(R88="??? - N/A ","?",COUNTA($K$4:$K88)) -> 31 | R88: 03:29:29 - Steiner 3 | S88: =IF($T88="N/A",0,COUNTIF($T$4:$T88,$T88)) -> 3 | T88: Genny | U88: 8969 | V88: =IF($S88>1,U88-OCCUR($T$4:$T88,$T88,COUNTIF($T$4:$T88,$T88)-1,0,1),"N/A") -> 3696 | W88: =IF($T88="N/A","???",IFERROR(CONCATENATE(FLOOR(IF(COUNTIF($T$4:$T88,$T88)<2,0,$U88-OCCUR($T$4:$T88,$T88,$S88-1,0,1))/3600,1),"h ", FLOOR((IF(COUNTIF($T$4:$T88,$T88)<2,0,$U88-OCCUR($T$4:$T88,$T88,$S88-1,0,1))-FLOOR(IF(COUNTIF($T$4:$T88,$T88)<2,0,$U88-OCCUR($T$4:$T88,$T88,$S88-1,0,1))/3600,1)*3600)/60,1), "m ", IF(COUNTIF($T$4:$T88,$T88)<2,0,$U88-OCCUR($T$4:$T88,$T88,$S88-1,0,1))-FLOOR((IF(COUNTIF($T$4:$T88,$T88)<2,0,$U88-OCCUR($T$4:$T88,$T88,$S88-1,0,1))-FLOOR(IF(COUNTIF($T$4:$T88,$T88)<2,0,$U88-OCCUR($T$4:$T88,$T88,$S88-1,0,1))/3600,1)*3600)/60,1)*60-FLOOR(IF(COUNTIF($T$4:$T88,$T88)<2,0,$U88-OCCUR($T$4:$T88,$T88,$S88-1,0,1))/3600,1)*3600, "s"),"???")) -> 1h 1m 36s | X88: 1 | Y88: 0 | Z88: =IFERROR(MID($Z$2,FindN(";",$Z$2,ROWS($Z$15:$Z88)-1)+1,FindN(";",$Z$2,ROWS($Z$15:$Z88))-(FindN(";",$Z$2,ROWS($Z$15:$Z88)-1)+1)),"???") -> User | AA88: 3 | AB88: 0 | AC88: 3 | AD88: 5h 11m 13s | AE88: Steiner | AF88: 23h 16m 27s | AG88: =IF(Z89="???","???",OCCUR($T$3:$T$1000,Z89,AC89,0,1)+3600) -> 46618 | AH88: Steiner
C89: ? | D89: ? | E89: ? | F89: =IF(G89="?","?",COUNTIF($G$4:$G89,$G89)) -> ? | G89: ? | H89: =IF(R89="??? - N/A ","?",COUNTA($B$4:$B89)) -> 53 | I89: Steiner | J89: 21 | K89: Karo-033214 | L89: 03 | M89: 32 | N89: 14 | O89: =IF(P89="?","?",COUNTIF($P$4:$P89,$P89)) -> 2 | P89: Karo | Q89: =IF(R89="??? - N/A ","?",COUNTA($K$4:$K89)) -> 32 | R89: 03:32:14 - Lightning 2 | S89: =IF($T89="N/A",0,COUNTIF($T$4:$T89,$T89)) -> 2 | T89: Karo | U89: 9134 | V89: =IF($S89>1,U89-OCCUR($T$4:$T89,$T89,COUNTIF($T$4:$T89,$T89)-1,0,1),"N/A") -> 3629 | W89: =IF($T89="N/A","???",IFERROR(CONCATENATE(FLOOR(IF(COUNTIF($T$4:$T89,$T89)<2,0,$U89-OCCUR($T$4:$T89,$T89,$S89-1,0,1))/3600,1),"h ", FLOOR((IF(COUNTIF($T$4:$T89,$T89)<2,0,$U89-OCCUR($T$4:$T89,$T89,$S89-1,0,1))-FLOOR(IF(COUNTIF($T$4:$T89,$T89)<2,0,$U89-OCCUR($T$4:$T89,$T89,$S89-1,0,1))/3600,1)*3600)/60,1), "m ", IF(COUNTIF($T$4:$T89,$T89)<2,0,$U89-OCCUR($T$4:$T89,$T89,$S89-1,0,1))-FLOOR((IF(COUNTIF($T$4:$T89,$T89)<2,0,$U89-OCCUR($T$4:$T89,$T89,$S89-1,0,1))-FLOOR(IF(COUNTIF($T$4:$T89,$T89)<2,0,$U89-OCCUR($T$4:$T89,$T89,$S89-1,0,1))/3600,1)*3600)/60,1)*60-FLOOR(IF(COUNTIF($T$4:$T89,$T89)<2,0,$U89-OCCUR($T$4:$T89,$T89,$S89-1,0,1))/3600,1)*3600, "s"),"???")) -> 1h 0m 29s | X89: 1 | Y89: 0 | Z89: =IFERROR(MID($Z$2,FindN(";",$Z$2,ROWS($Z$15:$Z89)-1)+1,FindN(";",$Z$2,ROWS($Z$15:$Z89))-(FindN(";",$Z$2,ROWS($Z$15:$Z89)-1)+1)),"???") -> azu | AA89: 0 | AB89: 1 | AC89: 1 | AD89: 0h 0m 0s | AE89: Lightning | AF89: 12h 56m 58s | AG89: =IF(Z90="???","???",OCCUR($T$3:$T$1000,Z90,AC90,0,1)+3600) -> 46919 | AH89: Lightning
B90: gravy-033350 | C90: 03 | D90: 33 | E90: 50 | F90: =IF(G90="?","?",COUNTIF($G$4:$G90,$G90)) -> 3 | G90: gravy | H90: =IF(R90="??? - N/A ","?",COUNTA($B$4:$B90)) -> 54 | I90: Steiner | J90: 22 | L90: ? | M90: ? | N90: ? | O90: =IF(P90="?","?",COUNTIF($P$4:$P90,$P90)) -> ? | P90: ? | Q90: =IF(R90="??? - N/A ","?",COUNTA($K$4:$K90)) -> 32 | R90: 03:33:50 - Steiner 3 | S90: =IF($T90="N/A",0,COUNTIF($T$4:$T90,$T90)) -> 3 | T90: gravy | U90: 9230 | V90: =IF($S90>1,U90-OCCUR($T$4:$T90,$T90,COUNTIF($T$4:$T90,$T90)-1,0,1),"N/A") -> 4202 | W90: =IF($T90="N/A","???",IFERROR(CONCATENATE(FLOOR(IF(COUNTIF($T$4:$T90,$T90)<2,0,$U90-OCCUR($T$4:$T90,$T90,$S90-1,0,1))/3600,1),"h ", FLOOR((IF(COUNTIF($T$4:$T90,$T90)<2,0,$U90-OCCUR($T$4:$T90,$T90,$S90-1,0,1))-FLOOR(IF(COUNTIF($T$4:$T90,$T90)<2,0,$U90-OCCUR($T$4:$T90,$T90,$S90-1,0,1))/3600,1)*3600)/60,1), "m ", IF(COUNTIF($T$4:$T90,$T90)<2,0,$U90-OCCUR($T$4:$T90,$T90,$S90-1,0,1))-FLOOR((IF(COUNTIF($T$4:$T90,$T90)<2,0,$U90-OCCUR($T$4:$T90,$T90,$S90-1,0,1))-FLOOR(IF(COUNTIF($T$4:$T90,$T90)<2,0,$U90-OCCUR($T$4:$T90,$T90,$S90-1,0,1))/3600,1)*3600)/60,1)*60-FLOOR(IF(COUNTIF($T$4:$T90,$T90)<2,0,$U90-OCCUR($T$4:$T90,$T90,$S90-1,0,1))/3600,1)*3600, "s"),"???")) -> 1h 10m 2s | X90: 1 | Y90: 7503 | Z90: =IFERROR(MID($Z$2,FindN(";",$Z$2,ROWS($Z$15:$Z90)-1)+1,FindN(";",$Z$2,ROWS($Z$15:$Z90))-(FindN(";",$Z$2,ROWS($Z$15:$Z90)-1)+1)),"???") -> eaad | AA90: 1 | AB90: 0 | AC90: 1 | AD90: 0h 0m 0s | AE90: Steiner | AF90: 13h 1m 59s | AG90: =IF(Z91="???","???",OCCUR($T$3:$T$1000,Z91,AC91,0,1)+3600) -> 78349 | AH90: Steiner
B91: Kora-033424 | C91: 03 | D91: 34 | E91: 24 | F91: =IF(G91="?","?",COUNTIF($G$4:$G91,$G91)) -> 2 | G91: Kora | H91: =IF(R91="??? - N/A ","?",COUNTA($B$4:$B91)) -> 55 | I91: Steiner | J91: 23 | L91: ? | M91: ? | N91: ? | O91: =IF(P91="?","?",COUNTIF($P$4:$P91,$P91)) -> ? | P91: ? | Q91: =IF(R91="??? - N/A ","?",COUNTA($K$4:$K91)) -> 32 | R91: 03:34:24 - Steiner 2 | S91: =IF($T91="N/A",0,COUNTIF($T$4:$T91,$T91)) -> 2 | T91: Kora | U91: 9264 | V91: =IF($S91>1,U91-OCCUR($T$4:$T91,$T91,COUNTIF($T$4:$T91,$T91)-1,0,1),"N/A") -> 8100 | W91: =IF($T91="N/A","???",IFERROR(CONCATENATE(FLOOR(IF(COUNTIF($T$4:$T91,$T91)<2,0,$U91-OCCUR($T$4:$T91,$T91,$S91-1,0,1))/3600,1),"h ", FLOOR((IF(COUNTIF($T$4:$T91,$T91)<2,0,$U91-OCCUR($T$4:$T91,$T91,$S91-1,0,1))-FLOOR(IF(COUNTIF($T$4:$T91,$T91)<2,0,$U91-OCCUR($T$4:$T91,$T91,$S91-1,0,1))/3600,1)*3600)/60,1), "m ", IF(COUNTIF($T$4:$T91,$T91)<2,0,$U91-OCCUR($T$4:$T91,$T91,$S91-1,0,1))-FLOOR((IF(COUNTIF($T$4:$T91,$T91)<2,0,$U91-OCCUR($T$4:$T91,$T91,$S91-1,0,1))-FLOOR(IF(COUNTIF($T$4:$T91,$T91)<2,0,$U91-OCCUR($T$4:$T91,$T91,$S91-1,0,1))/3600,1)*3600)/60,1)*60-FLOOR(IF(COUNTIF($T$4:$T91,$T91)<2,0,$U91-OCCUR($T$4:$T91,$T91,$S91-1,0,1))/3600,1)*3600, "s"),"???")) -> 2h 15m 0s | X91: 2 | Y91: 11271 | Z91: =IFERROR(MID($Z$2,FindN(";",$Z$2,ROWS($Z$15:$Z91)-1)+1,FindN(";",$Z$2,ROWS($Z$15:$Z91))-(FindN(";",$Z$2,ROWS($Z$15:$Z91)-1)+1)),"???") -> Lens | AA91: 5 | AB91: 0 | AC91: 5 | AD91: 2h 5m 3s | AE91: Steiner | AF91: 21h 45m 49s | AG91: =IF(Z92="???","???",OCCUR($T$3:$T$1000,Z92,AC92,0,1)+3600) -> 93645 | AH91: Steiner
C92: ? | D92: ? | E92: ? | F92: =IF(G92="?","?",COUNTIF($G$4:$G92,$G92)) -> ? | G92: ? | H92: =IF(R92="??? - N/A ","?",COUNTA($B$4:$B92)) -> 55 | I92: Steiner | J92: 22 | K92: Eddv-033442 | L92: 03 | M92: 34 | N92: 42 | O92: =IF(P92="?","?",COUNTIF($P$4:$P92,$P92)) -> 3 | P92: Eddv | Q92: =IF(R92="??? - N/A ","?",COUNTA($K$4:$K92)) -> 33 | R92: 03:34:42 - Lightning 3 | S92: =IF($T92="N/A",0,COUNTIF($T$4:$T92,$T92)) -> 3 | T92: Eddv | U92: 9282 | V92: =IF($S92>1,U92-OCCUR($T$4:$T92,$T92,COUNTIF($T$4:$T92,$T92)-1,0,1),"N/A") -> 4092 | W92: =IF($T92="N/A","???",IFERROR(CONCATENATE(FLOOR(IF(COUNTIF($T$4:$T92,$T92)<2,0,$U92-OCCUR($T$4:$T92,$T92,$S92-1,0,1))/3600,1),"h ", FLOOR((IF(COUNTIF($T$4:$T92,$T92)<2,0,$U92-OCCUR($T$4:$T92,$T92,$S92-1,0,1))-FLOOR(IF(COUNTIF($T$4:$T92,$T92)<2,0,$U92-OCCUR($T$4:$T92,$T92,$S92-1,0,1))/3600,1)*3600)/60,1), "m ", IF(COUNTIF($T$4:$T92,$T92)<2,0,$U92-OCCUR($T$4:$T92,$T92,$S92-1,0,1))-FLOOR((IF(COUNTIF($T$4:$T92,$T92)<2,0,$U92-OCCUR($T$4:$T92,$T92,$S92-1,0,1))-FLOOR(IF(COUNTIF($T$4:$T92,$T92)<2,0,$U92-OCCUR($T$4:$T92,$T92,$S92-1,0,1))/3600,1)*3600)/60,1)*60-FLOOR(IF(COUNTIF($T$4:$T92,$T92)<2,0,$U92-OCCUR($T$4:$T92,$T92,$S92-1,0,1))/3600,1)*3600, "s"),"???")) -> 1h 8m 12s | X92: 1 | Y92: 3883 | Z92: =IFERROR(MID($Z$2,FindN(";",$Z$2,ROWS($Z$15:$Z92)-1)+1,FindN(";",$Z$2,ROWS($Z$15:$Z92))-(FindN(";",$Z$2,ROWS($Z$15:$Z92)-1)+1)),"???") -> Maniac | AA92: 5 | AB92: 0 | AC92: 5 | AD92: 3h 7m 51s | AE92: Steiner | AF92: 26h 0m 45s | AG92: =IF(Z93="???","???",OCCUR($T$3:$T$1000,Z93,AC93,0,1)+3600) -> 91666 | AH92: Lightning
C93: ? | D93: ? | E93: ? | F93: =IF(G93="?","?",COUNTIF($G$4:$G93,$G93)) -> ? | G93: ? | H93: =IF(R93="??? - N/A ","?",COUNTA($B$4:$B93)) -> 55 | I93: Steiner | J93: 21 | K93: Paul-033641 | L93: 03 | M93: 36 | N93: 41 | O93: =IF(P93="?","?",COUNTIF($P$4:$P93,$P93)) -> 2 | P93: Paul | Q93: =IF(R93="??? - N/A ","?",COUNTA($K$4:$K93)) -> 34 | R93: 03:36:41 - Lightning 2 | S93: =IF($T93="N/A",0,COUNTIF($T$4:$T93,$T93)) -> 2 | T93: Paul | U93: 9401 | V93: =IF($S93>1,U93-OCCUR($T$4:$T93,$T93,COUNTIF($T$4:$T93,$T93)-1,0,1),"N/A") -> 5516 | W93: =IF($T93="N/A","???",IFERROR(CONCATENATE(FLOOR(IF(COUNTIF($T$4:$T93,$T93)<2,0,$U93-OCCUR($T$4:$T93,$T93,$S93-1,0,1))/3600,1),"h ", FLOOR((IF(COUNTIF($T$4:$T93,$T93)<2,0,$U93-OCCUR($T$4:$T93,$T93,$S93-1,0,1))-FLOOR(IF(COUNTIF($T$4:$T93,$T93)<2,0,$U93-OCCUR($T$4:$T93,$T93,$S93-1,0,1))/3600,1)*3600)/60,1), "m ", IF(COUNTIF($T$4:$T93,$T93)<2,0,$U93-OCCUR($T$4:$T93,$T93,$S93-1,0,1))-FLOOR((IF(COUNTIF($T$4:$T93,$T93)<2,0,$U93-OCCUR($T$4:$T93,$T93,$S93-1,0,1))-FLOOR(IF(COUNTIF($T$4:$T93,$T93)<2,0,$U93-OCCUR($T$4:$T93,$T93,$S93-1,0,1))/3600,1)*3600)/60,1)*60-FLOOR(IF(COUNTIF($T$4:$T93,$T93)<2,0,$U93-OCCUR($T$4:$T93,$T93,$S93-1,0,1))/3600,1)*3600, "s"),"???")) -> 1h 31m 56s | X93: 2 | Y93: 0 | Z93: =IFERROR(MID($Z$2,FindN(";",$Z$2,ROWS($Z$15:$Z93)-1)+1,FindN(";",$Z$2,ROWS($Z$15:$Z93))-(FindN(";",$Z$2,ROWS($Z$15:$Z93)-1)+1)),"???") -> Stiffy | AA93: 10 | AB93: 0 | AC93: 10 | AD93: 1h 4m 43s | AE93: Steiner | AF93: 25h 27m 46s | AG93: =IF(Z94="???","???",OCCUR($T$3:$T$1000,Z94,AC94,0,1)+3600) -> 58156 | AH93: Lightning
B94: guff-034045 | C94: 03 | D94: 40 | E94: 45 | F94: =IF(G94="?","?",COUNTIF($G$4:$G94,$G94)) -> 3 | G94: guff | H94: =IF(R94="??? - N/A ","?",COUNTA($B$4:$B94)) -> 56 | I94: Steiner | J94: 22 | L94: ? | M94: ? | N94: ? | O94: =IF(P94="?","?",COUNTIF($P$4:$P94,$P94)) -> ? | P94: ? | Q94: =IF(R94="??? - N/A ","?",COUNTA($K$4:$K94)) -> 34 | R94: 03:40:45 - Steiner 3 | S94: =IF($T94="N/A",0,COUNTIF($T$4:$T94,$T94)) -> 3 | T94: guff | U94: 9645 | V94: =IF($S94>1,U94-OCCUR($T$4:$T94,$T94,COUNTIF($T$4:$T94,$T94)-1,0,1),"N/A") -> 4422 | W94: =IF($T94="N/A","???",IFERROR(CONCATENATE(FLOOR(IF(COUNTIF($T$4:$T94,$T94)<2,0,$U94-OCCUR($T$4:$T94,$T94,$S94-1,0,1))/3600,1),"h ", FLOOR((IF(COUNTIF($T$4:$T94,$T94)<2,0,$U94-OCCUR($T$4:$T94,$T94,$S94-1,0,1))-FLOOR(IF(COUNTIF($T$4:$T94,$T94)<2,0,$U94-OCCUR($T$4:$T94,$T94,$S94-1,0,1))/3600,1)*3600)/60,1), "m ", IF(COUNTIF($T$4:$T94,$T94)<2,0,$U94-OCCUR($T$4:$T94,$T94,$S94-1,0,1))-FLOOR((IF(COUNTIF($T$4:$T94,$T94)<2,0,$U94-OCCUR($T$4:$T94,$T94,$S94-1,0,1))-FLOOR(IF(COUNTIF($T$4:$T94,$T94)<2,0,$U94-OCCUR($T$4:$T94,$T94,$S94-1,0,1))/3600,1)*3600)/60,1)*60-FLOOR(IF(COUNTIF($T$4:$T94,$T94)<2,0,$U94-OCCUR($T$4:$T94,$T94,$S94-1,0,1))/3600,1)*3600, "s"),"???")) -> 1h 13m 42s | X94: 1 | Y94: 4333 | Z94: =IFERROR(MID($Z$2,FindN(";",$Z$2,ROWS($Z$15:$Z94)-1)+1,FindN(";",$Z$2,ROWS($Z$15:$Z94))-(FindN(";",$Z$2,ROWS($Z$15:$Z94)-1)+1)),"???") -> Donnas | AA94: 1 | AB94: 0 | AC94: 1 | AD94: 0h 0m 0s | AE94: Steiner | AF94: 16h 9m 16s | AG94: =IF(Z95="???","???",OCCUR($T$3:$T$1000,Z95,AC95,0,1)+3600) -> 93112 | AH94: Steiner
C95: ? | D95: ? | E95: ? | F95: =IF(G95="?","?",COUNTIF($G$4:$G95,$G95)) -> ? | G95: ? | H95: =IF(R95="??? - N/A ","?",COUNTA($B$4:$B95)) -> 56 | I95: Steiner | J95: 21 | K95: MZero-034314 | L95: 03 | M95: 43 | N95: 14 | O95: =IF(P95="?","?",COUNTIF($P$4:$P95,$P95)) -> 2 | P95: MZero | Q95: =IF(R95="??? - N/A ","?",COUNTA($K$4:$K95)) -> 35 | R95: 03:43:14 - Lightning 2 | S95: =IF($T95="N/A",0,COUNTIF($T$4:$T95,$T95)) -> 2 | T95: MZero | U95: 9794 | V95: =IF($S95>1,U95-OCCUR($T$4:$T95,$T95,COUNTIF($T$4:$T95,$T95)-1,0,1),"N/A") -> 8507 | W95: =IF($T95="N/A","???",IFERROR(CONCATENATE(FLOOR(IF(COUNTIF($T$4:$T95,$T95)<2,0,$U95-OCCUR($T$4:$T95,$T95,$S95-1,0,1))/3600,1),"h ", FLOOR((IF(COUNTIF($T$4:$T95,$T95)<2,0,$U95-OCCUR($T$4:$T95,$T95,$S95-1,0,1))-FLOOR(IF(COUNTIF($T$4:$T95,$T95)<2,0,$U95-OCCUR($T$4:$T95,$T95,$S95-1,0,1))/3600,1)*3600)/60,1), "m ", IF(COUNTIF($T$4:$T95,$T95)<2,0,$U95-OCCUR($T$4:$T95,$T95,$S95-1,0,1))-FLOOR((IF(COUNTIF($T$4:$T95,$T95)<2,0,$U95-OCCUR($T$4:$T95,$T95,$S95-1,0,1))-FLOOR(IF(COUNTIF($T$4:$T95,$T95)<2,0,$U95-OCCUR($T$4:$T95,$T95,$S95-1,0,1))/3600,1)*3600)/60,1)*60-FLOOR(IF(COUNTIF($T$4:$T95,$T95)<2,0,$U95-OCCUR($T$4:$T95,$T95,$S95-1,0,1))/3600,1)*3600, "s"),"???")) -> 2h 21m 47s | X95: 1 | Y95: 9602 | Z95: =IFERROR(MID($Z$2,FindN(";",$Z$2,ROWS($Z$15:$Z95)-1)+1,FindN(";",$Z$2,ROWS($Z$15:$Z95))-(FindN(";",$Z$2,ROWS($Z$15:$Z95)-1)+1)),"???") -> Tex | AA95: 0 | AB95: 8 | AC95: 8 | AD95: 1h 12m 13s | AE95: Lightning | AF95: 25h 51m 52s | AG95: =IF(Z96="???","???",OCCUR($T$3:$T$1000,Z96,AC96,0,1)+3600) -> 92393 | AH95: Lightning
B96: Ark-035024 | C96: 03 | D96: 50 | E96: 24 | F96: =IF(G96="?","?",COUNTIF($G$4:$G96,$G96)) -> 3 | G96: Ark | H96: =IF(R96="??? - N/A ","?",COUNTA($B$4:$B96)) -> 57 | I96: Steiner | J96: 22 | L96: ? | M96: ? | N96: ? | O96: =IF(P96="?","?",COUNTIF($P$4:$P96,$P96)) -> ? | P96: ? | Q96: =IF(R96="??? - N/A ","?",COUNTA($K$4:$K96)) -> 35 | R96: 03:50:24 - Steiner 3 | S96: =IF($T96="N/A",0,COUNTIF($T$4:$T96,$T96)) -> 3 | T96: Ark | U96: 10224 | V96: =IF($S96>1,U96-OCCUR($T$4:$T96,$T96,COUNTIF($T$4:$T96,$T96)-1,0,1),"N/A") -> 5264 | W96: =IF($T96="N/A","???",IFERROR(CONCATENATE(FLOOR(IF(COUNTIF($T$4:$T96,$T96)<2,0,$U96-OCCUR($T$4:$T96,$T96,$S96-1,0,1))/3600,1),"h ", FLOOR((IF(COUNTIF($T$4:$T96,$T96)<2,0,$U96-OCCUR($T$4:$T96,$T96,$S96-1,0,1))-FLOOR(IF(COUNTIF($T$4:$T96,$T96)<2,0,$U96-OCCUR($T$4:$T96,$T96,$S96-1,0,1))/3600,1)*3600)/60,1), "m ", IF(COUNTIF($T$4:$T96,$T96)<2,0,$U96-OCCUR($T$4:$T96,$T96,$S96-1,0,1))-FLOOR((IF(COUNTIF($T$4:$T96,$T96)<2,0,$U96-OCCUR($T$4:$T96,$T96,$S96-1,0,1))-FLOOR(IF(COUNTIF($T$4:$T96,$T96)<2,0,$U96-OCCUR($T$4:$T96,$T96,$S96-1,0,1))/3600,1)*3600)/60,1)*60-FLOOR(IF(COUNTIF($T$4:$T96,$T96)<2,0,$U96-OCCUR($T$4:$T96,$T96,$S96-1,0,1))/3600,1)*3600, "s"),"???")) -> 1h 27m 44s | X96: 1 | Y96: 5570 | Z96: =IFERROR(MID($Z$2,FindN(";",$Z$2,ROWS($Z$15:$Z96)-1)+1,FindN(";",$Z$2,ROWS($Z$15:$Z96))-(FindN(";",$Z$2,ROWS($Z$15:$Z96)-1)+1)),"???") -> Orange | AA96: 4 | AB96: 0 | AC96: 4 | AD96: 2h 40m 2s | AE96: Steiner | AF96: 25h 39m 53s | AG96: =IF(Z97="???","???",OCCUR($T$3:$T$1000,Z97,AC97,0,1)+3600) -> 76025 | AH96: Steiner
B97: Jesse-035121 | C97: 03 | D97: 51 | E97: 21 | F97: =IF(G97="?","?",COUNTIF($G$4:$G97,$G97)) -> 2 | G97: Jesse | H97: =IF(R97="??? - N/A ","?",COUNTA($B$4:$B97)) -> 58 | I97: Steiner | J97: 23 | L97: ? | M97: ? | N97: ? | O97: =IF(P97="?","?",COUNTIF($P$4:$P97,$P97)) -> ? | P97: ? | Q97: =IF(R97="??? - N/A ","?",COUNTA($K$4:$K97)) -> 35 | R97: 03:51:21 - Steiner 2 | S97: =IF($T97="N/A",0,COUNTIF($T$4:$T97,$T97)) -> 2 | T97: Jesse | U97: 10281 | V97: =IF($S97>1,U97-OCCUR($T$4:$T97,$T97,COUNTIF($T$4:$T97,$T97)-1,0,1),"N/A") -> 4187 | W97: =IF($T97="N/A","???",IFERROR(CONCATENATE(FLOOR(IF(COUNTIF($T$4:$T97,$T97)<2,0,$U97-OCCUR($T$4:$T97,$T97,$S97-1,0,1))/3600,1),"h ", FLOOR((IF(COUNTIF($T$4:$T97,$T97)<2,0,$U97-OCCUR($T$4:$T97,$T97,$S97-1,0,1))-FLOOR(IF(COUNTIF($T$4:$T97,$T97)<2,0,$U97-OCCUR($T$4:$T97,$T97,$S97-1,0,1))/3600,1)*3600)/60,1), "m ", IF(COUNTIF($T$4:$T97,$T97)<2,0,$U97-OCCUR($T$4:$T97,$T97,$S97-1,0,1))-FLOOR((IF(COUNTIF($T$4:$T97,$T97)<2,0,$U97-OCCUR($T$4:$T97,$T97,$S97-1,0,1))-FLOOR(IF(COUNTIF($T$4:$T97,$T97)<2,0,$U97-OCCUR($T$4:$T97,$T97,$S97-1,0,1))/3600,1)*3600)/60,1)*60-FLOOR(IF(COUNTIF($T$4:$T97,$T97)<2,0,$U97-OCCUR($T$4:$T97,$T97,$S97-1,0,1))/3600,1)*3600, "s"),"???")) -> 1h 9m 47s | X97: 2 | Y97: 0 | Z97: =IFERROR(MID($Z$2,FindN(";",$Z$2,ROWS($Z$15:$Z97)-1)+1,FindN(";",$Z$2,ROWS($Z$15:$Z97))-(FindN(";",$Z$2,ROWS($Z$15:$Z97)-1)+1)),"???") -> Delse | AA97: =IF(Z97="???",0,COUNTIF($G$4:$G$1001,Z97)) -> 0 | AB97: =IF(Z97="???",0,COUNTIF($P$4:$P$1001,Z97)) -> 3 | AC97: =SUM(AA97:AB97) -> 3 | AD97: 1h 32m 50s | AE97: Lightning | AF97: 21h 7m 5s | AG97: =IF(Z98="???","???",OCCUR($T$3:$T$1000,Z98,AC98,0,1)+3600) -> 72192 | AH97: Steiner
B98: Fris-035659 | C98: 03 | D98: 56 | E98: 59 | F98: =IF(G98="?","?",COUNTIF($G$4:$G98,$G98)) -> 2 | G98: Fris | H98: =IF(R98="??? - N/A ","?",COUNTA($B$4:$B98)) -> 59 | I98: Steiner | J98: 24 | L98: ? | M98: ? | N98: ? | O98: =IF(P98="?","?",COUNTIF($P$4:$P98,$P98)) -> ? | P98: ? | Q98: =IF(R98="??? - N/A ","?",COUNTA($K$4:$K98)) -> 35 | R98: 03:56:59 - Steiner 2 | S98: =IF($T98="N/A",0,COUNTIF($T$4:$T98,$T98)) -> 2 | T98: Fris | U98: 10619 | V98: =IF($S98>1,U98-OCCUR($T$4:$T98,$T98,COUNTIF($T$4:$T98,$T98)-1,0,1),"N/A") -> 6654 | W98: =IF($T98="N/A","???",IFERROR(CONCATENATE(FLOOR(IF(COUNTIF($T$4:$T98,$T98)<2,0,$U98-OCCUR($T$4:$T98,$T98,$S98-1,0,1))/3600,1),"h ", FLOOR((IF(COUNTIF($T$4:$T98,$T98)<2,0,$U98-OCCUR($T$4:$T98,$T98,$S98-1,0,1))-FLOOR(IF(COUNTIF($T$4:$T98,$T98)<2,0,$U98-OCCUR($T$4:$T98,$T98,$S98-1,0,1))/3600,1)*3600)/60,1), "m ", IF(COUNTIF($T$4:$T98,$T98)<2,0,$U98-OCCUR($T$4:$T98,$T98,$S98-1,0,1))-FLOOR((IF(COUNTIF($T$4:$T98,$T98)<2,0,$U98-OCCUR($T$4:$T98,$T98,$S98-1,0,1))-FLOOR(IF(COUNTIF($T$4:$T98,$T98)<2,0,$U98-OCCUR($T$4:$T98,$T98,$S98-1,0,1))/3600,1)*3600)/60,1)*60-FLOOR(IF(COUNTIF($T$4:$T98,$T98)<2,0,$U98-OCCUR($T$4:$T98,$T98,$S98-1,0,1))/3600,1)*3600, "s"),"???")) -> 1h 50m 54s | X98: 3 | Y98: 9094 | Z98: =IFERROR(MID($Z$2,FindN(";",$Z$2,ROWS($Z$15:$Z98)-1)+1,FindN(";",$Z$2,ROWS($Z$15:$Z98))-(FindN(";",$Z$2,ROWS($Z$15:$Z98)-1)+1)),"???") -> Dream | AA98: 1 | AB98: 0 | AC98: 1 | AD98: 0h 0m 0s | AE98: Steiner | AF98: 20h 3m 12s | AG98: =IF(Z99="???","???",OCCUR($T$3:$T$1000,Z99,AC99,0,1)+3600) -> 90400 | AH98: Steiner
B99: MWC-035709 | C99: 03 | D99: 57 | E99: 09 | F99: =IF(G99="?","?",COUNTIF($G$4:$G99,$G99)) -> 3 | G99: MWC | H99: =IF(R99="??? - N/A ","?",COUNTA($B$4:$B99)) -> 60 | I99: Steiner | J99: 25 | L99: ? | M99: ? | N99: ? | O99: =IF(P99="?","?",COUNTIF($P$4:$P99,$P99)) -> ? | P99: ? | Q99: =IF(R99="??? - N/A ","?",COUNTA($K$4:$K99)) -> 35 | R99: 03:57:09 - Steiner 3 | S99: =IF($T99="N/A",0,COUNTIF($T$4:$T99,$T99)) -> 3 | T99: MWC | U99: 10629 | V99: =IF($S99>1,U99-OCCUR($T$4:$T99,$T99,COUNTIF($T$4:$T99,$T99)-1,0,1),"N/A") -> 4622 | W99: =IF($T99="N/A","???",IFERROR(CONCATENATE(FLOOR(IF(COUNTIF($T$4:$T99,$T99)<2,0,$U99-OCCUR($T$4:$T99,$T99,$S99-1,0,1))/3600,1),"h ", FLOOR((IF(COUNTIF($T$4:$T99,$T99)<2,0,$U99-OCCUR($T$4:$T99,$T99,$S99-1,0,1))-FLOOR(IF(COUNTIF($T$4:$T99,$T99)<2,0,$U99-OCCUR($T$4:$T99,$T99,$S99-1,0,1))/3600,1)*3600)/60,1), "m ", IF(COUNTIF($T$4:$T99,$T99)<2,0,$U99-OCCUR($T$4:$T99,$T99,$S99-1,0,1))-FLOOR((IF(COUNTIF($T$4:$T99,$T99)<2,0,$U99-OCCUR($T$4:$T99,$T99,$S99-1,0,1))-FLOOR(IF(COUNTIF($T$4:$T99,$T99)<2,0,$U99-OCCUR($T$4:$T99,$T99,$S99-1,0,1))/3600,1)*3600)/60,1)*60-FLOOR(IF(COUNTIF($T$4:$T99,$T99)<2,0,$U99-OCCUR($T$4:$T99,$T99,$S99-1,0,1))/3600,1)*3600, "s"),"???")) -> 1h 17m 2s | X99: 4 | Y99: 0 | Z99: =IFERROR(MID($Z$2,FindN(";",$Z$2,ROWS($Z$15:$Z99)-1)+1,FindN(";",$Z$2,ROWS($Z$15:$Z99))-(FindN(";",$Z$2,ROWS($Z$15:$Z99)-1)+1)),"???") -> yazzy | AA99: 3 | AB99: 0 | AC99: 3 | AD99: 2h 31m 34s | AE99: Steiner | AF99: 25h 6m 40s | AG99: =IF(Z100="???","???",OCCUR($T$3:$T$1000,Z100,AC100,0,1)+3600) -> 72245 | AH99: Steiner
B100: Ultros-035749 | C100: 03 | D100: 57 | E100: 49 | F100: =IF(G100="?","?",COUNTIF($G$4:$G100,$G100)) -> 3 | G100: Ultros | H100: =IF(R100="??? - N/A ","?",COUNTA($B$4:$B100)) -> 61 | I100: Steiner | J100: 26 | L100: ? | M100: ? | N100: ? | O100: =IF(P100="?","?",COUNTIF($P$4:$P100,$P100)) -> ? | P100: ? | Q100: =IF(R100="??? - N/A ","?",COUNTA($K$4:$K100)) -> 35 | R100: 03:57:49 - Steiner 3 | S100: =IF($T100="N/A",0,COUNTIF($T$4:$T100,$T100)) -> 3 | T100: Ultros | U100: 10669 | V100: =IF($S100>1,U100-OCCUR($T$4:$T100,$T100,COUNTIF($T$4:$T100,$T100)-1,0,1),"N/A") -> 4114 | W100: =IF($T100="N/A","???",IFERROR(CONCATENATE(FLOOR(IF(COUNTIF($T$4:$T100,$T100)<2,0,$U100-OCCUR($T$4:$T100,$T100,$S100-1,0,1))/3600,1),"h ", FLOOR((IF(COUNTIF($T$4:$T100,$T100)<2,0,$U100-OCCUR($T$4:$T100,$T100,$S100-1,0,1))-FLOOR(IF(COUNTIF($T$4:$T100,$T100)<2,0,$U100-OCCUR($T$4:$T100,$T100,$S100-1,0,1))/3600,1)*3600)/60,1), "m ", IF(COUNTIF($T$4:$T100,$T100)<2,0,$U100-OCCUR($T$4:$T100,$T100,$S100-1,0,1))-FLOOR((IF(COUNTIF($T$4:$T100,$T100)<2,0,$U100-OCCUR($T$4:$T100,$T100,$S100-1,0,1))-FLOOR(IF(COUNTIF($T$4:$T100,$T100)<2,0,$U100-OCCUR($T$4:$T100,$T100,$S100-1,0,1))/3600,1)*3600)/60,1)*60-FLOOR(IF(COUNTIF($T$4:$T100,$T100)<2,0,$U100-OCCUR($T$4:$T100,$T100,$S100-1,0,1))/3600,1)*3600, "s"),"???")) -> 1h 8m 34s | X100: 5 | Y100: 5552 | Z100: =IFERROR(MID($Z$2,FindN(";",$Z$2,ROWS($Z$15:$Z100)-1)+1,FindN(";",$Z$2,ROWS($Z$15:$Z100))-(FindN(";",$Z$2,ROWS($Z$15:$Z100)-1)+1)),"???") -> graem | AA100: 1 | AB100: 0 | AC100: 1 | AD100: 0h 0m 0s | AE100: Steiner | AF100: 20h 4m 5s | AG100: =IF(Z101="???","???",OCCUR($T$3:$T$1000,Z101,AC101,0,1)+3600) -> 95509 | AH100: Steiner
C101: ? | D101: ? | E101: ? | F101: =IF(G101="?","?",COUNTIF($G$4:$G101,$G101)) -> ? | G101: ? | H101: =IF(R101="??? - N/A ","?",COUNTA($B$4:$B101)) -> 61 | I101: Steiner | J101: 25 | K101: Drak-040128 | L101: 04 | M101: 01 | N101: 28 | O101: =IF(P101="?","?",COUNTIF($P$4:$P101,$P101)) -> 2 | P101: Drak | Q101: =IF(R101="??? - N/A ","?",COUNTA($K$4:$K101)) -> 36 | R101: 04:01:28 - Lightning 2 | S101: =IF($T101="N/A",0,COUNTIF($T$4:$T101,$T101)) -> 2 | T101: Drak | U101: 10888 | V101: =IF($S101>1,U101-OCCUR($T$4:$T101,$T101,COUNTIF($T$4:$T101,$T101)-1,0,1),"N/A") -> 8374 | W101: =IF($T101="N/A","???",IFERROR(CONCATENATE(FLOOR(IF(COUNTIF($T$4:$T101,$T101)<2,0,$U101-OCCUR($T$4:$T101,$T101,$S101-1,0,1))/3600,1),"h ", FLOOR((IF(COUNTIF($T$4:$T101,$T101)<2,0,$U101-OCCUR($T$4:$T101,$T101,$S101-1,0,1))-FLOOR(IF(COUNTIF($T$4:$T101,$T101)<2,0,$U101-OCCUR($T$4:$T101,$T101,$S101-1,0,1))/3600,1)*3600)/60,1), "m ", IF(COUNTIF($T$4:$T101,$T101)<2,0,$U101-OCCUR($T$4:$T101,$T101,$S101-1,0,1))-FLOOR((IF(COUNTIF($T$4:$T101,$T101)<2,0,$U101-OCCUR($T$4:$T101,$T101,$S101-1,0,1))-FLOOR(IF(COUNTIF($T$4:$T101,$T101)<2,0,$U101-OCCUR($T$4:$T101,$T101,$S101-1,0,1))/3600,1)*3600)/60,1)*60-FLOOR(IF(COUNTIF($T$4:$T101,$T101)<2,0,$U101-OCCUR($T$4:$T101,$T101,$S101-1,0,1))/3600,1)*3600, "s"),"???")) -> 2h 19m 34s | X101: 1 | Y101: 6238 | Z101: =IFERROR(MID($Z$2,FindN(";",$Z$2,ROWS($Z$15:$Z101)-1)+1,FindN(";",$Z$2,ROWS($Z$15:$Z101))-(FindN(";",$Z$2,ROWS($Z$15:$Z101)-1)+1)),"???") -> TRE | AA101: 5 | AB101: 0 | AC101: 5 | AD101: 1h 32m 32s | AE101: Steiner | AF101: 26h 31m 49s | AG101: =IF(Z102="???","???",OCCUR($T$3:$T$1000,Z102,AC102,0,1)+3600) -> 92165 | AH101: Lightning
B102: kbm-040954 | C102: 04 | D102: 09 | E102: 54 | F102: =IF(G102="?","?",COUNTIF($G$4:$G102,$G102)) -> 1 | G102: kbm | H102: =IF(R102="??? - N/A ","?",COUNTA($B$4:$B102)) -> 62 | I102: Steiner | J102: 26 | L102: ? | M102: ? | N102: ? | O102: =IF(P102="?","?",COUNTIF($P$4:$P102,$P102)) -> ? | P102: ? | Q102: =IF(R102="??? - N/A ","?",COUNTA($K$4:$K102)) -> 36 | R102: 04:09:54 - Steiner 1 | S102: =IF($T102="N/A",0,COUNTIF($T$4:$T102,$T102)) -> 1 | T102: kbm | U102: 11394 | V102: =IF($S102>1,U102-OCCUR($T$4:$T102,$T102,COUNTIF($T$4:$T102,$T102)-1,0,1),"N/A") -> N/A | W102: =IF($T102="N/A","???",IFERROR(CONCATENATE(FLOOR(IF(COUNTIF($T$4:$T102,$T102)<2,0,$U102-OCCUR($T$4:$T102,$T102,$S102-1,0,1))/3600,1),"h ", FLOOR((IF(COUNTIF($T$4:$T102,$T102)<2,0,$U102-OCCUR($T$4:$T102,$T102,$S102-1,0,1))-FLOOR(IF(COUNTIF($T$4:$T102,$T102)<2,0,$U102-OCCUR($T$4:$T102,$T102,$S102-1,0,1))/3600,1)*3600)/60,1), "m ", IF(COUNTIF($T$4:$T102,$T102)<2,0,$U102-OCCUR($T$4:$T102,$T102,$S102-1,0,1))-FLOOR((IF(COUNTIF($T$4:$T102,$T102)<2,0,$U102-OCCUR($T$4:$T102,$T102,$S102-1,0,1))-FLOOR(IF(COUNTIF($T$4:$T102,$T102)<2,0,$U102-OCCUR($T$4:$T102,$T102,$S102-1,0,1))/3600,1)*3600)/60,1)*60-FLOOR(IF(COUNTIF($T$4:$T102,$T102)<2,0,$U102-OCCUR($T$4:$T102,$T102,$S102-1,0,1))/3600,1)*3600, "s"),"???")) -> 0h 0m 0s | X102: 1 | Y102: 3794 | Z102: =IFERROR(MID($Z$2,FindN(";",$Z$2,ROWS($Z$15:$Z102)-1)+1,FindN(";",$Z$2,ROWS($Z$15:$Z102))-(FindN(";",$Z$2,ROWS($Z$15:$Z102)-1)+1)),"???") -> JONA | AA102: 0 | AB102: 4 | AC102: 4 | AD102: 1h 43m 58s | AE102: Lightning | AF102: 25h 36m 5s | AG102: =IF(Z103="???","???",OCCUR($T$3:$T$1000,Z103,AC103,0,1)+3600) -> 93302 | AH102: Steiner
B103: scarlet-041019 | C103: 04 | D103: 10 | E103: 19 | F103: =IF(G103="?","?",COUNTIF($G$4:$G103,$G103)) -> 2 | G103: scarlet | H103: =IF(R103="??? - N/A ","?",COUNTA($B$4:$B103)) -> 63 | I103: Steiner | J103: 27 | L103: ? | M103: ? | N103: ? | O103: =IF(P103="?","?",COUNTIF($P$4:$P103,$P103)) -> ? | P103: ? | Q103: =IF(R103="??? - N/A ","?",COUNTA($K$4:$K103)) -> 36 | R103: 04:10:19 - Steiner 2 | S103: =IF($T103="N/A",0,COUNTIF($T$4:$T103,$T103)) -> 2 | T103: scarlet | U103: 11419 | V103: =IF($S103>1,U103-OCCUR($T$4:$T103,$T103,COUNTIF($T$4:$T103,$T103)-1,0,1),"N/A") -> 6216 | W103: =IF($T103="N/A","???",IFERROR(CONCATENATE(FLOOR(IF(COUNTIF($T$4:$T103,$T103)<2,0,$U103-OCCUR($T$4:$T103,$T103,$S103-1,0,1))/3600,1),"h ", FLOOR((IF(COUNTIF($T$4:$T103,$T103)<2,0,$U103-OCCUR($T$4:$T103,$T103,$S103-1,0,1))-FLOOR(IF(COUNTIF($T$4:$T103,$T103)<2,0,$U103-OCCUR($T$4:$T103,$T103,$S103-1,0,1))/3600,1)*3600)/60,1), "m ", IF(COUNTIF($T$4:$T103,$T103)<2,0,$U103-OCCUR($T$4:$T103,$T103,$S103-1,0,1))-FLOOR((IF(COUNTIF($T$4:$T103,$T103)<2,0,$U103-OCCUR($T$4:$T103,$T103,$S103-1,0,1))-FLOOR(IF(COUNTIF($T$4:$T103,$T103)<2,0,$U103-OCCUR($T$4:$T103,$T103,$S103-1,0,1))/3600,1)*3600)/60,1)*60-FLOOR(IF(COUNTIF($T$4:$T103,$T103)<2,0,$U103-OCCUR($T$4:$T103,$T103,$S103-1,0,1))/3600,1)*3600, "s"),"???")) -> 1h 43m 36s | X103: 2 | Y103: 6198 | Z103: =IFERROR(MID($Z$2,FindN(";",$Z$2,ROWS($Z$15:$Z103)-1)+1,FindN(";",$Z$2,ROWS($Z$15:$Z103))-(FindN(";",$Z$2,ROWS($Z$15:$Z103)-1)+1)),"???") -> FFD | AA103: 5 | AB103: 0 | AC103: 5 | AD103: 1h 3m 14s | AE103: Steiner | AF103: 25h 55m 2s | AG103: =IF(Z104="???","???",OCCUR($T$3:$T$1000,Z104,AC104,0,1)+3600) -> 90791 | AH103: Steiner
B104: Laus-041403 | C104: 04 | D104: 14 | E104: 03 | F104: =IF(G104="?","?",COUNTIF($G$4:$G104,$G104)) -> 2 | G104: Laus | H104: =IF(R104="??? - N/A ","?",COUNTA($B$4:$B104)) -> 64 | I104: Steiner | J104: 28 | L104: ? | M104: ? | N104: ? | O104: =IF(P104="?","?",COUNTIF($P$4:$P104,$P104)) -> ? | P104: ? | Q104: =IF(R104="??? - N/A ","?",COUNTA($K$4:$K104)) -> 36 | R104: 04:14:03 - Steiner 2 | S104: =IF($T104="N/A",0,COUNTIF($T$4:$T104,$T104)) -> 2 | T104: Laus | U104: 11643 | V104: =IF($S104>1,U104-OCCUR($T$4:$T104,$T104,COUNTIF($T$4:$T104,$T104)-1,0,1),"N/A") -> 3652 | W104: =IF($T104="N/A","???",IFERROR(CONCATENATE(FLOOR(IF(COUNTIF($T$4:$T104,$T104)<2,0,$U104-OCCUR($T$4:$T104,$T104,$S104-1,0,1))/3600,1),"h ", FLOOR((IF(COUNTIF($T$4:$T104,$T104)<2,0,$U104-OCCUR($T$4:$T104,$T104,$S104-1,0,1))-FLOOR(IF(COUNTIF($T$4:$T104,$T104)<2,0,$U104-OCCUR($T$4:$T104,$T104,$S104-1,0,1))/3600,1)*3600)/60,1), "m ", IF(COUNTIF($T$4:$T104,$T104)<2,0,$U104-OCCUR($T$4:$T104,$T104,$S104-1,0,1))-FLOOR((IF(COUNTIF($T$4:$T104,$T104)<2,0,$U104-OCCUR($T$4:$T104,$T104,$S104-1,0,1))-FLOOR(IF(COUNTIF($T$4:$T104,$T104)<2,0,$U104-OCCUR($T$4:$T104,$T104,$S104-1,0,1))/3600,1)*3600)/60,1)*60-FLOOR(IF(COUNTIF($T$4:$T104,$T104)<2,0,$U104-OCCUR($T$4:$T104,$T104,$S104-1,0,1))/3600,1)*3600, "s"),"???")) -> 1h 0m 52s | X104: 3 | Y104: 5618 | Z104: =IFERROR(MID($Z$2,FindN(";",$Z$2,ROWS($Z$15:$Z104)-1)+1,FindN(";",$Z$2,ROWS($Z$15:$Z104))-(FindN(";",$Z$2,ROWS($Z$15:$Z104)-1)+1)),"???") -> Corrik | AA104: 0 | AB104: 3 | AC104: 3 | AD104: 1h 43m 18s | AE104: Lightning | AF104: 25h 13m 11s | AG104: =IF(Z105="???","???",OCCUR($T$3:$T$1000,Z105,AC105,0,1)+3600) -> 93338 | AH104: Steiner
B105: FBike-042509 | C105: 04 | D105: 25 | E105: 09 | F105: =IF(G105="?","?",COUNTIF($G$4:$G105,$G105)) -> 1 | G105: FBike | H105: =IF(R105="??? - N/A ","?",COUNTA($B$4:$B105)) -> 65 | I105: Steiner | J105: 29 | L105: ? | M105: ? | N105: ? | O105: =IF(P105="?","?",COUNTIF($P$4:$P105,$P105)) -> ? | P105: ? | Q105: =IF(R105="??? - N/A ","?",COUNTA($K$4:$K105)) -> 36 | R105: 04:25:09 - Steiner 1 | S105: =IF($T105="N/A",0,COUNTIF($T$4:$T105,$T105)) -> 1 | T105: FBike | U105: 12309 | V105: =IF($S105>1,U105-OCCUR($T$4:$T105,$T105,COUNTIF($T$4:$T105,$T105)-1,0,1),"N/A") -> N/A | W105: =IF($T105="N/A","???",IFERROR(CONCATENATE(FLOOR(IF(COUNTIF($T$4:$T105,$T105)<2,0,$U105-OCCUR($T$4:$T105,$T105,$S105-1,0,1))/3600,1),"h ", FLOOR((IF(COUNTIF($T$4:$T105,$T105)<2,0,$U105-OCCUR($T$4:$T105,$T105,$S105-1,0,1))-FLOOR(IF(COUNTIF($T$4:$T105,$T105)<2,0,$U105-OCCUR($T$4:$T105,$T105,$S105-1,0,1))/3600,1)*3600)/60,1), "m ", IF(COUNTIF($T$4:$T105,$T105)<2,0,$U105-OCCUR($T$4:$T105,$T105,$S105-1,0,1))-FLOOR((IF(COUNTIF($T$4:$T105,$T105)<2,0,$U105-OCCUR($T$4:$T105,$T105,$S105-1,0,1))-FLOOR(IF(COUNTIF($T$4:$T105,$T105)<2,0,$U105-OCCUR($T$4:$T105,$T105,$S105-1,0,1))/3600,1)*3600)/60,1)*60-FLOOR(IF(COUNTIF($T$4:$T105,$T105)<2,0,$U105-OCCUR($T$4:$T105,$T105,$S105-1,0,1))/3600,1)*3600, "s"),"???")) -> 0h 0m 0s | X105: 4 | Y105: 0 | Z105: =IFERROR(MID($Z$2,FindN(";",$Z$2,ROWS($Z$15:$Z105)-1)+1,FindN(";",$Z$2,ROWS($Z$15:$Z105))-(FindN(";",$Z$2,ROWS($Z$15:$Z105)-1)+1)),"???") -> War | AA105: 3 | AB105: 0 | AC105: 3 | AD105: 1h 33m 38s | AE105: Steiner | AF105: 25h 55m 38s | AG105: =IF(Z106="???","???",OCCUR($T$3:$T$1000,Z106,AC106,0,1)+3600) -> 87520 | AH105: Steiner
B106: red-042653 | C106: 04 | D106: 26 | E106: 53 | F106: =IF(G106="?","?",COUNTIF($G$4:$G106,$G106)) -> 2 | G106: red | H106: =IF(R106="??? - N/A ","?",COUNTA($B$4:$B106)) -> 66 | I106: Steiner | J106: 30 | L106: ? | M106: ? | N106: ? | O106: =IF(P106="?","?",COUNTIF($P$4:$P106,$P106)) -> ? | P106: ? | Q106: =IF(R106="??? - N/A ","?",COUNTA($K$4:$K106)) -> 36 | R106: 04:26:53 - Steiner 2 | S106: =IF($T106="N/A",0,COUNTIF($T$4:$T106,$T106)) -> 2 | T106: red | U106: 12413 | V106: =IF($S106>1,U106-OCCUR($T$4:$T106,$T106,COUNTIF($T$4:$T106,$T106)-1,0,1),"N/A") -> 6141 | W106: =IF($T106="N/A","???",IFERROR(CONCATENATE(FLOOR(IF(COUNTIF($T$4:$T106,$T106)<2,0,$U106-OCCUR($T$4:$T106,$T106,$S106-1,0,1))/3600,1),"h ", FLOOR((IF(COUNTIF($T$4:$T106,$T106)<2,0,$U106-OCCUR($T$4:$T106,$T106,$S106-1,0,1))-FLOOR(IF(COUNTIF($T$4:$T106,$T106)<2,0,$U106-OCCUR($T$4:$T106,$T106,$S106-1,0,1))/3600,1)*3600)/60,1), "m ", IF(COUNTIF($T$4:$T106,$T106)<2,0,$U106-OCCUR($T$4:$T106,$T106,$S106-1,0,1))-FLOOR((IF(COUNTIF($T$4:$T106,$T106)<2,0,$U106-OCCUR($T$4:$T106,$T106,$S106-1,0,1))-FLOOR(IF(COUNTIF($T$4:$T106,$T106)<2,0,$U106-OCCUR($T$4:$T106,$T106,$S106-1,0,1))/3600,1)*3600)/60,1)*60-FLOOR(IF(COUNTIF($T$4:$T106,$T106)<2,0,$U106-OCCUR($T$4:$T106,$T106,$S106-1,0,1))/3600,1)*3600, "s"),"???")) -> 1h 42m 21s | X106: 5 | Y106: 4796 | Z106: =IFERROR(MID($Z$2,FindN(";",$Z$2,ROWS($Z$15:$Z106)-1)+1,FindN(";",$Z$2,ROWS($Z$15:$Z106))-(FindN(";",$Z$2,ROWS($Z$15:$Z106)-1)+1)),"???") -> Black | AA106: 0 | AB106: 1 | AC106: 1 | AD106: 0h 0m 0s | AE106: Lightning | AF106: 24h 18m 40s | AG106: =IF(Z107="???","???",OCCUR($T$3:$T$1000,Z107,AC107,0,1)+3600) -> 95661 | AH106: Steiner
B107: Gmun-042717 | C107: 04 | D107: 27 | E107: 17 | F107: =IF(G107="?","?",COUNTIF($G$4:$G107,$G107)) -> 4 | G107: Gmun | H107: =IF(R107="??? - N/A ","?",COUNTA($B$4:$B107)) -> 67 | I107: Steiner | J107: 31 | L107: ? | M107: ? | N107: ? | O107: =IF(P107="?","?",COUNTIF($P$4:$P107,$P107)) -> ? | P107: ? | Q107: =IF(R107="??? - N/A ","?",COUNTA($K$4:$K107)) -> 36 | R107: 04:27:17 - Steiner 4 | S107: =IF($T107="N/A",0,COUNTIF($T$4:$T107,$T107)) -> 4 | T107: Gmun | U107: 12437 | V107: =IF($S107>1,U107-OCCUR($T$4:$T107,$T107,COUNTIF($T$4:$T107,$T107)-1,0,1),"N/A") -> 3602 | W107: =IF($T107="N/A","???",IFERROR(CONCATENATE(FLOOR(IF(COUNTIF($T$4:$T107,$T107)<2,0,$U107-OCCUR($T$4:$T107,$T107,$S107-1,0,1))/3600,1),"h ", FLOOR((IF(COUNTIF($T$4:$T107,$T107)<2,0,$U107-OCCUR($T$4:$T107,$T107,$S107-1,0,1))-FLOOR(IF(COUNTIF($T$4:$T107,$T107)<2,0,$U107-OCCUR($T$4:$T107,$T107,$S107-1,0,1))/3600,1)*3600)/60,1), "m ", IF(COUNTIF($T$4:$T107,$T107)<2,0,$U107-OCCUR($T$4:$T107,$T107,$S107-1,0,1))-FLOOR((IF(COUNTIF($T$4:$T107,$T107)<2,0,$U107-OCCUR($T$4:$T107,$T107,$S107-1,0,1))-FLOOR(IF(COUNTIF($T$4:$T107,$T107)<2,0,$U107-OCCUR($T$4:$T107,$T107,$S107-1,0,1))/3600,1)*3600)/60,1)*60-FLOOR(IF(COUNTIF($T$4:$T107,$T107)<2,0,$U107-OCCUR($T$4:$T107,$T107,$S107-1,0,1))/3600,1)*3600, "s"),"???")) -> 1h 0m 2s | X107: 6 | Y107: 0 | Z107: =IFERROR(MID($Z$2,FindN(";",$Z$2,ROWS($Z$15:$Z107)-1)+1,FindN(";",$Z$2,ROWS($Z$15:$Z107))-(FindN(";",$Z$2,ROWS($Z$15:$Z107)-1)+1)),"???") -> vchar | AA107: 0 | AB107: 2 | AC107: 2 | AD107: 1h 19m 56s | AE107: Lightning | AF107: 26h 34m 21s | AG107: =IF(Z108="???","???",OCCUR($T$3:$T$1000,Z108,AC108,0,1)+3600) -> 94055 | AH107: Steiner
B108: Janus-042846 | C108: 04 | D108: 28 | E108: 46 | F108: =IF(G108="?","?",COUNTIF($G$4:$G108,$G108)) -> 2 | G108: Janus | H108: =IF(R108="??? - N/A ","?",COUNTA($B$4:$B108)) -> 68 | I108: Steiner | J108: 32 | L108: ? | M108: ? | N108: ? | O108: =IF(P108="?","?",COUNTIF($P$4:$P108,$P108)) -> ? | P108: ? | Q108: =IF(R108="??? - N/A ","?",COUNTA($K$4:$K108)) -> 36 | R108: 04:28:46 - Steiner 2 | S108: =IF($T108="N/A",0,COUNTIF($T$4:$T108,$T108)) -> 2 | T108: Janus | U108: 12526 | V108: =IF($S108>1,U108-OCCUR($T$4:$T108,$T108,COUNTIF($T$4:$T108,$T108)-1,0,1),"N/A") -> 7391 | W108: =IF($T108="N/A","???",IFERROR(CONCATENATE(FLOOR(IF(COUNTIF($T$4:$T108,$T108)<2,0,$U108-OCCUR($T$4:$T108,$T108,$S108-1,0,1))/3600,1),"h ", FLOOR((IF(COUNTIF($T$4:$T108,$T108)<2,0,$U108-OCCUR($T$4:$T108,$T108,$S108-1,0,1))-FLOOR(IF(COUNTIF($T$4:$T108,$T108)<2,0,$U108-OCCUR($T$4:$T108,$T108,$S108-1,0,1))/3600,1)*3600)/60,1), "m ", IF(COUNTIF($T$4:$T108,$T108)<2,0,$U108-OCCUR($T$4:$T108,$T108,$S108-1,0,1))-FLOOR((IF(COUNTIF($T$4:$T108,$T108)<2,0,$U108-OCCUR($T$4:$T108,$T108,$S108-1,0,1))-FLOOR(IF(COUNTIF($T$4:$T108,$T108)<2,0,$U108-OCCUR($T$4:$T108,$T108,$S108-1,0,1))/3600,1)*3600)/60,1)*60-FLOOR(IF(COUNTIF($T$4:$T108,$T108)<2,0,$U108-OCCUR($T$4:$T108,$T108,$S108-1,0,1))/3600,1)*3600, "s"),"???")) -> 2h 3m 11s | X108: 7 | Y108: -579054 | Z108: =IFERROR(MID($Z$2,FindN(";",$Z$2,ROWS($Z$15:$Z108)-1)+1,FindN(";",$Z$2,ROWS($Z$15:$Z108))-(FindN(";",$Z$2,ROWS($Z$15:$Z108)-1)+1)),"???") -> neon | AA108: 0 | AB108: 1 | AC108: 1 | AD108: 0h 0m 0s | AE108: Lightning | AF108: 26h 7m 35s | AG108: =IF(Z109="???","???",OCCUR($T$3:$T$1000,Z109,AC109,0,1)+3600) -> ??? | AH108: Steiner
C109: ? | D109: ? | E109: ? | F109: =IF(G109="?","?",COUNTIF($G$4:$G109,$G109)) -> ? | G109: ? | H109: =IF(R109="??? - N/A ","?",COUNTA($B$4:$B109)) -> 68 | I109: Steiner | J109: 31 | K109: Leon-042850 | L109: 04 | M109: 28 | N109: 50 | O109: =IF(P109="?","?",COUNTIF($P$4:$P109,$P109)) -> 4 | P109: Leon | Q109: =IF(R109="??? - N/A ","?",COUNTA($K$4:$K109)) -> 37 | R109: 04:28:50 - Lightning 4 | S109: =IF($T109="N/A",0,COUNTIF($T$4:$T109,$T109)) -> 4 | T109: Leon | U109: 12530 | V109: =IF($S109>1,U109-OCCUR($T$4:$T109,$T109,COUNTIF($T$4:$T109,$T109)-1,0,1),"N/A") -> 3625 | W109: =IF($T109="N/A","???",IFERROR(CONCATENATE(FLOOR(IF(COUNTIF($T$4:$T109,$T109)<2,0,$U109-OCCUR($T$4:$T109,$T109,$S109-1,0,1))/3600,1),"h ", FLOOR((IF(COUNTIF($T$4:$T109,$T109)<2,0,$U109-OCCUR($T$4:$T109,$T109,$S109-1,0,1))-FLOOR(IF(COUNTIF($T$4:$T109,$T109)<2,0,$U109-OCCUR($T$4:$T109,$T109,$S109-1,0,1))/3600,1)*3600)/60,1), "m ", IF(COUNTIF($T$4:$T109,$T109)<2,0,$U109-OCCUR($T$4:$T109,$T109,$S109-1,0,1))-FLOOR((IF(COUNTIF($T$4:$T109,$T109)<2,0,$U109-OCCUR($T$4:$T109,$T109,$S109-1,0,1))-FLOOR(IF(COUNTIF($T$4:$T109,$T109)<2,0,$U109-OCCUR($T$4:$T109,$T109,$S109-1,0,1))/3600,1)*3600)/60,1)*60-FLOOR(IF(COUNTIF($T$4:$T109,$T109)<2,0,$U109-OCCUR($T$4:$T109,$T109,$S109-1,0,1))/3600,1)*3600, "s"),"???")) -> 1h 0m 25s | X109: 1 | Y109: -579054 | Z109: =IFERROR(MID($Z$2,FindN(";",$Z$2,ROWS($Z$15:$Z109)-1)+1,FindN(";",$Z$2,ROWS($Z$15:$Z109))-(FindN(";",$Z$2,ROWS($Z$15:$Z109)-1)+1)),"???") -> ??? | AA109: 0 | AB109: 0 | AC109: 0 | AD109: ??? | AE109: EVEN | AF109: ??? | AG109: =IF(Z110="???","???",OCCUR($T$3:$T$1000,Z110,AC110,0,1)+3600) -> ??? | AH109: Lightning
C110: ? | D110: ? | E110: ? | F110: =IF(G110="?","?",COUNTIF($G$4:$G110,$G110)) -> ? | G110: ? | H110: =IF(R110="??? - N/A ","?",COUNTA($B$4:$B110)) -> 68 | I110: Steiner | J110: 30 | K110: mnk-043059 | L110: 04 | M110: 30 | N110: 59 | O110: =IF(P110="?","?",COUNTIF($P$4:$P110,$P110)) -> 4 | P110: mnk | Q110: =IF(R110="??? - N/A ","?",COUNTA($K$4:$K110)) -> 38 | R110: 04:30:59 - Lightning 4 | S110: =IF($T110="N/A",0,COUNTIF($T$4:$T110,$T110)) -> 4 | T110: mnk | U110: 12659 | V110: =IF($S110>1,U110-OCCUR($T$4:$T110,$T110,COUNTIF($T$4:$T110,$T110)-1,0,1),"N/A") -> 3739 | W110: =IF($T110="N/A","???",IFERROR(CONCATENATE(FLOOR(IF(COUNTIF($T$4:$T110,$T110)<2,0,$U110-OCCUR($T$4:$T110,$T110,$S110-1,0,1))/3600,1),"h ", FLOOR((IF(COUNTIF($T$4:$T110,$T110)<2,0,$U110-OCCUR($T$4:$T110,$T110,$S110-1,0,1))-FLOOR(IF(COUNTIF($T$4:$T110,$T110)<2,0,$U110-OCCUR($T$4:$T110,$T110,$S110-1,0,1))/3600,1)*3600)/60,1), "m ", IF(COUNTIF($T$4:$T110,$T110)<2,0,$U110-OCCUR($T$4:$T110,$T110,$S110-1,0,1))-FLOOR((IF(COUNTIF($T$4:$T110,$T110)<2,0,$U110-OCCUR($T$4:$T110,$T110,$S110-1,0,1))-FLOOR(IF(COUNTIF($T$4:$T110,$T110)<2,0,$U110-OCCUR($T$4:$T110,$T110,$S110-1,0,1))/3600,1)*3600)/60,1)*60-FLOOR(IF(COUNTIF($T$4:$T110,$T110)<2,0,$U110-OCCUR($T$4:$T110,$T110,$S110-1,0,1))/3600,1)*3600, "s"),"???")) -> 1h 2m 19s | X110: 2 | Y110: =IFERROR(ROUND(SUMIFS($V$4:$V$1001,$T$4:$T$1001,Z111,$V$4:$V$1001,">"&1)/(AC111-1),0),0) -> -579054 | Z110: =IFERROR(MID($Z$2,FindN(";",$Z$2,ROWS($Z$15:$Z110)-1)+1,FindN(";",$Z$2,ROWS($Z$15:$Z110))-(FindN(";",$Z$2,ROWS($Z$15:$Z110)-1)+1)),"???") -> ??? | AA110: 0 | AB110: 0 | AC110: 0 | AD110: ??? | AE110: EVEN | AF110: ??? | AG110: =IF(Z111="???","???",OCCUR($T$3:$T$1000,Z111,AC111,0,1)+3600) -> ??? | AH110: Lightning
B111: Genny-043100 | C111: 04 | D111: 31 | E111: 00 | F111: =IF(G111="?","?",COUNTIF($G$4:$G111,$G111)) -> 4 | G111: Genny | H111: =IF(R111="??? - N/A ","?",COUNTA($B$4:$B111)) -> 69 | I111: Steiner | J111: 31 | L111: ? | M111: ? | N111: ? | O111: =IF(P111="?","?",COUNTIF($P$4:$P111,$P111)) -> ? | P111: ? | Q111: =IF(R111="??? - N/A ","?",COUNTA($K$4:$K111)) -> 38 | R111: 04:31:00 - Steiner 4 | S111: =IF($T111="N/A",0,COUNTIF($T$4:$T111,$T111)) -> 4 | T111: Genny | U111: 12660 | V111: =IF($S111>1,U111-OCCUR($T$4:$T111,$T111,COUNTIF($T$4:$T111,$T111)-1,0,1),"N/A") -> 3691 | W111: =IF($T111="N/A","???",IFERROR(CONCATENATE(FLOOR(IF(COUNTIF($T$4:$T111,$T111)<2,0,$U111-OCCUR($T$4:$T111,$T111,$S111-1,0,1))/3600,1),"h ", FLOOR((IF(COUNTIF($T$4:$T111,$T111)<2,0,$U111-OCCUR($T$4:$T111,$T111,$S111-1,0,1))-FLOOR(IF(COUNTIF($T$4:$T111,$T111)<2,0,$U111-OCCUR($T$4:$T111,$T111,$S111-1,0,1))/3600,1)*3600)/60,1), "m ", IF(COUNTIF($T$4:$T111,$T111)<2,0,$U111-OCCUR($T$4:$T111,$T111,$S111-1,0,1))-FLOOR((IF(COUNTIF($T$4:$T111,$T111)<2,0,$U111-OCCUR($T$4:$T111,$T111,$S111-1,0,1))-FLOOR(IF(COUNTIF($T$4:$T111,$T111)<2,0,$U111-OCCUR($T$4:$T111,$T111,$S111-1,0,1))/3600,1)*3600)/60,1)*60-FLOOR(IF(COUNTIF($T$4:$T111,$T111)<2,0,$U111-OCCUR($T$4:$T111,$T111,$S111-1,0,1))/3600,1)*3600, "s"),"???")) -> 1h 1m 31s | X111: 1 | Y111: -579054 | Z111: =IFERROR(MID($Z$2,FindN(";",$Z$2,ROWS($Z$15:$Z111)-1)+1,FindN(";",$Z$2,ROWS($Z$15:$Z111))-(FindN(";",$Z$2,ROWS($Z$15:$Z111)-1)+1)),"???") -> ??? | AA111: 0 | AB111: 0 | AC111: 0 | AD111: =IF(Z111="???","???",CONCATENATE(FLOOR(Y110/3600,1),"h ",FLOOR((Y110-FLOOR(Y110/3600,1)*3600)/60,1),"m ",Y110-3600*FLOOR(Y110/3600,1)-60*FLOOR((Y110-FLOOR(Y110/3600,1)*3600)/60,1),"s")) -> ??? | AE111: EVEN | AF111: =IF(Z111="???","???",CONCATENATE(FLOOR(AG110/3600,1),"h ",FLOOR((AG110-FLOOR(AG110/3600,1)*3600)/60,1),"m ",AG110-3600*FLOOR(AG110/3600,1)-60*FLOOR((AG110-FLOOR(AG110/3600,1)*3600)/60,1),"s")) -> ??? | AG111: =IF(Z112="???","???",OCCUR($T$3:$T$1000,Z112,AC112,0,1)+3600) -> ??? | AH111: Steiner
C112: ? | D112: ? | E112: ? | F112: =IF(G112="?","?",COUNTIF($G$4:$G112,$G112)) -> ? | G112: ? | H112: =IF(R112="??? - N/A ","?",COUNTA($B$4:$B112)) -> 69 | I112: Steiner | J112: 30 | K112: Karo-043302 | L112: 04 | M112: 33 | N112: 02 | O112: =IF(P112="?","?",COUNTIF($P$4:$P112,$P112)) -> 3 | P112: Karo | Q112: =IF(R112="??? - N/A ","?",COUNTA($K$4:$K112)) -> 39 | R112: 04:33:02 - Lightning 3 | S112: =IF($T112="N/A",0,COUNTIF($T$4:$T112,$T112)) -> 3 | T112: Karo | U112: 12782 | V112: =IF($S112>1,U112-OCCUR($T$4:$T112,$T112,COUNTIF($T$4:$T112,$T112)-1,0,1),"N/A") -> 3648 | W112: =IF($T112="N/A","???",IFERROR(CONCATENATE(FLOOR(IF(COUNTIF($T$4:$T112,$T112)<2,0,$U112-OCCUR($T$4:$T112,$T112,$S112-1,0,1))/3600,1),"h ", FLOOR((IF(COUNTIF($T$4:$T112,$T112)<2,0,$U112-OCCUR($T$4:$T112,$T112,$S112-1,0,1))-FLOOR(IF(COUNTIF($T$4:$T112,$T112)<2,0,$U112-OCCUR($T$4:$T112,$T112,$S112-1,0,1))/3600,1)*3600)/60,1), "m ", IF(COUNTIF($T$4:$T112,$T112)<2,0,$U112-OCCUR($T$4:$T112,$T112,$S112-1,0,1))-FLOOR((IF(COUNTIF($T$4:$T112,$T112)<2,0,$U112-OCCUR($T$4:$T112,$T112,$S112-1,0,1))-FLOOR(IF(COUNTIF($T$4:$T112,$T112)<2,0,$U112-OCCUR($T$4:$T112,$T112,$S112-1,0,1))/3600,1)*3600)/60,1)*60-FLOOR(IF(COUNTIF($T$4:$T112,$T112)<2,0,$U112-OCCUR($T$4:$T112,$T112,$S112-1,0,1))/3600,1)*3600, "s"),"???")) -> 1h 0m 48s | X112: 1 | Y112: -579054 | Z112: =IFERROR(MID($Z$2,FindN(";",$Z$2,ROWS($Z$15:$Z112)-1)+1,FindN(";",$Z$2,ROWS($Z$15:$Z112))-(FindN(";",$Z$2,ROWS($Z$15:$Z112)-1)+1)),"???") -> ??? | AA112: 0 | AB112: 0 | AC112: 0 | AD112: ??? | AE112: EVEN | AF112: ??? | AG112: =IF(Z113="???","???",OCCUR($T$3:$T$1000,Z113,AC113,0,1)+3600) -> ??? | AH112: Lightning
B113: prof-043405 | C113: 04 | D113: 34 | E113: 05 | F113: =IF(G113="?","?",COUNTIF($G$4:$G113,$G113)) -> 4 | G113: prof | H113: =IF(R113="??? - N/A ","?",COUNTA($B$4:$B113)) -> 70 | I113: Steiner | J113: 31 | L113: ? | M113: ? | N113: ? | O113: =IF(P113="?","?",COUNTIF($P$4:$P113,$P113)) -> ? | P113: ? | Q113: =IF(R113="??? - N/A ","?",COUNTA($K$4:$K113)) -> 39 | R113: 04:34:05 - Steiner 4 | S113: =IF($T113="N/A",0,COUNTIF($T$4:$T113,$T113)) -> 4 | T113: prof | U113: 12845 | V113: =IF($S113>1,U113-OCCUR($T$4:$T113,$T113,COUNTIF($T$4:$T113,$T113)-1,0,1),"N/A") -> 3955 | W113: =IF($T113="N/A","???",IFERROR(CONCATENATE(FLOOR(IF(COUNTIF($T$4:$T113,$T113)<2,0,$U113-OCCUR($T$4:$T113,$T113,$S113-1,0,1))/3600,1),"h ", FLOOR((IF(COUNTIF($T$4:$T113,$T113)<2,0,$U113-OCCUR($T$4:$T113,$T113,$S113-1,0,1))-FLOOR(IF(COUNTIF($T$4:$T113,$T113)<2,0,$U113-OCCUR($T$4:$T113,$T113,$S113-1,0,1))/3600,1)*3600)/60,1), "m ", IF(COUNTIF($T$4:$T113,$T113)<2,0,$U113-OCCUR($T$4:$T113,$T113,$S113-1,0,1))-FLOOR((IF(COUNTIF($T$4:$T113,$T113)<2,0,$U113-OCCUR($T$4:$T113,$T113,$S113-1,0,1))-FLOOR(IF(COUNTIF($T$4:$T113,$T113)<2,0,$U113-OCCUR($T$4:$T113,$T113,$S113-1,0,1))/3600,1)*3600)/60,1)*60-FLOOR(IF(COUNTIF($T$4:$T113,$T113)<2,0,$U113-OCCUR($T$4:$T113,$T113,$S113-1,0,1))/3600,1)*3600, "s"),"???")) -> 1h 5m 55s | X113: 1 | Y113: -579054 | Z113: =IFERROR(MID($Z$2,FindN(";",$Z$2,ROWS($Z$15:$Z113)-1)+1,FindN(";",$Z$2,ROWS($Z$15:$Z113))-(FindN(";",$Z$2,ROWS($Z$15:$Z113)-1)+1)),"???") -> ??? | AA113: 0 | AB113: 0 | AC113: 0 | AD113: ??? | AE113: EVEN | AF113: ??? | AG113: =IF(Z114="???","???",OCCUR($T$3:$T$1000,Z114,AC114,0,1)+3600) -> ??? | AH113: Steiner
C114: ? | D114: ? | E114: ? | F114: =IF(G114="?","?",COUNTIF($G$4:$G114,$G114)) -> ? | G114: ? | H114: =IF(R114="??? - N/A ","?",COUNTA($B$4:$B114)) -> 70 | I114: Steiner | J114: 30 | K114: Arti-043645 | L114: 04 | M114: 36 | N114: 45 | O114: =IF(P114="?","?",COUNTIF($P$4:$P114,$P114)) -> 2 | P114: Arti | Q114: =IF(R114="??? - N/A ","?",COUNTA($K$4:$K114)) -> 40 | R114: 04:36:45 - Lightning 2 | S114: =IF($T114="N/A",0,COUNTIF($T$4:$T114,$T114)) -> 2 | T114: Arti | U114: 13005 | V114: =IF($S114>1,U114-OCCUR($T$4:$T114,$T114,COUNTIF($T$4:$T114,$T114)-1,0,1),"N/A") -> 8156 | W114: =IF($T114="N/A","???",IFERROR(CONCATENATE(FLOOR(IF(COUNTIF($T$4:$T114,$T114)<2,0,$U114-OCCUR($T$4:$T114,$T114,$S114-1,0,1))/3600,1),"h ", FLOOR((IF(COUNTIF($T$4:$T114,$T114)<2,0,$U114-OCCUR($T$4:$T114,$T114,$S114-1,0,1))-FLOOR(IF(COUNTIF($T$4:$T114,$T114)<2,0,$U114-OCCUR($T$4:$T114,$T114,$S114-1,0,1))/3600,1)*3600)/60,1), "m ", IF(COUNTIF($T$4:$T114,$T114)<2,0,$U114-OCCUR($T$4:$T114,$T114,$S114-1,0,1))-FLOOR((IF(COUNTIF($T$4:$T114,$T114)<2,0,$U114-OCCUR($T$4:$T114,$T114,$S114-1,0,1))-FLOOR(IF(COUNTIF($T$4:$T114,$T114)<2,0,$U114-OCCUR($T$4:$T114,$T114,$S114-1,0,1))/3600,1)*3600)/60,1)*60-FLOOR(IF(COUNTIF($T$4:$T114,$T114)<2,0,$U114-OCCUR($T$4:$T114,$T114,$S114-1,0,1))/3600,1)*3600, "s"),"???")) -> 2h 15m 56s | X114: 1 | Y114: -579054 | Z114: =IFERROR(MID($Z$2,FindN(";",$Z$2,ROWS($Z$15:$Z114)-1)+1,FindN(";",$Z$2,ROWS($Z$15:$Z114))-(FindN(";",$Z$2,ROWS($Z$15:$Z114)-1)+1)),"???") -> ??? | AA114: 0 | AB114: 0 | AC114: 0 | AD114: ??? | AE114: EVEN | AF114: ??? | AG114: =IF(Z115="???","???",OCCUR($T$3:$T$1000,Z115,AC115,0,1)+3600) -> ??? | AH114: Lightning
C115: ? | D115: ? | E115: ? | F115: =IF(G115="?","?",COUNTIF($G$4:$G115,$G115)) -> ? | G115: ? | H115: =IF(R115="??? - N/A ","?",COUNTA($B$4:$B115)) -> 70 | I115: Steiner | J115: 29 | K115: Eddv-043717 | L115: 04 | M115: 37 | N115: 17 | O115: =IF(P115="?","?",COUNTIF($P$4:$P115,$P115)) -> 4 | P115: Eddv | Q115: =IF(R115="??? - N/A ","?",COUNTA($K$4:$K115)) -> 41 | R115: 04:37:17 - Lightning 4 | S115: =IF($T115="N/A",0,COUNTIF($T$4:$T115,$T115)) -> 4 | T115: Eddv | U115: 13037 | V115: =IF($S115>1,U115-OCCUR($T$4:$T115,$T115,COUNTIF($T$4:$T115,$T115)-1,0,1),"N/A") -> 3755 | W115: =IF($T115="N/A","???",IFERROR(CONCATENATE(FLOOR(IF(COUNTIF($T$4:$T115,$T115)<2,0,$U115-OCCUR($T$4:$T115,$T115,$S115-1,0,1))/3600,1),"h ", FLOOR((IF(COUNTIF($T$4:$T115,$T115)<2,0,$U115-OCCUR($T$4:$T115,$T115,$S115-1,0,1))-FLOOR(IF(COUNTIF($T$4:$T115,$T115)<2,0,$U115-OCCUR($T$4:$T115,$T115,$S115-1,0,1))/3600,1)*3600)/60,1), "m ", IF(COUNTIF($T$4:$T115,$T115)<2,0,$U115-OCCUR($T$4:$T115,$T115,$S115-1,0,1))-FLOOR((IF(COUNTIF($T$4:$T115,$T115)<2,0,$U115-OCCUR($T$4:$T115,$T115,$S115-1,0,1))-FLOOR(IF(COUNTIF($T$4:$T115,$T115)<2,0,$U115-OCCUR($T$4:$T115,$T115,$S115-1,0,1))/3600,1)*3600)/60,1)*60-FLOOR(IF(COUNTIF($T$4:$T115,$T115)<2,0,$U115-OCCUR($T$4:$T115,$T115,$S115-1,0,1))/3600,1)*3600, "s"),"???")) -> 1h 2m 35s | X115: 2 | Y115: -579054 | Z115: =IFERROR(MID($Z$2,FindN(";",$Z$2,ROWS($Z$15:$Z115)-1)+1,FindN(";",$Z$2,ROWS($Z$15:$Z115))-(FindN(";",$Z$2,ROWS($Z$15:$Z115)-1)+1)),"???") -> ??? | AA115: 0 | AB115: 0 | AC115: 0 | AD115: ??? | AE115: EVEN | AF115: ??? | AG115: =IF(Z116="???","???",OCCUR($T$3:$T$1000,Z116,AC116,0,1)+3600) -> ??? | AH115: Lightning
B116: Chris-043837 | C116: 04 | D116: 38 | E116: 37 | F116: =IF(G116="?","?",COUNTIF($G$4:$G116,$G116)) -> 4 | G116: Chris | H116: =IF(R116="??? - N/A ","?",COUNTA($B$4:$B116)) -> 71 | I116: Steiner | J116: 30 | L116: ? | M116: ? | N116: ? | O116: =IF(P116="?","?",COUNTIF($P$4:$P116,$P116)) -> ? | P116: ? | Q116: =IF(R116="??? - N/A ","?",COUNTA($K$4:$K116)) -> 41 | R116: 04:38:37 - Steiner 4 | S116: =IF($T116="N/A",0,COUNTIF($T$4:$T116,$T116)) -> 4 | T116: Chris | U116: 13117 | V116: =IF($S116>1,U116-OCCUR($T$4:$T116,$T116,COUNTIF($T$4:$T116,$T116)-1,0,1),"N/A") -> 4594 | W116: =IF($T116="N/A","???",IFERROR(CONCATENATE(FLOOR(IF(COUNTIF($T$4:$T116,$T116)<2,0,$U116-OCCUR($T$4:$T116,$T116,$S116-1,0,1))/3600,1),"h ", FLOOR((IF(COUNTIF($T$4:$T116,$T116)<2,0,$U116-OCCUR($T$4:$T116,$T116,$S116-1,0,1))-FLOOR(IF(COUNTIF($T$4:$T116,$T116)<2,0,$U116-OCCUR($T$4:$T116,$T116,$S116-1,0,1))/3600,1)*3600)/60,1), "m ", IF(COUNTIF($T$4:$T116,$T116)<2,0,$U116-OCCUR($T$4:$T116,$T116,$S116-1,0,1))-FLOOR((IF(COUNTIF($T$4:$T116,$T116)<2,0,$U116-OCCUR($T$4:$T116,$T116,$S116-1,0,1))-FLOOR(IF(COUNTIF($T$4:$T116,$T116)<2,0,$U116-OCCUR($T$4:$T116,$T116,$S116-1,0,1))/3600,1)*3600)/60,1)*60-FLOOR(IF(COUNTIF($T$4:$T116,$T116)<2,0,$U116-OCCUR($T$4:$T116,$T116,$S116-1,0,1))/3600,1)*3600, "s"),"???")) -> 1h 16m 34s | X116: 1 | Y116: -579054 | Z116: =IFERROR(MID($Z$2,FindN(";",$Z$2,ROWS($Z$15:$Z116)-1)+1,FindN(";",$Z$2,ROWS($Z$15:$Z116))-(FindN(";",$Z$2,ROWS($Z$15:$Z116)-1)+1)),"???") -> ??? | AA116: 0 | AB116: 0 | AC116: 0 | AD116: ??? | AE116: EVEN | AF116: ??? | AG116: =IF(Z117="???","???",OCCUR($T$3:$T$1000,Z117,AC117,0,1)+3600) -> ??? | AH116: Steiner
B117: Ermine-044146 | C117: 04 | D117: 41 | E117: 46 | F117: =IF(G117="?","?",COUNTIF($G$4:$G117,$G117)) -> 2 | G117: Ermine | H117: =IF(R117="??? - N/A ","?",COUNTA($B$4:$B117)) -> 72 | I117: Steiner | J117: 31 | L117: ? | M117: ? | N117: ? | O117: =IF(P117="?","?",COUNTIF($P$4:$P117,$P117)) -> ? | P117: ? | Q117: =IF(R117="??? - N/A ","?",COUNTA($K$4:$K117)) -> 41 | R117: 04:41:46 - Steiner 2 | S117: =IF($T117="N/A",0,COUNTIF($T$4:$T117,$T117)) -> 2 | T117: Ermine | U117: 13306 | V117: =IF($S117>1,U117-OCCUR($T$4:$T117,$T117,COUNTIF($T$4:$T117,$T117)-1,0,1),"N/A") -> 9466 | W117: =IF($T117="N/A","???",IFERROR(CONCATENATE(FLOOR(IF(COUNTIF($T$4:$T117,$T117)<2,0,$U117-OCCUR($T$4:$T117,$T117,$S117-1,0,1))/3600,1),"h ", FLOOR((IF(COUNTIF($T$4:$T117,$T117)<2,0,$U117-OCCUR($T$4:$T117,$T117,$S117-1,0,1))-FLOOR(IF(COUNTIF($T$4:$T117,$T117)<2,0,$U117-OCCUR($T$4:$T117,$T117,$S117-1,0,1))/3600,1)*3600)/60,1), "m ", IF(COUNTIF($T$4:$T117,$T117)<2,0,$U117-OCCUR($T$4:$T117,$T117,$S117-1,0,1))-FLOOR((IF(COUNTIF($T$4:$T117,$T117)<2,0,$U117-OCCUR($T$4:$T117,$T117,$S117-1,0,1))-FLOOR(IF(COUNTIF($T$4:$T117,$T117)<2,0,$U117-OCCUR($T$4:$T117,$T117,$S117-1,0,1))/3600,1)*3600)/60,1)*60-FLOOR(IF(COUNTIF($T$4:$T117,$T117)<2,0,$U117-OCCUR($T$4:$T117,$T117,$S117-1,0,1))/3600,1)*3600, "s"),"???")) -> 2h 37m 46s | X117: 2 | Y117: -579054 | Z117: =IFERROR(MID($Z$2,FindN(";",$Z$2,ROWS($Z$15:$Z117)-1)+1,FindN(";",$Z$2,ROWS($Z$15:$Z117))-(FindN(";",$Z$2,ROWS($Z$15:$Z117)-1)+1)),"???") -> ??? | AA117: 0 | AB117: 0 | AC117: 0 | AD117: ??? | AE117: EVEN | AF117: ??? | AG117: =IF(Z118="???","???",OCCUR($T$3:$T$1000,Z118,AC118,0,1)+3600) -> ??? | AH117: Steiner
B118: Jeff-044649 | C118: 04 | D118: 46 | E118: 49 | F118: =IF(G118="?","?",COUNTIF($G$4:$G118,$G118)) -> 3 | G118: Jeff | H118: =IF(R118="??? - N/A ","?",COUNTA($B$4:$B118)) -> 73 | I118: Steiner | J118: 32 | L118: ? | M118: ? | N118: ? | O118: =IF(P118="?","?",COUNTIF($P$4:$P118,$P118)) -> ? | P118: ? | Q118: =IF(R118="??? - N/A ","?",COUNTA($K$4:$K118)) -> 41 | R118: 04:46:49 - Steiner 3 | S118: =IF($T118="N/A",0,COUNTIF($T$4:$T118,$T118)) -> 3 | T118: Jeff | U118: 13609 | V118: =IF($S118>1,U118-OCCUR($T$4:$T118,$T118,COUNTIF($T$4:$T118,$T118)-1,0,1),"N/A") -> 8599 | W118: =IF($T118="N/A","???",IFERROR(CONCATENATE(FLOOR(IF(COUNTIF($T$4:$T118,$T118)<2,0,$U118-OCCUR($T$4:$T118,$T118,$S118-1,0,1))/3600,1),"h ", FLOOR((IF(COUNTIF($T$4:$T118,$T118)<2,0,$U118-OCCUR($T$4:$T118,$T118,$S118-1,0,1))-FLOOR(IF(COUNTIF($T$4:$T118,$T118)<2,0,$U118-OCCUR($T$4:$T118,$T118,$S118-1,0,1))/3600,1)*3600)/60,1), "m ", IF(COUNTIF($T$4:$T118,$T118)<2,0,$U118-OCCUR($T$4:$T118,$T118,$S118-1,0,1))-FLOOR((IF(COUNTIF($T$4:$T118,$T118)<2,0,$U118-OCCUR($T$4:$T118,$T118,$S118-1,0,1))-FLOOR(IF(COUNTIF($T$4:$T118,$T118)<2,0,$U118-OCCUR($T$4:$T118,$T118,$S118-1,0,1))/3600,1)*3600)/60,1)*60-FLOOR(IF(COUNTIF($T$4:$T118,$T118)<2,0,$U118-OCCUR($T$4:$T118,$T118,$S118-1,0,1))/3600,1)*3600, "s"),"???")) -> 2h 23m 19s | X118: 3 | Y118: -579054 | Z118: =IFERROR(MID($Z$2,FindN(";",$Z$2,ROWS($Z$15:$Z118)-1)+1,FindN(";",$Z$2,ROWS($Z$15:$Z118))-(FindN(";",$Z$2,ROWS($Z$15:$Z118)-1)+1)),"???") -> ??? | AA118: 0 | AB118: 0 | AC118: 0 | AD118: ??? | AE118: EVEN | AF118: ??? | AG118: =IF(Z119="???","???",OCCUR($T$3:$T$1000,Z119,AC119,0,1)+3600) -> ??? | AH118: Steiner
B119: Poke-044734 | C119: 04 | D119: 47 | E119: 34 | F119: =IF(G119="?","?",COUNTIF($G$4:$G119,$G119)) -> 1 | G119: Poke | H119: =IF(R119="??? - N/A ","?",COUNTA($B$4:$B119)) -> 74 | I119: Steiner | J119: 33 | L119: ? | M119: ? | N119: ? | O119: =IF(P119="?","?",COUNTIF($P$4:$P119,$P119)) -> ? | P119: ? | Q119: =IF(R119="??? - N/A ","?",COUNTA($K$4:$K119)) -> 41 | R119: 04:47:34 - Steiner 1 | S119: =IF($T119="N/A",0,COUNTIF($T$4:$T119,$T119)) -> 2 | T119: Poke | U119: 13654 | V119: =IF($S119>1,U119-OCCUR($T$4:$T119,$T119,COUNTIF($T$4:$T119,$T119)-1,0,1),"N/A") -> 6892 | W119: =IF($T119="N/A","???",IFERROR(CONCATENATE(FLOOR(IF(COUNTIF($T$4:$T119,$T119)<2,0,$U119-OCCUR($T$4:$T119,$T119,$S119-1,0,1))/3600,1),"h ", FLOOR((IF(COUNTIF($T$4:$T119,$T119)<2,0,$U119-OCCUR($T$4:$T119,$T119,$S119-1,0,1))-FLOOR(IF(COUNTIF($T$4:$T119,$T119)<2,0,$U119-OCCUR($T$4:$T119,$T119,$S119-1,0,1))/3600,1)*3600)/60,1), "m ", IF(COUNTIF($T$4:$T119,$T119)<2,0,$U119-OCCUR($T$4:$T119,$T119,$S119-1,0,1))-FLOOR((IF(COUNTIF($T$4:$T119,$T119)<2,0,$U119-OCCUR($T$4:$T119,$T119,$S119-1,0,1))-FLOOR(IF(COUNTIF($T$4:$T119,$T119)<2,0,$U119-OCCUR($T$4:$T119,$T119,$S119-1,0,1))/3600,1)*3600)/60,1)*60-FLOOR(IF(COUNTIF($T$4:$T119,$T119)<2,0,$U119-OCCUR($T$4:$T119,$T119,$S119-1,0,1))/3600,1)*3600, "s"),"???")) -> 1h 54m 52s | X119: 4 | Y119: -579054 | Z119: =IFERROR(MID($Z$2,FindN(";",$Z$2,ROWS($Z$15:$Z119)-1)+1,FindN(";",$Z$2,ROWS($Z$15:$Z119))-(FindN(";",$Z$2,ROWS($Z$15:$Z119)-1)+1)),"???") -> ??? | AA119: 0 | AB119: 0 | AC119: 0 | AD119: ??? | AE119: EVEN | AF119: ??? | AG119: =IF(Z120="???","???",OCCUR($T$3:$T$1000,Z120,AC120,0,1)+3600) -> ??? | AH119: Steiner
B120: Sanity-044932 | C120: 04 | D120: 49 | E120: 32 | F120: =IF(G120="?","?",COUNTIF($G$4:$G120,$G120)) -> 3 | G120: Sanity | H120: =IF(R120="??? - N/A ","?",COUNTA($B$4:$B120)) -> 75 | I120: Steiner | J120: 34 | L120: ? | M120: ? | N120: ? | O120: =IF(P120="?","?",COUNTIF($P$4:$P120,$P120)) -> ? | P120: ? | Q120: =IF(R120="??? - N/A ","?",COUNTA($K$4:$K120)) -> 41 | R120: 04:49:32 - Steiner 3 | S120: =IF($T120="N/A",0,COUNTIF($T$4:$T120,$T120)) -> 3 | T120: Sanity | U120: 13772 | V120: =IF($S120>1,U120-OCCUR($T$4:$T120,$T120,COUNTIF($T$4:$T120,$T120)-1,0,1),"N/A") -> 7202 | W120: =IF($T120="N/A","???",IFERROR(CONCATENATE(FLOOR(IF(COUNTIF($T$4:$T120,$T120)<2,0,$U120-OCCUR($T$4:$T120,$T120,$S120-1,0,1))/3600,1),"h ", FLOOR((IF(COUNTIF($T$4:$T120,$T120)<2,0,$U120-OCCUR($T$4:$T120,$T120,$S120-1,0,1))-FLOOR(IF(COUNTIF($T$4:$T120,$T120)<2,0,$U120-OCCUR($T$4:$T120,$T120,$S120-1,0,1))/3600,1)*3600)/60,1), "m ", IF(COUNTIF($T$4:$T120,$T120)<2,0,$U120-OCCUR($T$4:$T120,$T120,$S120-1,0,1))-FLOOR((IF(COUNTIF($T$4:$T120,$T120)<2,0,$U120-OCCUR($T$4:$T120,$T120,$S120-1,0,1))-FLOOR(IF(COUNTIF($T$4:$T120,$T120)<2,0,$U120-OCCUR($T$4:$T120,$T120,$S120-1,0,1))/3600,1)*3600)/60,1)*60-FLOOR(IF(COUNTIF($T$4:$T120,$T120)<2,0,$U120-OCCUR($T$4:$T120,$T120,$S120-1,0,1))/3600,1)*3600, "s"),"???")) -> 2h 0m 2s | X120: 5 | Y120: -579054 | Z120: =IFERROR(MID($Z$2,FindN(";",$Z$2,ROWS($Z$15:$Z120)-1)+1,FindN(";",$Z$2,ROWS($Z$15:$Z120))-(FindN(";",$Z$2,ROWS($Z$15:$Z120)-1)+1)),"???") -> ??? | AA120: 0 | AB120: 0 | AC120: 0 | AD120: ??? | AE120: EVEN | AF120: ??? | AG120: =IF(Z121="???","???",OCCUR($T$3:$T$1000,Z121,AC121,0,1)+3600) -> ??? | AH120: Steiner
C121: ? | D121: ? | E121: ? | F121: =IF(G121="?","?",COUNTIF($G$4:$G121,$G121)) -> ? | G121: ? | H121: =IF(R121="??? - N/A ","?",COUNTA($B$4:$B121)) -> 75 | I121: Steiner | J121: 33 | K121: Natwaf-045022 | L121: 04 | M121: 50 | N121: 22 | O121: =IF(P121="?","?",COUNTIF($P$4:$P121,$P121)) -> 3 | P121: Natwaf | Q121: =IF(R121="??? - N/A ","?",COUNTA($K$4:$K121)) -> 42 | R121: 04:50:22 - Lightning 3 | S121: =IF($T121="N/A",0,COUNTIF($T$4:$T121,$T121)) -> 3 | T121: Natwaf | U121: 13822 | V121: =IF($S121>1,U121-OCCUR($T$4:$T121,$T121,COUNTIF($T$4:$T121,$T121)-1,0,1),"N/A") -> 5843 | W121: =IF($T121="N/A","???",IFERROR(CONCATENATE(FLOOR(IF(COUNTIF($T$4:$T121,$T121)<2,0,$U121-OCCUR($T$4:$T121,$T121,$S121-1,0,1))/3600,1),"h ", FLOOR((IF(COUNTIF($T$4:$T121,$T121)<2,0,$U121-OCCUR($T$4:$T121,$T121,$S121-1,0,1))-FLOOR(IF(COUNTIF($T$4:$T121,$T121)<2,0,$U121-OCCUR($T$4:$T121,$T121,$S121-1,0,1))/3600,1)*3600)/60,1), "m ", IF(COUNTIF($T$4:$T121,$T121)<2,0,$U121-OCCUR($T$4:$T121,$T121,$S121-1,0,1))-FLOOR((IF(COUNTIF($T$4:$T121,$T121)<2,0,$U121-OCCUR($T$4:$T121,$T121,$S121-1,0,1))-FLOOR(IF(COUNTIF($T$4:$T121,$T121)<2,0,$U121-OCCUR($T$4:$T121,$T121,$S121-1,0,1))/3600,1)*3600)/60,1)*60-FLOOR(IF(COUNTIF($T$4:$T121,$T121)<2,0,$U121-OCCUR($T$4:$T121,$T121,$S121-1,0,1))/3600,1)*3600, "s"),"???")) -> 1h 37m 23s | X121: 1 | Y121: -579054 | Z121: =IFERROR(MID($Z$2,FindN(";",$Z$2,ROWS($Z$15:$Z121)-1)+1,FindN(";",$Z$2,ROWS($Z$15:$Z121))-(FindN(";",$Z$2,ROWS($Z$15:$Z121)-1)+1)),"???") -> ??? | AA121: 0 | AB121: 0 | AC121: 0 | AD121: ??? | AE121: EVEN | AF121: ??? | AG121: =IF(Z122="???","???",OCCUR($T$3:$T$1000,Z122,AC122,0,1)+3600) -> ??? | AH121: Lightning
B122: guff-045323 | C122: 04 | D122: 53 | E122: 23 | F122: =IF(G122="?","?",COUNTIF($G$4:$G122,$G122)) -> 4 | G122: guff | H122: =IF(R122="??? - N/A ","?",COUNTA($B$4:$B122)) -> 76 | I122: Steiner | J122: 34 | L122: ? | M122: ? | N122: ? | O122: =IF(P122="?","?",COUNTIF($P$4:$P122,$P122)) -> ? | P122: ? | Q122: =IF(R122="??? - N/A ","?",COUNTA($K$4:$K122)) -> 42 | R122: 04:53:23 - Steiner 4 | S122: =IF($T122="N/A",0,COUNTIF($T$4:$T122,$T122)) -> 4 | T122: guff | U122: 14003 | V122: =IF($S122>1,U122-OCCUR($T$4:$T122,$T122,COUNTIF($T$4:$T122,$T122)-1,0,1),"N/A") -> 4358 | W122: =IF($T122="N/A","???",IFERROR(CONCATENATE(FLOOR(IF(COUNTIF($T$4:$T122,$T122)<2,0,$U122-OCCUR($T$4:$T122,$T122,$S122-1,0,1))/3600,1),"h ", FLOOR((IF(COUNTIF($T$4:$T122,$T122)<2,0,$U122-OCCUR($T$4:$T122,$T122,$S122-1,0,1))-FLOOR(IF(COUNTIF($T$4:$T122,$T122)<2,0,$U122-OCCUR($T$4:$T122,$T122,$S122-1,0,1))/3600,1)*3600)/60,1), "m ", IF(COUNTIF($T$4:$T122,$T122)<2,0,$U122-OCCUR($T$4:$T122,$T122,$S122-1,0,1))-FLOOR((IF(COUNTIF($T$4:$T122,$T122)<2,0,$U122-OCCUR($T$4:$T122,$T122,$S122-1,0,1))-FLOOR(IF(COUNTIF($T$4:$T122,$T122)<2,0,$U122-OCCUR($T$4:$T122,$T122,$S122-1,0,1))/3600,1)*3600)/60,1)*60-FLOOR(IF(COUNTIF($T$4:$T122,$T122)<2,0,$U122-OCCUR($T$4:$T122,$T122,$S122-1,0,1))/3600,1)*3600, "s"),"???")) -> 1h 12m 38s | X122: 1 | Y122: -579054 | Z122: =IFERROR(MID($Z$2,FindN(";",$Z$2,ROWS($Z$15:$Z122)-1)+1,FindN(";",$Z$2,ROWS($Z$15:$Z122))-(FindN(";",$Z$2,ROWS($Z$15:$Z122)-1)+1)),"???") -> ??? | AA122: 0 | AB122: 0 | AC122: 0 | AD122: ??? | AE122: EVEN | AF122: ??? | AG122: =IF(Z123="???","???",OCCUR($T$3:$T$1000,Z123,AC123,0,1)+3600) -> ??? | AH122: Steiner
B123: Fris-045801 | C123: 04 | D123: 58 | E123: 01 | F123: =IF(G123="?","?",COUNTIF($G$4:$G123,$G123)) -> 3 | G123: Fris | H123: =IF(R123="??? - N/A ","?",COUNTA($B$4:$B123)) -> 77 | I123: Steiner | J123: 35 | L123: ? | M123: ? | N123: ? | O123: =IF(P123="?","?",COUNTIF($P$4:$P123,$P123)) -> ? | P123: ? | Q123: =IF(R123="??? - N/A ","?",COUNTA($K$4:$K123)) -> 42 | R123: 04:58:01 - Steiner 3 | S123: =IF($T123="N/A",0,COUNTIF($T$4:$T123,$T123)) -> 3 | T123: Fris | U123: 14281 | V123: =IF($S123>1,U123-OCCUR($T$4:$T123,$T123,COUNTIF($T$4:$T123,$T123)-1,0,1),"N/A") -> 3662 | W123: =IF($T123="N/A","???",IFERROR(CONCATENATE(FLOOR(IF(COUNTIF($T$4:$T123,$T123)<2,0,$U123-OCCUR($T$4:$T123,$T123,$S123-1,0,1))/3600,1),"h ", FLOOR((IF(COUNTIF($T$4:$T123,$T123)<2,0,$U123-OCCUR($T$4:$T123,$T123,$S123-1,0,1))-FLOOR(IF(COUNTIF($T$4:$T123,$T123)<2,0,$U123-OCCUR($T$4:$T123,$T123,$S123-1,0,1))/3600,1)*3600)/60,1), "m ", IF(COUNTIF($T$4:$T123,$T123)<2,0,$U123-OCCUR($T$4:$T123,$T123,$S123-1,0,1))-FLOOR((IF(COUNTIF($T$4:$T123,$T123)<2,0,$U123-OCCUR($T$4:$T123,$T123,$S123-1,0,1))-FLOOR(IF(COUNTIF($T$4:$T123,$T123)<2,0,$U123-OCCUR($T$4:$T123,$T123,$S123-1,0,1))/3600,1)*3600)/60,1)*60-FLOOR(IF(COUNTIF($T$4:$T123,$T123)<2,0,$U123-OCCUR($T$4:$T123,$T123,$S123-1,0,1))/3600,1)*3600, "s"),"???")) -> 1h 1m 2s | X123: 2 | Y123: -579054 | Z123: =IFERROR(MID($Z$2,FindN(";",$Z$2,ROWS($Z$15:$Z123)-1)+1,FindN(";",$Z$2,ROWS($Z$15:$Z123))-(FindN(";",$Z$2,ROWS($Z$15:$Z123)-1)+1)),"???") -> ??? | AA123: 0 | AB123: 0 | AC123: 0 | AD123: ??? | AE123: EVEN | AF123: ??? | AG123: =IF(Z124="???","???",OCCUR($T$3:$T$1000,Z124,AC124,0,1)+3600) -> ??? | AH123: Steiner
B124: MWC-045904 | C124: 04 | D124: 59 | E124: 04 | F124: =IF(G124="?","?",COUNTIF($G$4:$G124,$G124)) -> 4 | G124: MWC | H124: =IF(R124="??? - N/A ","?",COUNTA($B$4:$B124)) -> 78 | I124: Steiner | J124: 36 | L124: ? | M124: ? | N124: ? | O124: =IF(P124="?","?",COUNTIF($P$4:$P124,$P124)) -> ? | P124: ? | Q124: =IF(R124="??? - N/A ","?",COUNTA($K$4:$K124)) -> 42 | R124: 04:59:04 - Steiner 4 | S124: =IF($T124="N/A",0,COUNTIF($T$4:$T124,$T124)) -> 4 | T124: MWC | U124: 14344 | V124: =IF($S124>1,U124-OCCUR($T$4:$T124,$T124,COUNTIF($T$4:$T124,$T124)-1,0,1),"N/A") -> 3715 | W124: =IF($T124="N/A","???",IFERROR(CONCATENATE(FLOOR(IF(COUNTIF($T$4:$T124,$T124)<2,0,$U124-OCCUR($T$4:$T124,$T124,$S124-1,0,1))/3600,1),"h ", FLOOR((IF(COUNTIF($T$4:$T124,$T124)<2,0,$U124-OCCUR($T$4:$T124,$T124,$S124-1,0,1))-FLOOR(IF(COUNTIF($T$4:$T124,$T124)<2,0,$U124-OCCUR($T$4:$T124,$T124,$S124-1,0,1))/3600,1)*3600)/60,1), "m ", IF(COUNTIF($T$4:$T124,$T124)<2,0,$U124-OCCUR($T$4:$T124,$T124,$S124-1,0,1))-FLOOR((IF(COUNTIF($T$4:$T124,$T124)<2,0,$U124-OCCUR($T$4:$T124,$T124,$S124-1,0,1))-FLOOR(IF(COUNTIF($T$4:$T124,$T124)<2,0,$U124-OCCUR($T$4:$T124,$T124,$S124-1,0,1))/3600,1)*3600)/60,1)*60-FLOOR(IF(COUNTIF($T$4:$T124,$T124)<2,0,$U124-OCCUR($T$4:$T124,$T124,$S124-1,0,1))/3600,1)*3600, "s"),"???")) -> 1h 1m 55s | X124: 3 | Y124: -579054 | Z124: =IFERROR(MID($Z$2,FindN(";",$Z$2,ROWS($Z$15:$Z124)-1)+1,FindN(";",$Z$2,ROWS($Z$15:$Z124))-(FindN(";",$Z$2,ROWS($Z$15:$Z124)-1)+1)),"???") -> ??? | AA124: 0 | AB124: 0 | AC124: 0 | AD124: ??? | AE124: EVEN | AF124: ??? | AG124: =IF(Z125="???","???",OCCUR($T$3:$T$1000,Z125,AC125,0,1)+3600) -> ??? | AH124: Steiner
B125: Ultros-050205 | C125: 05 | D125: 02 | E125: 05 | F125: =IF(G125="?","?",COUNTIF($G$4:$G125,$G125)) -> 4 | G125: Ultros | H125: =IF(R125="??? - N/A ","?",COUNTA($B$4:$B125)) -> 79 | I125: Steiner | J125: 37 | L125: ? | M125: ? | N125: ? | O125: =IF(P125="?","?",COUNTIF($P$4:$P125,$P125)) -> ? | P125: ? | Q125: =IF(R125="??? - N/A ","?",COUNTA($K$4:$K125)) -> 42 | R125: 05:02:05 - Steiner 4 | S125: =IF($T125="N/A",0,COUNTIF($T$4:$T125,$T125)) -> 4 | T125: Ultros | U125: 14525 | V125: =IF($S125>1,U125-OCCUR($T$4:$T125,$T125,COUNTIF($T$4:$T125,$T125)-1,0,1),"N/A") -> 3856 | W125: =IF($T125="N/A","???",IFERROR(CONCATENATE(FLOOR(IF(COUNTIF($T$4:$T125,$T125)<2,0,$U125-OCCUR($T$4:$T125,$T125,$S125-1,0,1))/3600,1),"h ", FLOOR((IF(COUNTIF($T$4:$T125,$T125)<2,0,$U125-OCCUR($T$4:$T125,$T125,$S125-1,0,1))-FLOOR(IF(COUNTIF($T$4:$T125,$T125)<2,0,$U125-OCCUR($T$4:$T125,$T125,$S125-1,0,1))/3600,1)*3600)/60,1), "m ", IF(COUNTIF($T$4:$T125,$T125)<2,0,$U125-OCCUR($T$4:$T125,$T125,$S125-1,0,1))-FLOOR((IF(COUNTIF($T$4:$T125,$T125)<2,0,$U125-OCCUR($T$4:$T125,$T125,$S125-1,0,1))-FLOOR(IF(COUNTIF($T$4:$T125,$T125)<2,0,$U125-OCCUR($T$4:$T125,$T125,$S125-1,0,1))/3600,1)*3600)/60,1)*60-FLOOR(IF(COUNTIF($T$4:$T125,$T125)<2,0,$U125-OCCUR($T$4:$T125,$T125,$S125-1,0,1))/3600,1)*3600, "s"),"???")) -> 1h 4m 16s | X125: 4 | Y125: -579054 | Z125: =IFERROR(MID($Z$2,FindN(";",$Z$2,ROWS($Z$15:$Z125)-1)+1,FindN(";",$Z$2,ROWS($Z$15:$Z125))-(FindN(";",$Z$2,ROWS($Z$15:$Z125)-1)+1)),"???") -> ??? | AA125: 0 | AB125: 0 | AC125: 0 | AD125: ??? | AE125: EVEN | AF125: ??? | AG125: =IF(Z126="???","???",OCCUR($T$3:$T$1000,Z126,AC126,0,1)+3600) -> ??? | AH125: Steiner
C126: ? | D126: ? | E126: ? | F126: =IF(G126="?","?",COUNTIF($G$4:$G126,$G126)) -> ? | G126: ? | H126: =IF(R126="??? - N/A ","?",COUNTA($B$4:$B126)) -> 79 | I126: Steiner | J126: 36 | K126: MZero-050443 | L126: 05 | M126: 04 | N126: 43 | O126: =IF(P126="?","?",COUNTIF($P$4:$P126,$P126)) -> 3 | P126: MZero | Q126: =IF(R126="??? - N/A ","?",COUNTA($K$4:$K126)) -> 43 | R126: 05:04:43 - Lightning 3 | S126: =IF($T126="N/A",0,COUNTIF($T$4:$T126,$T126)) -> 3 | T126: MZero | U126: 14683 | V126: =IF($S126>1,U126-OCCUR($T$4:$T126,$T126,COUNTIF($T$4:$T126,$T126)-1,0,1),"N/A") -> 4889 | W126: =IF($T126="N/A","???",IFERROR(CONCATENATE(FLOOR(IF(COUNTIF($T$4:$T126,$T126)<2,0,$U126-OCCUR($T$4:$T126,$T126,$S126-1,0,1))/3600,1),"h ", FLOOR((IF(COUNTIF($T$4:$T126,$T126)<2,0,$U126-OCCUR($T$4:$T126,$T126,$S126-1,0,1))-FLOOR(IF(COUNTIF($T$4:$T126,$T126)<2,0,$U126-OCCUR($T$4:$T126,$T126,$S126-1,0,1))/3600,1)*3600)/60,1), "m ", IF(COUNTIF($T$4:$T126,$T126)<2,0,$U126-OCCUR($T$4:$T126,$T126,$S126-1,0,1))-FLOOR((IF(COUNTIF($T$4:$T126,$T126)<2,0,$U126-OCCUR($T$4:$T126,$T126,$S126-1,0,1))-FLOOR(IF(COUNTIF($T$4:$T126,$T126)<2,0,$U126-OCCUR($T$4:$T126,$T126,$S126-1,0,1))/3600,1)*3600)/60,1)*60-FLOOR(IF(COUNTIF($T$4:$T126,$T126)<2,0,$U126-OCCUR($T$4:$T126,$T126,$S126-1,0,1))/3600,1)*3600, "s"),"???")) -> 1h 21m 29s | X126: 1 | Y126: -579054 | Z126: =IFERROR(MID($Z$2,FindN(";",$Z$2,ROWS($Z$15:$Z126)-1)+1,FindN(";",$Z$2,ROWS($Z$15:$Z126))-(FindN(";",$Z$2,ROWS($Z$15:$Z126)-1)+1)),"???") -> ??? | AA126: 0 | AB126: 0 | AC126: 0 | AD126: ??? | AE126: EVEN | AF126: ??? | AG126: =IF(Z127="???","???",OCCUR($T$3:$T$1000,Z127,AC127,0,1)+3600) -> ??? | AH126: Lightning
C127: ? | D127: ? | E127: ? | F127: =IF(G127="?","?",COUNTIF($G$4:$G127,$G127)) -> ? | G127: ? | H127: =IF(R127="??? - N/A ","?",COUNTA($B$4:$B127)) -> 79 | I127: Steiner | J127: 35 | K127: Tangy-051043 | L127: 05 | M127: 10 | N127: 43 | O127: =IF(P127="?","?",COUNTIF($P$4:$P127,$P127)) -> 3 | P127: Tangy | Q127: =IF(R127="??? - N/A ","?",COUNTA($K$4:$K127)) -> 44 | R127: 05:10:43 - Lightning 3 | S127: =IF($T127="N/A",0,COUNTIF($T$4:$T127,$T127)) -> 3 | T127: Tangy | U127: 15043 | V127: =IF($S127>1,U127-OCCUR($T$4:$T127,$T127,COUNTIF($T$4:$T127,$T127)-1,0,1),"N/A") -> 9232 | W127: =IF($T127="N/A","???",IFERROR(CONCATENATE(FLOOR(IF(COUNTIF($T$4:$T127,$T127)<2,0,$U127-OCCUR($T$4:$T127,$T127,$S127-1,0,1))/3600,1),"h ", FLOOR((IF(COUNTIF($T$4:$T127,$T127)<2,0,$U127-OCCUR($T$4:$T127,$T127,$S127-1,0,1))-FLOOR(IF(COUNTIF($T$4:$T127,$T127)<2,0,$U127-OCCUR($T$4:$T127,$T127,$S127-1,0,1))/3600,1)*3600)/60,1), "m ", IF(COUNTIF($T$4:$T127,$T127)<2,0,$U127-OCCUR($T$4:$T127,$T127,$S127-1,0,1))-FLOOR((IF(COUNTIF($T$4:$T127,$T127)<2,0,$U127-OCCUR($T$4:$T127,$T127,$S127-1,0,1))-FLOOR(IF(COUNTIF($T$4:$T127,$T127)<2,0,$U127-OCCUR($T$4:$T127,$T127,$S127-1,0,1))/3600,1)*3600)/60,1)*60-FLOOR(IF(COUNTIF($T$4:$T127,$T127)<2,0,$U127-OCCUR($T$4:$T127,$T127,$S127-1,0,1))/3600,1)*3600, "s"),"???")) -> 2h 33m 52s | X127: 2 | Y127: -579054 | Z127: =IFERROR(MID($Z$2,FindN(";",$Z$2,ROWS($Z$15:$Z127)-1)+1,FindN(";",$Z$2,ROWS($Z$15:$Z127))-(FindN(";",$Z$2,ROWS($Z$15:$Z127)-1)+1)),"???") -> ??? | AA127: 0 | AB127: 0 | AC127: 0 | AD127: ??? | AE127: EVEN | AF127: ??? | AG127: =IF(Z128="???","???",OCCUR($T$3:$T$1000,Z128,AC128,0,1)+3600) -> ??? | AH127: Lightning
C128: ? | D128: ? | E128: ? | F128: =IF(G128="?","?",COUNTIF($G$4:$G128,$G128)) -> ? | G128: ? | H128: =IF(R128="??? - N/A ","?",COUNTA($B$4:$B128)) -> 79 | I128: Steiner | J128: 34 | K128: Kate-051100 | L128: 05 | M128: 11 | N128: 00 | O128: =IF(P128="?","?",COUNTIF($P$4:$P128,$P128)) -> 1 | P128: Kate | Q128: =IF(R128="??? - N/A ","?",COUNTA($K$4:$K128)) -> 45 | R128: 05:11:00 - Lightning 1 | S128: =IF($T128="N/A",0,COUNTIF($T$4:$T128,$T128)) -> 1 | T128: Kate | U128: 15060 | V128: =IF($S128>1,U128-OCCUR($T$4:$T128,$T128,COUNTIF($T$4:$T128,$T128)-1,0,1),"N/A") -> N/A | W128: =IF($T128="N/A","???",IFERROR(CONCATENATE(FLOOR(IF(COUNTIF($T$4:$T128,$T128)<2,0,$U128-OCCUR($T$4:$T128,$T128,$S128-1,0,1))/3600,1),"h ", FLOOR((IF(COUNTIF($T$4:$T128,$T128)<2,0,$U128-OCCUR($T$4:$T128,$T128,$S128-1,0,1))-FLOOR(IF(COUNTIF($T$4:$T128,$T128)<2,0,$U128-OCCUR($T$4:$T128,$T128,$S128-1,0,1))/3600,1)*3600)/60,1), "m ", IF(COUNTIF($T$4:$T128,$T128)<2,0,$U128-OCCUR($T$4:$T128,$T128,$S128-1,0,1))-FLOOR((IF(COUNTIF($T$4:$T128,$T128)<2,0,$U128-OCCUR($T$4:$T128,$T128,$S128-1,0,1))-FLOOR(IF(COUNTIF($T$4:$T128,$T128)<2,0,$U128-OCCUR($T$4:$T128,$T128,$S128-1,0,1))/3600,1)*3600)/60,1)*60-FLOOR(IF(COUNTIF($T$4:$T128,$T128)<2,0,$U128-OCCUR($T$4:$T128,$T128,$S128-1,0,1))/3600,1)*3600, "s"),"???")) -> 0h 0m 0s | X128: 3 | Z128: =IFERROR(MID($Z$2,FindN(";",$Z$2,ROWS($Z$15:$Z128)-1)+1,FindN(";",$Z$2,ROWS($Z$15:$Z128))-(FindN(";",$Z$2,ROWS($Z$15:$Z128)-1)+1)),"???") -> ??? | AA128: 0 | AB128: 0 | AC128: 0 | AD128: ??? | AE128: EVEN | AF128: ??? | AH128: Lightning
B129: Jesse-051244 | C129: 05 | D129: 12 | E129: 44 | F129: =IF(G129="?","?",COUNTIF($G$4:$G129,$G129)) -> 3 | G129: Jesse | H129: =IF(R129="??? - N/A ","?",COUNTA($B$4:$B129)) -> 80 | I129: Steiner | J129: 35 | L129: ? | M129: ? | N129: ? | O129: =IF(P129="?","?",COUNTIF($P$4:$P129,$P129)) -> ? | P129: ? | Q129: =IF(R129="??? - N/A ","?",COUNTA($K$4:$K129)) -> 45 | R129: 05:12:44 - Steiner 3 | S129: =IF($T129="N/A",0,COUNTIF($T$4:$T129,$T129)) -> 3 | T129: Jesse | U129: 15164 | V129: =IF($S129>1,U129-OCCUR($T$4:$T129,$T129,COUNTIF($T$4:$T129,$T129)-1,0,1),"N/A") -> 4883 | W129: =IF($T129="N/A","???",IFERROR(CONCATENATE(FLOOR(IF(COUNTIF($T$4:$T129,$T129)<2,0,$U129-OCCUR($T$4:$T129,$T129,$S129-1,0,1))/3600,1),"h ", FLOOR((IF(COUNTIF($T$4:$T129,$T129)<2,0,$U129-OCCUR($T$4:$T129,$T129,$S129-1,0,1))-FLOOR(IF(COUNTIF($T$4:$T129,$T129)<2,0,$U129-OCCUR($T$4:$T129,$T129,$S129-1,0,1))/3600,1)*3600)/60,1), "m ", IF(COUNTIF($T$4:$T129,$T129)<2,0,$U129-OCCUR($T$4:$T129,$T129,$S129-1,0,1))-FLOOR((IF(COUNTIF($T$4:$T129,$T129)<2,0,$U129-OCCUR($T$4:$T129,$T129,$S129-1,0,1))-FLOOR(IF(COUNTIF($T$4:$T129,$T129)<2,0,$U129-OCCUR($T$4:$T129,$T129,$S129-1,0,1))/3600,1)*3600)/60,1)*60-FLOOR(IF(COUNTIF($T$4:$T129,$T129)<2,0,$U129-OCCUR($T$4:$T129,$T129,$S129-1,0,1))/3600,1)*3600, "s"),"???")) -> 1h 21m 23s | X129: 1 | AH129: Steiner
B130: canada-051518 | C130: 05 | D130: 15 | E130: 18 | F130: =IF(G130="?","?",COUNTIF($G$4:$G130,$G130)) -> 2 | G130: canada | H130: =IF(R130="??? - N/A ","?",COUNTA($B$4:$B130)) -> 81 | I130: Steiner | J130: 36 | L130: ? | M130: ? | N130: ? | O130: =IF(P130="?","?",COUNTIF($P$4:$P130,$P130)) -> ? | P130: ? | Q130: =IF(R130="??? - N/A ","?",COUNTA($K$4:$K130)) -> 45 | R130: 05:15:18 - Steiner 2 | S130: =IF($T130="N/A",0,COUNTIF($T$4:$T130,$T130)) -> 2 | T130: canada | U130: 15318 | V130: =IF($S130>1,U130-OCCUR($T$4:$T130,$T130,COUNTIF($T$4:$T130,$T130)-1,0,1),"N/A") -> 10132 | W130: =IF($T130="N/A","???",IFERROR(CONCATENATE(FLOOR(IF(COUNTIF($T$4:$T130,$T130)<2,0,$U130-OCCUR($T$4:$T130,$T130,$S130-1,0,1))/3600,1),"h ", FLOOR((IF(COUNTIF($T$4:$T130,$T130)<2,0,$U130-OCCUR($T$4:$T130,$T130,$S130-1,0,1))-FLOOR(IF(COUNTIF($T$4:$T130,$T130)<2,0,$U130-OCCUR($T$4:$T130,$T130,$S130-1,0,1))/3600,1)*3600)/60,1), "m ", IF(COUNTIF($T$4:$T130,$T130)<2,0,$U130-OCCUR($T$4:$T130,$T130,$S130-1,0,1))-FLOOR((IF(COUNTIF($T$4:$T130,$T130)<2,0,$U130-OCCUR($T$4:$T130,$T130,$S130-1,0,1))-FLOOR(IF(COUNTIF($T$4:$T130,$T130)<2,0,$U130-OCCUR($T$4:$T130,$T130,$S130-1,0,1))/3600,1)*3600)/60,1)*60-FLOOR(IF(COUNTIF($T$4:$T130,$T130)<2,0,$U130-OCCUR($T$4:$T130,$T130,$S130-1,0,1))/3600,1)*3600, "s"),"???")) -> 2h 48m 52s | X130: 2 | AH130: Steiner
B131: Laus-051627 | C131: 05 | D131: 16 | E131: 27 | F131: =IF(G131="?","?",COUNTIF($G$4:$G131,$G131)) -> 3 | G131: Laus | H131: =IF(R131="??? - N/A ","?",COUNTA($B$4:$B131)) -> 82 | I131: Steiner | J131: 37 | L131: ? | M131: ? | N131: ? | O131: =IF(P131="?","?",COUNTIF($P$4:$P131,$P131)) -> ? | P131: ? | Q131: =IF(R131="??? - N/A ","?",COUNTA($K$4:$K131)) -> 45 | R131: 05:16:27 - Steiner 3 | S131: =IF($T131="N/A",0,COUNTIF($T$4:$T131,$T131)) -> 3 | T131: Laus | U131: 15387 | V131: =IF($S131>1,U131-OCCUR($T$4:$T131,$T131,COUNTIF($T$4:$T131,$T131)-1,0,1),"N/A") -> 3744 | W131: =IF($T131="N/A","???",IFERROR(CONCATENATE(FLOOR(IF(COUNTIF($T$4:$T131,$T131)<2,0,$U131-OCCUR($T$4:$T131,$T131,$S131-1,0,1))/3600,1),"h ", FLOOR((IF(COUNTIF($T$4:$T131,$T131)<2,0,$U131-OCCUR($T$4:$T131,$T131,$S131-1,0,1))-FLOOR(IF(COUNTIF($T$4:$T131,$T131)<2,0,$U131-OCCUR($T$4:$T131,$T131,$S131-1,0,1))/3600,1)*3600)/60,1), "m ", IF(COUNTIF($T$4:$T131,$T131)<2,0,$U131-OCCUR($T$4:$T131,$T131,$S131-1,0,1))-FLOOR((IF(COUNTIF($T$4:$T131,$T131)<2,0,$U131-OCCUR($T$4:$T131,$T131,$S131-1,0,1))-FLOOR(IF(COUNTIF($T$4:$T131,$T131)<2,0,$U131-OCCUR($T$4:$T131,$T131,$S131-1,0,1))/3600,1)*3600)/60,1)*60-FLOOR(IF(COUNTIF($T$4:$T131,$T131)<2,0,$U131-OCCUR($T$4:$T131,$T131,$S131-1,0,1))/3600,1)*3600, "s"),"???")) -> 1h 2m 24s | X131: 3 | AH131: Steiner
C132: =IFERROR(MID($B132,FIND("-",$B132,1)+1,2),"?") -> ? | D132: =IFERROR(MID($B132,FIND("-",$B132,1)+3,2),"?") -> ? | E132: =IFERROR(MID($B132,FIND("-",$B132,1)+5,2),"?") -> ? | F132: =IF(G132="?","?",COUNTIF($G$4:$G132,$G132)) -> ? | G132: =IFERROR(MID($B132,1,FIND("-",$B132,1)-1),"?") -> ? | H132: =IF(R132="??? - N/A ","?",COUNTA($B$4:$B132)) -> 82 | I132: =IF(R132="??? - N/A ","?",IF(H132=Q132,"TIE",IF(H132>Q132,$B$2,$K$2))) -> Steiner | J132: =IF(R132="??? - N/A ","?",ABS(H132-Q132)) -> 36 | K132: Denzo-052731 | L132: =IFERROR(MID($K132,FIND("-",$K132,1)+1,2),"?") -> 05 | M132: =IFERROR(MID($K132,FIND("-",$K132,1)+3,2),"?") -> 27 | N132: =IFERROR(MID($K132,FIND("-",$K132,1)+5,2),"?") -> 31 | O132: =IF(P132="?","?",COUNTIF($P$4:$P132,$P132)) -> 1 | P132: =IFERROR(MID($K132,1,FIND("-",$K132,1)-1),"?") -> Denzo | Q132: =IF(R132="??? - N/A ","?",COUNTA($K$4:$K132)) -> 46 | R132: 05:27:31 - Lightning 1 | S132: =IF($T132="N/A",0,COUNTIF($T$4:$T132,$T132)) -> 1 | T132: =IF(LEN(B132)>0,G132,IF(LEN(K132)>0,P132,"N/A")) -> Denzo | U132: 16051 | V132: =IF($S132>1,U132-OCCUR($T$4:$T132,$T132,COUNTIF($T$4:$T132,$T132)-1,0,1),"N/A") -> N/A | W132: =IF($T132="N/A","???",IFERROR(CONCATENATE(FLOOR(IF(COUNTIF($T$4:$T132,$T132)<2,0,$U132-OCCUR($T$4:$T132,$T132,$S132-1,0,1))/3600,1),"h ", FLOOR((IF(COUNTIF($T$4:$T132,$T132)<2,0,$U132-OCCUR($T$4:$T132,$T132,$S132-1,0,1))-FLOOR(IF(COUNTIF($T$4:$T132,$T132)<2,0,$U132-OCCUR($T$4:$T132,$T132,$S132-1,0,1))/3600,1)*3600)/60,1), "m ", IF(COUNTIF($T$4:$T132,$T132)<2,0,$U132-OCCUR($T$4:$T132,$T132,$S132-1,0,1))-FLOOR((IF(COUNTIF($T$4:$T132,$T132)<2,0,$U132-OCCUR($T$4:$T132,$T132,$S132-1,0,1))-FLOOR(IF(COUNTIF($T$4:$T132,$T132)<2,0,$U132-OCCUR($T$4:$T132,$T132,$S132-1,0,1))/3600,1)*3600)/60,1)*60-FLOOR(IF(COUNTIF($T$4:$T132,$T132)<2,0,$U132-OCCUR($T$4:$T132,$T132,$S132-1,0,1))/3600,1)*3600, "s"),"???")) -> 0h 0m 0s | X132: 1 | AH132: Lightning
B133: Janus-053237 | C133: 05 | D133: 32 | E133: 37 | F133: =IF(G133="?","?",COUNTIF($G$4:$G133,$G133)) -> 3 | G133: Janus | H133: =IF(R133="??? - N/A ","?",COUNTA($B$4:$B133)) -> 83 | I133: Steiner | J133: 37 | L133: ? | M133: ? | N133: ? | O133: =IF(P133="?","?",COUNTIF($P$4:$P133,$P133)) -> ? | P133: ? | Q133: =IF(R133="??? - N/A ","?",COUNTA($K$4:$K133)) -> 46 | R133: =CONCATENATE(IF(LEN(B133)>0,CONCATENATE(C133,":",D133,":",E133),IF(LEN(K133)>0,CONCATENATE(L133,":",M133,":",N133),"???"))," - ",IF(LEN(B133)>0,"Steiner",IF(LEN(K133)>0,"Lightning","N/A"))," ", IF(LEN(B133)>0,F133,IF(LEN(K133)>0,O133,"")) ) -> 05:32:37 - Steiner 3 | S133: =IF($T133="N/A",0,COUNTIF($T$4:$T133,$T133)) -> 3 | T133: Janus | U133: =IF(LEN(B133)>0,($E133+60*$D133+3600*($C133-1)),IF(LEN(K133)>0,$N133+60*$M133+3600*($L133-1),"???")) -> 16357 | V133: =IF($S133>1,U133-OCCUR($T$4:$T133,$T133,COUNTIF($T$4:$T133,$T133)-1,0,1),"N/A") -> 3831 | W133: =IF($T133="N/A","???",IFERROR(CONCATENATE(FLOOR(IF(COUNTIF($T$4:$T133,$T133)<2,0,$U133-OCCUR($T$4:$T133,$T133,$S133-1,0,1))/3600,1),"h ", FLOOR((IF(COUNTIF($T$4:$T133,$T133)<2,0,$U133-OCCUR($T$4:$T133,$T133,$S133-1,0,1))-FLOOR(IF(COUNTIF($T$4:$T133,$T133)<2,0,$U133-OCCUR($T$4:$T133,$T133,$S133-1,0,1))/3600,1)*3600)/60,1), "m ", IF(COUNTIF($T$4:$T133,$T133)<2,0,$U133-OCCUR($T$4:$T133,$T133,$S133-1,0,1))-FLOOR((IF(COUNTIF($T$4:$T133,$T133)<2,0,$U133-OCCUR($T$4:$T133,$T133,$S133-1,0,1))-FLOOR(IF(COUNTIF($T$4:$T133,$T133)<2,0,$U133-OCCUR($T$4:$T133,$T133,$S133-1,0,1))/3600,1)*3600)/60,1)*60-FLOOR(IF(COUNTIF($T$4:$T133,$T133)<2,0,$U133-OCCUR($T$4:$T133,$T133,$S133-1,0,1))/3600,1)*3600, "s"),"???")) -> 1h 3m 51s | X133: 1 | AH133: =IF(ISNUMBER(FIND("Steiner",R133)),"Steiner",IF(ISNUMBER(FIND("Lightning",R133)),"Lightning","???")) -> Steiner
B134: Nanis-053400 | C134: 05 | D134: 34 | E134: 00 | F134: =IF(G134="?","?",COUNTIF($G$4:$G134,$G134)) -> 1 | G134: Nanis | H134: =IF(R134="??? - N/A ","?",COUNTA($B$4:$B134)) -> 84 | I134: Steiner | J134: 38 | L134: ? | M134: ? | N134: ? | O134: =IF(P134="?","?",COUNTIF($P$4:$P134,$P134)) -> ? | P134: ? | Q134: =IF(R134="??? - N/A ","?",COUNTA($K$4:$K134)) -> 46 | R134: 05:34:00 - Steiner 1 | S134: =IF($T134="N/A",0,COUNTIF($T$4:$T134,$T134)) -> 1 | T134: Nanis | U134: 16440 | V134: =IF($S134>1,U134-OCCUR($T$4:$T134,$T134,COUNTIF($T$4:$T134,$T134)-1,0,1),"N/A") -> N/A | W134: =IF($T134="N/A","???",IFERROR(CONCATENATE(FLOOR(IF(COUNTIF($T$4:$T134,$T134)<2,0,$U134-OCCUR($T$4:$T134,$T134,$S134-1,0,1))/3600,1),"h ", FLOOR((IF(COUNTIF($T$4:$T134,$T134)<2,0,$U134-OCCUR($T$4:$T134,$T134,$S134-1,0,1))-FLOOR(IF(COUNTIF($T$4:$T134,$T134)<2,0,$U134-OCCUR($T$4:$T134,$T134,$S134-1,0,1))/3600,1)*3600)/60,1), "m ", IF(COUNTIF($T$4:$T134,$T134)<2,0,$U134-OCCUR($T$4:$T134,$T134,$S134-1,0,1))-FLOOR((IF(COUNTIF($T$4:$T134,$T134)<2,0,$U134-OCCUR($T$4:$T134,$T134,$S134-1,0,1))-FLOOR(IF(COUNTIF($T$4:$T134,$T134)<2,0,$U134-OCCUR($T$4:$T134,$T134,$S134-1,0,1))/3600,1)*3600)/60,1)*60-FLOOR(IF(COUNTIF($T$4:$T134,$T134)<2,0,$U134-OCCUR($T$4:$T134,$T134,$S134-1,0,1))/3600,1)*3600, "s"),"???")) -> 0h 0m 0s | X134: 2 | AH134: Steiner
B135: Gmun-053444 | C135: 05 | D135: 34 | E135: 44 | F135: =IF(G135="?","?",COUNTIF($G$4:$G135,$G135)) -> 5 | G135: Gmun | H135: =IF(R135="??? - N/A ","?",COUNTA($B$4:$B135)) -> 85 | I135: Steiner | J135: 39 | L135: ? | M135: ? | N135: ? | O135: =IF(P135="?","?",COUNTIF($P$4:$P135,$P135)) -> ? | P135: ? | Q135: =IF(R135="??? - N/A ","?",COUNTA($K$4:$K135)) -> 46 | R135: 05:34:44 - Steiner 5 | S135: =IF($T135="N/A",0,COUNTIF($T$4:$T135,$T135)) -> 5 | T135: Gmun | U135: 16484 | V135: =IF($S135>1,U135-OCCUR($T$4:$T135,$T135,COUNTIF($T$4:$T135,$T135)-1,0,1),"N/A") -> 4047 | W135: =IF($T135="N/A","???",IFERROR(CONCATENATE(FLOOR(IF(COUNTIF($T$4:$T135,$T135)<2,0,$U135-OCCUR($T$4:$T135,$T135,$S135-1,0,1))/3600,1),"h ", FLOOR((IF(COUNTIF($T$4:$T135,$T135)<2,0,$U135-OCCUR($T$4:$T135,$T135,$S135-1,0,1))-FLOOR(IF(COUNTIF($T$4:$T135,$T135)<2,0,$U135-OCCUR($T$4:$T135,$T135,$S135-1,0,1))/3600,1)*3600)/60,1), "m ", IF(COUNTIF($T$4:$T135,$T135)<2,0,$U135-OCCUR($T$4:$T135,$T135,$S135-1,0,1))-FLOOR((IF(COUNTIF($T$4:$T135,$T135)<2,0,$U135-OCCUR($T$4:$T135,$T135,$S135-1,0,1))-FLOOR(IF(COUNTIF($T$4:$T135,$T135)<2,0,$U135-OCCUR($T$4:$T135,$T135,$S135-1,0,1))/3600,1)*3600)/60,1)*60-FLOOR(IF(COUNTIF($T$4:$T135,$T135)<2,0,$U135-OCCUR($T$4:$T135,$T135,$S135-1,0,1))/3600,1)*3600, "s"),"???")) -> 1h 7m 27s | X135: =IF(T135="N/A","N/A",IF(MID(R135,12,5)=MID(R134,12,5),X134+1,1)) -> 3 | AH135: Steiner
C136: ? | D136: ? | E136: ? | F136: =IF(G136="?","?",COUNTIF($G$4:$G136,$G136)) -> ? | G136: ? | H136: =IF(R136="??? - N/A ","?",COUNTA($B$4:$B136)) -> 85 | I136: Steiner | J136: 38 | K136: voltch-053851 | L136: 05 | M136: 38 | N136: 51 | O136: =IF(P136="?","?",COUNTIF($P$4:$P136,$P136)) -> 1 | P136: voltch | Q136: =IF(R136="??? - N/A ","?",COUNTA($K$4:$K136)) -> 47 | R136: 05:38:51 - Lightning 1 | S136: =IF($T136="N/A",0,COUNTIF($T$4:$T136,$T136)) -> 1 | T136: voltch | U136: 16731 | V136: =IF($S136>1,U136-OCCUR($T$4:$T136,$T136,COUNTIF($T$4:$T136,$T136)-1,0,1),"N/A") -> N/A | W136: =IF($T136="N/A","???",IFERROR(CONCATENATE(FLOOR(IF(COUNTIF($T$4:$T136,$T136)<2,0,$U136-OCCUR($T$4:$T136,$T136,$S136-1,0,1))/3600,1),"h ", FLOOR((IF(COUNTIF($T$4:$T136,$T136)<2,0,$U136-OCCUR($T$4:$T136,$T136,$S136-1,0,1))-FLOOR(IF(COUNTIF($T$4:$T136,$T136)<2,0,$U136-OCCUR($T$4:$T136,$T136,$S136-1,0,1))/3600,1)*3600)/60,1), "m ", IF(COUNTIF($T$4:$T136,$T136)<2,0,$U136-OCCUR($T$4:$T136,$T136,$S136-1,0,1))-FLOOR((IF(COUNTIF($T$4:$T136,$T136)<2,0,$U136-OCCUR($T$4:$T136,$T136,$S136-1,0,1))-FLOOR(IF(COUNTIF($T$4:$T136,$T136)<2,0,$U136-OCCUR($T$4:$T136,$T136,$S136-1,0,1))/3600,1)*3600)/60,1)*60-FLOOR(IF(COUNTIF($T$4:$T136,$T136)<2,0,$U136-OCCUR($T$4:$T136,$T136,$S136-1,0,1))/3600,1)*3600, "s"),"???")) -> 0h 0m 0s | X136: 1 | AH136: Lightning
C137: ? | D137: ? | E137: ? | F137: =IF(G137="?","?",COUNTIF($G$4:$G137,$G137)) -> ? | G137: ? | H137: =IF(R137="??? - N/A ","?",COUNTA($B$4:$B137)) -> 85 | I137: Steiner | J137: 37 | K137: Karo-053923 | L137: 05 | M137: 39 | N137: 23 | O137: =IF(P137="?","?",COUNTIF($P$4:$P137,$P137)) -> 4 | P137: Karo | Q137: =IF(R137="??? - N/A ","?",COUNTA($K$4:$K137)) -> 48 | R137: 05:39:23 - Lightning 4 | S137: =IF($T137="N/A",0,COUNTIF($T$4:$T137,$T137)) -> 4 | T137: Karo | U137: 16763 | V137: =IF($S137>1,U137-OCCUR($T$4:$T137,$T137,COUNTIF($T$4:$T137,$T137)-1,0,1),"N/A") -> 3981 | W137: =IF($T137="N/A","???",IFERROR(CONCATENATE(FLOOR(IF(COUNTIF($T$4:$T137,$T137)<2,0,$U137-OCCUR($T$4:$T137,$T137,$S137-1,0,1))/3600,1),"h ", FLOOR((IF(COUNTIF($T$4:$T137,$T137)<2,0,$U137-OCCUR($T$4:$T137,$T137,$S137-1,0,1))-FLOOR(IF(COUNTIF($T$4:$T137,$T137)<2,0,$U137-OCCUR($T$4:$T137,$T137,$S137-1,0,1))/3600,1)*3600)/60,1), "m ", IF(COUNTIF($T$4:$T137,$T137)<2,0,$U137-OCCUR($T$4:$T137,$T137,$S137-1,0,1))-FLOOR((IF(COUNTIF($T$4:$T137,$T137)<2,0,$U137-OCCUR($T$4:$T137,$T137,$S137-1,0,1))-FLOOR(IF(COUNTIF($T$4:$T137,$T137)<2,0,$U137-OCCUR($T$4:$T137,$T137,$S137-1,0,1))/3600,1)*3600)/60,1)*60-FLOOR(IF(COUNTIF($T$4:$T137,$T137)<2,0,$U137-OCCUR($T$4:$T137,$T137,$S137-1,0,1))/3600,1)*3600, "s"),"???")) -> 1h 6m 21s | X137: 2 | AH137: Lightning
B138: Chris-054235 | C138: 05 | D138: 42 | E138: 35 | F138: =IF(G138="?","?",COUNTIF($G$4:$G138,$G138)) -> 5 | G138: Chris | H138: =IF(R138="??? - N/A ","?",COUNTA($B$4:$B138)) -> 86 | I138: Steiner | J138: 38 | L138: ? | M138: ? | N138: ? | O138: =IF(P138="?","?",COUNTIF($P$4:$P138,$P138)) -> ? | P138: ? | Q138: =IF(R138="??? - N/A ","?",COUNTA($K$4:$K138)) -> 48 | R138: 05:42:35 - Steiner 5 | S138: =IF($T138="N/A",0,COUNTIF($T$4:$T138,$T138)) -> 5 | T138: Chris | U138: 16955 | V138: =IF($S138>1,U138-OCCUR($T$4:$T138,$T138,COUNTIF($T$4:$T138,$T138)-1,0,1),"N/A") -> 3838 | W138: =IF($T138="N/A","???",IFERROR(CONCATENATE(FLOOR(IF(COUNTIF($T$4:$T138,$T138)<2,0,$U138-OCCUR($T$4:$T138,$T138,$S138-1,0,1))/3600,1),"h ", FLOOR((IF(COUNTIF($T$4:$T138,$T138)<2,0,$U138-OCCUR($T$4:$T138,$T138,$S138-1,0,1))-FLOOR(IF(COUNTIF($T$4:$T138,$T138)<2,0,$U138-OCCUR($T$4:$T138,$T138,$S138-1,0,1))/3600,1)*3600)/60,1), "m ", IF(COUNTIF($T$4:$T138,$T138)<2,0,$U138-OCCUR($T$4:$T138,$T138,$S138-1,0,1))-FLOOR((IF(COUNTIF($T$4:$T138,$T138)<2,0,$U138-OCCUR($T$4:$T138,$T138,$S138-1,0,1))-FLOOR(IF(COUNTIF($T$4:$T138,$T138)<2,0,$U138-OCCUR($T$4:$T138,$T138,$S138-1,0,1))/3600,1)*3600)/60,1)*60-FLOOR(IF(COUNTIF($T$4:$T138,$T138)<2,0,$U138-OCCUR($T$4:$T138,$T138,$S138-1,0,1))/3600,1)*3600, "s"),"???")) -> 1h 3m 58s | X138: 1 | AH138: Steiner
B139: red-054338 | C139: 05 | D139: 43 | E139: 38 | F139: =IF(G139="?","?",COUNTIF($G$4:$G139,$G139)) -> 3 | G139: red | H139: =IF(R139="??? - N/A ","?",COUNTA($B$4:$B139)) -> 87 | I139: Steiner | J139: 39 | L139: ? | M139: ? | N139: ? | O139: =IF(P139="?","?",COUNTIF($P$4:$P139,$P139)) -> ? | P139: ? | Q139: =IF(R139="??? - N/A ","?",COUNTA($K$4:$K139)) -> 48 | R139: 05:43:38 - Steiner 3 | S139: =IF($T139="N/A",0,COUNTIF($T$4:$T139,$T139)) -> 3 | T139: red | U139: 17018 | V139: =IF($S139>1,U139-OCCUR($T$4:$T139,$T139,COUNTIF($T$4:$T139,$T139)-1,0,1),"N/A") -> 4605 | W139: =IF($T139="N/A","???",IFERROR(CONCATENATE(FLOOR(IF(COUNTIF($T$4:$T139,$T139)<2,0,$U139-OCCUR($T$4:$T139,$T139,$S139-1,0,1))/3600,1),"h ", FLOOR((IF(COUNTIF($T$4:$T139,$T139)<2,0,$U139-OCCUR($T$4:$T139,$T139,$S139-1,0,1))-FLOOR(IF(COUNTIF($T$4:$T139,$T139)<2,0,$U139-OCCUR($T$4:$T139,$T139,$S139-1,0,1))/3600,1)*3600)/60,1), "m ", IF(COUNTIF($T$4:$T139,$T139)<2,0,$U139-OCCUR($T$4:$T139,$T139,$S139-1,0,1))-FLOOR((IF(COUNTIF($T$4:$T139,$T139)<2,0,$U139-OCCUR($T$4:$T139,$T139,$S139-1,0,1))-FLOOR(IF(COUNTIF($T$4:$T139,$T139)<2,0,$U139-OCCUR($T$4:$T139,$T139,$S139-1,0,1))/3600,1)*3600)/60,1)*60-FLOOR(IF(COUNTIF($T$4:$T139,$T139)<2,0,$U139-OCCUR($T$4:$T139,$T139,$S139-1,0,1))/3600,1)*3600, "s"),"???")) -> 1h 16m 45s | X139: 2 | AH139: Steiner
C140: ? | D140: ? | E140: ? | F140: =IF(G140="?","?",COUNTIF($G$4:$G140,$G140)) -> ? | G140: ? | H140: =IF(R140="??? - N/A ","?",COUNTA($B$4:$B140)) -> 87 | I140: Steiner | J140: 38 | K140: Eddv-054419 | L140: 05 | M140: 44 | N140: 19 | O140: =IF(P140="?","?",COUNTIF($P$4:$P140,$P140)) -> 5 | P140: Eddv | Q140: =IF(R140="??? - N/A ","?",COUNTA($K$4:$K140)) -> 49 | R140: 05:44:19 - Lightning 5 | S140: =IF($T140="N/A",0,COUNTIF($T$4:$T140,$T140)) -> 5 | T140: Eddv | U140: 17059 | V140: =IF($S140>1,U140-OCCUR($T$4:$T140,$T140,COUNTIF($T$4:$T140,$T140)-1,0,1),"N/A") -> 4022 | W140: =IF($T140="N/A","???",IFERROR(CONCATENATE(FLOOR(IF(COUNTIF($T$4:$T140,$T140)<2,0,$U140-OCCUR($T$4:$T140,$T140,$S140-1,0,1))/3600,1),"h ", FLOOR((IF(COUNTIF($T$4:$T140,$T140)<2,0,$U140-OCCUR($T$4:$T140,$T140,$S140-1,0,1))-FLOOR(IF(COUNTIF($T$4:$T140,$T140)<2,0,$U140-OCCUR($T$4:$T140,$T140,$S140-1,0,1))/3600,1)*3600)/60,1), "m ", IF(COUNTIF($T$4:$T140,$T140)<2,0,$U140-OCCUR($T$4:$T140,$T140,$S140-1,0,1))-FLOOR((IF(COUNTIF($T$4:$T140,$T140)<2,0,$U140-OCCUR($T$4:$T140,$T140,$S140-1,0,1))-FLOOR(IF(COUNTIF($T$4:$T140,$T140)<2,0,$U140-OCCUR($T$4:$T140,$T140,$S140-1,0,1))/3600,1)*3600)/60,1)*60-FLOOR(IF(COUNTIF($T$4:$T140,$T140)<2,0,$U140-OCCUR($T$4:$T140,$T140,$S140-1,0,1))/3600,1)*3600, "s"),"???")) -> 1h 7m 2s | X140: 1 | AH140: Lightning
B141: Sanity-055126 | C141: 05 | D141: 51 | E141: 26 | F141: =IF(G141="?","?",COUNTIF($G$4:$G141,$G141)) -> 4 | G141: Sanity | H141: =IF(R141="??? - N/A ","?",COUNTA($B$4:$B141)) -> 88 | I141: Steiner | J141: 39 | L141: ? | M141: ? | N141: ? | O141: =IF(P141="?","?",COUNTIF($P$4:$P141,$P141)) -> ? | P141: ? | Q141: =IF(R141="??? - N/A ","?",COUNTA($K$4:$K141)) -> 49 | R141: 05:51:26 - Steiner 4 | S141: =IF($T141="N/A",0,COUNTIF($T$4:$T141,$T141)) -> 4 | T141: Sanity | U141: 17486 | V141: =IF($S141>1,U141-OCCUR($T$4:$T141,$T141,COUNTIF($T$4:$T141,$T141)-1,0,1),"N/A") -> 3714 | W141: =IF($T141="N/A","???",IFERROR(CONCATENATE(FLOOR(IF(COUNTIF($T$4:$T141,$T141)<2,0,$U141-OCCUR($T$4:$T141,$T141,$S141-1,0,1))/3600,1),"h ", FLOOR((IF(COUNTIF($T$4:$T141,$T141)<2,0,$U141-OCCUR($T$4:$T141,$T141,$S141-1,0,1))-FLOOR(IF(COUNTIF($T$4:$T141,$T141)<2,0,$U141-OCCUR($T$4:$T141,$T141,$S141-1,0,1))/3600,1)*3600)/60,1), "m ", IF(COUNTIF($T$4:$T141,$T141)<2,0,$U141-OCCUR($T$4:$T141,$T141,$S141-1,0,1))-FLOOR((IF(COUNTIF($T$4:$T141,$T141)<2,0,$U141-OCCUR($T$4:$T141,$T141,$S141-1,0,1))-FLOOR(IF(COUNTIF($T$4:$T141,$T141)<2,0,$U141-OCCUR($T$4:$T141,$T141,$S141-1,0,1))/3600,1)*3600)/60,1)*60-FLOOR(IF(COUNTIF($T$4:$T141,$T141)<2,0,$U141-OCCUR($T$4:$T141,$T141,$S141-1,0,1))/3600,1)*3600, "s"),"???")) -> 1h 1m 54s | X141: 1 | AH141: Steiner
B142: Jeff-055229 | C142: 05 | D142: 52 | E142: 29 | F142: =IF(G142="?","?",COUNTIF($G$4:$G142,$G142)) -> 4 | G142: Jeff | H142: =IF(R142="??? - N/A ","?",COUNTA($B$4:$B142)) -> 89 | I142: Steiner | J142: 40 | L142: ? | M142: ? | N142: ? | O142: =IF(P142="?","?",COUNTIF($P$4:$P142,$P142)) -> ? | P142: ? | Q142: =IF(R142="??? - N/A ","?",COUNTA($K$4:$K142)) -> 49 | R142: 05:52:29 - Steiner 4 | S142: =IF($T142="N/A",0,COUNTIF($T$4:$T142,$T142)) -> 4 | T142: Jeff | U142: 17549 | V142: =IF($S142>1,U142-OCCUR($T$4:$T142,$T142,COUNTIF($T$4:$T142,$T142)-1,0,1),"N/A") -> 3940 | W142: =IF($T142="N/A","???",IFERROR(CONCATENATE(FLOOR(IF(COUNTIF($T$4:$T142,$T142)<2,0,$U142-OCCUR($T$4:$T142,$T142,$S142-1,0,1))/3600,1),"h ", FLOOR((IF(COUNTIF($T$4:$T142,$T142)<2,0,$U142-OCCUR($T$4:$T142,$T142,$S142-1,0,1))-FLOOR(IF(COUNTIF($T$4:$T142,$T142)<2,0,$U142-OCCUR($T$4:$T142,$T142,$S142-1,0,1))/3600,1)*3600)/60,1), "m ", IF(COUNTIF($T$4:$T142,$T142)<2,0,$U142-OCCUR($T$4:$T142,$T142,$S142-1,0,1))-FLOOR((IF(COUNTIF($T$4:$T142,$T142)<2,0,$U142-OCCUR($T$4:$T142,$T142,$S142-1,0,1))-FLOOR(IF(COUNTIF($T$4:$T142,$T142)<2,0,$U142-OCCUR($T$4:$T142,$T142,$S142-1,0,1))/3600,1)*3600)/60,1)*60-FLOOR(IF(COUNTIF($T$4:$T142,$T142)<2,0,$U142-OCCUR($T$4:$T142,$T142,$S142-1,0,1))/3600,1)*3600, "s"),"???")) -> 1h 5m 40s | X142: 2 | AH142: Steiner
C143: ? | D143: ? | E143: ? | F143: =IF(G143="?","?",COUNTIF($G$4:$G143,$G143)) -> ? | G143: ? | H143: =IF(R143="??? - N/A ","?",COUNTA($B$4:$B143)) -> 89 | I143: Steiner | J143: 39 | K143: Natwaf-055418 | L143: 05 | M143: 54 | N143: 18 | O143: =IF(P143="?","?",COUNTIF($P$4:$P143,$P143)) -> 4 | P143: Natwaf | Q143: =IF(R143="??? - N/A ","?",COUNTA($K$4:$K143)) -> 50 | R143: 05:54:18 - Lightning 4 | S143: =IF($T143="N/A",0,COUNTIF($T$4:$T143,$T143)) -> 4 | T143: Natwaf | U143: 17658 | V143: =IF($S143>1,U143-OCCUR($T$4:$T143,$T143,COUNTIF($T$4:$T143,$T143)-1,0,1),"N/A") -> 3836 | W143: =IF($T143="N/A","???",IFERROR(CONCATENATE(FLOOR(IF(COUNTIF($T$4:$T143,$T143)<2,0,$U143-OCCUR($T$4:$T143,$T143,$S143-1,0,1))/3600,1),"h ", FLOOR((IF(COUNTIF($T$4:$T143,$T143)<2,0,$U143-OCCUR($T$4:$T143,$T143,$S143-1,0,1))-FLOOR(IF(COUNTIF($T$4:$T143,$T143)<2,0,$U143-OCCUR($T$4:$T143,$T143,$S143-1,0,1))/3600,1)*3600)/60,1), "m ", IF(COUNTIF($T$4:$T143,$T143)<2,0,$U143-OCCUR($T$4:$T143,$T143,$S143-1,0,1))-FLOOR((IF(COUNTIF($T$4:$T143,$T143)<2,0,$U143-OCCUR($T$4:$T143,$T143,$S143-1,0,1))-FLOOR(IF(COUNTIF($T$4:$T143,$T143)<2,0,$U143-OCCUR($T$4:$T143,$T143,$S143-1,0,1))/3600,1)*3600)/60,1)*60-FLOOR(IF(COUNTIF($T$4:$T143,$T143)<2,0,$U143-OCCUR($T$4:$T143,$T143,$S143-1,0,1))/3600,1)*3600, "s"),"???")) -> 1h 3m 56s | X143: 1 | AH143: Lightning
B144: guff-055600 | C144: 05 | D144: 56 | E144: 00 | F144: =IF(G144="?","?",COUNTIF($G$4:$G144,$G144)) -> 5 | G144: guff | H144: =IF(R144="??? - N/A ","?",COUNTA($B$4:$B144)) -> 90 | I144: Steiner | J144: 40 | L144: ? | M144: ? | N144: ? | O144: =IF(P144="?","?",COUNTIF($P$4:$P144,$P144)) -> ? | P144: ? | Q144: =IF(R144="??? - N/A ","?",COUNTA($K$4:$K144)) -> 50 | R144: 05:56:00 - Steiner 5 | S144: =IF($T144="N/A",0,COUNTIF($T$4:$T144,$T144)) -> 5 | T144: guff | U144: 17760 | V144: =IF($S144>1,U144-OCCUR($T$4:$T144,$T144,COUNTIF($T$4:$T144,$T144)-1,0,1),"N/A") -> 3757 | W144: =IF($T144="N/A","???",IFERROR(CONCATENATE(FLOOR(IF(COUNTIF($T$4:$T144,$T144)<2,0,$U144-OCCUR($T$4:$T144,$T144,$S144-1,0,1))/3600,1),"h ", FLOOR((IF(COUNTIF($T$4:$T144,$T144)<2,0,$U144-OCCUR($T$4:$T144,$T144,$S144-1,0,1))-FLOOR(IF(COUNTIF($T$4:$T144,$T144)<2,0,$U144-OCCUR($T$4:$T144,$T144,$S144-1,0,1))/3600,1)*3600)/60,1), "m ", IF(COUNTIF($T$4:$T144,$T144)<2,0,$U144-OCCUR($T$4:$T144,$T144,$S144-1,0,1))-FLOOR((IF(COUNTIF($T$4:$T144,$T144)<2,0,$U144-OCCUR($T$4:$T144,$T144,$S144-1,0,1))-FLOOR(IF(COUNTIF($T$4:$T144,$T144)<2,0,$U144-OCCUR($T$4:$T144,$T144,$S144-1,0,1))/3600,1)*3600)/60,1)*60-FLOOR(IF(COUNTIF($T$4:$T144,$T144)<2,0,$U144-OCCUR($T$4:$T144,$T144,$S144-1,0,1))/3600,1)*3600, "s"),"???")) -> 1h 2m 37s | X144: 1 | AH144: Steiner
B145: barrel-060151 | C145: 06 | D145: 01 | E145: 51 | F145: =IF(G145="?","?",COUNTIF($G$4:$G145,$G145)) -> 3 | G145: barrel | H145: =IF(R145="??? - N/A ","?",COUNTA($B$4:$B145)) -> 91 | I145: Steiner | J145: 41 | L145: ? | M145: ? | N145: ? | O145: =IF(P145="?","?",COUNTIF($P$4:$P145,$P145)) -> ? | P145: ? | Q145: =IF(R145="??? - N/A ","?",COUNTA($K$4:$K145)) -> 50 | R145: 06:01:51 - Steiner 3 | S145: =IF($T145="N/A",0,COUNTIF($T$4:$T145,$T145)) -> 3 | T145: barrel | U145: 18111 | V145: =IF($S145>1,U145-OCCUR($T$4:$T145,$T145,COUNTIF($T$4:$T145,$T145)-1,0,1),"N/A") -> 11506 | W145: =IF($T145="N/A","???",IFERROR(CONCATENATE(FLOOR(IF(COUNTIF($T$4:$T145,$T145)<2,0,$U145-OCCUR($T$4:$T145,$T145,$S145-1,0,1))/3600,1),"h ", FLOOR((IF(COUNTIF($T$4:$T145,$T145)<2,0,$U145-OCCUR($T$4:$T145,$T145,$S145-1,0,1))-FLOOR(IF(COUNTIF($T$4:$T145,$T145)<2,0,$U145-OCCUR($T$4:$T145,$T145,$S145-1,0,1))/3600,1)*3600)/60,1), "m ", IF(COUNTIF($T$4:$T145,$T145)<2,0,$U145-OCCUR($T$4:$T145,$T145,$S145-1,0,1))-FLOOR((IF(COUNTIF($T$4:$T145,$T145)<2,0,$U145-OCCUR($T$4:$T145,$T145,$S145-1,0,1))-FLOOR(IF(COUNTIF($T$4:$T145,$T145)<2,0,$U145-OCCUR($T$4:$T145,$T145,$S145-1,0,1))/3600,1)*3600)/60,1)*60-FLOOR(IF(COUNTIF($T$4:$T145,$T145)<2,0,$U145-OCCUR($T$4:$T145,$T145,$S145-1,0,1))/3600,1)*3600, "s"),"???")) -> 3h 11m 46s | X145: 2 | AH145: Steiner
B146: MWC-060303 | C146: 06 | D146: 03 | E146: 03 | F146: =IF(G146="?","?",COUNTIF($G$4:$G146,$G146)) -> 5 | G146: MWC | H146: =IF(R146="??? - N/A ","?",COUNTA($B$4:$B146)) -> 92 | I146: Steiner | J146: 42 | L146: ? | M146: ? | N146: ? | O146: =IF(P146="?","?",COUNTIF($P$4:$P146,$P146)) -> ? | P146: ? | Q146: =IF(R146="??? - N/A ","?",COUNTA($K$4:$K146)) -> 50 | R146: 06:03:03 - Steiner 5 | S146: =IF($T146="N/A",0,COUNTIF($T$4:$T146,$T146)) -> 5 | T146: MWC | U146: 18183 | V146: =IF($S146>1,U146-OCCUR($T$4:$T146,$T146,COUNTIF($T$4:$T146,$T146)-1,0,1),"N/A") -> 3839 | W146: =IF($T146="N/A","???",IFERROR(CONCATENATE(FLOOR(IF(COUNTIF($T$4:$T146,$T146)<2,0,$U146-OCCUR($T$4:$T146,$T146,$S146-1,0,1))/3600,1),"h ", FLOOR((IF(COUNTIF($T$4:$T146,$T146)<2,0,$U146-OCCUR($T$4:$T146,$T146,$S146-1,0,1))-FLOOR(IF(COUNTIF($T$4:$T146,$T146)<2,0,$U146-OCCUR($T$4:$T146,$T146,$S146-1,0,1))/3600,1)*3600)/60,1), "m ", IF(COUNTIF($T$4:$T146,$T146)<2,0,$U146-OCCUR($T$4:$T146,$T146,$S146-1,0,1))-FLOOR((IF(COUNTIF($T$4:$T146,$T146)<2,0,$U146-OCCUR($T$4:$T146,$T146,$S146-1,0,1))-FLOOR(IF(COUNTIF($T$4:$T146,$T146)<2,0,$U146-OCCUR($T$4:$T146,$T146,$S146-1,0,1))/3600,1)*3600)/60,1)*60-FLOOR(IF(COUNTIF($T$4:$T146,$T146)<2,0,$U146-OCCUR($T$4:$T146,$T146,$S146-1,0,1))/3600,1)*3600, "s"),"???")) -> 1h 3m 59s | X146: 3 | AH146: Steiner
C147: ? | D147: ? | E147: ? | F147: =IF(G147="?","?",COUNTIF($G$4:$G147,$G147)) -> ? | G147: ? | H147: =IF(R147="??? - N/A ","?",COUNTA($B$4:$B147)) -> 92 | I147: Steiner | J147: 41 | K147: Sheik-060439 | L147: 06 | M147: 04 | N147: 39 | O147: =IF(P147="?","?",COUNTIF($P$4:$P147,$P147)) -> 2 | P147: Sheik | Q147: =IF(R147="??? - N/A ","?",COUNTA($K$4:$K147)) -> 51 | R147: 06:04:39 - Lightning 2 | S147: =IF($T147="N/A",0,COUNTIF($T$4:$T147,$T147)) -> 2 | T147: Sheik | U147: 18279 | V147: =IF($S147>1,U147-OCCUR($T$4:$T147,$T147,COUNTIF($T$4:$T147,$T147)-1,0,1),"N/A") -> 16706 | W147: =IF($T147="N/A","???",IFERROR(CONCATENATE(FLOOR(IF(COUNTIF($T$4:$T147,$T147)<2,0,$U147-OCCUR($T$4:$T147,$T147,$S147-1,0,1))/3600,1),"h ", FLOOR((IF(COUNTIF($T$4:$T147,$T147)<2,0,$U147-OCCUR($T$4:$T147,$T147,$S147-1,0,1))-FLOOR(IF(COUNTIF($T$4:$T147,$T147)<2,0,$U147-OCCUR($T$4:$T147,$T147,$S147-1,0,1))/3600,1)*3600)/60,1), "m ", IF(COUNTIF($T$4:$T147,$T147)<2,0,$U147-OCCUR($T$4:$T147,$T147,$S147-1,0,1))-FLOOR((IF(COUNTIF($T$4:$T147,$T147)<2,0,$U147-OCCUR($T$4:$T147,$T147,$S147-1,0,1))-FLOOR(IF(COUNTIF($T$4:$T147,$T147)<2,0,$U147-OCCUR($T$4:$T147,$T147,$S147-1,0,1))/3600,1)*3600)/60,1)*60-FLOOR(IF(COUNTIF($T$4:$T147,$T147)<2,0,$U147-OCCUR($T$4:$T147,$T147,$S147-1,0,1))/3600,1)*3600, "s"),"???")) -> 4h 38m 26s | X147: 1 | AH147: Lightning
C148: ? | D148: ? | E148: ? | F148: =IF(G148="?","?",COUNTIF($G$4:$G148,$G148)) -> ? | G148: ? | H148: =IF(R148="??? - N/A ","?",COUNTA($B$4:$B148)) -> 92 | I148: Steiner | J148: 40 | K148: Paul-060506 | L148: 06 | M148: 05 | N148: 06 | O148: =IF(P148="?","?",COUNTIF($P$4:$P148,$P148)) -> 3 | P148: Paul | Q148: =IF(R148="??? - N/A ","?",COUNTA($K$4:$K148)) -> 52 | R148: 06:05:06 - Lightning 3 | S148: =IF($T148="N/A",0,COUNTIF($T$4:$T148,$T148)) -> 3 | T148: Paul | U148: 18306 | V148: =IF($S148>1,U148-OCCUR($T$4:$T148,$T148,COUNTIF($T$4:$T148,$T148)-1,0,1),"N/A") -> 8905 | W148: =IF($T148="N/A","???",IFERROR(CONCATENATE(FLOOR(IF(COUNTIF($T$4:$T148,$T148)<2,0,$U148-OCCUR($T$4:$T148,$T148,$S148-1,0,1))/3600,1),"h ", FLOOR((IF(COUNTIF($T$4:$T148,$T148)<2,0,$U148-OCCUR($T$4:$T148,$T148,$S148-1,0,1))-FLOOR(IF(COUNTIF($T$4:$T148,$T148)<2,0,$U148-OCCUR($T$4:$T148,$T148,$S148-1,0,1))/3600,1)*3600)/60,1), "m ", IF(COUNTIF($T$4:$T148,$T148)<2,0,$U148-OCCUR($T$4:$T148,$T148,$S148-1,0,1))-FLOOR((IF(COUNTIF($T$4:$T148,$T148)<2,0,$U148-OCCUR($T$4:$T148,$T148,$S148-1,0,1))-FLOOR(IF(COUNTIF($T$4:$T148,$T148)<2,0,$U148-OCCUR($T$4:$T148,$T148,$S148-1,0,1))/3600,1)*3600)/60,1)*60-FLOOR(IF(COUNTIF($T$4:$T148,$T148)<2,0,$U148-OCCUR($T$4:$T148,$T148,$S148-1,0,1))/3600,1)*3600, "s"),"???")) -> 2h 28m 25s | X148: 2 | AH148: Lightning
C149: ? | D149: ? | E149: ? | F149: =IF(G149="?","?",COUNTIF($G$4:$G149,$G149)) -> ? | G149: ? | H149: =IF(R149="??? - N/A ","?",COUNTA($B$4:$B149)) -> 92 | I149: Steiner | J149: 39 | K149: ecks-061539 | L149: 06 | M149: 15 | N149: 39 | O149: =IF(P149="?","?",COUNTIF($P$4:$P149,$P149)) -> 1 | P149: ecks | Q149: =IF(R149="??? - N/A ","?",COUNTA($K$4:$K149)) -> 53 | R149: 06:15:39 - Lightning 1 | S149: =IF($T149="N/A",0,COUNTIF($T$4:$T149,$T149)) -> 1 | T149: ecks | U149: 18939 | V149: =IF($S149>1,U149-OCCUR($T$4:$T149,$T149,COUNTIF($T$4:$T149,$T149)-1,0,1),"N/A") -> N/A | W149: =IF($T149="N/A","???",IFERROR(CONCATENATE(FLOOR(IF(COUNTIF($T$4:$T149,$T149)<2,0,$U149-OCCUR($T$4:$T149,$T149,$S149-1,0,1))/3600,1),"h ", FLOOR((IF(COUNTIF($T$4:$T149,$T149)<2,0,$U149-OCCUR($T$4:$T149,$T149,$S149-1,0,1))-FLOOR(IF(COUNTIF($T$4:$T149,$T149)<2,0,$U149-OCCUR($T$4:$T149,$T149,$S149-1,0,1))/3600,1)*3600)/60,1), "m ", IF(COUNTIF($T$4:$T149,$T149)<2,0,$U149-OCCUR($T$4:$T149,$T149,$S149-1,0,1))-FLOOR((IF(COUNTIF($T$4:$T149,$T149)<2,0,$U149-OCCUR($T$4:$T149,$T149,$S149-1,0,1))-FLOOR(IF(COUNTIF($T$4:$T149,$T149)<2,0,$U149-OCCUR($T$4:$T149,$T149,$S149-1,0,1))/3600,1)*3600)/60,1)*60-FLOOR(IF(COUNTIF($T$4:$T149,$T149)<2,0,$U149-OCCUR($T$4:$T149,$T149,$S149-1,0,1))/3600,1)*3600, "s"),"???")) -> 0h 0m 0s | X149: 3 | AH149: Lightning
B150: Ultros-062358 | C150: 06 | D150: 23 | E150: 58 | F150: =IF(G150="?","?",COUNTIF($G$4:$G150,$G150)) -> 5 | G150: Ultros | H150: =IF(R150="??? - N/A ","?",COUNTA($B$4:$B150)) -> 93 | I150: Steiner | J150: 40 | L150: ? | M150: ? | N150: ? | O150: =IF(P150="?","?",COUNTIF($P$4:$P150,$P150)) -> ? | P150: ? | Q150: =IF(R150="??? - N/A ","?",COUNTA($K$4:$K150)) -> 53 | R150: 06:23:58 - Steiner 5 | S150: =IF($T150="N/A",0,COUNTIF($T$4:$T150,$T150)) -> 5 | T150: Ultros | U150: 19438 | V150: =IF($S150>1,U150-OCCUR($T$4:$T150,$T150,COUNTIF($T$4:$T150,$T150)-1,0,1),"N/A") -> 4913 | W150: =IF($T150="N/A","???",IFERROR(CONCATENATE(FLOOR(IF(COUNTIF($T$4:$T150,$T150)<2,0,$U150-OCCUR($T$4:$T150,$T150,$S150-1,0,1))/3600,1),"h ", FLOOR((IF(COUNTIF($T$4:$T150,$T150)<2,0,$U150-OCCUR($T$4:$T150,$T150,$S150-1,0,1))-FLOOR(IF(COUNTIF($T$4:$T150,$T150)<2,0,$U150-OCCUR($T$4:$T150,$T150,$S150-1,0,1))/3600,1)*3600)/60,1), "m ", IF(COUNTIF($T$4:$T150,$T150)<2,0,$U150-OCCUR($T$4:$T150,$T150,$S150-1,0,1))-FLOOR((IF(COUNTIF($T$4:$T150,$T150)<2,0,$U150-OCCUR($T$4:$T150,$T150,$S150-1,0,1))-FLOOR(IF(COUNTIF($T$4:$T150,$T150)<2,0,$U150-OCCUR($T$4:$T150,$T150,$S150-1,0,1))/3600,1)*3600)/60,1)*60-FLOOR(IF(COUNTIF($T$4:$T150,$T150)<2,0,$U150-OCCUR($T$4:$T150,$T150,$S150-1,0,1))/3600,1)*3600, "s"),"???")) -> 1h 21m 53s | X150: 1 | AH150: Steiner
B151: Poke-062802 | C151: 06 | D151: 28 | E151: 02 | F151: =IF(G151="?","?",COUNTIF($G$4:$G151,$G151)) -> 2 | G151: Poke | H151: =IF(R151="??? - N/A ","?",COUNTA($B$4:$B151)) -> 94 | I151: Steiner | J151: 41 | L151: ? | M151: ? | N151: ? | O151: =IF(P151="?","?",COUNTIF($P$4:$P151,$P151)) -> ? | P151: ? | Q151: =IF(R151="??? - N/A ","?",COUNTA($K$4:$K151)) -> 53 | R151: 06:28:02 - Steiner 2 | S151: =IF($T151="N/A",0,COUNTIF($T$4:$T151,$T151)) -> 3 | T151: Poke | U151: 19682 | V151: =IF($S151>1,U151-OCCUR($T$4:$T151,$T151,COUNTIF($T$4:$T151,$T151)-1,0,1),"N/A") -> 6028 | W151: =IF($T151="N/A","???",IFERROR(CONCATENATE(FLOOR(IF(COUNTIF($T$4:$T151,$T151)<2,0,$U151-OCCUR($T$4:$T151,$T151,$S151-1,0,1))/3600,1),"h ", FLOOR((IF(COUNTIF($T$4:$T151,$T151)<2,0,$U151-OCCUR($T$4:$T151,$T151,$S151-1,0,1))-FLOOR(IF(COUNTIF($T$4:$T151,$T151)<2,0,$U151-OCCUR($T$4:$T151,$T151,$S151-1,0,1))/3600,1)*3600)/60,1), "m ", IF(COUNTIF($T$4:$T151,$T151)<2,0,$U151-OCCUR($T$4:$T151,$T151,$S151-1,0,1))-FLOOR((IF(COUNTIF($T$4:$T151,$T151)<2,0,$U151-OCCUR($T$4:$T151,$T151,$S151-1,0,1))-FLOOR(IF(COUNTIF($T$4:$T151,$T151)<2,0,$U151-OCCUR($T$4:$T151,$T151,$S151-1,0,1))/3600,1)*3600)/60,1)*60-FLOOR(IF(COUNTIF($T$4:$T151,$T151)<2,0,$U151-OCCUR($T$4:$T151,$T151,$S151-1,0,1))/3600,1)*3600, "s"),"???")) -> 1h 40m 28s | X151: 2 | AH151: Steiner
C152: ? | D152: ? | E152: ? | F152: =IF(G152="?","?",COUNTIF($G$4:$G152,$G152)) -> ? | G152: ? | H152: =IF(R152="??? - N/A ","?",COUNTA($B$4:$B152)) -> 94 | I152: Steiner | J152: 40 | K152: Tangy-062903 | L152: 06 | M152: 29 | N152: 03 | O152: =IF(P152="?","?",COUNTIF($P$4:$P152,$P152)) -> 4 | P152: Tangy | Q152: =IF(R152="??? - N/A ","?",COUNTA($K$4:$K152)) -> 54 | R152: 06:29:03 - Lightning 4 | S152: =IF($T152="N/A",0,COUNTIF($T$4:$T152,$T152)) -> 4 | T152: Tangy | U152: 19743 | V152: =IF($S152>1,U152-OCCUR($T$4:$T152,$T152,COUNTIF($T$4:$T152,$T152)-1,0,1),"N/A") -> 4700 | W152: =IF($T152="N/A","???",IFERROR(CONCATENATE(FLOOR(IF(COUNTIF($T$4:$T152,$T152)<2,0,$U152-OCCUR($T$4:$T152,$T152,$S152-1,0,1))/3600,1),"h ", FLOOR((IF(COUNTIF($T$4:$T152,$T152)<2,0,$U152-OCCUR($T$4:$T152,$T152,$S152-1,0,1))-FLOOR(IF(COUNTIF($T$4:$T152,$T152)<2,0,$U152-OCCUR($T$4:$T152,$T152,$S152-1,0,1))/3600,1)*3600)/60,1), "m ", IF(COUNTIF($T$4:$T152,$T152)<2,0,$U152-OCCUR($T$4:$T152,$T152,$S152-1,0,1))-FLOOR((IF(COUNTIF($T$4:$T152,$T152)<2,0,$U152-OCCUR($T$4:$T152,$T152,$S152-1,0,1))-FLOOR(IF(COUNTIF($T$4:$T152,$T152)<2,0,$U152-OCCUR($T$4:$T152,$T152,$S152-1,0,1))/3600,1)*3600)/60,1)*60-FLOOR(IF(COUNTIF($T$4:$T152,$T152)<2,0,$U152-OCCUR($T$4:$T152,$T152,$S152-1,0,1))/3600,1)*3600, "s"),"???")) -> 1h 18m 20s | X152: 1 | AH152: Lightning
B153: Janus-063358 | C153: 06 | D153: 33 | E153: 58 | F153: =IF(G153="?","?",COUNTIF($G$4:$G153,$G153)) -> 4 | G153: Janus | H153: =IF(R153="??? - N/A ","?",COUNTA($B$4:$B153)) -> 95 | I153: Steiner | J153: 41 | L153: ? | M153: ? | N153: ? | O153: =IF(P153="?","?",COUNTIF($P$4:$P153,$P153)) -> ? | P153: ? | Q153: =IF(R153="??? - N/A ","?",COUNTA($K$4:$K153)) -> 54 | R153: 06:33:58 - Steiner 4 | S153: =IF($T153="N/A",0,COUNTIF($T$4:$T153,$T153)) -> 4 | T153: Janus | U153: 20038 | V153: =IF($S153>1,U153-OCCUR($T$4:$T153,$T153,COUNTIF($T$4:$T153,$T153)-1,0,1),"N/A") -> 3681 | W153: =IF($T153="N/A","???",IFERROR(CONCATENATE(FLOOR(IF(COUNTIF($T$4:$T153,$T153)<2,0,$U153-OCCUR($T$4:$T153,$T153,$S153-1,0,1))/3600,1),"h ", FLOOR((IF(COUNTIF($T$4:$T153,$T153)<2,0,$U153-OCCUR($T$4:$T153,$T153,$S153-1,0,1))-FLOOR(IF(COUNTIF($T$4:$T153,$T153)<2,0,$U153-OCCUR($T$4:$T153,$T153,$S153-1,0,1))/3600,1)*3600)/60,1), "m ", IF(COUNTIF($T$4:$T153,$T153)<2,0,$U153-OCCUR($T$4:$T153,$T153,$S153-1,0,1))-FLOOR((IF(COUNTIF($T$4:$T153,$T153)<2,0,$U153-OCCUR($T$4:$T153,$T153,$S153-1,0,1))-FLOOR(IF(COUNTIF($T$4:$T153,$T153)<2,0,$U153-OCCUR($T$4:$T153,$T153,$S153-1,0,1))/3600,1)*3600)/60,1)*60-FLOOR(IF(COUNTIF($T$4:$T153,$T153)<2,0,$U153-OCCUR($T$4:$T153,$T153,$S153-1,0,1))/3600,1)*3600, "s"),"???")) -> 1h 1m 21s | X153: 1 | AH153: Steiner
B154: Swarles-063722 | C154: 06 | D154: 37 | E154: 22 | F154: =IF(G154="?","?",COUNTIF($G$4:$G154,$G154)) -> 1 | G154: Swarles | H154: =IF(R154="??? - N/A ","?",COUNTA($B$4:$B154)) -> 96 | I154: Steiner | J154: 42 | L154: ? | M154: ? | N154: ? | O154: =IF(P154="?","?",COUNTIF($P$4:$P154,$P154)) -> ? | P154: ? | Q154: =IF(R154="??? - N/A ","?",COUNTA($K$4:$K154)) -> 54 | R154: 06:37:22 - Steiner 1 | S154: =IF($T154="N/A",0,COUNTIF($T$4:$T154,$T154)) -> 1 | T154: Swarles | U154: 20242 | V154: =IF($S154>1,U154-OCCUR($T$4:$T154,$T154,COUNTIF($T$4:$T154,$T154)-1,0,1),"N/A") -> N/A | W154: =IF($T154="N/A","???",IFERROR(CONCATENATE(FLOOR(IF(COUNTIF($T$4:$T154,$T154)<2,0,$U154-OCCUR($T$4:$T154,$T154,$S154-1,0,1))/3600,1),"h ", FLOOR((IF(COUNTIF($T$4:$T154,$T154)<2,0,$U154-OCCUR($T$4:$T154,$T154,$S154-1,0,1))-FLOOR(IF(COUNTIF($T$4:$T154,$T154)<2,0,$U154-OCCUR($T$4:$T154,$T154,$S154-1,0,1))/3600,1)*3600)/60,1), "m ", IF(COUNTIF($T$4:$T154,$T154)<2,0,$U154-OCCUR($T$4:$T154,$T154,$S154-1,0,1))-FLOOR((IF(COUNTIF($T$4:$T154,$T154)<2,0,$U154-OCCUR($T$4:$T154,$T154,$S154-1,0,1))-FLOOR(IF(COUNTIF($T$4:$T154,$T154)<2,0,$U154-OCCUR($T$4:$T154,$T154,$S154-1,0,1))/3600,1)*3600)/60,1)*60-FLOOR(IF(COUNTIF($T$4:$T154,$T154)<2,0,$U154-OCCUR($T$4:$T154,$T154,$S154-1,0,1))/3600,1)*3600, "s"),"???")) -> 0h 0m 0s | X154: 2 | AH154: Steiner
B155: Gmun-063910 | C155: 06 | D155: 39 | E155: 10 | F155: =IF(G155="?","?",COUNTIF($G$4:$G155,$G155)) -> 6 | G155: Gmun | H155: =IF(R155="??? - N/A ","?",COUNTA($B$4:$B155)) -> 97 | I155: Steiner | J155: 43 | L155: ? | M155: ? | N155: ? | O155: =IF(P155="?","?",COUNTIF($P$4:$P155,$P155)) -> ? | P155: ? | Q155: =IF(R155="??? - N/A ","?",COUNTA($K$4:$K155)) -> 54 | R155: 06:39:10 - Steiner 6 | S155: =IF($T155="N/A",0,COUNTIF($T$4:$T155,$T155)) -> 6 | T155: Gmun | U155: 20350 | V155: =IF($S155>1,U155-OCCUR($T$4:$T155,$T155,COUNTIF($T$4:$T155,$T155)-1,0,1),"N/A") -> 3866 | W155: =IF($T155="N/A","???",IFERROR(CONCATENATE(FLOOR(IF(COUNTIF($T$4:$T155,$T155)<2,0,$U155-OCCUR($T$4:$T155,$T155,$S155-1,0,1))/3600,1),"h ", FLOOR((IF(COUNTIF($T$4:$T155,$T155)<2,0,$U155-OCCUR($T$4:$T155,$T155,$S155-1,0,1))-FLOOR(IF(COUNTIF($T$4:$T155,$T155)<2,0,$U155-OCCUR($T$4:$T155,$T155,$S155-1,0,1))/3600,1)*3600)/60,1), "m ", IF(COUNTIF($T$4:$T155,$T155)<2,0,$U155-OCCUR($T$4:$T155,$T155,$S155-1,0,1))-FLOOR((IF(COUNTIF($T$4:$T155,$T155)<2,0,$U155-OCCUR($T$4:$T155,$T155,$S155-1,0,1))-FLOOR(IF(COUNTIF($T$4:$T155,$T155)<2,0,$U155-OCCUR($T$4:$T155,$T155,$S155-1,0,1))/3600,1)*3600)/60,1)*60-FLOOR(IF(COUNTIF($T$4:$T155,$T155)<2,0,$U155-OCCUR($T$4:$T155,$T155,$S155-1,0,1))/3600,1)*3600, "s"),"???")) -> 1h 4m 26s | X155: 3 | AH155: Steiner
B156: Nanis-063914 | C156: 06 | D156: 39 | E156: 14 | F156: =IF(G156="?","?",COUNTIF($G$4:$G156,$G156)) -> 2 | G156: Nanis | H156: =IF(R156="??? - N/A ","?",COUNTA($B$4:$B156)) -> 98 | I156: Steiner | J156: 44 | L156: ? | M156: ? | N156: ? | O156: =IF(P156="?","?",COUNTIF($P$4:$P156,$P156)) -> ? | P156: ? | Q156: =IF(R156="??? - N/A ","?",COUNTA($K$4:$K156)) -> 54 | R156: 06:39:14 - Steiner 2 | S156: =IF($T156="N/A",0,COUNTIF($T$4:$T156,$T156)) -> 2 | T156: Nanis | U156: 20354 | V156: =IF($S156>1,U156-OCCUR($T$4:$T156,$T156,COUNTIF($T$4:$T156,$T156)-1,0,1),"N/A") -> 3914 | W156: =IF($T156="N/A","???",IFERROR(CONCATENATE(FLOOR(IF(COUNTIF($T$4:$T156,$T156)<2,0,$U156-OCCUR($T$4:$T156,$T156,$S156-1,0,1))/3600,1),"h ", FLOOR((IF(COUNTIF($T$4:$T156,$T156)<2,0,$U156-OCCUR($T$4:$T156,$T156,$S156-1,0,1))-FLOOR(IF(COUNTIF($T$4:$T156,$T156)<2,0,$U156-OCCUR($T$4:$T156,$T156,$S156-1,0,1))/3600,1)*3600)/60,1), "m ", IF(COUNTIF($T$4:$T156,$T156)<2,0,$U156-OCCUR($T$4:$T156,$T156,$S156-1,0,1))-FLOOR((IF(COUNTIF($T$4:$T156,$T156)<2,0,$U156-OCCUR($T$4:$T156,$T156,$S156-1,0,1))-FLOOR(IF(COUNTIF($T$4:$T156,$T156)<2,0,$U156-OCCUR($T$4:$T156,$T156,$S156-1,0,1))/3600,1)*3600)/60,1)*60-FLOOR(IF(COUNTIF($T$4:$T156,$T156)<2,0,$U156-OCCUR($T$4:$T156,$T156,$S156-1,0,1))/3600,1)*3600, "s"),"???")) -> 1h 5m 14s | X156: 4 | AH156: Steiner
C157: ? | D157: ? | E157: ? | F157: =IF(G157="?","?",COUNTIF($G$4:$G157,$G157)) -> ? | G157: ? | H157: =IF(R157="??? - N/A ","?",COUNTA($B$4:$B157)) -> 98 | I157: Steiner | J157: 43 | K157: kate-064035 | L157: 06 | M157: 40 | N157: 35 | O157: =IF(P157="?","?",COUNTIF($P$4:$P157,$P157)) -> 2 | P157: kate | Q157: =IF(R157="??? - N/A ","?",COUNTA($K$4:$K157)) -> 55 | R157: 06:40:35 - Lightning 2 | S157: =IF($T157="N/A",0,COUNTIF($T$4:$T157,$T157)) -> 2 | T157: kate | U157: 20435 | V157: =IF($S157>1,U157-OCCUR($T$4:$T157,$T157,COUNTIF($T$4:$T157,$T157)-1,0,1),"N/A") -> 5375 | W157: =IF($T157="N/A","???",IFERROR(CONCATENATE(FLOOR(IF(COUNTIF($T$4:$T157,$T157)<2,0,$U157-OCCUR($T$4:$T157,$T157,$S157-1,0,1))/3600,1),"h ", FLOOR((IF(COUNTIF($T$4:$T157,$T157)<2,0,$U157-OCCUR($T$4:$T157,$T157,$S157-1,0,1))-FLOOR(IF(COUNTIF($T$4:$T157,$T157)<2,0,$U157-OCCUR($T$4:$T157,$T157,$S157-1,0,1))/3600,1)*3600)/60,1), "m ", IF(COUNTIF($T$4:$T157,$T157)<2,0,$U157-OCCUR($T$4:$T157,$T157,$S157-1,0,1))-FLOOR((IF(COUNTIF($T$4:$T157,$T157)<2,0,$U157-OCCUR($T$4:$T157,$T157,$S157-1,0,1))-FLOOR(IF(COUNTIF($T$4:$T157,$T157)<2,0,$U157-OCCUR($T$4:$T157,$T157,$S157-1,0,1))/3600,1)*3600)/60,1)*60-FLOOR(IF(COUNTIF($T$4:$T157,$T157)<2,0,$U157-OCCUR($T$4:$T157,$T157,$S157-1,0,1))/3600,1)*3600, "s"),"???")) -> 1h 29m 35s | X157: 1 | AH157: Lightning
B158: FBike-064410 | C158: 06 | D158: 44 | E158: 10 | F158: =IF(G158="?","?",COUNTIF($G$4:$G158,$G158)) -> 2 | G158: FBike | H158: =IF(R158="??? - N/A ","?",COUNTA($B$4:$B158)) -> 99 | I158: Steiner | J158: 44 | L158: ? | M158: ? | N158: ? | O158: =IF(P158="?","?",COUNTIF($P$4:$P158,$P158)) -> ? | P158: ? | Q158: =IF(R158="??? - N/A ","?",COUNTA($K$4:$K158)) -> 55 | R158: 06:44:10 - Steiner 2 | S158: =IF($T158="N/A",0,COUNTIF($T$4:$T158,$T158)) -> 2 | T158: FBike | U158: 20650 | V158: =IF($S158>1,U158-OCCUR($T$4:$T158,$T158,COUNTIF($T$4:$T158,$T158)-1,0,1),"N/A") -> 8341 | W158: =IF($T158="N/A","???",IFERROR(CONCATENATE(FLOOR(IF(COUNTIF($T$4:$T158,$T158)<2,0,$U158-OCCUR($T$4:$T158,$T158,$S158-1,0,1))/3600,1),"h ", FLOOR((IF(COUNTIF($T$4:$T158,$T158)<2,0,$U158-OCCUR($T$4:$T158,$T158,$S158-1,0,1))-FLOOR(IF(COUNTIF($T$4:$T158,$T158)<2,0,$U158-OCCUR($T$4:$T158,$T158,$S158-1,0,1))/3600,1)*3600)/60,1), "m ", IF(COUNTIF($T$4:$T158,$T158)<2,0,$U158-OCCUR($T$4:$T158,$T158,$S158-1,0,1))-FLOOR((IF(COUNTIF($T$4:$T158,$T158)<2,0,$U158-OCCUR($T$4:$T158,$T158,$S158-1,0,1))-FLOOR(IF(COUNTIF($T$4:$T158,$T158)<2,0,$U158-OCCUR($T$4:$T158,$T158,$S158-1,0,1))/3600,1)*3600)/60,1)*60-FLOOR(IF(COUNTIF($T$4:$T158,$T158)<2,0,$U158-OCCUR($T$4:$T158,$T158,$S158-1,0,1))/3600,1)*3600, "s"),"???")) -> 2h 19m 1s | X158: 1 | AH158: Steiner
C159: ? | D159: ? | E159: ? | F159: =IF(G159="?","?",COUNTIF($G$4:$G159,$G159)) -> ? | G159: ? | H159: =IF(R159="??? - N/A ","?",COUNTA($B$4:$B159)) -> 99 | I159: Steiner | J159: 43 | K159: Karo-064535 | L159: 06 | M159: 45 | N159: 35 | O159: =IF(P159="?","?",COUNTIF($P$4:$P159,$P159)) -> 5 | P159: Karo | Q159: =IF(R159="??? - N/A ","?",COUNTA($K$4:$K159)) -> 56 | R159: 06:45:35 - Lightning 5 | S159: =IF($T159="N/A",0,COUNTIF($T$4:$T159,$T159)) -> 5 | T159: Karo | U159: 20735 | V159: =IF($S159>1,U159-OCCUR($T$4:$T159,$T159,COUNTIF($T$4:$T159,$T159)-1,0,1),"N/A") -> 3972 | W159: =IF($T159="N/A","???",IFERROR(CONCATENATE(FLOOR(IF(COUNTIF($T$4:$T159,$T159)<2,0,$U159-OCCUR($T$4:$T159,$T159,$S159-1,0,1))/3600,1),"h ", FLOOR((IF(COUNTIF($T$4:$T159,$T159)<2,0,$U159-OCCUR($T$4:$T159,$T159,$S159-1,0,1))-FLOOR(IF(COUNTIF($T$4:$T159,$T159)<2,0,$U159-OCCUR($T$4:$T159,$T159,$S159-1,0,1))/3600,1)*3600)/60,1), "m ", IF(COUNTIF($T$4:$T159,$T159)<2,0,$U159-OCCUR($T$4:$T159,$T159,$S159-1,0,1))-FLOOR((IF(COUNTIF($T$4:$T159,$T159)<2,0,$U159-OCCUR($T$4:$T159,$T159,$S159-1,0,1))-FLOOR(IF(COUNTIF($T$4:$T159,$T159)<2,0,$U159-OCCUR($T$4:$T159,$T159,$S159-1,0,1))/3600,1)*3600)/60,1)*60-FLOOR(IF(COUNTIF($T$4:$T159,$T159)<2,0,$U159-OCCUR($T$4:$T159,$T159,$S159-1,0,1))/3600,1)*3600, "s"),"???")) -> 1h 6m 12s | X159: 1 | AH159: Lightning
B160: canada-064957 | C160: 06 | D160: 49 | E160: 57 | F160: =IF(G160="?","?",COUNTIF($G$4:$G160,$G160)) -> 3 | G160: canada | H160: =IF(R160="??? - N/A ","?",COUNTA($B$4:$B160)) -> 100 | I160: Steiner | J160: 44 | L160: ? | M160: ? | N160: ? | O160: =IF(P160="?","?",COUNTIF($P$4:$P160,$P160)) -> ? | P160: ? | Q160: =IF(R160="??? - N/A ","?",COUNTA($K$4:$K160)) -> 56 | R160: 06:49:57 - Steiner 3 | S160: =IF($T160="N/A",0,COUNTIF($T$4:$T160,$T160)) -> 3 | T160: canada | U160: 20997 | V160: =IF($S160>1,U160-OCCUR($T$4:$T160,$T160,COUNTIF($T$4:$T160,$T160)-1,0,1),"N/A") -> 5679 | W160: =IF($T160="N/A","???",IFERROR(CONCATENATE(FLOOR(IF(COUNTIF($T$4:$T160,$T160)<2,0,$U160-OCCUR($T$4:$T160,$T160,$S160-1,0,1))/3600,1),"h ", FLOOR((IF(COUNTIF($T$4:$T160,$T160)<2,0,$U160-OCCUR($T$4:$T160,$T160,$S160-1,0,1))-FLOOR(IF(COUNTIF($T$4:$T160,$T160)<2,0,$U160-OCCUR($T$4:$T160,$T160,$S160-1,0,1))/3600,1)*3600)/60,1), "m ", IF(COUNTIF($T$4:$T160,$T160)<2,0,$U160-OCCUR($T$4:$T160,$T160,$S160-1,0,1))-FLOOR((IF(COUNTIF($T$4:$T160,$T160)<2,0,$U160-OCCUR($T$4:$T160,$T160,$S160-1,0,1))-FLOOR(IF(COUNTIF($T$4:$T160,$T160)<2,0,$U160-OCCUR($T$4:$T160,$T160,$S160-1,0,1))/3600,1)*3600)/60,1)*60-FLOOR(IF(COUNTIF($T$4:$T160,$T160)<2,0,$U160-OCCUR($T$4:$T160,$T160,$S160-1,0,1))/3600,1)*3600, "s"),"???")) -> 1h 34m 39s | X160: 1 | AH160: Steiner
B161: red-065123 | C161: 06 | D161: 51 | E161: 23 | F161: =IF(G161="?","?",COUNTIF($G$4:$G161,$G161)) -> 4 | G161: red | H161: =IF(R161="??? - N/A ","?",COUNTA($B$4:$B161)) -> 101 | I161: Steiner | J161: 45 | L161: ? | M161: ? | N161: ? | O161: =IF(P161="?","?",COUNTIF($P$4:$P161,$P161)) -> ? | P161: ? | Q161: =IF(R161="??? - N/A ","?",COUNTA($K$4:$K161)) -> 56 | R161: 06:51:23 - Steiner 4 | S161: =IF($T161="N/A",0,COUNTIF($T$4:$T161,$T161)) -> 4 | T161: red | U161: 21083 | V161: =IF($S161>1,U161-OCCUR($T$4:$T161,$T161,COUNTIF($T$4:$T161,$T161)-1,0,1),"N/A") -> 4065 | W161: =IF($T161="N/A","???",IFERROR(CONCATENATE(FLOOR(IF(COUNTIF($T$4:$T161,$T161)<2,0,$U161-OCCUR($T$4:$T161,$T161,$S161-1,0,1))/3600,1),"h ", FLOOR((IF(COUNTIF($T$4:$T161,$T161)<2,0,$U161-OCCUR($T$4:$T161,$T161,$S161-1,0,1))-FLOOR(IF(COUNTIF($T$4:$T161,$T161)<2,0,$U161-OCCUR($T$4:$T161,$T161,$S161-1,0,1))/3600,1)*3600)/60,1), "m ", IF(COUNTIF($T$4:$T161,$T161)<2,0,$U161-OCCUR($T$4:$T161,$T161,$S161-1,0,1))-FLOOR((IF(COUNTIF($T$4:$T161,$T161)<2,0,$U161-OCCUR($T$4:$T161,$T161,$S161-1,0,1))-FLOOR(IF(COUNTIF($T$4:$T161,$T161)<2,0,$U161-OCCUR($T$4:$T161,$T161,$S161-1,0,1))/3600,1)*3600)/60,1)*60-FLOOR(IF(COUNTIF($T$4:$T161,$T161)<2,0,$U161-OCCUR($T$4:$T161,$T161,$S161-1,0,1))/3600,1)*3600, "s"),"???")) -> 1h 7m 45s | X161: 2 | AH161: Steiner
B162: Ermine-065205 | C162: 06 | D162: 52 | E162: 05 | F162: =IF(G162="?","?",COUNTIF($G$4:$G162,$G162)) -> 3 | G162: Ermine | H162: =IF(R162="??? - N/A ","?",COUNTA($B$4:$B162)) -> 102 | I162: Steiner | J162: 46 | L162: ? | M162: ? | N162: ? | O162: =IF(P162="?","?",COUNTIF($P$4:$P162,$P162)) -> ? | P162: ? | Q162: =IF(R162="??? - N/A ","?",COUNTA($K$4:$K162)) -> 56 | R162: 06:52:05 - Steiner 3 | S162: =IF($T162="N/A",0,COUNTIF($T$4:$T162,$T162)) -> 3 | T162: Ermine | U162: 21125 | V162: =IF($S162>1,U162-OCCUR($T$4:$T162,$T162,COUNTIF($T$4:$T162,$T162)-1,0,1),"N/A") -> 7819 | W162: =IF($T162="N/A","???",IFERROR(CONCATENATE(FLOOR(IF(COUNTIF($T$4:$T162,$T162)<2,0,$U162-OCCUR($T$4:$T162,$T162,$S162-1,0,1))/3600,1),"h ", FLOOR((IF(COUNTIF($T$4:$T162,$T162)<2,0,$U162-OCCUR($T$4:$T162,$T162,$S162-1,0,1))-FLOOR(IF(COUNTIF($T$4:$T162,$T162)<2,0,$U162-OCCUR($T$4:$T162,$T162,$S162-1,0,1))/3600,1)*3600)/60,1), "m ", IF(COUNTIF($T$4:$T162,$T162)<2,0,$U162-OCCUR($T$4:$T162,$T162,$S162-1,0,1))-FLOOR((IF(COUNTIF($T$4:$T162,$T162)<2,0,$U162-OCCUR($T$4:$T162,$T162,$S162-1,0,1))-FLOOR(IF(COUNTIF($T$4:$T162,$T162)<2,0,$U162-OCCUR($T$4:$T162,$T162,$S162-1,0,1))/3600,1)*3600)/60,1)*60-FLOOR(IF(COUNTIF($T$4:$T162,$T162)<2,0,$U162-OCCUR($T$4:$T162,$T162,$S162-1,0,1))/3600,1)*3600, "s"),"???")) -> 2h 10m 19s | X162: 3 | AH162: Steiner
C163: ? | D163: ? | E163: ? | F163: =IF(G163="?","?",COUNTIF($G$4:$G163,$G163)) -> ? | G163: ? | H163: =IF(R163="??? - N/A ","?",COUNTA($B$4:$B163)) -> 102 | I163: Steiner | J163: 45 | K163: Natwaf-065430 | L163: 06 | M163: 54 | N163: 30 | O163: =IF(P163="?","?",COUNTIF($P$4:$P163,$P163)) -> 5 | P163: Natwaf | Q163: =IF(R163="??? - N/A ","?",COUNTA($K$4:$K163)) -> 57 | R163: 06:54:30 - Lightning 5 | S163: =IF($T163="N/A",0,COUNTIF($T$4:$T163,$T163)) -> 5 | T163: Natwaf | U163: 21270 | V163: =IF($S163>1,U163-OCCUR($T$4:$T163,$T163,COUNTIF($T$4:$T163,$T163)-1,0,1),"N/A") -> 3612 | W163: =IF($T163="N/A","???",IFERROR(CONCATENATE(FLOOR(IF(COUNTIF($T$4:$T163,$T163)<2,0,$U163-OCCUR($T$4:$T163,$T163,$S163-1,0,1))/3600,1),"h ", FLOOR((IF(COUNTIF($T$4:$T163,$T163)<2,0,$U163-OCCUR($T$4:$T163,$T163,$S163-1,0,1))-FLOOR(IF(COUNTIF($T$4:$T163,$T163)<2,0,$U163-OCCUR($T$4:$T163,$T163,$S163-1,0,1))/3600,1)*3600)/60,1), "m ", IF(COUNTIF($T$4:$T163,$T163)<2,0,$U163-OCCUR($T$4:$T163,$T163,$S163-1,0,1))-FLOOR((IF(COUNTIF($T$4:$T163,$T163)<2,0,$U163-OCCUR($T$4:$T163,$T163,$S163-1,0,1))-FLOOR(IF(COUNTIF($T$4:$T163,$T163)<2,0,$U163-OCCUR($T$4:$T163,$T163,$S163-1,0,1))/3600,1)*3600)/60,1)*60-FLOOR(IF(COUNTIF($T$4:$T163,$T163)<2,0,$U163-OCCUR($T$4:$T163,$T163,$S163-1,0,1))/3600,1)*3600, "s"),"???")) -> 1h 0m 12s | X163: 1 | AH163: Lightning
C164: ? | D164: ? | E164: ? | F164: =IF(G164="?","?",COUNTIF($G$4:$G164,$G164)) -> ? | G164: ? | H164: =IF(R164="??? - N/A ","?",COUNTA($B$4:$B164)) -> 102 | I164: Steiner | J164: 44 | K164: Eddv-070006 | L164: 07 | M164: 00 | N164: 06 | O164: =IF(P164="?","?",COUNTIF($P$4:$P164,$P164)) -> 6 | P164: Eddv | Q164: =IF(R164="??? - N/A ","?",COUNTA($K$4:$K164)) -> 58 | R164: 07:00:06 - Lightning 6 | S164: =IF($T164="N/A",0,COUNTIF($T$4:$T164,$T164)) -> 6 | T164: Eddv | U164: 21606 | V164: =IF($S164>1,U164-OCCUR($T$4:$T164,$T164,COUNTIF($T$4:$T164,$T164)-1,0,1),"N/A") -> 4547 | W164: =IF($T164="N/A","???",IFERROR(CONCATENATE(FLOOR(IF(COUNTIF($T$4:$T164,$T164)<2,0,$U164-OCCUR($T$4:$T164,$T164,$S164-1,0,1))/3600,1),"h ", FLOOR((IF(COUNTIF($T$4:$T164,$T164)<2,0,$U164-OCCUR($T$4:$T164,$T164,$S164-1,0,1))-FLOOR(IF(COUNTIF($T$4:$T164,$T164)<2,0,$U164-OCCUR($T$4:$T164,$T164,$S164-1,0,1))/3600,1)*3600)/60,1), "m ", IF(COUNTIF($T$4:$T164,$T164)<2,0,$U164-OCCUR($T$4:$T164,$T164,$S164-1,0,1))-FLOOR((IF(COUNTIF($T$4:$T164,$T164)<2,0,$U164-OCCUR($T$4:$T164,$T164,$S164-1,0,1))-FLOOR(IF(COUNTIF($T$4:$T164,$T164)<2,0,$U164-OCCUR($T$4:$T164,$T164,$S164-1,0,1))/3600,1)*3600)/60,1)*60-FLOOR(IF(COUNTIF($T$4:$T164,$T164)<2,0,$U164-OCCUR($T$4:$T164,$T164,$S164-1,0,1))/3600,1)*3600, "s"),"???")) -> 1h 15m 47s | X164: 2 | AH164: Lightning
B165: MWC-070450 | C165: 07 | D165: 04 | E165: 50 | F165: =IF(G165="?","?",COUNTIF($G$4:$G165,$G165)) -> 6 | G165: MWC | H165: =IF(R165="??? - N/A ","?",COUNTA($B$4:$B165)) -> 103 | I165: Steiner | J165: 45 | L165: ? | M165: ? | N165: ? | O165: =IF(P165="?","?",COUNTIF($P$4:$P165,$P165)) -> ? | P165: ? | Q165: =IF(R165="??? - N/A ","?",COUNTA($K$4:$K165)) -> 58 | R165: 07:04:50 - Steiner 6 | S165: =IF($T165="N/A",0,COUNTIF($T$4:$T165,$T165)) -> 6 | T165: MWC | U165: 21890 | V165: =IF($S165>1,U165-OCCUR($T$4:$T165,$T165,COUNTIF($T$4:$T165,$T165)-1,0,1),"N/A") -> 3707 | W165: =IF($T165="N/A","???",IFERROR(CONCATENATE(FLOOR(IF(COUNTIF($T$4:$T165,$T165)<2,0,$U165-OCCUR($T$4:$T165,$T165,$S165-1,0,1))/3600,1),"h ", FLOOR((IF(COUNTIF($T$4:$T165,$T165)<2,0,$U165-OCCUR($T$4:$T165,$T165,$S165-1,0,1))-FLOOR(IF(COUNTIF($T$4:$T165,$T165)<2,0,$U165-OCCUR($T$4:$T165,$T165,$S165-1,0,1))/3600,1)*3600)/60,1), "m ", IF(COUNTIF($T$4:$T165,$T165)<2,0,$U165-OCCUR($T$4:$T165,$T165,$S165-1,0,1))-FLOOR((IF(COUNTIF($T$4:$T165,$T165)<2,0,$U165-OCCUR($T$4:$T165,$T165,$S165-1,0,1))-FLOOR(IF(COUNTIF($T$4:$T165,$T165)<2,0,$U165-OCCUR($T$4:$T165,$T165,$S165-1,0,1))/3600,1)*3600)/60,1)*60-FLOOR(IF(COUNTIF($T$4:$T165,$T165)<2,0,$U165-OCCUR($T$4:$T165,$T165,$S165-1,0,1))/3600,1)*3600, "s"),"???")) -> 1h 1m 47s | X165: 1 | AH165: Steiner
C166: ? | D166: ? | E166: ? | F166: =IF(G166="?","?",COUNTIF($G$4:$G166,$G166)) -> ? | G166: ? | H166: =IF(R166="??? - N/A ","?",COUNTA($B$4:$B166)) -> 103 | I166: Steiner | J166: 44 | K166: voltch-070822 | L166: 07 | M166: 08 | N166: 22 | O166: =IF(P166="?","?",COUNTIF($P$4:$P166,$P166)) -> 2 | P166: voltch | Q166: =IF(R166="??? - N/A ","?",COUNTA($K$4:$K166)) -> 59 | R166: 07:08:22 - Lightning 2 | S166: =IF($T166="N/A",0,COUNTIF($T$4:$T166,$T166)) -> 2 | T166: voltch | U166: 22102 | V166: =IF($S166>1,U166-OCCUR($T$4:$T166,$T166,COUNTIF($T$4:$T166,$T166)-1,0,1),"N/A") -> 5371 | W166: =IF($T166="N/A","???",IFERROR(CONCATENATE(FLOOR(IF(COUNTIF($T$4:$T166,$T166)<2,0,$U166-OCCUR($T$4:$T166,$T166,$S166-1,0,1))/3600,1),"h ", FLOOR((IF(COUNTIF($T$4:$T166,$T166)<2,0,$U166-OCCUR($T$4:$T166,$T166,$S166-1,0,1))-FLOOR(IF(COUNTIF($T$4:$T166,$T166)<2,0,$U166-OCCUR($T$4:$T166,$T166,$S166-1,0,1))/3600,1)*3600)/60,1), "m ", IF(COUNTIF($T$4:$T166,$T166)<2,0,$U166-OCCUR($T$4:$T166,$T166,$S166-1,0,1))-FLOOR((IF(COUNTIF($T$4:$T166,$T166)<2,0,$U166-OCCUR($T$4:$T166,$T166,$S166-1,0,1))-FLOOR(IF(COUNTIF($T$4:$T166,$T166)<2,0,$U166-OCCUR($T$4:$T166,$T166,$S166-1,0,1))/3600,1)*3600)/60,1)*60-FLOOR(IF(COUNTIF($T$4:$T166,$T166)<2,0,$U166-OCCUR($T$4:$T166,$T166,$S166-1,0,1))/3600,1)*3600, "s"),"???")) -> 1h 29m 31s | X166: 1 | AH166: Lightning
C167: ? | D167: ? | E167: ? | F167: =IF(G167="?","?",COUNTIF($G$4:$G167,$G167)) -> ? | G167: ? | H167: =IF(R167="??? - N/A ","?",COUNTA($B$4:$B167)) -> 103 | I167: Steiner | J167: 43 | K167: Sheik-071007 | L167: 07 | M167: 10 | N167: 07 | O167: =IF(P167="?","?",COUNTIF($P$4:$P167,$P167)) -> 3 | P167: Sheik | Q167: =IF(R167="??? - N/A ","?",COUNTA($K$4:$K167)) -> 60 | R167: 07:10:07 - Lightning 3 | S167: =IF($T167="N/A",0,COUNTIF($T$4:$T167,$T167)) -> 3 | T167: Sheik | U167: 22207 | V167: =IF($S167>1,U167-OCCUR($T$4:$T167,$T167,COUNTIF($T$4:$T167,$T167)-1,0,1),"N/A") -> 3928 | W167: =IF($T167="N/A","???",IFERROR(CONCATENATE(FLOOR(IF(COUNTIF($T$4:$T167,$T167)<2,0,$U167-OCCUR($T$4:$T167,$T167,$S167-1,0,1))/3600,1),"h ", FLOOR((IF(COUNTIF($T$4:$T167,$T167)<2,0,$U167-OCCUR($T$4:$T167,$T167,$S167-1,0,1))-FLOOR(IF(COUNTIF($T$4:$T167,$T167)<2,0,$U167-OCCUR($T$4:$T167,$T167,$S167-1,0,1))/3600,1)*3600)/60,1), "m ", IF(COUNTIF($T$4:$T167,$T167)<2,0,$U167-OCCUR($T$4:$T167,$T167,$S167-1,0,1))-FLOOR((IF(COUNTIF($T$4:$T167,$T167)<2,0,$U167-OCCUR($T$4:$T167,$T167,$S167-1,0,1))-FLOOR(IF(COUNTIF($T$4:$T167,$T167)<2,0,$U167-OCCUR($T$4:$T167,$T167,$S167-1,0,1))/3600,1)*3600)/60,1)*60-FLOOR(IF(COUNTIF($T$4:$T167,$T167)<2,0,$U167-OCCUR($T$4:$T167,$T167,$S167-1,0,1))/3600,1)*3600, "s"),"???")) -> 1h 5m 28s | X167: 2 | AH167: Lightning
B168: Sanity-071500 | C168: 07 | D168: 15 | E168: 00 | F168: =IF(G168="?","?",COUNTIF($G$4:$G168,$G168)) -> 5 | G168: Sanity | H168: =IF(R168="??? - N/A ","?",COUNTA($B$4:$B168)) -> 104 | I168: Steiner | J168: 44 | L168: ? | M168: ? | N168: ? | O168: =IF(P168="?","?",COUNTIF($P$4:$P168,$P168)) -> ? | P168: ? | Q168: =IF(R168="??? - N/A ","?",COUNTA($K$4:$K168)) -> 60 | R168: 07:15:00 - Steiner 5 | S168: =IF($T168="N/A",0,COUNTIF($T$4:$T168,$T168)) -> 5 | T168: Sanity | U168: 22500 | V168: =IF($S168>1,U168-OCCUR($T$4:$T168,$T168,COUNTIF($T$4:$T168,$T168)-1,0,1),"N/A") -> 5014 | W168: =IF($T168="N/A","???",IFERROR(CONCATENATE(FLOOR(IF(COUNTIF($T$4:$T168,$T168)<2,0,$U168-OCCUR($T$4:$T168,$T168,$S168-1,0,1))/3600,1),"h ", FLOOR((IF(COUNTIF($T$4:$T168,$T168)<2,0,$U168-OCCUR($T$4:$T168,$T168,$S168-1,0,1))-FLOOR(IF(COUNTIF($T$4:$T168,$T168)<2,0,$U168-OCCUR($T$4:$T168,$T168,$S168-1,0,1))/3600,1)*3600)/60,1), "m ", IF(COUNTIF($T$4:$T168,$T168)<2,0,$U168-OCCUR($T$4:$T168,$T168,$S168-1,0,1))-FLOOR((IF(COUNTIF($T$4:$T168,$T168)<2,0,$U168-OCCUR($T$4:$T168,$T168,$S168-1,0,1))-FLOOR(IF(COUNTIF($T$4:$T168,$T168)<2,0,$U168-OCCUR($T$4:$T168,$T168,$S168-1,0,1))/3600,1)*3600)/60,1)*60-FLOOR(IF(COUNTIF($T$4:$T168,$T168)<2,0,$U168-OCCUR($T$4:$T168,$T168,$S168-1,0,1))/3600,1)*3600, "s"),"???")) -> 1h 23m 34s | X168: 1 | AH168: Steiner
C169: ? | D169: ? | E169: ? | F169: =IF(G169="?","?",COUNTIF($G$4:$G169,$G169)) -> ? | G169: ? | H169: =IF(R169="??? - N/A ","?",COUNTA($B$4:$B169)) -> 104 | I169: Steiner | J169: 43 | K169: illum-071541 | L169: 07 | M169: 15 | N169: 41 | O169: =IF(P169="?","?",COUNTIF($P$4:$P169,$P169)) -> 1 | P169: illum | Q169: =IF(R169="??? - N/A ","?",COUNTA($K$4:$K169)) -> 61 | R169: 07:15:41 - Lightning 1 | S169: =IF($T169="N/A",0,COUNTIF($T$4:$T169,$T169)) -> 1 | T169: illum | U169: 22541 | V169: =IF($S169>1,U169-OCCUR($T$4:$T169,$T169,COUNTIF($T$4:$T169,$T169)-1,0,1),"N/A") -> N/A | W169: =IF($T169="N/A","???",IFERROR(CONCATENATE(FLOOR(IF(COUNTIF($T$4:$T169,$T169)<2,0,$U169-OCCUR($T$4:$T169,$T169,$S169-1,0,1))/3600,1),"h ", FLOOR((IF(COUNTIF($T$4:$T169,$T169)<2,0,$U169-OCCUR($T$4:$T169,$T169,$S169-1,0,1))-FLOOR(IF(COUNTIF($T$4:$T169,$T169)<2,0,$U169-OCCUR($T$4:$T169,$T169,$S169-1,0,1))/3600,1)*3600)/60,1), "m ", IF(COUNTIF($T$4:$T169,$T169)<2,0,$U169-OCCUR($T$4:$T169,$T169,$S169-1,0,1))-FLOOR((IF(COUNTIF($T$4:$T169,$T169)<2,0,$U169-OCCUR($T$4:$T169,$T169,$S169-1,0,1))-FLOOR(IF(COUNTIF($T$4:$T169,$T169)<2,0,$U169-OCCUR($T$4:$T169,$T169,$S169-1,0,1))/3600,1)*3600)/60,1)*60-FLOOR(IF(COUNTIF($T$4:$T169,$T169)<2,0,$U169-OCCUR($T$4:$T169,$T169,$S169-1,0,1))/3600,1)*3600, "s"),"???")) -> 0h 0m 0s | X169: 1 | AH169: Lightning
B170: Poka-072511 | C170: 07 | D170: 25 | E170: 11 | F170: =IF(G170="?","?",COUNTIF($G$4:$G170,$G170)) -> 3 | G170: Poka | H170: =IF(R170="??? - N/A ","?",COUNTA($B$4:$B170)) -> 105 | I170: Steiner | J170: 44 | L170: ? | M170: ? | N170: ? | O170: =IF(P170="?","?",COUNTIF($P$4:$P170,$P170)) -> ? | P170: ? | Q170: =IF(R170="??? - N/A ","?",COUNTA($K$4:$K170)) -> 61 | R170: 07:25:11 - Steiner 3 | S170: =IF($T170="N/A",0,COUNTIF($T$4:$T170,$T170)) -> 3 | T170: Poka | U170: 23111 | V170: =IF($S170>1,U170-OCCUR($T$4:$T170,$T170,COUNTIF($T$4:$T170,$T170)-1,0,1),"N/A") -> 17799 | W170: =IF($T170="N/A","???",IFERROR(CONCATENATE(FLOOR(IF(COUNTIF($T$4:$T170,$T170)<2,0,$U170-OCCUR($T$4:$T170,$T170,$S170-1,0,1))/3600,1),"h ", FLOOR((IF(COUNTIF($T$4:$T170,$T170)<2,0,$U170-OCCUR($T$4:$T170,$T170,$S170-1,0,1))-FLOOR(IF(COUNTIF($T$4:$T170,$T170)<2,0,$U170-OCCUR($T$4:$T170,$T170,$S170-1,0,1))/3600,1)*3600)/60,1), "m ", IF(COUNTIF($T$4:$T170,$T170)<2,0,$U170-OCCUR($T$4:$T170,$T170,$S170-1,0,1))-FLOOR((IF(COUNTIF($T$4:$T170,$T170)<2,0,$U170-OCCUR($T$4:$T170,$T170,$S170-1,0,1))-FLOOR(IF(COUNTIF($T$4:$T170,$T170)<2,0,$U170-OCCUR($T$4:$T170,$T170,$S170-1,0,1))/3600,1)*3600)/60,1)*60-FLOOR(IF(COUNTIF($T$4:$T170,$T170)<2,0,$U170-OCCUR($T$4:$T170,$T170,$S170-1,0,1))/3600,1)*3600, "s"),"???")) -> 4h 56m 39s | X170: 1 | AH170: Steiner
C171: ? | D171: ? | E171: ? | F171: =IF(G171="?","?",COUNTIF($G$4:$G171,$G171)) -> ? | G171: ? | H171: =IF(R171="??? - N/A ","?",COUNTA($B$4:$B171)) -> 105 | I171: Steiner | J171: 43 | K171: pjbass-073108 | L171: 07 | M171: 31 | N171: 08 | O171: =IF(P171="?","?",COUNTIF($P$4:$P171,$P171)) -> 3 | P171: pjbass | Q171: =IF(R171="??? - N/A ","?",COUNTA($K$4:$K171)) -> 62 | R171: 07:31:08 - Lightning 3 | S171: =IF($T171="N/A",0,COUNTIF($T$4:$T171,$T171)) -> 3 | T171: pjbass | U171: 23468 | V171: =IF($S171>1,U171-OCCUR($T$4:$T171,$T171,COUNTIF($T$4:$T171,$T171)-1,0,1),"N/A") -> 15918 | W171: =IF($T171="N/A","???",IFERROR(CONCATENATE(FLOOR(IF(COUNTIF($T$4:$T171,$T171)<2,0,$U171-OCCUR($T$4:$T171,$T171,$S171-1,0,1))/3600,1),"h ", FLOOR((IF(COUNTIF($T$4:$T171,$T171)<2,0,$U171-OCCUR($T$4:$T171,$T171,$S171-1,0,1))-FLOOR(IF(COUNTIF($T$4:$T171,$T171)<2,0,$U171-OCCUR($T$4:$T171,$T171,$S171-1,0,1))/3600,1)*3600)/60,1), "m ", IF(COUNTIF($T$4:$T171,$T171)<2,0,$U171-OCCUR($T$4:$T171,$T171,$S171-1,0,1))-FLOOR((IF(COUNTIF($T$4:$T171,$T171)<2,0,$U171-OCCUR($T$4:$T171,$T171,$S171-1,0,1))-FLOOR(IF(COUNTIF($T$4:$T171,$T171)<2,0,$U171-OCCUR($T$4:$T171,$T171,$S171-1,0,1))/3600,1)*3600)/60,1)*60-FLOOR(IF(COUNTIF($T$4:$T171,$T171)<2,0,$U171-OCCUR($T$4:$T171,$T171,$S171-1,0,1))/3600,1)*3600, "s"),"???")) -> 4h 25m 18s | X171: 1 | AH171: Lightning
C172: ? | D172: ? | E172: ? | F172: =IF(G172="?","?",COUNTIF($G$4:$G172,$G172)) -> ? | G172: ? | H172: =IF(R172="??? - N/A ","?",COUNTA($B$4:$B172)) -> 105 | I172: Steiner | J172: 42 | K172: ecks-073517 | L172: 07 | M172: 35 | N172: 17 | O172: =IF(P172="?","?",COUNTIF($P$4:$P172,$P172)) -> 2 | P172: ecks | Q172: =IF(R172="??? - N/A ","?",COUNTA($K$4:$K172)) -> 63 | R172: 07:35:17 - Lightning 2 | S172: =IF($T172="N/A",0,COUNTIF($T$4:$T172,$T172)) -> 2 | T172: ecks | U172: 23717 | V172: =IF($S172>1,U172-OCCUR($T$4:$T172,$T172,COUNTIF($T$4:$T172,$T172)-1,0,1),"N/A") -> 4778 | W172: =IF($T172="N/A","???",IFERROR(CONCATENATE(FLOOR(IF(COUNTIF($T$4:$T172,$T172)<2,0,$U172-OCCUR($T$4:$T172,$T172,$S172-1,0,1))/3600,1),"h ", FLOOR((IF(COUNTIF($T$4:$T172,$T172)<2,0,$U172-OCCUR($T$4:$T172,$T172,$S172-1,0,1))-FLOOR(IF(COUNTIF($T$4:$T172,$T172)<2,0,$U172-OCCUR($T$4:$T172,$T172,$S172-1,0,1))/3600,1)*3600)/60,1), "m ", IF(COUNTIF($T$4:$T172,$T172)<2,0,$U172-OCCUR($T$4:$T172,$T172,$S172-1,0,1))-FLOOR((IF(COUNTIF($T$4:$T172,$T172)<2,0,$U172-OCCUR($T$4:$T172,$T172,$S172-1,0,1))-FLOOR(IF(COUNTIF($T$4:$T172,$T172)<2,0,$U172-OCCUR($T$4:$T172,$T172,$S172-1,0,1))/3600,1)*3600)/60,1)*60-FLOOR(IF(COUNTIF($T$4:$T172,$T172)<2,0,$U172-OCCUR($T$4:$T172,$T172,$S172-1,0,1))/3600,1)*3600, "s"),"???")) -> 1h 19m 38s | X172: 2 | AH172: Lightning
B173: Steiner-073658 | C173: 07 | D173: 36 | E173: 58 | F173: =IF(G173="?","?",COUNTIF($G$4:$G173,$G173)) -> 1 | G173: Steiner | H173: =IF(R173="??? - N/A ","?",COUNTA($B$4:$B173)) -> 106 | I173: Steiner | J173: 43 | L173: ? | M173: ? | N173: ? | O173: =IF(P173="?","?",COUNTIF($P$4:$P173,$P173)) -> ? | P173: ? | Q173: =IF(R173="??? - N/A ","?",COUNTA($K$4:$K173)) -> 63 | R173: 07:36:58 - Steiner 1 | S173: =IF($T173="N/A",0,COUNTIF($T$4:$T173,$T173)) -> 1 | T173: Steiner | U173: 23818 | V173: =IF($S173>1,U173-OCCUR($T$4:$T173,$T173,COUNTIF($T$4:$T173,$T173)-1,0,1),"N/A") -> N/A | W173: =IF($T173="N/A","???",IFERROR(CONCATENATE(FLOOR(IF(COUNTIF($T$4:$T173,$T173)<2,0,$U173-OCCUR($T$4:$T173,$T173,$S173-1,0,1))/3600,1),"h ", FLOOR((IF(COUNTIF($T$4:$T173,$T173)<2,0,$U173-OCCUR($T$4:$T173,$T173,$S173-1,0,1))-FLOOR(IF(COUNTIF($T$4:$T173,$T173)<2,0,$U173-OCCUR($T$4:$T173,$T173,$S173-1,0,1))/3600,1)*3600)/60,1), "m ", IF(COUNTIF($T$4:$T173,$T173)<2,0,$U173-OCCUR($T$4:$T173,$T173,$S173-1,0,1))-FLOOR((IF(COUNTIF($T$4:$T173,$T173)<2,0,$U173-OCCUR($T$4:$T173,$T173,$S173-1,0,1))-FLOOR(IF(COUNTIF($T$4:$T173,$T173)<2,0,$U173-OCCUR($T$4:$T173,$T173,$S173-1,0,1))/3600,1)*3600)/60,1)*60-FLOOR(IF(COUNTIF($T$4:$T173,$T173)<2,0,$U173-OCCUR($T$4:$T173,$T173,$S173-1,0,1))/3600,1)*3600, "s"),"???")) -> 0h 0m 0s | X173: 1 | AH173: Steiner
B174: Ultros-073916 | C174: 07 | D174: 39 | E174: 16 | F174: =IF(G174="?","?",COUNTIF($G$4:$G174,$G174)) -> 6 | G174: Ultros | H174: =IF(R174="??? - N/A ","?",COUNTA($B$4:$B174)) -> 107 | I174: Steiner | J174: 44 | L174: ? | M174: ? | N174: ? | O174: =IF(P174="?","?",COUNTIF($P$4:$P174,$P174)) -> ? | P174: ? | Q174: =IF(R174="??? - N/A ","?",COUNTA($K$4:$K174)) -> 63 | R174: 07:39:16 - Steiner 6 | S174: =IF($T174="N/A",0,COUNTIF($T$4:$T174,$T174)) -> 6 | T174: Ultros | U174: 23956 | V174: =IF($S174>1,U174-OCCUR($T$4:$T174,$T174,COUNTIF($T$4:$T174,$T174)-1,0,1),"N/A") -> 4518 | W174: =IF($T174="N/A","???",IFERROR(CONCATENATE(FLOOR(IF(COUNTIF($T$4:$T174,$T174)<2,0,$U174-OCCUR($T$4:$T174,$T174,$S174-1,0,1))/3600,1),"h ", FLOOR((IF(COUNTIF($T$4:$T174,$T174)<2,0,$U174-OCCUR($T$4:$T174,$T174,$S174-1,0,1))-FLOOR(IF(COUNTIF($T$4:$T174,$T174)<2,0,$U174-OCCUR($T$4:$T174,$T174,$S174-1,0,1))/3600,1)*3600)/60,1), "m ", IF(COUNTIF($T$4:$T174,$T174)<2,0,$U174-OCCUR($T$4:$T174,$T174,$S174-1,0,1))-FLOOR((IF(COUNTIF($T$4:$T174,$T174)<2,0,$U174-OCCUR($T$4:$T174,$T174,$S174-1,0,1))-FLOOR(IF(COUNTIF($T$4:$T174,$T174)<2,0,$U174-OCCUR($T$4:$T174,$T174,$S174-1,0,1))/3600,1)*3600)/60,1)*60-FLOOR(IF(COUNTIF($T$4:$T174,$T174)<2,0,$U174-OCCUR($T$4:$T174,$T174,$S174-1,0,1))/3600,1)*3600, "s"),"???")) -> 1h 15m 18s | X174: 2 | AH174: Steiner
B175: Gmun-073924 | C175: 07 | D175: 39 | E175: 24 | F175: =IF(G175="?","?",COUNTIF($G$4:$G175,$G175)) -> 7 | G175: Gmun | H175: =IF(R175="??? - N/A ","?",COUNTA($B$4:$B175)) -> 108 | I175: Steiner | J175: 45 | L175: ? | M175: ? | N175: ? | O175: =IF(P175="?","?",COUNTIF($P$4:$P175,$P175)) -> ? | P175: ? | Q175: =IF(R175="??? - N/A ","?",COUNTA($K$4:$K175)) -> 63 | R175: 07:39:24 - Steiner 7 | S175: =IF($T175="N/A",0,COUNTIF($T$4:$T175,$T175)) -> 7 | T175: Gmun | U175: 23964 | V175: =IF($S175>1,U175-OCCUR($T$4:$T175,$T175,COUNTIF($T$4:$T175,$T175)-1,0,1),"N/A") -> 3614 | W175: =IF($T175="N/A","???",IFERROR(CONCATENATE(FLOOR(IF(COUNTIF($T$4:$T175,$T175)<2,0,$U175-OCCUR($T$4:$T175,$T175,$S175-1,0,1))/3600,1),"h ", FLOOR((IF(COUNTIF($T$4:$T175,$T175)<2,0,$U175-OCCUR($T$4:$T175,$T175,$S175-1,0,1))-FLOOR(IF(COUNTIF($T$4:$T175,$T175)<2,0,$U175-OCCUR($T$4:$T175,$T175,$S175-1,0,1))/3600,1)*3600)/60,1), "m ", IF(COUNTIF($T$4:$T175,$T175)<2,0,$U175-OCCUR($T$4:$T175,$T175,$S175-1,0,1))-FLOOR((IF(COUNTIF($T$4:$T175,$T175)<2,0,$U175-OCCUR($T$4:$T175,$T175,$S175-1,0,1))-FLOOR(IF(COUNTIF($T$4:$T175,$T175)<2,0,$U175-OCCUR($T$4:$T175,$T175,$S175-1,0,1))/3600,1)*3600)/60,1)*60-FLOOR(IF(COUNTIF($T$4:$T175,$T175)<2,0,$U175-OCCUR($T$4:$T175,$T175,$S175-1,0,1))/3600,1)*3600, "s"),"???")) -> 1h 0m 14s | X175: 3 | AH175: Steiner
B176: Ermine-075209 | C176: 07 | D176: 52 | E176: 09 | F176: =IF(G176="?","?",COUNTIF($G$4:$G176,$G176)) -> 4 | G176: Ermine | H176: =IF(R176="??? - N/A ","?",COUNTA($B$4:$B176)) -> 109 | I176: Steiner | J176: 46 | L176: ? | M176: ? | N176: ? | O176: =IF(P176="?","?",COUNTIF($P$4:$P176,$P176)) -> ? | P176: ? | Q176: =IF(R176="??? - N/A ","?",COUNTA($K$4:$K176)) -> 63 | R176: 07:52:09 - Steiner 4 | S176: =IF($T176="N/A",0,COUNTIF($T$4:$T176,$T176)) -> 4 | T176: Ermine | U176: 24729 | V176: =IF($S176>1,U176-OCCUR($T$4:$T176,$T176,COUNTIF($T$4:$T176,$T176)-1,0,1),"N/A") -> 3604 | W176: =IF($T176="N/A","???",IFERROR(CONCATENATE(FLOOR(IF(COUNTIF($T$4:$T176,$T176)<2,0,$U176-OCCUR($T$4:$T176,$T176,$S176-1,0,1))/3600,1),"h ", FLOOR((IF(COUNTIF($T$4:$T176,$T176)<2,0,$U176-OCCUR($T$4:$T176,$T176,$S176-1,0,1))-FLOOR(IF(COUNTIF($T$4:$T176,$T176)<2,0,$U176-OCCUR($T$4:$T176,$T176,$S176-1,0,1))/3600,1)*3600)/60,1), "m ", IF(COUNTIF($T$4:$T176,$T176)<2,0,$U176-OCCUR($T$4:$T176,$T176,$S176-1,0,1))-FLOOR((IF(COUNTIF($T$4:$T176,$T176)<2,0,$U176-OCCUR($T$4:$T176,$T176,$S176-1,0,1))-FLOOR(IF(COUNTIF($T$4:$T176,$T176)<2,0,$U176-OCCUR($T$4:$T176,$T176,$S176-1,0,1))/3600,1)*3600)/60,1)*60-FLOOR(IF(COUNTIF($T$4:$T176,$T176)<2,0,$U176-OCCUR($T$4:$T176,$T176,$S176-1,0,1))/3600,1)*3600, "s"),"???")) -> 1h 0m 4s | X176: 4 | AH176: Steiner
C177: ? | D177: ? | E177: ? | F177: =IF(G177="?","?",COUNTIF($G$4:$G177,$G177)) -> ? | G177: ? | H177: =IF(R177="??? - N/A ","?",COUNTA($B$4:$B177)) -> 109 | I177: Steiner | J177: 45 | K177: Naomi-075424 | L177: 07 | M177: 54 | N177: 24 | O177: =IF(P177="?","?",COUNTIF($P$4:$P177,$P177)) -> 1 | P177: Naomi | Q177: =IF(R177="??? - N/A ","?",COUNTA($K$4:$K177)) -> 64 | R177: 07:54:24 - Lightning 1 | S177: =IF($T177="N/A",0,COUNTIF($T$4:$T177,$T177)) -> 1 | T177: Naomi | U177: 24864 | V177: =IF($S177>1,U177-OCCUR($T$4:$T177,$T177,COUNTIF($T$4:$T177,$T177)-1,0,1),"N/A") -> N/A | W177: =IF($T177="N/A","???",IFERROR(CONCATENATE(FLOOR(IF(COUNTIF($T$4:$T177,$T177)<2,0,$U177-OCCUR($T$4:$T177,$T177,$S177-1,0,1))/3600,1),"h ", FLOOR((IF(COUNTIF($T$4:$T177,$T177)<2,0,$U177-OCCUR($T$4:$T177,$T177,$S177-1,0,1))-FLOOR(IF(COUNTIF($T$4:$T177,$T177)<2,0,$U177-OCCUR($T$4:$T177,$T177,$S177-1,0,1))/3600,1)*3600)/60,1), "m ", IF(COUNTIF($T$4:$T177,$T177)<2,0,$U177-OCCUR($T$4:$T177,$T177,$S177-1,0,1))-FLOOR((IF(COUNTIF($T$4:$T177,$T177)<2,0,$U177-OCCUR($T$4:$T177,$T177,$S177-1,0,1))-FLOOR(IF(COUNTIF($T$4:$T177,$T177)<2,0,$U177-OCCUR($T$4:$T177,$T177,$S177-1,0,1))/3600,1)*3600)/60,1)*60-FLOOR(IF(COUNTIF($T$4:$T177,$T177)<2,0,$U177-OCCUR($T$4:$T177,$T177,$S177-1,0,1))/3600,1)*3600, "s"),"???")) -> 0h 0m 0s | X177: 1 | AH177: Lightning
C178: ? | D178: ? | E178: ? | F178: =IF(G178="?","?",COUNTIF($G$4:$G178,$G178)) -> ? | G178: ? | H178: =IF(R178="??? - N/A ","?",COUNTA($B$4:$B178)) -> 109 | I178: Steiner | J178: 44 | K178: Piston-075540 | L178: 07 | M178: 55 | N178: 40 | O178: =IF(P178="?","?",COUNTIF($P$4:$P178,$P178)) -> 1 | P178: Piston | Q178: =IF(R178="??? - N/A ","?",COUNTA($K$4:$K178)) -> 65 | R178: 07:55:40 - Lightning 1 | S178: =IF($T178="N/A",0,COUNTIF($T$4:$T178,$T178)) -> 1 | T178: Piston | U178: 24940 | V178: =IF($S178>1,U178-OCCUR($T$4:$T178,$T178,COUNTIF($T$4:$T178,$T178)-1,0,1),"N/A") -> N/A | W178: =IF($T178="N/A","???",IFERROR(CONCATENATE(FLOOR(IF(COUNTIF($T$4:$T178,$T178)<2,0,$U178-OCCUR($T$4:$T178,$T178,$S178-1,0,1))/3600,1),"h ", FLOOR((IF(COUNTIF($T$4:$T178,$T178)<2,0,$U178-OCCUR($T$4:$T178,$T178,$S178-1,0,1))-FLOOR(IF(COUNTIF($T$4:$T178,$T178)<2,0,$U178-OCCUR($T$4:$T178,$T178,$S178-1,0,1))/3600,1)*3600)/60,1), "m ", IF(COUNTIF($T$4:$T178,$T178)<2,0,$U178-OCCUR($T$4:$T178,$T178,$S178-1,0,1))-FLOOR((IF(COUNTIF($T$4:$T178,$T178)<2,0,$U178-OCCUR($T$4:$T178,$T178,$S178-1,0,1))-FLOOR(IF(COUNTIF($T$4:$T178,$T178)<2,0,$U178-OCCUR($T$4:$T178,$T178,$S178-1,0,1))/3600,1)*3600)/60,1)*60-FLOOR(IF(COUNTIF($T$4:$T178,$T178)<2,0,$U178-OCCUR($T$4:$T178,$T178,$S178-1,0,1))/3600,1)*3600, "s"),"???")) -> 0h 0m 0s | X178: 2 | AH178: Lightning
B179: Nanis-080003 | C179: 08 | D179: 00 | E179: 03 | F179: =IF(G179="?","?",COUNTIF($G$4:$G179,$G179)) -> 3 | G179: Nanis | H179: =IF(R179="??? - N/A ","?",COUNTA($B$4:$B179)) -> 110 | I179: Steiner | J179: 45 | L179: ? | M179: ? | N179: ? | O179: =IF(P179="?","?",COUNTIF($P$4:$P179,$P179)) -> ? | P179: ? | Q179: =IF(R179="??? - N/A ","?",COUNTA($K$4:$K179)) -> 65 | R179: 08:00:03 - Steiner 3 | S179: =IF($T179="N/A",0,COUNTIF($T$4:$T179,$T179)) -> 3 | T179: Nanis | U179: 25203 | V179: =IF($S179>1,U179-OCCUR($T$4:$T179,$T179,COUNTIF($T$4:$T179,$T179)-1,0,1),"N/A") -> 4849 | W179: =IF($T179="N/A","???",IFERROR(CONCATENATE(FLOOR(IF(COUNTIF($T$4:$T179,$T179)<2,0,$U179-OCCUR($T$4:$T179,$T179,$S179-1,0,1))/3600,1),"h ", FLOOR((IF(COUNTIF($T$4:$T179,$T179)<2,0,$U179-OCCUR($T$4:$T179,$T179,$S179-1,0,1))-FLOOR(IF(COUNTIF($T$4:$T179,$T179)<2,0,$U179-OCCUR($T$4:$T179,$T179,$S179-1,0,1))/3600,1)*3600)/60,1), "m ", IF(COUNTIF($T$4:$T179,$T179)<2,0,$U179-OCCUR($T$4:$T179,$T179,$S179-1,0,1))-FLOOR((IF(COUNTIF($T$4:$T179,$T179)<2,0,$U179-OCCUR($T$4:$T179,$T179,$S179-1,0,1))-FLOOR(IF(COUNTIF($T$4:$T179,$T179)<2,0,$U179-OCCUR($T$4:$T179,$T179,$S179-1,0,1))/3600,1)*3600)/60,1)*60-FLOOR(IF(COUNTIF($T$4:$T179,$T179)<2,0,$U179-OCCUR($T$4:$T179,$T179,$S179-1,0,1))/3600,1)*3600, "s"),"???")) -> 1h 20m 49s | X179: 1 | AH179: Steiner
C180: ? | D180: ? | E180: ? | F180: =IF(G180="?","?",COUNTIF($G$4:$G180,$G180)) -> ? | G180: ? | H180: =IF(R180="??? - N/A ","?",COUNTA($B$4:$B180)) -> 110 | I180: Steiner | J180: 44 | K180: Eddv-080219 | L180: 08 | M180: 02 | N180: 19 | O180: =IF(P180="?","?",COUNTIF($P$4:$P180,$P180)) -> 7 | P180: Eddv | Q180: =IF(R180="??? - N/A ","?",COUNTA($K$4:$K180)) -> 66 | R180: 08:02:19 - Lightning 7 | S180: =IF($T180="N/A",0,COUNTIF($T$4:$T180,$T180)) -> 7 | T180: Eddv | U180: 25339 | V180: =IF($S180>1,U180-OCCUR($T$4:$T180,$T180,COUNTIF($T$4:$T180,$T180)-1,0,1),"N/A") -> 3733 | W180: =IF($T180="N/A","???",IFERROR(CONCATENATE(FLOOR(IF(COUNTIF($T$4:$T180,$T180)<2,0,$U180-OCCUR($T$4:$T180,$T180,$S180-1,0,1))/3600,1),"h ", FLOOR((IF(COUNTIF($T$4:$T180,$T180)<2,0,$U180-OCCUR($T$4:$T180,$T180,$S180-1,0,1))-FLOOR(IF(COUNTIF($T$4:$T180,$T180)<2,0,$U180-OCCUR($T$4:$T180,$T180,$S180-1,0,1))/3600,1)*3600)/60,1), "m ", IF(COUNTIF($T$4:$T180,$T180)<2,0,$U180-OCCUR($T$4:$T180,$T180,$S180-1,0,1))-FLOOR((IF(COUNTIF($T$4:$T180,$T180)<2,0,$U180-OCCUR($T$4:$T180,$T180,$S180-1,0,1))-FLOOR(IF(COUNTIF($T$4:$T180,$T180)<2,0,$U180-OCCUR($T$4:$T180,$T180,$S180-1,0,1))/3600,1)*3600)/60,1)*60-FLOOR(IF(COUNTIF($T$4:$T180,$T180)<2,0,$U180-OCCUR($T$4:$T180,$T180,$S180-1,0,1))/3600,1)*3600, "s"),"???")) -> 1h 2m 13s | X180: 1 | AH180: Lightning
B181: red-080824 | C181: 08 | D181: 08 | E181: 24 | F181: =IF(G181="?","?",COUNTIF($G$4:$G181,$G181)) -> 5 | G181: red | H181: =IF(R181="??? - N/A ","?",COUNTA($B$4:$B181)) -> 111 | I181: Steiner | J181: 45 | L181: ? | M181: ? | N181: ? | O181: =IF(P181="?","?",COUNTIF($P$4:$P181,$P181)) -> ? | P181: ? | Q181: =IF(R181="??? - N/A ","?",COUNTA($K$4:$K181)) -> 66 | R181: 08:08:24 - Steiner 5 | S181: =IF($T181="N/A",0,COUNTIF($T$4:$T181,$T181)) -> 5 | T181: red | U181: 25704 | V181: =IF($S181>1,U181-OCCUR($T$4:$T181,$T181,COUNTIF($T$4:$T181,$T181)-1,0,1),"N/A") -> 4621 | W181: =IF($T181="N/A","???",IFERROR(CONCATENATE(FLOOR(IF(COUNTIF($T$4:$T181,$T181)<2,0,$U181-OCCUR($T$4:$T181,$T181,$S181-1,0,1))/3600,1),"h ", FLOOR((IF(COUNTIF($T$4:$T181,$T181)<2,0,$U181-OCCUR($T$4:$T181,$T181,$S181-1,0,1))-FLOOR(IF(COUNTIF($T$4:$T181,$T181)<2,0,$U181-OCCUR($T$4:$T181,$T181,$S181-1,0,1))/3600,1)*3600)/60,1), "m ", IF(COUNTIF($T$4:$T181,$T181)<2,0,$U181-OCCUR($T$4:$T181,$T181,$S181-1,0,1))-FLOOR((IF(COUNTIF($T$4:$T181,$T181)<2,0,$U181-OCCUR($T$4:$T181,$T181,$S181-1,0,1))-FLOOR(IF(COUNTIF($T$4:$T181,$T181)<2,0,$U181-OCCUR($T$4:$T181,$T181,$S181-1,0,1))/3600,1)*3600)/60,1)*60-FLOOR(IF(COUNTIF($T$4:$T181,$T181)<2,0,$U181-OCCUR($T$4:$T181,$T181,$S181-1,0,1))/3600,1)*3600, "s"),"???")) -> 1h 17m 1s | X181: 1 | AH181: Steiner
B182: Poke-081350 | C182: 08 | D182: 13 | E182: 50 | F182: =IF(G182="?","?",COUNTIF($G$4:$G182,$G182)) -> 3 | G182: Poke | H182: =IF(R182="??? - N/A ","?",COUNTA($B$4:$B182)) -> 112 | I182: Steiner | J182: 46 | L182: ? | M182: ? | N182: ? | O182: =IF(P182="?","?",COUNTIF($P$4:$P182,$P182)) -> ? | P182: ? | Q182: =IF(R182="??? - N/A ","?",COUNTA($K$4:$K182)) -> 66 | R182: 08:13:50 - Steiner 3 | S182: =IF($T182="N/A",0,COUNTIF($T$4:$T182,$T182)) -> 4 | T182: Poke | U182: 26030 | V182: =IF($S182>1,U182-OCCUR($T$4:$T182,$T182,COUNTIF($T$4:$T182,$T182)-1,0,1),"N/A") -> 6348 | W182: =IF($T182="N/A","???",IFERROR(CONCATENATE(FLOOR(IF(COUNTIF($T$4:$T182,$T182)<2,0,$U182-OCCUR($T$4:$T182,$T182,$S182-1,0,1))/3600,1),"h ", FLOOR((IF(COUNTIF($T$4:$T182,$T182)<2,0,$U182-OCCUR($T$4:$T182,$T182,$S182-1,0,1))-FLOOR(IF(COUNTIF($T$4:$T182,$T182)<2,0,$U182-OCCUR($T$4:$T182,$T182,$S182-1,0,1))/3600,1)*3600)/60,1), "m ", IF(COUNTIF($T$4:$T182,$T182)<2,0,$U182-OCCUR($T$4:$T182,$T182,$S182-1,0,1))-FLOOR((IF(COUNTIF($T$4:$T182,$T182)<2,0,$U182-OCCUR($T$4:$T182,$T182,$S182-1,0,1))-FLOOR(IF(COUNTIF($T$4:$T182,$T182)<2,0,$U182-OCCUR($T$4:$T182,$T182,$S182-1,0,1))/3600,1)*3600)/60,1)*60-FLOOR(IF(COUNTIF($T$4:$T182,$T182)<2,0,$U182-OCCUR($T$4:$T182,$T182,$S182-1,0,1))/3600,1)*3600, "s"),"???")) -> 1h 45m 48s | X182: 2 | AH182: Steiner
B183: Axl-081835 | C183: 08 | D183: 18 | E183: 35 | F183: =IF(G183="?","?",COUNTIF($G$4:$G183,$G183)) -> 1 | G183: Axl | H183: =IF(R183="??? - N/A ","?",COUNTA($B$4:$B183)) -> 113 | I183: Steiner | J183: 47 | L183: ? | M183: ? | N183: ? | O183: =IF(P183="?","?",COUNTIF($P$4:$P183,$P183)) -> ? | P183: ? | Q183: =IF(R183="??? - N/A ","?",COUNTA($K$4:$K183)) -> 66 | R183: 08:18:35 - Steiner 1 | S183: =IF($T183="N/A",0,COUNTIF($T$4:$T183,$T183)) -> 1 | T183: Axl | U183: 26315 | V183: =IF($S183>1,U183-OCCUR($T$4:$T183,$T183,COUNTIF($T$4:$T183,$T183)-1,0,1),"N/A") -> N/A | W183: =IF($T183="N/A","???",IFERROR(CONCATENATE(FLOOR(IF(COUNTIF($T$4:$T183,$T183)<2,0,$U183-OCCUR($T$4:$T183,$T183,$S183-1,0,1))/3600,1),"h ", FLOOR((IF(COUNTIF($T$4:$T183,$T183)<2,0,$U183-OCCUR($T$4:$T183,$T183,$S183-1,0,1))-FLOOR(IF(COUNTIF($T$4:$T183,$T183)<2,0,$U183-OCCUR($T$4:$T183,$T183,$S183-1,0,1))/3600,1)*3600)/60,1), "m ", IF(COUNTIF($T$4:$T183,$T183)<2,0,$U183-OCCUR($T$4:$T183,$T183,$S183-1,0,1))-FLOOR((IF(COUNTIF($T$4:$T183,$T183)<2,0,$U183-OCCUR($T$4:$T183,$T183,$S183-1,0,1))-FLOOR(IF(COUNTIF($T$4:$T183,$T183)<2,0,$U183-OCCUR($T$4:$T183,$T183,$S183-1,0,1))/3600,1)*3600)/60,1)*60-FLOOR(IF(COUNTIF($T$4:$T183,$T183)<2,0,$U183-OCCUR($T$4:$T183,$T183,$S183-1,0,1))/3600,1)*3600, "s"),"???")) -> 0h 0m 0s | X183: 3 | AH183: Steiner
C184: ? | D184: ? | E184: ? | F184: =IF(G184="?","?",COUNTIF($G$4:$G184,$G184)) -> ? | G184: ? | H184: =IF(R184="??? - N/A ","?",COUNTA($B$4:$B184)) -> 113 | I184: Steiner | J184: 46 | K184: Sheik-082449 | L184: 08 | M184: 24 | N184: 49 | O184: =IF(P184="?","?",COUNTIF($P$4:$P184,$P184)) -> 4 | P184: Sheik | Q184: =IF(R184="??? - N/A ","?",COUNTA($K$4:$K184)) -> 67 | R184: 08:24:49 - Lightning 4 | S184: =IF($T184="N/A",0,COUNTIF($T$4:$T184,$T184)) -> 4 | T184: Sheik | U184: 26689 | V184: =IF($S184>1,U184-OCCUR($T$4:$T184,$T184,COUNTIF($T$4:$T184,$T184)-1,0,1),"N/A") -> 4482 | W184: =IF($T184="N/A","???",IFERROR(CONCATENATE(FLOOR(IF(COUNTIF($T$4:$T184,$T184)<2,0,$U184-OCCUR($T$4:$T184,$T184,$S184-1,0,1))/3600,1),"h ", FLOOR((IF(COUNTIF($T$4:$T184,$T184)<2,0,$U184-OCCUR($T$4:$T184,$T184,$S184-1,0,1))-FLOOR(IF(COUNTIF($T$4:$T184,$T184)<2,0,$U184-OCCUR($T$4:$T184,$T184,$S184-1,0,1))/3600,1)*3600)/60,1), "m ", IF(COUNTIF($T$4:$T184,$T184)<2,0,$U184-OCCUR($T$4:$T184,$T184,$S184-1,0,1))-FLOOR((IF(COUNTIF($T$4:$T184,$T184)<2,0,$U184-OCCUR($T$4:$T184,$T184,$S184-1,0,1))-FLOOR(IF(COUNTIF($T$4:$T184,$T184)<2,0,$U184-OCCUR($T$4:$T184,$T184,$S184-1,0,1))/3600,1)*3600)/60,1)*60-FLOOR(IF(COUNTIF($T$4:$T184,$T184)<2,0,$U184-OCCUR($T$4:$T184,$T184,$S184-1,0,1))/3600,1)*3600, "s"),"???")) -> 1h 14m 42s | X184: 1 | AH184: Lightning
B185: Swarles-083109 | C185: 08 | D185: 31 | E185: 09 | F185: =IF(G185="?","?",COUNTIF($G$4:$G185,$G185)) -> 2 | G185: Swarles | H185: =IF(R185="??? - N/A ","?",COUNTA($B$4:$B185)) -> 114 | I185: Steiner | J185: 47 | L185: ? | M185: ? | N185: ? | O185: =IF(P185="?","?",COUNTIF($P$4:$P185,$P185)) -> ? | P185: ? | Q185: =IF(R185="??? - N/A ","?",COUNTA($K$4:$K185)) -> 67 | R185: 08:31:09 - Steiner 2 | S185: =IF($T185="N/A",0,COUNTIF($T$4:$T185,$T185)) -> 2 | T185: Swarles | U185: 27069 | V185: =IF($S185>1,U185-OCCUR($T$4:$T185,$T185,COUNTIF($T$4:$T185,$T185)-1,0,1),"N/A") -> 6827 | W185: =IF($T185="N/A","???",IFERROR(CONCATENATE(FLOOR(IF(COUNTIF($T$4:$T185,$T185)<2,0,$U185-OCCUR($T$4:$T185,$T185,$S185-1,0,1))/3600,1),"h ", FLOOR((IF(COUNTIF($T$4:$T185,$T185)<2,0,$U185-OCCUR($T$4:$T185,$T185,$S185-1,0,1))-FLOOR(IF(COUNTIF($T$4:$T185,$T185)<2,0,$U185-OCCUR($T$4:$T185,$T185,$S185-1,0,1))/3600,1)*3600)/60,1), "m ", IF(COUNTIF($T$4:$T185,$T185)<2,0,$U185-OCCUR($T$4:$T185,$T185,$S185-1,0,1))-FLOOR((IF(COUNTIF($T$4:$T185,$T185)<2,0,$U185-OCCUR($T$4:$T185,$T185,$S185-1,0,1))-FLOOR(IF(COUNTIF($T$4:$T185,$T185)<2,0,$U185-OCCUR($T$4:$T185,$T185,$S185-1,0,1))/3600,1)*3600)/60,1)*60-FLOOR(IF(COUNTIF($T$4:$T185,$T185)<2,0,$U185-OCCUR($T$4:$T185,$T185,$S185-1,0,1))/3600,1)*3600, "s"),"???")) -> 1h 53m 47s | X185: 1 | AH185: Steiner
C186: ? | D186: ? | E186: ? | F186: =IF(G186="?","?",COUNTIF($G$4:$G186,$G186)) -> ? | G186: ? | H186: =IF(R186="??? - N/A ","?",COUNTA($B$4:$B186)) -> 114 | I186: Steiner | J186: 46 | K186: Natwaf-083327 | L186: 08 | M186: 33 | N186: 27 | O186: =IF(P186="?","?",COUNTIF($P$4:$P186,$P186)) -> 6 | P186: Natwaf | Q186: =IF(R186="??? - N/A ","?",COUNTA($K$4:$K186)) -> 68 | R186: 08:33:27 - Lightning 6 | S186: =IF($T186="N/A",0,COUNTIF($T$4:$T186,$T186)) -> 6 | T186: Natwaf | U186: 27207 | V186: =IF($S186>1,U186-OCCUR($T$4:$T186,$T186,COUNTIF($T$4:$T186,$T186)-1,0,1),"N/A") -> 5937 | W186: =IF($T186="N/A","???",IFERROR(CONCATENATE(FLOOR(IF(COUNTIF($T$4:$T186,$T186)<2,0,$U186-OCCUR($T$4:$T186,$T186,$S186-1,0,1))/3600,1),"h ", FLOOR((IF(COUNTIF($T$4:$T186,$T186)<2,0,$U186-OCCUR($T$4:$T186,$T186,$S186-1,0,1))-FLOOR(IF(COUNTIF($T$4:$T186,$T186)<2,0,$U186-OCCUR($T$4:$T186,$T186,$S186-1,0,1))/3600,1)*3600)/60,1), "m ", IF(COUNTIF($T$4:$T186,$T186)<2,0,$U186-OCCUR($T$4:$T186,$T186,$S186-1,0,1))-FLOOR((IF(COUNTIF($T$4:$T186,$T186)<2,0,$U186-OCCUR($T$4:$T186,$T186,$S186-1,0,1))-FLOOR(IF(COUNTIF($T$4:$T186,$T186)<2,0,$U186-OCCUR($T$4:$T186,$T186,$S186-1,0,1))/3600,1)*3600)/60,1)*60-FLOOR(IF(COUNTIF($T$4:$T186,$T186)<2,0,$U186-OCCUR($T$4:$T186,$T186,$S186-1,0,1))/3600,1)*3600, "s"),"???")) -> 1h 38m 57s | X186: 1 | AH186: Lightning
C187: ? | D187: ? | E187: ? | F187: =IF(G187="?","?",COUNTIF($G$4:$G187,$G187)) -> ? | G187: ? | H187: =IF(R187="??? - N/A ","?",COUNTA($B$4:$B187)) -> 114 | I187: Steiner | J187: 45 | K187: voltch-083501 | L187: 08 | M187: 35 | N187: 01 | O187: =IF(P187="?","?",COUNTIF($P$4:$P187,$P187)) -> 3 | P187: voltch | Q187: =IF(R187="??? - N/A ","?",COUNTA($K$4:$K187)) -> 69 | R187: 08:35:01 - Lightning 3 | S187: =IF($T187="N/A",0,COUNTIF($T$4:$T187,$T187)) -> 3 | T187: voltch | U187: 27301 | V187: =IF($S187>1,U187-OCCUR($T$4:$T187,$T187,COUNTIF($T$4:$T187,$T187)-1,0,1),"N/A") -> 5199 | W187: =IF($T187="N/A","???",IFERROR(CONCATENATE(FLOOR(IF(COUNTIF($T$4:$T187,$T187)<2,0,$U187-OCCUR($T$4:$T187,$T187,$S187-1,0,1))/3600,1),"h ", FLOOR((IF(COUNTIF($T$4:$T187,$T187)<2,0,$U187-OCCUR($T$4:$T187,$T187,$S187-1,0,1))-FLOOR(IF(COUNTIF($T$4:$T187,$T187)<2,0,$U187-OCCUR($T$4:$T187,$T187,$S187-1,0,1))/3600,1)*3600)/60,1), "m ", IF(COUNTIF($T$4:$T187,$T187)<2,0,$U187-OCCUR($T$4:$T187,$T187,$S187-1,0,1))-FLOOR((IF(COUNTIF($T$4:$T187,$T187)<2,0,$U187-OCCUR($T$4:$T187,$T187,$S187-1,0,1))-FLOOR(IF(COUNTIF($T$4:$T187,$T187)<2,0,$U187-OCCUR($T$4:$T187,$T187,$S187-1,0,1))/3600,1)*3600)/60,1)*60-FLOOR(IF(COUNTIF($T$4:$T187,$T187)<2,0,$U187-OCCUR($T$4:$T187,$T187,$S187-1,0,1))/3600,1)*3600, "s"),"???")) -> 1h 26m 39s | X187: 2 | AH187: Lightning
B188: Laus-083940 | C188: 08 | D188: 39 | E188: 40 | F188: =IF(G188="?","?",COUNTIF($G$4:$G188,$G188)) -> 4 | G188: Laus | H188: =IF(R188="??? - N/A ","?",COUNTA($B$4:$B188)) -> 115 | I188: Steiner | J188: 46 | L188: ? | M188: ? | N188: ? | O188: =IF(P188="?","?",COUNTIF($P$4:$P188,$P188)) -> ? | P188: ? | Q188: =IF(R188="??? - N/A ","?",COUNTA($K$4:$K188)) -> 69 | R188: 08:39:40 - Steiner 4 | S188: =IF($T188="N/A",0,COUNTIF($T$4:$T188,$T188)) -> 4 | T188: Laus | U188: 27580 | V188: =IF($S188>1,U188-OCCUR($T$4:$T188,$T188,COUNTIF($T$4:$T188,$T188)-1,0,1),"N/A") -> 12193 | W188: =IF($T188="N/A","???",IFERROR(CONCATENATE(FLOOR(IF(COUNTIF($T$4:$T188,$T188)<2,0,$U188-OCCUR($T$4:$T188,$T188,$S188-1,0,1))/3600,1),"h ", FLOOR((IF(COUNTIF($T$4:$T188,$T188)<2,0,$U188-OCCUR($T$4:$T188,$T188,$S188-1,0,1))-FLOOR(IF(COUNTIF($T$4:$T188,$T188)<2,0,$U188-OCCUR($T$4:$T188,$T188,$S188-1,0,1))/3600,1)*3600)/60,1), "m ", IF(COUNTIF($T$4:$T188,$T188)<2,0,$U188-OCCUR($T$4:$T188,$T188,$S188-1,0,1))-FLOOR((IF(COUNTIF($T$4:$T188,$T188)<2,0,$U188-OCCUR($T$4:$T188,$T188,$S188-1,0,1))-FLOOR(IF(COUNTIF($T$4:$T188,$T188)<2,0,$U188-OCCUR($T$4:$T188,$T188,$S188-1,0,1))/3600,1)*3600)/60,1)*60-FLOOR(IF(COUNTIF($T$4:$T188,$T188)<2,0,$U188-OCCUR($T$4:$T188,$T188,$S188-1,0,1))/3600,1)*3600, "s"),"???")) -> 3h 23m 13s | X188: 1 | AH188: Steiner
B189: Sanity-084054 | C189: 08 | D189: 40 | E189: 54 | F189: =IF(G189="?","?",COUNTIF($G$4:$G189,$G189)) -> 6 | G189: Sanity | H189: =IF(R189="??? - N/A ","?",COUNTA($B$4:$B189)) -> 116 | I189: Steiner | J189: 47 | L189: ? | M189: ? | N189: ? | O189: =IF(P189="?","?",COUNTIF($P$4:$P189,$P189)) -> ? | P189: ? | Q189: =IF(R189="??? - N/A ","?",COUNTA($K$4:$K189)) -> 69 | R189: 08:40:54 - Steiner 6 | S189: =IF($T189="N/A",0,COUNTIF($T$4:$T189,$T189)) -> 6 | T189: Sanity | U189: 27654 | V189: =IF($S189>1,U189-OCCUR($T$4:$T189,$T189,COUNTIF($T$4:$T189,$T189)-1,0,1),"N/A") -> 5154 | W189: =IF($T189="N/A","???",IFERROR(CONCATENATE(FLOOR(IF(COUNTIF($T$4:$T189,$T189)<2,0,$U189-OCCUR($T$4:$T189,$T189,$S189-1,0,1))/3600,1),"h ", FLOOR((IF(COUNTIF($T$4:$T189,$T189)<2,0,$U189-OCCUR($T$4:$T189,$T189,$S189-1,0,1))-FLOOR(IF(COUNTIF($T$4:$T189,$T189)<2,0,$U189-OCCUR($T$4:$T189,$T189,$S189-1,0,1))/3600,1)*3600)/60,1), "m ", IF(COUNTIF($T$4:$T189,$T189)<2,0,$U189-OCCUR($T$4:$T189,$T189,$S189-1,0,1))-FLOOR((IF(COUNTIF($T$4:$T189,$T189)<2,0,$U189-OCCUR($T$4:$T189,$T189,$S189-1,0,1))-FLOOR(IF(COUNTIF($T$4:$T189,$T189)<2,0,$U189-OCCUR($T$4:$T189,$T189,$S189-1,0,1))/3600,1)*3600)/60,1)*60-FLOOR(IF(COUNTIF($T$4:$T189,$T189)<2,0,$U189-OCCUR($T$4:$T189,$T189,$S189-1,0,1))/3600,1)*3600, "s"),"???")) -> 1h 25m 54s | X189: 2 | AH189: Steiner
C190: ? | D190: ? | E190: ? | F190: =IF(G190="?","?",COUNTIF($G$4:$G190,$G190)) -> ? | G190: ? | H190: =IF(R190="??? - N/A ","?",COUNTA($B$4:$B190)) -> 116 | I190: Steiner | J190: 46 | K190: Jon-084245 | L190: 08 | M190: 42 | N190: 45 | O190: =IF(P190="?","?",COUNTIF($P$4:$P190,$P190)) -> 1 | P190: Jon | Q190: =IF(R190="??? - N/A ","?",COUNTA($K$4:$K190)) -> 70 | R190: 08:42:45 - Lightning 1 | S190: =IF($T190="N/A",0,COUNTIF($T$4:$T190,$T190)) -> 1 | T190: Jon | U190: 27765 | V190: =IF($S190>1,U190-OCCUR($T$4:$T190,$T190,COUNTIF($T$4:$T190,$T190)-1,0,1),"N/A") -> N/A | W190: =IF($T190="N/A","???",IFERROR(CONCATENATE(FLOOR(IF(COUNTIF($T$4:$T190,$T190)<2,0,$U190-OCCUR($T$4:$T190,$T190,$S190-1,0,1))/3600,1),"h ", FLOOR((IF(COUNTIF($T$4:$T190,$T190)<2,0,$U190-OCCUR($T$4:$T190,$T190,$S190-1,0,1))-FLOOR(IF(COUNTIF($T$4:$T190,$T190)<2,0,$U190-OCCUR($T$4:$T190,$T190,$S190-1,0,1))/3600,1)*3600)/60,1), "m ", IF(COUNTIF($T$4:$T190,$T190)<2,0,$U190-OCCUR($T$4:$T190,$T190,$S190-1,0,1))-FLOOR((IF(COUNTIF($T$4:$T190,$T190)<2,0,$U190-OCCUR($T$4:$T190,$T190,$S190-1,0,1))-FLOOR(IF(COUNTIF($T$4:$T190,$T190)<2,0,$U190-OCCUR($T$4:$T190,$T190,$S190-1,0,1))/3600,1)*3600)/60,1)*60-FLOOR(IF(COUNTIF($T$4:$T190,$T190)<2,0,$U190-OCCUR($T$4:$T190,$T190,$S190-1,0,1))/3600,1)*3600, "s"),"???")) -> 0h 0m 0s | X190: 1 | AH190: Lightning
C191: ? | D191: ? | E191: ? | F191: =IF(G191="?","?",COUNTIF($G$4:$G191,$G191)) -> ? | G191: ? | H191: =IF(R191="??? - N/A ","?",COUNTA($B$4:$B191)) -> 116 | I191: Steiner | J191: 45 | K191: kate-085208 | L191: 08 | M191: 52 | N191: 08 | O191: =IF(P191="?","?",COUNTIF($P$4:$P191,$P191)) -> 3 | P191: kate | Q191: =IF(R191="??? - N/A ","?",COUNTA($K$4:$K191)) -> 71 | R191: 08:52:08 - Lightning 3 | S191: =IF($T191="N/A",0,COUNTIF($T$4:$T191,$T191)) -> 3 | T191: kate | U191: 28328 | V191: =IF($S191>1,U191-OCCUR($T$4:$T191,$T191,COUNTIF($T$4:$T191,$T191)-1,0,1),"N/A") -> 7893 | W191: =IF($T191="N/A","???",IFERROR(CONCATENATE(FLOOR(IF(COUNTIF($T$4:$T191,$T191)<2,0,$U191-OCCUR($T$4:$T191,$T191,$S191-1,0,1))/3600,1),"h ", FLOOR((IF(COUNTIF($T$4:$T191,$T191)<2,0,$U191-OCCUR($T$4:$T191,$T191,$S191-1,0,1))-FLOOR(IF(COUNTIF($T$4:$T191,$T191)<2,0,$U191-OCCUR($T$4:$T191,$T191,$S191-1,0,1))/3600,1)*3600)/60,1), "m ", IF(COUNTIF($T$4:$T191,$T191)<2,0,$U191-OCCUR($T$4:$T191,$T191,$S191-1,0,1))-FLOOR((IF(COUNTIF($T$4:$T191,$T191)<2,0,$U191-OCCUR($T$4:$T191,$T191,$S191-1,0,1))-FLOOR(IF(COUNTIF($T$4:$T191,$T191)<2,0,$U191-OCCUR($T$4:$T191,$T191,$S191-1,0,1))/3600,1)*3600)/60,1)*60-FLOOR(IF(COUNTIF($T$4:$T191,$T191)<2,0,$U191-OCCUR($T$4:$T191,$T191,$S191-1,0,1))/3600,1)*3600, "s"),"???")) -> 2h 11m 33s | X191: 2 | AH191: Lightning
B192: Gmun-085211 | C192: 08 | D192: 52 | E192: 11 | F192: =IF(G192="?","?",COUNTIF($G$4:$G192,$G192)) -> 8 | G192: Gmun | H192: =IF(R192="??? - N/A ","?",COUNTA($B$4:$B192)) -> 117 | I192: Steiner | J192: 46 | L192: ? | M192: ? | N192: ? | O192: =IF(P192="?","?",COUNTIF($P$4:$P192,$P192)) -> ? | P192: ? | Q192: =IF(R192="??? - N/A ","?",COUNTA($K$4:$K192)) -> 71 | R192: 08:52:11 - Steiner 8 | S192: =IF($T192="N/A",0,COUNTIF($T$4:$T192,$T192)) -> 8 | T192: Gmun | U192: 28331 | V192: =IF($S192>1,U192-OCCUR($T$4:$T192,$T192,COUNTIF($T$4:$T192,$T192)-1,0,1),"N/A") -> 4367 | W192: =IF($T192="N/A","???",IFERROR(CONCATENATE(FLOOR(IF(COUNTIF($T$4:$T192,$T192)<2,0,$U192-OCCUR($T$4:$T192,$T192,$S192-1,0,1))/3600,1),"h ", FLOOR((IF(COUNTIF($T$4:$T192,$T192)<2,0,$U192-OCCUR($T$4:$T192,$T192,$S192-1,0,1))-FLOOR(IF(COUNTIF($T$4:$T192,$T192)<2,0,$U192-OCCUR($T$4:$T192,$T192,$S192-1,0,1))/3600,1)*3600)/60,1), "m ", IF(COUNTIF($T$4:$T192,$T192)<2,0,$U192-OCCUR($T$4:$T192,$T192,$S192-1,0,1))-FLOOR((IF(COUNTIF($T$4:$T192,$T192)<2,0,$U192-OCCUR($T$4:$T192,$T192,$S192-1,0,1))-FLOOR(IF(COUNTIF($T$4:$T192,$T192)<2,0,$U192-OCCUR($T$4:$T192,$T192,$S192-1,0,1))/3600,1)*3600)/60,1)*60-FLOOR(IF(COUNTIF($T$4:$T192,$T192)<2,0,$U192-OCCUR($T$4:$T192,$T192,$S192-1,0,1))/3600,1)*3600, "s"),"???")) -> 1h 12m 47s | X192: 1 | AH192: Steiner
C193: ? | D193: ? | E193: ? | F193: =IF(G193="?","?",COUNTIF($G$4:$G193,$G193)) -> ? | G193: ? | H193: =IF(R193="??? - N/A ","?",COUNTA($B$4:$B193)) -> 117 | I193: Steiner | J193: 45 | K193: Eddv-090340 | L193: 09 | M193: 03 | N193: 40 | O193: =IF(P193="?","?",COUNTIF($P$4:$P193,$P193)) -> 8 | P193: Eddv | Q193: =IF(R193="??? - N/A ","?",COUNTA($K$4:$K193)) -> 72 | R193: 09:03:40 - Lightning 8 | S193: =IF($T193="N/A",0,COUNTIF($T$4:$T193,$T193)) -> 8 | T193: Eddv | U193: 29020 | V193: =IF($S193>1,U193-OCCUR($T$4:$T193,$T193,COUNTIF($T$4:$T193,$T193)-1,0,1),"N/A") -> 3681 | W193: =IF($T193="N/A","???",IFERROR(CONCATENATE(FLOOR(IF(COUNTIF($T$4:$T193,$T193)<2,0,$U193-OCCUR($T$4:$T193,$T193,$S193-1,0,1))/3600,1),"h ", FLOOR((IF(COUNTIF($T$4:$T193,$T193)<2,0,$U193-OCCUR($T$4:$T193,$T193,$S193-1,0,1))-FLOOR(IF(COUNTIF($T$4:$T193,$T193)<2,0,$U193-OCCUR($T$4:$T193,$T193,$S193-1,0,1))/3600,1)*3600)/60,1), "m ", IF(COUNTIF($T$4:$T193,$T193)<2,0,$U193-OCCUR($T$4:$T193,$T193,$S193-1,0,1))-FLOOR((IF(COUNTIF($T$4:$T193,$T193)<2,0,$U193-OCCUR($T$4:$T193,$T193,$S193-1,0,1))-FLOOR(IF(COUNTIF($T$4:$T193,$T193)<2,0,$U193-OCCUR($T$4:$T193,$T193,$S193-1,0,1))/3600,1)*3600)/60,1)*60-FLOOR(IF(COUNTIF($T$4:$T193,$T193)<2,0,$U193-OCCUR($T$4:$T193,$T193,$S193-1,0,1))/3600,1)*3600, "s"),"???")) -> 1h 1m 21s | X193: 1 | AH193: Lightning
C194: ? | D194: ? | E194: ? | F194: =IF(G194="?","?",COUNTIF($G$4:$G194,$G194)) -> ? | G194: ? | H194: =IF(R194="??? - N/A ","?",COUNTA($B$4:$B194)) -> 117 | I194: Steiner | J194: 44 | K194: pjbass-091723 | L194: 09 | M194: 17 | N194: 23 | O194: =IF(P194="?","?",COUNTIF($P$4:$P194,$P194)) -> 4 | P194: pjbass | Q194: =IF(R194="??? - N/A ","?",COUNTA($K$4:$K194)) -> 73 | R194: 09:17:23 - Lightning 4 | S194: =IF($T194="N/A",0,COUNTIF($T$4:$T194,$T194)) -> 4 | T194: pjbass | U194: 29843 | V194: =IF($S194>1,U194-OCCUR($T$4:$T194,$T194,COUNTIF($T$4:$T194,$T194)-1,0,1),"N/A") -> 6375 | W194: =IF($T194="N/A","???",IFERROR(CONCATENATE(FLOOR(IF(COUNTIF($T$4:$T194,$T194)<2,0,$U194-OCCUR($T$4:$T194,$T194,$S194-1,0,1))/3600,1),"h ", FLOOR((IF(COUNTIF($T$4:$T194,$T194)<2,0,$U194-OCCUR($T$4:$T194,$T194,$S194-1,0,1))-FLOOR(IF(COUNTIF($T$4:$T194,$T194)<2,0,$U194-OCCUR($T$4:$T194,$T194,$S194-1,0,1))/3600,1)*3600)/60,1), "m ", IF(COUNTIF($T$4:$T194,$T194)<2,0,$U194-OCCUR($T$4:$T194,$T194,$S194-1,0,1))-FLOOR((IF(COUNTIF($T$4:$T194,$T194)<2,0,$U194-OCCUR($T$4:$T194,$T194,$S194-1,0,1))-FLOOR(IF(COUNTIF($T$4:$T194,$T194)<2,0,$U194-OCCUR($T$4:$T194,$T194,$S194-1,0,1))/3600,1)*3600)/60,1)*60-FLOOR(IF(COUNTIF($T$4:$T194,$T194)<2,0,$U194-OCCUR($T$4:$T194,$T194,$S194-1,0,1))/3600,1)*3600, "s"),"???")) -> 1h 46m 15s | X194: 2 | AH194: Lightning
B195: Nanis-092445 | C195: 09 | D195: 24 | E195: 45 | F195: =IF(G195="?","?",COUNTIF($G$4:$G195,$G195)) -> 4 | G195: Nanis | H195: =IF(R195="??? - N/A ","?",COUNTA($B$4:$B195)) -> 118 | I195: Steiner | J195: 45 | L195: ? | M195: ? | N195: ? | O195: =IF(P195="?","?",COUNTIF($P$4:$P195,$P195)) -> ? | P195: ? | Q195: =IF(R195="??? - N/A ","?",COUNTA($K$4:$K195)) -> 73 | R195: 09:24:45 - Steiner 4 | S195: =IF($T195="N/A",0,COUNTIF($T$4:$T195,$T195)) -> 4 | T195: Nanis | U195: 30285 | V195: =IF($S195>1,U195-OCCUR($T$4:$T195,$T195,COUNTIF($T$4:$T195,$T195)-1,0,1),"N/A") -> 5082 | W195: =IF($T195="N/A","???",IFERROR(CONCATENATE(FLOOR(IF(COUNTIF($T$4:$T195,$T195)<2,0,$U195-OCCUR($T$4:$T195,$T195,$S195-1,0,1))/3600,1),"h ", FLOOR((IF(COUNTIF($T$4:$T195,$T195)<2,0,$U195-OCCUR($T$4:$T195,$T195,$S195-1,0,1))-FLOOR(IF(COUNTIF($T$4:$T195,$T195)<2,0,$U195-OCCUR($T$4:$T195,$T195,$S195-1,0,1))/3600,1)*3600)/60,1), "m ", IF(COUNTIF($T$4:$T195,$T195)<2,0,$U195-OCCUR($T$4:$T195,$T195,$S195-1,0,1))-FLOOR((IF(COUNTIF($T$4:$T195,$T195)<2,0,$U195-OCCUR($T$4:$T195,$T195,$S195-1,0,1))-FLOOR(IF(COUNTIF($T$4:$T195,$T195)<2,0,$U195-OCCUR($T$4:$T195,$T195,$S195-1,0,1))/3600,1)*3600)/60,1)*60-FLOOR(IF(COUNTIF($T$4:$T195,$T195)<2,0,$U195-OCCUR($T$4:$T195,$T195,$S195-1,0,1))/3600,1)*3600, "s"),"???")) -> 1h 24m 42s | X195: 1 | AH195: Steiner
C196: =IFERROR(MID($B196,FIND("-",$B196,1)+1,2),"?") -> ? | D196: =IFERROR(MID($B196,FIND("-",$B196,1)+3,2),"?") -> ? | E196: =IFERROR(MID($B196,FIND("-",$B196,1)+5,2),"?") -> ? | F196: =IF(G196="?","?",COUNTIF($G$4:$G196,$G196)) -> ? | G196: =IFERROR(MID($B196,1,FIND("-",$B196,1)-1),"?") -> ? | H196: =IF(R196="??? - N/A ","?",COUNTA($B$4:$B196)) -> 118 | I196: =IF(R196="??? - N/A ","?",IF(H196=Q196,"TIE",IF(H196>Q196,$B$2,$K$2))) -> Steiner | J196: =IF(R196="??? - N/A ","?",ABS(H196-Q196)) -> 44 | K196: Sheik-092750 | L196: =IFERROR(MID($K196,FIND("-",$K196,1)+1,2),"?") -> 09 | M196: =IFERROR(MID($K196,FIND("-",$K196,1)+3,2),"?") -> 27 | N196: =IFERROR(MID($K196,FIND("-",$K196,1)+5,2),"?") -> 50 | O196: =IF(P196="?","?",COUNTIF($P$4:$P196,$P196)) -> 5 | P196: =IFERROR(MID($K196,1,FIND("-",$K196,1)-1),"?") -> Sheik | Q196: =IF(R196="??? - N/A ","?",COUNTA($K$4:$K196)) -> 74 | R196: 09:27:50 - Lightning 5 | S196: =IF($T196="N/A",0,COUNTIF($T$4:$T196,$T196)) -> 5 | T196: =IF(LEN(B196)>0,G196,IF(LEN(K196)>0,P196,"N/A")) -> Sheik | U196: 30470 | V196: =IF($S196>1,U196-OCCUR($T$4:$T196,$T196,COUNTIF($T$4:$T196,$T196)-1,0,1),"N/A") -> 3781 | W196: =IF($T196="N/A","???",IFERROR(CONCATENATE(FLOOR(IF(COUNTIF($T$4:$T196,$T196)<2,0,$U196-OCCUR($T$4:$T196,$T196,$S196-1,0,1))/3600,1),"h ", FLOOR((IF(COUNTIF($T$4:$T196,$T196)<2,0,$U196-OCCUR($T$4:$T196,$T196,$S196-1,0,1))-FLOOR(IF(COUNTIF($T$4:$T196,$T196)<2,0,$U196-OCCUR($T$4:$T196,$T196,$S196-1,0,1))/3600,1)*3600)/60,1), "m ", IF(COUNTIF($T$4:$T196,$T196)<2,0,$U196-OCCUR($T$4:$T196,$T196,$S196-1,0,1))-FLOOR((IF(COUNTIF($T$4:$T196,$T196)<2,0,$U196-OCCUR($T$4:$T196,$T196,$S196-1,0,1))-FLOOR(IF(COUNTIF($T$4:$T196,$T196)<2,0,$U196-OCCUR($T$4:$T196,$T196,$S196-1,0,1))/3600,1)*3600)/60,1)*60-FLOOR(IF(COUNTIF($T$4:$T196,$T196)<2,0,$U196-OCCUR($T$4:$T196,$T196,$S196-1,0,1))/3600,1)*3600, "s"),"???")) -> 1h 3m 1s | X196: 1 | AH196: Lightning
B197: Gmun-095214 | C197: 09 | D197: 52 | E197: 14 | F197: =IF(G197="?","?",COUNTIF($G$4:$G197,$G197)) -> 9 | G197: Gmun | H197: =IF(R197="??? - N/A ","?",COUNTA($B$4:$B197)) -> 119 | I197: Steiner | J197: 45 | L197: ? | M197: ? | N197: ? | O197: =IF(P197="?","?",COUNTIF($P$4:$P197,$P197)) -> ? | P197: ? | Q197: =IF(R197="??? - N/A ","?",COUNTA($K$4:$K197)) -> 74 | R197: =CONCATENATE(IF(LEN(B197)>0,CONCATENATE(C197,":",D197,":",E197),IF(LEN(K197)>0,CONCATENATE(L197,":",M197,":",N197),"???"))," - ",IF(LEN(B197)>0,"Steiner",IF(LEN(K197)>0,"Lightning","N/A"))," ", IF(LEN(B197)>0,F197,IF(LEN(K197)>0,O197,"")) ) -> 09:52:14 - Steiner 9 | S197: =IF($T197="N/A",0,COUNTIF($T$4:$T197,$T197)) -> 9 | T197: Gmun | U197: =IF(LEN(B197)>0,($E197+60*$D197+3600*($C197-1)),IF(LEN(K197)>0,$N197+60*$M197+3600*($L197-1),"???")) -> 31934 | V197: =IF($S197>1,U197-OCCUR($T$4:$T197,$T197,COUNTIF($T$4:$T197,$T197)-1,0,1),"N/A") -> 3603 | W197: =IF($T197="N/A","???",IFERROR(CONCATENATE(FLOOR(IF(COUNTIF($T$4:$T197,$T197)<2,0,$U197-OCCUR($T$4:$T197,$T197,$S197-1,0,1))/3600,1),"h ", FLOOR((IF(COUNTIF($T$4:$T197,$T197)<2,0,$U197-OCCUR($T$4:$T197,$T197,$S197-1,0,1))-FLOOR(IF(COUNTIF($T$4:$T197,$T197)<2,0,$U197-OCCUR($T$4:$T197,$T197,$S197-1,0,1))/3600,1)*3600)/60,1), "m ", IF(COUNTIF($T$4:$T197,$T197)<2,0,$U197-OCCUR($T$4:$T197,$T197,$S197-1,0,1))-FLOOR((IF(COUNTIF($T$4:$T197,$T197)<2,0,$U197-OCCUR($T$4:$T197,$T197,$S197-1,0,1))-FLOOR(IF(COUNTIF($T$4:$T197,$T197)<2,0,$U197-OCCUR($T$4:$T197,$T197,$S197-1,0,1))/3600,1)*3600)/60,1)*60-FLOOR(IF(COUNTIF($T$4:$T197,$T197)<2,0,$U197-OCCUR($T$4:$T197,$T197,$S197-1,0,1))/3600,1)*3600, "s"),"???")) -> 1h 0m 3s | X197: 1 | AH197: =IF(ISNUMBER(FIND("Steiner",R197)),"Steiner",IF(ISNUMBER(FIND("Lightning",R197)),"Lightning","???")) -> Steiner
C198: ? | D198: ? | E198: ? | F198: =IF(G198="?","?",COUNTIF($G$4:$G198,$G198)) -> ? | G198: ? | H198: =IF(R198="??? - N/A ","?",COUNTA($B$4:$B198)) -> 119 | I198: Steiner | J198: 44 | K198: yellow-095218 | L198: 09 | M198: 52 | N198: 18 | O198: =IF(P198="?","?",COUNTIF($P$4:$P198,$P198)) -> 1 | P198: yellow | Q198: =IF(R198="??? - N/A ","?",COUNTA($K$4:$K198)) -> 75 | R198: 09:52:18 - Lightning 1 | S198: =IF($T198="N/A",0,COUNTIF($T$4:$T198,$T198)) -> 1 | T198: yellow | U198: 31938 | V198: =IF($S198>1,U198-OCCUR($T$4:$T198,$T198,COUNTIF($T$4:$T198,$T198)-1,0,1),"N/A") -> N/A | W198: =IF($T198="N/A","???",IFERROR(CONCATENATE(FLOOR(IF(COUNTIF($T$4:$T198,$T198)<2,0,$U198-OCCUR($T$4:$T198,$T198,$S198-1,0,1))/3600,1),"h ", FLOOR((IF(COUNTIF($T$4:$T198,$T198)<2,0,$U198-OCCUR($T$4:$T198,$T198,$S198-1,0,1))-FLOOR(IF(COUNTIF($T$4:$T198,$T198)<2,0,$U198-OCCUR($T$4:$T198,$T198,$S198-1,0,1))/3600,1)*3600)/60,1), "m ", IF(COUNTIF($T$4:$T198,$T198)<2,0,$U198-OCCUR($T$4:$T198,$T198,$S198-1,0,1))-FLOOR((IF(COUNTIF($T$4:$T198,$T198)<2,0,$U198-OCCUR($T$4:$T198,$T198,$S198-1,0,1))-FLOOR(IF(COUNTIF($T$4:$T198,$T198)<2,0,$U198-OCCUR($T$4:$T198,$T198,$S198-1,0,1))/3600,1)*3600)/60,1)*60-FLOOR(IF(COUNTIF($T$4:$T198,$T198)<2,0,$U198-OCCUR($T$4:$T198,$T198,$S198-1,0,1))/3600,1)*3600, "s"),"???")) -> 0h 0m 0s | X198: 1 | AH198: Lightning
B199: Sanity-095313 | C199: 09 | D199: 53 | E199: 13 | F199: =IF(G199="?","?",COUNTIF($G$4:$G199,$G199)) -> 7 | G199: Sanity | H199: =IF(R199="??? - N/A ","?",COUNTA($B$4:$B199)) -> 120 | I199: Steiner | J199: 45 | L199: ? | M199: ? | N199: ? | O199: =IF(P199="?","?",COUNTIF($P$4:$P199,$P199)) -> ? | P199: ? | Q199: =IF(R199="??? - N/A ","?",COUNTA($K$4:$K199)) -> 75 | R199: 09:53:13 - Steiner 7 | S199: =IF($T199="N/A",0,COUNTIF($T$4:$T199,$T199)) -> 7 | T199: Sanity | U199: 31993 | V199: =IF($S199>1,U199-OCCUR($T$4:$T199,$T199,COUNTIF($T$4:$T199,$T199)-1,0,1),"N/A") -> 4339 | W199: =IF($T199="N/A","???",IFERROR(CONCATENATE(FLOOR(IF(COUNTIF($T$4:$T199,$T199)<2,0,$U199-OCCUR($T$4:$T199,$T199,$S199-1,0,1))/3600,1),"h ", FLOOR((IF(COUNTIF($T$4:$T199,$T199)<2,0,$U199-OCCUR($T$4:$T199,$T199,$S199-1,0,1))-FLOOR(IF(COUNTIF($T$4:$T199,$T199)<2,0,$U199-OCCUR($T$4:$T199,$T199,$S199-1,0,1))/3600,1)*3600)/60,1), "m ", IF(COUNTIF($T$4:$T199,$T199)<2,0,$U199-OCCUR($T$4:$T199,$T199,$S199-1,0,1))-FLOOR((IF(COUNTIF($T$4:$T199,$T199)<2,0,$U199-OCCUR($T$4:$T199,$T199,$S199-1,0,1))-FLOOR(IF(COUNTIF($T$4:$T199,$T199)<2,0,$U199-OCCUR($T$4:$T199,$T199,$S199-1,0,1))/3600,1)*3600)/60,1)*60-FLOOR(IF(COUNTIF($T$4:$T199,$T199)<2,0,$U199-OCCUR($T$4:$T199,$T199,$S199-1,0,1))/3600,1)*3600, "s"),"???")) -> 1h 12m 19s | X199: =IF(T199="N/A","N/A",IF(MID(R199,12,5)=MID(R198,12,5),X198+1,1)) -> 1 | AH199: Steiner
